Workbook

Sheet N_pain_all
A1: Selected VAERS search terms:
A2: Abdominal pain
A3: Abdominal pain lower
A4: Abdominal pain upper
A5: Arthralgia
A6: Asthenia
A7: Axillary pain
A8: Back pain
A9: Bell's palsy
A10: Bone pain
A11: Breast pain
A12: Chest pain
A13: Dysphagia
A14: Ear pain
A15: Eye pain
A16: Facial pain
A17: Guillain-Barre syndrome
A18: Hemiparesis
A19: Hypoaesthesia
A20: Injection site pain
A21: Lymph node pain
A22: Lymphadenopathy
A23: Musculoskeletal chest pain
A24: Musculoskeletal pain
A25: Musculoskeletal stiffness
A26: Myalgia
A27: Neck pain
A28: Neuralgia
A29: Oropharyngeal pain
A30: Pain
A31: Pain in extremity
A32: Pain in jaw
A33: Pain of skin
A34: Paraesthesia
A35: Renal pain
A36: Spinal pain
A38: Dose report
A39: Vaccine Name | B39: All | C39: 1 | D39: 2 | E39: 3 | F39: 4 | G39: 5 | H39: 6 | I39: 7+ | J39: UNK | K39: N/A | L39: All male | M39: 1 male | N39: 2 male | O39: 3 male | P39: 4 male | Q39: 5 male | R39: 6 male | S39: 7+ male | T39: UNK male | U39: N/A male | V39: All female | W39: 1 female | X39: 2 female | Y39: 3 female | Z39: 4 female | AA39: 5 female | AB39: 6 female | AC39: 7+ female | AD39: UNK female | AE39: N/A female | AF39: All Unknown | AG39: 1 Unknown | AH39: 2 Unknown | AI39: 3 Unknown | AJ39: 4 Unknown | AK39: 5 Unknown | AL39: 6 Unknown | AM39: 7+ Unknown | AN39: UNK Unknown | AO39: N/A Unknown
A40: COVID19 (COVID19 (PFIZER-BIONTECH)) | B40: 400239 | C40: 167575 | D40: 154286 | E40: 27203 | F40: 1121 | G40: 18 | H40: 29 | I40: 20 | J40: 49812 | K40: 175 | L40: 98378 | M40: 41532 | N40: 38018 | O40: 6179 | P40: 298 | Q40: 6 | R40: 11 | T40: 12287 | U40: 47 | V40: 294196 | W40: 123213 | X40: 113788 | Y40: 20538 | Z40: 804 | AA40: 12 | AB40: 18 | AC40: 19 | AD40: 35676 | AE40: 128 | AF40: 7665 | AG40: 2830 | AH40: 2480 | AI40: 486 | AJ40: 19 | AM40: 1 | AN40: 1849
A41: COVID19 (COVID19 (MODERNA)) | B41: 278407 | C41: 144482 | D41: 84315 | E41: 17828 | F41: 939 | G41: 41 | H41: 7 | I41: 108 | J41: 30398 | K41: 289 | L41: 65481 | M41: 32545 | N41: 20579 | O41: 4340 | P41: 255 | Q41: 13 | R41: 3 | S41: 19 | T41: 7651 | U41: 76 | V41: 208678 | W41: 109716 | X41: 62921 | Y41: 13191 | Z41: 681 | AA41: 28 | AB41: 4 | AC41: 89 | AD41: 21835 | AE41: 213 | AF41: 4248 | AG41: 2221 | AH41: 815 | AI41: 297 | AJ41: 3 | AN41: 912
A42: COVID19 (COVID19 (JANSSEN)) | B42: 57493 | C42: 32475 | D42: 901 | E42: 118 | F42: 9 | G42: 20 | H42: 1 | I42: 11 | J42: 22263 | K42: 1695 | L42: 17488 | M42: 9963 | N42: 301 | O42: 55 | P42: 2 | Q42: 8 | S42: 3 | T42: 6677 | U42: 479 | V42: 37434 | W42: 22160 | X42: 528 | Y42: 63 | Z42: 7 | AA42: 12 | AB42: 1 | AC42: 8 | AD42: 13440 | AE42: 1215 | AF42: 2571 | AG42: 352 | AH42: 72 | AN42: 2146 | AO42: 1
A43: ZOSTER (SHINGRIX) | B43: 50587 | C43: 24729 | D43: 16738 | E43: 112 | F43: 7 | G43: 13 | H43: 2 | I43: 16 | J43: 8926 | K43: 44 | L43: 13384 | M43: 6527 | N43: 4375 | O43: 53 | Q43: 1 | R43: 2 | S43: 3 | T43: 2419 | U43: 4 | V43: 34891 | W43: 17409 | X43: 11771 | Y43: 57 | Z43: 7 | AA43: 12 | AC43: 13 | AD43: 5582 | AE43: 40 | AF43: 2312 | AG43: 793 | AH43: 592 | AI43: 2 | AN43: 925
A44: PNEUMO (PNEUMOVAX) | B44: 39381 | C44: 16607 | D44: 5294 | E44: 370 | F44: 62 | G44: 44 | H44: 14 | I44: 41 | J44: 16289 | K44: 660 | L44: 10845 | M44: 4439 | N44: 1576 | O44: 101 | P44: 21 | Q44: 9 | R44: 4 | S44: 8 | T44: 4521 | U44: 166 | V44: 27437 | W44: 12023 | X44: 3662 | Y44: 267 | Z44: 41 | AA44: 35 | AB44: 10 | AC44: 31 | AD44: 10874 | AE44: 494 | AF44: 1099 | AG44: 145 | AH44: 56 | AI44: 2 | AM44: 2 | AN44: 894
A45: INFLUENZA (SEASONAL) (FLUZONE) | B45: 22113 | C45: 5770 | D45: 1947 | E45: 785 | F45: 601 | G45: 350 | H45: 384 | I45: 857 | J45: 11417 | K45: 2 | L45: 5830 | M45: 1527 | N45: 537 | O45: 215 | P45: 204 | Q45: 92 | R45: 104 | S45: 235 | T45: 2916 | V45: 15949 | W45: 4202 | X45: 1402 | Y45: 568 | Z45: 391 | AA45: 249 | AB45: 280 | AC45: 620 | AD45: 8235 | AE45: 2 | AF45: 334 | AG45: 41 | AH45: 8 | AI45: 2 | AJ45: 6 | AK45: 9 | AM45: 2 | AN45: 266
A46: HPV (GARDASIL) | B46: 20964 | C46: 7956 | D46: 4585 | E46: 3904 | F46: 127 | G46: 7 | H46: 1 | I46: 2 | J46: 4382 | L46: 1432 | M46: 597 | N46: 307 | O46: 222 | P46: 2 | Q46: 3 | T46: 301 | V46: 18909 | W46: 7274 | X46: 4091 | Y46: 3602 | Z46: 124 | AA46: 4 | AB46: 1 | AC46: 2 | AD46: 3811 | AF46: 623 | AG46: 85 | AH46: 187 | AI46: 80 | AJ46: 1 | AN46: 270
A47: INFLUENZA (SEASONAL) (NO BRAND NAME) | B47: 20292 | C47: 2770 | D47: 933 | E47: 231 | F47: 186 | G47: 96 | H47: 88 | I47: 381 | J47: 15567 | K47: 40 | L47: 5700 | M47: 748 | N47: 241 | O47: 61 | P47: 35 | Q47: 15 | R47: 14 | S47: 91 | T47: 4488 | U47: 7 | V47: 13794 | W47: 2009 | X47: 678 | Y47: 168 | Z47: 151 | AA47: 81 | AB47: 74 | AC47: 290 | AD47: 10310 | AE47: 33 | AF47: 798 | AG47: 13 | AH47: 14 | AI47: 2 | AN47: 769
A48: MEASLES + MUMPS + RUBELLA (MMR II) | B48: 16483 | C48: 4634 | D48: 6661 | E48: 387 | F48: 35 | G48: 10 | H48: 3 | I48: 7 | J48: 4713 | K48: 33 | L48: 5990 | M48: 1562 | N48: 2861 | O48: 139 | P48: 11 | Q48: 3 | R48: 1 | S48: 3 | T48: 1400 | U48: 10 | V48: 10234 | W48: 3045 | X48: 3757 | Y48: 246 | Z48: 24 | AA48: 7 | AB48: 2 | AC48: 4 | AD48: 3126 | AE48: 23 | AF48: 259 | AG48: 27 | AH48: 43 | AI48: 2 | AN48: 187
A49: TDAP (ADACEL) | B49: 16420 | C49: 7500 | D49: 889 | E49: 112 | F49: 73 | G49: 102 | H49: 342 | I49: 67 | J49: 6992 | K49: 343 | L49: 4391 | M49: 2052 | N49: 238 | O49: 33 | P49: 14 | Q49: 38 | R49: 142 | S49: 23 | T49: 1757 | U49: 94 | V49: 11859 | W49: 5400 | X49: 648 | Y49: 78 | Z49: 57 | AA49: 63 | AB49: 197 | AC49: 44 | AD49: 5123 | AE49: 249 | AF49: 170 | AG49: 48 | AH49: 3 | AI49: 1 | AJ49: 2 | AK49: 1 | AL49: 3 | AN49: 112
A50: HEP B (ENGERIX-B) | B50: 15944 | C50: 4838 | D50: 3664 | E50: 2501 | F50: 518 | G50: 129 | H50: 40 | I50: 22 | J50: 4228 | K50: 4 | L50: 4243 | M50: 1288 | N50: 937 | O50: 696 | P50: 137 | Q50: 36 | R50: 15 | S50: 2 | T50: 1131 | U50: 1 | V50: 11283 | W50: 3463 | X50: 2654 | Y50: 1759 | Z50: 377 | AA50: 93 | AB50: 25 | AC50: 20 | AD50: 2889 | AE50: 3 | AF50: 418 | AG50: 87 | AH50: 73 | AI50: 46 | AJ50: 4 | AN50: 208
A51: ZOSTER LIVE (ZOSTAVAX) | B51: 14702 | C51: 5705 | D51: 530 | E51: 6 | F51: 4 | G51: 7 | I51: 12 | J51: 8394 | K51: 44 | L51: 3712 | M51: 1265 | N51: 154 | O51: 1 | Q51: 6 | S51: 3 | T51: 2269 | U51: 14 | V51: 10593 | W51: 4388 | X51: 373 | Y51: 5 | Z51: 4 | AA51: 1 | AC51: 9 | AD51: 5783 | AE51: 30 | AF51: 397 | AG51: 52 | AH51: 3 | AN51: 342
A52: INFLUENZA (SEASONAL) (FLUVIRIN) | B52: 11934 | C52: 3200 | D52: 911 | E52: 219 | F52: 132 | G52: 92 | H52: 120 | I52: 280 | J52: 6962 | K52: 18 | L52: 3168 | M52: 751 | N52: 285 | O52: 68 | P52: 30 | Q52: 26 | R52: 38 | S52: 90 | T52: 1879 | U52: 1 | V52: 8568 | W52: 2393 | X52: 615 | Y52: 150 | Z52: 101 | AA52: 65 | AB52: 82 | AC52: 190 | AD52: 4955 | AE52: 17 | AF52: 198 | AG52: 56 | AH52: 11 | AI52: 1 | AJ52: 1 | AK52: 1 | AN52: 128
A53: PNEUMO (PREVNAR13) | B53: 11626 | C53: 4618 | D53: 850 | E53: 337 | F53: 328 | G53: 83 | H53: 12 | I53: 5 | J53: 5232 | K53: 161 | L53: 3482 | M53: 1203 | N53: 350 | O53: 183 | P53: 160 | Q53: 41 | R53: 1 | S53: 2 | T53: 1504 | U53: 38 | V53: 7700 | W53: 3359 | X53: 488 | Y53: 147 | Z53: 159 | AA53: 41 | AB53: 11 | AC53: 3 | AD53: 3369 | AE53: 123 | AF53: 444 | AG53: 56 | AH53: 12 | AI53: 7 | AJ53: 9 | AK53: 1 | AN53: 359
A54: VACCINE NOT SPECIFIED (NO BRAND NAME) | B54: 11579 | C54: 1785 | D54: 1072 | E54: 236 | F54: 26 | G54: 14 | H54: 1 | I54: 9 | J54: 8363 | K54: 73 | L54: 2938 | M54: 399 | N54: 275 | O54: 54 | P54: 11 | Q54: 4 | S54: 2 | T54: 2178 | U54: 15 | V54: 8310 | W54: 1355 | X54: 780 | Y54: 182 | Z54: 13 | AA54: 10 | AB54: 1 | AC54: 2 | AD54: 5909 | AE54: 58 | AF54: 331 | AG54: 31 | AH54: 17 | AJ54: 2 | AM54: 5 | AN54: 276
A55: INFLUENZA (SEASONAL) (FLUZONE HIGH-DOSE) | B55: 11328 | C55: 4533 | D55: 595 | E55: 113 | F55: 55 | G55: 37 | H55: 26 | I55: 88 | J55: 5261 | K55: 620 | L55: 2945 | M55: 1251 | N55: 153 | O55: 28 | P55: 21 | Q55: 8 | R55: 12 | S55: 26 | T55: 1304 | U55: 142 | V55: 8229 | W55: 3245 | X55: 438 | Y55: 81 | Z55: 30 | AA55: 29 | AB55: 14 | AC55: 62 | AD55: 3852 | AE55: 478 | AF55: 154 | AG55: 37 | AH55: 4 | AI55: 4 | AJ55: 4 | AN55: 105
A56: TD ADSORBED (NO BRAND NAME) | B56: 10831 | C56: 1774 | D56: 1128 | E56: 314 | F56: 229 | G56: 286 | H56: 512 | I56: 125 | J56: 6446 | K56: 17 | L56: 2861 | M56: 504 | N56: 267 | O56: 83 | P56: 56 | Q56: 107 | R56: 200 | S56: 36 | T56: 1602 | U56: 6 | V56: 7629 | W56: 1257 | X56: 841 | Y56: 231 | Z56: 173 | AA56: 178 | AB56: 310 | AC56: 89 | AD56: 4539 | AE56: 11 | AF56: 341 | AG56: 13 | AH56: 20 | AK56: 1 | AL56: 2 | AN56: 305
A57: VARICELLA (VARIVAX) | B57: 9830 | C57: 3426 | D57: 4386 | E57: 136 | F57: 26 | G57: 7 | I57: 2 | J57: 1838 | K57: 9 | L57: 3577 | M57: 1222 | N57: 1684 | O57: 51 | P57: 5 | Q57: 1 | S57: 2 | T57: 611 | U57: 1 | V57: 6107 | W57: 2187 | X57: 2644 | Y57: 85 | Z57: 21 | AA57: 6 | AD57: 1156 | AE57: 8 | AF57: 146 | AG57: 17 | AH57: 58 | AN57: 71
A58: HEP B (RECOMBIVAX HB) | B58: 9606 | C58: 3293 | D58: 2518 | E58: 1574 | F58: 208 | G58: 49 | H58: 13 | I58: 10 | J58: 1941 | L58: 2473 | M58: 896 | N58: 620 | O58: 405 | P58: 42 | Q58: 11 | S58: 1 | T58: 498 | V58: 6550 | W58: 2336 | X58: 1697 | Y58: 1118 | Z58: 163 | AA58: 37 | AB58: 13 | AC58: 9 | AD58: 1177 | AF58: 583 | AG58: 61 | AH58: 201 | AI58: 51 | AJ58: 3 | AK58: 1 | AN58: 266
A59: TDAP (BOOSTRIX) | B59: 8651 | C59: 3563 | D59: 381 | E59: 67 | F59: 17 | G59: 80 | H59: 152 | I59: 28 | J59: 4070 | K59: 293 | L59: 2622 | M59: 1140 | N59: 93 | O59: 9 | P59: 6 | Q59: 30 | R59: 66 | S59: 7 | T59: 1194 | U59: 77 | V59: 5865 | W59: 2393 | X59: 282 | Y59: 58 | Z59: 11 | AA59: 48 | AB59: 81 | AC59: 20 | AD59: 2757 | AE59: 215 | AF59: 164 | AG59: 30 | AH59: 6 | AK59: 2 | AL59: 5 | AM59: 1 | AN59: 119 | AO59: 1
A60: MENINGOCOCCAL CONJUGATE (MENACTRA) | B60: 8343 | C60: 5084 | D60: 1220 | E60: 40 | F60: 10 | G60: 5 | H60: 1 | I60: 3 | J60: 1960 | K60: 20 | L60: 3390 | M60: 2064 | N60: 452 | O60: 23 | P60: 9 | Q60: 5 | R60: 1 | T60: 826 | U60: 10 | V60: 4867 | W60: 2988 | X60: 762 | Y60: 17 | Z60: 1 | AC60: 3 | AD60: 1086 | AE60: 10 | AF60: 86 | AG60: 32 | AH60: 6 | AN60: 48
A61: INFLUENZA (SEASONAL) (FLUZONE QUADRIVALENT) | B61: 8137 | C61: 3153 | D61: 293 | E61: 114 | F61: 95 | G61: 80 | H61: 45 | I61: 164 | J61: 3498 | K61: 695 | L61: 2117 | M61: 795 | N61: 97 | O61: 37 | P61: 54 | Q61: 34 | R61: 23 | S61: 65 | T61: 830 | U61: 182 | V61: 5889 | W61: 2342 | X61: 193 | Y61: 76 | Z61: 41 | AA61: 45 | AB61: 22 | AC61: 96 | AD61: 2561 | AE61: 513 | AF61: 131 | AG61: 16 | AH61: 3 | AI61: 1 | AK61: 1 | AM61: 3 | AN61: 107
A62: INFLUENZA (SEASONAL) (FLUARIX QUADRIVALENT) | B62: 7051 | C62: 2804 | D62: 202 | E62: 54 | F62: 57 | G62: 52 | H62: 22 | I62: 136 | J62: 3094 | K62: 630 | L62: 1603 | M62: 618 | N62: 36 | O62: 17 | P62: 13 | Q62: 15 | R62: 9 | S62: 51 | T62: 677 | U62: 167 | V62: 5302 | W62: 2164 | X62: 162 | Y62: 35 | Z62: 43 | AA62: 37 | AB62: 12 | AC62: 85 | AD62: 2302 | AE62: 462 | AF62: 146 | AG62: 22 | AH62: 4 | AI62: 2 | AJ62: 1 | AL62: 1 | AN62: 115 | AO62: 1
A63: HEP A (HAVRIX) | B63: 6357 | C63: 3213 | D63: 1464 | E63: 90 | F63: 19 | G63: 5 | H63: 2 | I63: 1 | J63: 1558 | K63: 5 | L63: 2470 | M63: 1233 | N63: 565 | O63: 40 | P63: 6 | Q63: 4 | T63: 622 | V63: 3782 | W63: 1944 | X63: 887 | Y63: 50 | Z63: 13 | AA63: 1 | AB63: 2 | AC63: 1 | AD63: 879 | AE63: 5 | AF63: 105 | AG63: 36 | AH63: 12 | AN63: 57
A64: INFLUENZA (SEASONAL) (AFLURIA) | B64: 5553 | C64: 1688 | D64: 459 | E64: 71 | F64: 75 | G64: 50 | H64: 35 | I64: 138 | J64: 2977 | K64: 60 | L64: 1400 | M64: 407 | N64: 146 | O64: 26 | P64: 15 | Q64: 12 | R64: 8 | S64: 38 | T64: 730 | U64: 18 | V64: 4086 | W64: 1275 | X64: 309 | Y64: 45 | Z64: 59 | AA64: 38 | AB64: 27 | AC64: 99 | AD64: 2192 | AE64: 42 | AF64: 67 | AG64: 6 | AH64: 4 | AJ64: 1 | AM64: 1 | AN64: 55
A65: ANTHRAX (BIOTHRAX) | B65: 5137 | C65: 1102 | D65: 725 | E65: 626 | F65: 609 | G65: 399 | H65: 336 | I65: 368 | J65: 969 | K65: 3 | L65: 3775 | M65: 759 | N65: 506 | O65: 474 | P65: 462 | Q65: 296 | R65: 249 | S65: 302 | T65: 724 | U65: 3 | V65: 1271 | W65: 339 | X65: 209 | Y65: 150 | Z65: 127 | AA65: 99 | AB65: 83 | AC65: 64 | AD65: 200 | AF65: 91 | AG65: 4 | AH65: 10 | AI65: 2 | AJ65: 20 | AK65: 4 | AL65: 4 | AM65: 2 | AN65: 45
A66: HPV (GARDASIL 9) | B66: 4769 | C66: 2078 | D66: 1125 | E66: 610 | F66: 20 | G66: 3 | I66: 1 | J66: 926 | K66: 6 | L66: 1369 | M66: 645 | N66: 335 | O66: 163 | P66: 9 | Q66: 3 | T66: 214 | V66: 3314 | W66: 1404 | X66: 778 | Y66: 446 | Z66: 11 | AC66: 1 | AD66: 668 | AE66: 6 | AF66: 86 | AG66: 29 | AH66: 12 | AI66: 1 | AN66: 44
A67: POLIO VIRUS, INACT. (IPOL) | B67: 4323 | C67: 450 | D67: 279 | E67: 287 | F67: 2097 | G67: 227 | H67: 15 | I67: 4 | J67: 957 | K67: 7 | L67: 2069 | M67: 215 | N67: 123 | O67: 151 | P67: 1059 | Q67: 105 | R67: 7 | S67: 1 | T67: 406 | U67: 2 | V67: 2181 | W67: 233 | X67: 151 | Y67: 131 | Z67: 1012 | AA67: 122 | AB67: 8 | AC67: 3 | AD67: 516 | AE67: 5 | AF67: 73 | AG67: 2 | AH67: 5 | AI67: 5 | AJ67: 26 | AN67: 35
A68: INFLUENZA (SEASONAL) (FLUARIX) | B68: 4135 | C68: 979 | D68: 235 | E68: 91 | F68: 75 | G68: 47 | H68: 41 | I68: 115 | J68: 2552 | L68: 1066 | M68: 192 | N68: 50 | O68: 28 | P68: 22 | Q68: 18 | R68: 16 | S68: 20 | T68: 720 | V68: 2939 | W68: 731 | X68: 181 | Y68: 63 | Z68: 53 | AA68: 29 | AB68: 25 | AC68: 93 | AD68: 1764 | AF68: 130 | AG68: 56 | AH68: 4 | AM68: 2 | AN68: 68
A69: PNEUMO (NO BRAND NAME) | B69: 4130 | C69: 974 | D69: 434 | E69: 51 | F69: 35 | G69: 7 | J69: 2627 | K69: 2 | L69: 1217 | M69: 266 | N69: 115 | O69: 18 | P69: 18 | Q69: 3 | T69: 797 | V69: 2791 | W69: 702 | X69: 312 | Y69: 33 | Z69: 17 | AA69: 4 | AD69: 1721 | AE69: 2 | AF69: 122 | AG69: 6 | AH69: 7 | AN69: 109
A70: INFLUENZA (SEASONAL) (AFLURIA QUADRIVALENT) | B70: 3681 | C70: 1690 | D70: 67 | E70: 8 | F70: 3 | G70: 8 | H70: 5 | I70: 30 | J70: 1490 | K70: 380 | L70: 945 | M70: 462 | N70: 35 | O70: 5 | P70: 3 | Q70: 4 | S70: 11 | T70: 337 | U70: 88 | V70: 2701 | W70: 1216 | X70: 31 | Y70: 3 | AA70: 4 | AB70: 5 | AC70: 17 | AD70: 1135 | AE70: 290 | AF70: 35 | AG70: 12 | AH70: 1 | AM70: 2 | AN70: 18 | AO70: 2
A71: DTAP (INFANRIX) | B71: 3627 | C71: 294 | D71: 236 | E71: 156 | F71: 668 | G71: 1310 | H71: 40 | I71: 2 | J71: 921 | L71: 1775 | M71: 119 | N71: 125 | O71: 79 | P71: 342 | Q71: 677 | R71: 25 | S71: 1 | T71: 407 | V71: 1699 | W71: 163 | X71: 106 | Y71: 76 | Z71: 317 | AA71: 601 | AB71: 15 | AC71: 1 | AD71: 420 | AF71: 153 | AG71: 12 | AH71: 5 | AI71: 1 | AJ71: 9 | AK71: 32 | AN71: 94
A72: HPV (CERVARIX) | B72: 3606 | C72: 979 | D72: 511 | E72: 855 | F72: 2 | J72: 1259 | L72: 14 | M72: 4 | N72: 1 | O72: 1 | T72: 8 | V72: 3499 | W72: 959 | X72: 487 | Y72: 838 | Z72: 2 | AD72: 1213 | AF72: 93 | AG72: 16 | AH72: 23 | AI72: 16 | AN72: 38
A73: INFLUENZA (SEASONAL) (FLUCELVAX QUADRIVALENT) | B73: 3597 | C73: 1678 | D73: 36 | E73: 3 | F73: 5 | G73: 15 | H73: 4 | I73: 23 | J73: 1477 | K73: 356 | L73: 856 | M73: 405 | N73: 11 | O73: 1 | P73: 3 | Q73: 9 | R73: 1 | T73: 354 | U73: 72 | V73: 2692 | W73: 1250 | X73: 25 | Y73: 2 | Z73: 2 | AA73: 6 | AB73: 3 | AC73: 23 | AD73: 1100 | AE73: 281 | AF73: 49 | AG73: 23 | AN73: 23 | AO73: 3
A74: MENINGOCOCCAL B (BEXSERO) | B74: 3537 | C74: 1550 | D74: 826 | E74: 40 | F74: 6 | I74: 4 | J74: 1110 | K74: 1 | L74: 1215 | M74: 472 | N74: 285 | O74: 17 | P74: 4 | S74: 4 | T74: 433 | V74: 2083 | W74: 1032 | X74: 520 | Y74: 19 | Z74: 2 | AD74: 509 | AE74: 1 | AF74: 239 | AG74: 46 | AH74: 21 | AI74: 4 | AN74: 168
A75: LYME (LYMERIX) | B75: 3496 | C75: 991 | D75: 1051 | E75: 775 | F75: 49 | G75: 4 | J75: 626 | L75: 1796 | M75: 478 | N75: 527 | O75: 427 | P75: 22 | Q75: 4 | T75: 338 | V75: 1636 | W75: 487 | X75: 502 | Y75: 341 | Z75: 27 | AD75: 279 | AF75: 64 | AG75: 26 | AH75: 22 | AI75: 7 | AN75: 9
A76: HEP A + HEP B (TWINRIX) | B76: 3300 | C76: 1060 | D76: 593 | E76: 334 | F76: 26 | G76: 4 | H76: 1 | I76: 4 | J76: 1278 | L76: 1286 | M76: 383 | N76: 226 | O76: 122 | P76: 11 | R76: 1 | T76: 543 | V76: 1934 | W76: 666 | X76: 361 | Y76: 209 | Z76: 15 | AA76: 4 | AC76: 3 | AD76: 676 | AF76: 80 | AG76: 11 | AH76: 6 | AI76: 3 | AM76: 1 | AN76: 59
A77: POLIO VIRUS, ORAL (ORIMUNE) | B77: 3059 | C77: 364 | D77: 349 | E77: 601 | F77: 1111 | G77: 296 | H77: 13 | I77: 3 | J77: 322 | L77: 1541 | M77: 186 | N77: 179 | O77: 294 | P77: 558 | Q77: 156 | R77: 5 | S77: 3 | T77: 160 | V77: 1500 | W77: 177 | X77: 168 | Y77: 302 | Z77: 549 | AA77: 140 | AB77: 8 | AD77: 156 | AF77: 18 | AG77: 1 | AH77: 2 | AI77: 5 | AJ77: 4 | AN77: 6
A78: INFLUENZA (SEASONAL) (FLUSHIELD) | B78: 2985 | C78: 703 | D78: 299 | E78: 117 | F78: 84 | G78: 68 | H78: 52 | I78: 88 | J78: 1574 | L78: 647 | M78: 145 | N78: 63 | O78: 32 | P78: 13 | Q78: 13 | R78: 11 | S78: 27 | T78: 343 | V78: 2122 | W78: 552 | X78: 230 | Y78: 85 | Z78: 71 | AA78: 55 | AB78: 41 | AC78: 60 | AD78: 1028 | AF78: 216 | AG78: 6 | AH78: 6 | AM78: 1 | AN78: 203
A79: TYPHOID VI POLYSACCHARIDE (TYPHIM VI) | B79: 2897 | C79: 999 | D79: 275 | E79: 146 | F79: 74 | G79: 60 | H79: 20 | I79: 22 | J79: 1260 | K79: 41 | L79: 1525 | M79: 481 | N79: 161 | O79: 91 | P79: 63 | Q79: 29 | R79: 14 | S79: 16 | T79: 654 | U79: 16 | V79: 1326 | W79: 510 | X79: 109 | Y79: 53 | Z79: 11 | AA79: 27 | AB79: 6 | AC79: 6 | AD79: 579 | AE79: 25 | AF79: 46 | AG79: 8 | AH79: 5 | AI79: 2 | AK79: 4 | AN79: 27
A80: INFLUENZA (H1N1) (H1N1 (MONOVALENT) (SANOFI)) | B80: 2855 | C80: 2007 | D80: 173 | E80: 3 | F80: 1 | G80: 2 | J80: 669 | L80: 844 | M80: 560 | N80: 68 | O80: 2 | T80: 214 | V80: 1993 | W80: 1436 | X80: 105 | Y80: 1 | Z80: 1 | AA80: 2 | AD80: 448 | AF80: 18 | AG80: 11 | AN80: 7
A81: DTAP (DAPTACEL) | B81: 2849 | C81: 401 | D81: 179 | E81: 96 | F81: 307 | G81: 1072 | H81: 38 | I81: 8 | J81: 732 | K81: 16 | L81: 1256 | M81: 126 | N81: 80 | O81: 45 | P81: 145 | Q81: 595 | R81: 16 | S81: 4 | T81: 242 | U81: 3 | V81: 1518 | W81: 269 | X81: 98 | Y81: 51 | Z81: 161 | AA81: 462 | AB81: 22 | AC81: 4 | AD81: 438 | AE81: 13 | AF81: 75 | AG81: 6 | AH81: 1 | AJ81: 1 | AK81: 15 | AN81: 52
A82: TDAP (NO BRAND NAME) | B82: 2654 | C82: 491 | D82: 134 | E82: 49 | F82: 18 | G82: 11 | H82: 17 | I82: 10 | J82: 1912 | K82: 12 | L82: 680 | M82: 127 | N82: 25 | O82: 9 | P82: 2 | Q82: 6 | R82: 4 | S82: 7 | T82: 497 | U82: 3 | V82: 1926 | W82: 362 | X82: 109 | Y82: 37 | Z82: 16 | AA82: 5 | AB82: 13 | AC82: 3 | AD82: 1372 | AE82: 9 | AF82: 48 | AG82: 2 | AI82: 3 | AN82: 43
A83: ANTHRAX (NO BRAND NAME) | B83: 2506 | C83: 485 | D83: 375 | E83: 420 | F83: 308 | G83: 260 | H83: 101 | I83: 40 | J83: 517 | L83: 1877 | M83: 374 | N83: 272 | O83: 324 | P83: 231 | Q83: 211 | R83: 77 | S83: 29 | T83: 359 | V83: 556 | W83: 105 | X83: 95 | Y83: 92 | Z83: 70 | AA83: 49 | AB83: 24 | AC83: 11 | AD83: 110 | AF83: 73 | AG83: 6 | AH83: 8 | AI83: 4 | AJ83: 7 | AN83: 48
A84: HEP A (VAQTA) | B84: 2460 | C84: 1239 | D84: 710 | E84: 40 | F84: 3 | J84: 468 | L84: 1005 | M84: 498 | N84: 301 | O84: 23 | P84: 1 | T84: 182 | V84: 1411 | W84: 723 | X84: 396 | Y84: 17 | Z84: 2 | AD84: 273 | AF84: 44 | AG84: 18 | AH84: 13 | AN84: 13
A85: HEP B (NO BRAND NAME) | B85: 2447 | C85: 391 | D85: 361 | E85: 249 | F85: 64 | G85: 3 | H85: 1 | I85: 1 | J85: 1377 | L85: 904 | M85: 158 | N85: 149 | O85: 94 | P85: 30 | Q85: 3 | R85: 1 | T85: 469 | V85: 1398 | W85: 224 | X85: 196 | Y85: 147 | Z85: 34 | AC85: 1 | AD85: 796 | AF85: 145 | AG85: 9 | AH85: 16 | AI85: 8 | AN85: 112
A86: INFLUENZA (SEASONAL) (FLULAVAL QUADRIVALENT) | B86: 2425 | C86: 989 | D86: 56 | E86: 9 | F86: 11 | G86: 16 | H86: 6 | I86: 38 | J86: 1001 | K86: 299 | L86: 605 | M86: 245 | N86: 19 | O86: 3 | P86: 5 | Q86: 2 | R86: 4 | S86: 19 | T86: 230 | U86: 78 | V86: 1760 | W86: 743 | X86: 37 | Y86: 6 | Z86: 6 | AA86: 14 | AB86: 2 | AC86: 19 | AD86: 712 | AE86: 221 | AF86: 60 | AG86: 1 | AN86: 59
A87: PNEUMO (PREVNAR) | B87: 2402 | C87: 771 | D87: 414 | E87: 266 | F87: 332 | G87: 29 | H87: 1 | I87: 1 | J87: 588 | L87: 1223 | M87: 387 | N87: 222 | O87: 146 | P87: 175 | Q87: 14 | R87: 1 | T87: 278 | V87: 1120 | W87: 376 | X87: 187 | Y87: 119 | Z87: 156 | AA87: 14 | AC87: 1 | AD87: 267 | AF87: 59 | AG87: 8 | AH87: 5 | AI87: 1 | AJ87: 1 | AK87: 1 | AN87: 43
A88: DTP (NO BRAND NAME) | B88: 2401 | C88: 307 | D88: 270 | E88: 223 | F88: 332 | G88: 466 | H88: 24 | J88: 779 | L88: 1062 | M88: 128 | N88: 134 | O88: 116 | P88: 144 | Q88: 225 | R88: 8 | T88: 307 | V88: 1176 | W88: 155 | X88: 121 | Y88: 98 | Z88: 171 | AA88: 238 | AB88: 16 | AD88: 377 | AF88: 163 | AG88: 24 | AH88: 15 | AI88: 9 | AJ88: 17 | AK88: 3 | AN88: 95
A89: INFLUENZA (SEASONAL) (FLULAVAL) | B89: 2367 | C89: 568 | D89: 137 | E89: 22 | F89: 12 | G89: 15 | H89: 14 | I89: 70 | J89: 1529 | L89: 610 | M89: 184 | N89: 38 | O89: 5 | P89: 5 | Q89: 4 | R89: 3 | S89: 17 | T89: 354 | V89: 1676 | W89: 373 | X89: 99 | Y89: 17 | Z89: 7 | AA89: 11 | AB89: 11 | AC89: 53 | AD89: 1105 | AF89: 81 | AG89: 11 | AN89: 70
A90: INFLUENZA (SEASONAL) (FLUAD) | B90: 2334 | C90: 856 | D90: 26 | E90: 5 | F90: 3 | G90: 3 | I90: 3 | J90: 1262 | K90: 176 | L90: 675 | M90: 207 | N90: 6 | P90: 3 | Q90: 1 | T90: 407 | U90: 51 | V90: 1641 | W90: 640 | X90: 20 | Y90: 5 | AA90: 2 | AC90: 3 | AD90: 846 | AE90: 125 | AF90: 18 | AG90: 9 | AN90: 9
A91: MENINGOCOCCAL B (TRUMENBA) | B91: 2302 | C91: 1226 | D91: 335 | E91: 35 | F91: 4 | G91: 1 | J91: 700 | K91: 1 | L91: 765 | M91: 399 | N91: 114 | O91: 12 | Q91: 1 | T91: 239 | V91: 1353 | W91: 785 | X91: 218 | Y91: 23 | Z91: 4 | AD91: 322 | AE91: 1 | AF91: 184 | AG91: 42 | AH91: 3 | AN91: 139
A92: INFLUENZA (SEASONAL) (FLUZONE HIGH-DOSE QUADRIVALENT) | B92: 2238 | C92: 1215 | D92: 12 | E92: 4 | F92: 2 | G92: 5 | I92: 1 | J92: 781 | K92: 218 | L92: 593 | M92: 308 | N92: 4 | Q92: 3 | T92: 224 | U92: 54 | V92: 1624 | W92: 899 | X92: 8 | Y92: 4 | Z92: 2 | AA92: 2 | AC92: 1 | AD92: 545 | AE92: 163 | AF92: 21 | AG92: 8 | AN92: 12 | AO92: 1
A93: SMALLPOX (DRYVAX) | B93: 2224 | C93: 1099 | D93: 419 | E93: 62 | F93: 20 | G93: 4 | H93: 1 | I93: 6 | J93: 613 | L93: 1402 | M93: 789 | N93: 154 | O93: 27 | P93: 15 | Q93: 2 | S93: 6 | T93: 409 | V93: 799 | W93: 306 | X93: 263 | Y93: 35 | Z93: 5 | AA93: 2 | AB93: 1 | AD93: 187 | AF93: 23 | AG93: 4 | AH93: 2 | AN93: 17
A94: MENINGOCOCCAL CONJUGATE (MENVEO) | B94: 2183 | C94: 968 | D94: 406 | E94: 26 | F94: 1 | I94: 1 | J94: 778 | K94: 3 | L94: 940 | M94: 437 | N94: 173 | O94: 7 | P94: 1 | S94: 1 | T94: 319 | U94: 2 | V94: 1203 | W94: 524 | X94: 230 | Y94: 19 | AD94: 429 | AE94: 1 | AF94: 40 | AG94: 7 | AH94: 3 | AN94: 30
A95: ZOSTER (NO BRAND NAME) | B95: 2176 | C95: 715 | D95: 436 | E95: 11 | F95: 1 | J95: 1013 | L95: 286 | M95: 62 | N95: 45 | O95: 2 | T95: 177 | V95: 631 | W95: 251 | X95: 54 | AD95: 326 | AF95: 1259 | AG95: 402 | AH95: 337 | AI95: 9 | AJ95: 1 | AN95: 510
A96: DTAP (TRIPEDIA) | B96: 2129 | C96: 226 | D96: 151 | E96: 100 | F96: 406 | G96: 907 | H96: 32 | I96: 1 | J96: 306 | L96: 1005 | M96: 111 | N96: 80 | O96: 51 | P96: 214 | Q96: 440 | R96: 21 | S96: 1 | T96: 87 | V96: 1000 | W96: 105 | X96: 71 | Y96: 46 | Z96: 187 | AA96: 456 | AB96: 11 | AD96: 124 | AF96: 124 | AG96: 10 | AI96: 3 | AJ96: 5 | AK96: 11 | AN96: 95
A97: MEASLES + MUMPS + RUBELLA (NO BRAND NAME) | B97: 2052 | C97: 339 | D97: 265 | E97: 42 | F97: 6 | I97: 1 | J97: 1399 | L97: 841 | M97: 150 | N97: 119 | O97: 9 | P97: 1 | T97: 562 | V97: 1146 | W97: 179 | X97: 144 | Y97: 33 | Z97: 5 | AC97: 1 | AD97: 784 | AF97: 65 | AG97: 10 | AH97: 2 | AN97: 53
A98: TETANUS TOXOID (NO BRAND NAME) | B98: 2019 | C98: 234 | D98: 134 | E98: 56 | F98: 34 | G98: 29 | H98: 28 | I98: 6 | J98: 1494 | K98: 4 | L98: 599 | M98: 73 | N98: 35 | O98: 22 | P98: 17 | Q98: 4 | R98: 16 | T98: 432 | V98: 1359 | W98: 159 | X98: 99 | Y98: 34 | Z98: 17 | AA98: 25 | AB98: 12 | AC98: 6 | AD98: 1003 | AE98: 4 | AF98: 61 | AG98: 2 | AN98: 59
A99: PNEUMO (PNU-IMUNE) | B99: 2000 | C99: 1124 | D99: 261 | E99: 6 | F99: 5 | I99: 3 | J99: 601 | L99: 528 | M99: 298 | N99: 68 | P99: 3 | S99: 1 | T99: 158 | V99: 1342 | W99: 807 | X99: 191 | Y99: 6 | Z99: 2 | AC99: 2 | AD99: 334 | AF99: 130 | AG99: 19 | AH99: 2 | AN99: 109
A100: YELLOW FEVER (YF-VAX) | B100: 1961 | C100: 1151 | D100: 141 | E100: 12 | F100: 2 | G100: 1 | I100: 2 | J100: 639 | K100: 13 | L100: 843 | M100: 435 | N100: 78 | O100: 6 | P100: 1 | T100: 322 | U100: 1 | V100: 1078 | W100: 700 | X100: 60 | Y100: 4 | Z100: 1 | AA100: 1 | AC100: 2 | AD100: 298 | AE100: 12 | AF100: 40 | AG100: 16 | AH100: 3 | AI100: 2 | AN100: 19
A101: HIB (ACTHIB) | B101: 1893 | C101: 393 | D101: 300 | E101: 287 | F101: 396 | G101: 26 | H101: 3 | I101: 1 | J101: 485 | K101: 2 | L101: 930 | M101: 186 | N101: 154 | O101: 148 | P101: 195 | Q101: 9 | R101: 2 | T101: 236 | V101: 824 | W101: 182 | X101: 136 | Y101: 124 | Z101: 188 | AA101: 17 | AB101: 1 | AC101: 1 | AD101: 173 | AE101: 2 | AF101: 139 | AG101: 25 | AH101: 10 | AI101: 15 | AJ101: 13 | AN101: 76
A102: INFLUENZA (SEASONAL) (FLUMIST) | B102: 1864 | C102: 586 | D102: 141 | E102: 66 | F102: 32 | G102: 29 | H102: 5 | I102: 7 | J102: 998 | L102: 829 | M102: 241 | N102: 62 | O102: 35 | P102: 16 | Q102: 20 | R102: 1 | S102: 7 | T102: 447 | V102: 1008 | W102: 339 | X102: 79 | Y102: 31 | Z102: 16 | AA102: 9 | AB102: 4 | AD102: 530 | AF102: 27 | AG102: 6 | AN102: 21
A103: INFLUENZA (H1N1) (H1N1 (MONOVALENT) (UNKNOWN)) | B103: 1849 | C103: 658 | D103: 135 | F103: 1 | H103: 1 | J103: 1054 | L103: 571 | M103: 194 | N103: 37 | P103: 1 | T103: 339 | V103: 1253 | W103: 457 | X103: 96 | AB103: 1 | AD103: 699 | AF103: 25 | AG103: 7 | AH103: 2 | AN103: 16
A104: DTAP (NO BRAND NAME) | B104: 1822 | C104: 234 | D104: 153 | E104: 67 | F104: 85 | G104: 111 | H104: 25 | I104: 3 | J104: 1144 | L104: 662 | M104: 96 | N104: 54 | O104: 27 | P104: 45 | Q104: 58 | R104: 10 | T104: 372 | V104: 1106 | W104: 132 | X104: 95 | Y104: 39 | Z104: 39 | AA104: 51 | AB104: 15 | AC104: 3 | AD104: 732 | AF104: 54 | AG104: 6 | AH104: 4 | AI104: 1 | AJ104: 1 | AK104: 2 | AN104: 40
A105: POLIO VIRUS, INACT. (NO BRAND NAME) | B105: 1773 | C105: 235 | D105: 118 | E105: 101 | F105: 158 | G105: 48 | H105: 5 | J105: 1108 | L105: 802 | M105: 105 | N105: 51 | O105: 46 | P105: 75 | Q105: 23 | R105: 3 | T105: 499 | V105: 887 | W105: 125 | X105: 66 | Y105: 52 | Z105: 79 | AA105: 21 | AB105: 2 | AD105: 542 | AF105: 84 | AG105: 5 | AH105: 1 | AI105: 3 | AJ105: 4 | AK105: 4 | AN105: 67
A106: TETANUS DIPHTHERIA (NO BRAND NAME) | B106: 1727 | C106: 249 | D106: 170 | E106: 77 | F106: 22 | G106: 21 | H106: 65 | I106: 14 | J106: 1106 | K106: 3 | L106: 514 | M106: 78 | N106: 44 | O106: 10 | P106: 3 | Q106: 1 | R106: 30 | S106: 5 | T106: 343 | V106: 1190 | W106: 167 | X106: 124 | Y106: 65 | Z106: 19 | AA106: 18 | AB106: 35 | AC106: 9 | AD106: 750 | AE106: 3 | AF106: 23 | AG106: 4 | AH106: 2 | AI106: 2 | AK106: 2 | AN106: 13
A107: INFLUENZA (H1N1) (H1N1 (MONOVALENT) (NOVARTIS)) | B107: 1713 | C107: 1202 | D107: 106 | E107: 1 | I107: 4 | J107: 400 | L107: 572 | M107: 387 | N107: 37 | O107: 1 | S107: 1 | T107: 146 | V107: 1123 | W107: 805 | X107: 68 | AC107: 3 | AD107: 247 | AF107: 18 | AG107: 10 | AH107: 1 | AN107: 7
A108: MEASLES + MUMPS + RUBELLA + VARICELLA (PROQUAD) | B108: 1628 | C108: 563 | D108: 572 | E108: 27 | F108: 7 | G108: 2 | I108: 1 | J108: 440 | K108: 16 | L108: 813 | M108: 293 | N108: 280 | O108: 18 | P108: 6 | S108: 1 | T108: 207 | U108: 8 | V108: 793 | W108: 267 | X108: 286 | Y108: 9 | Z108: 1 | AA108: 2 | AD108: 220 | AE108: 8 | AF108: 22 | AG108: 3 | AH108: 6 | AN108: 13
A109: DTAP + IPV (KINRIX) | B109: 1582 | C109: 537 | D109: 48 | E109: 16 | F109: 100 | G109: 340 | H109: 11 | I109: 2 | J109: 511 | K109: 17 | L109: 816 | M109: 295 | N109: 23 | O109: 4 | P109: 47 | Q109: 185 | R109: 4 | T109: 250 | U109: 8 | V109: 754 | W109: 240 | X109: 25 | Y109: 12 | Z109: 53 | AA109: 154 | AB109: 7 | AC109: 2 | AD109: 252 | AE109: 9 | AF109: 12 | AG109: 2 | AK109: 1 | AN109: 9
A110: POLIO VIRUS, INACT. (POLIOVAX) | B110: 1557 | C110: 270 | D110: 185 | E110: 191 | F110: 460 | G110: 59 | H110: 8 | J110: 384 | L110: 745 | M110: 118 | N110: 94 | O110: 90 | P110: 252 | Q110: 32 | R110: 5 | T110: 154 | V110: 710 | W110: 138 | X110: 84 | Y110: 84 | Z110: 201 | AA110: 22 | AB110: 3 | AD110: 178 | AF110: 102 | AG110: 14 | AH110: 7 | AI110: 17 | AJ110: 7 | AK110: 5 | AN110: 52
A111: RABIES (IMOVAX) | B111: 1521 | C111: 330 | D111: 390 | E111: 264 | F111: 174 | G111: 67 | H111: 11 | I111: 14 | J111: 270 | K111: 1 | L111: 425 | M111: 77 | N111: 99 | O111: 72 | P111: 63 | Q111: 26 | R111: 2 | S111: 11 | T111: 74 | U111: 1 | V111: 1060 | W111: 250 | X111: 276 | Y111: 190 | Z111: 110 | AA111: 40 | AB111: 9 | AC111: 3 | AD111: 182 | AF111: 36 | AG111: 3 | AH111: 15 | AI111: 2 | AJ111: 1 | AK111: 1 | AN111: 14
A112: COVID19 (COVID19 (UNKNOWN)) | B112: 1490 | C112: 587 | D112: 144 | E112: 22 | F112: 1 | I112: 1 | J112: 723 | K112: 12 | L112: 418 | M112: 156 | N112: 56 | O112: 9 | T112: 193 | U112: 4 | V112: 1002 | W112: 428 | X112: 82 | Y112: 11 | Z112: 1 | AC112: 1 | AD112: 471 | AE112: 8 | AF112: 70 | AG112: 3 | AH112: 6 | AI112: 2 | AN112: 59
A113: HPV (NO BRAND NAME) | B113: 1384 | C113: 297 | D113: 204 | E113: 145 | F113: 20 | G113: 1 | J113: 717 | L113: 157 | M113: 41 | N113: 16 | O113: 9 | P113: 2 | Q113: 1 | T113: 88 | V113: 1125 | W113: 232 | X113: 158 | Y113: 132 | Z113: 18 | AD113: 585 | AF113: 102 | AG113: 24 | AH113: 30 | AI113: 4 | AN113: 44
A114: MENINGOCOCCAL (NO BRAND NAME) | B114: 1362 | C114: 295 | D114: 89 | E114: 9 | F114: 3 | J114: 966 | L114: 592 | M114: 126 | N114: 38 | O114: 5 | P114: 1 | T114: 422 | V114: 731 | W114: 166 | X114: 50 | Y114: 4 | Z114: 2 | AD114: 509 | AF114: 39 | AG114: 3 | AH114: 1 | AN114: 35
A115: VACCINE NOT SPECIFIED (OTHER) | B115: 1335 | C115: 466 | D115: 271 | E115: 17 | F115: 16 | G115: 5 | I115: 1 | J115: 529 | K115: 30 | L115: 350 | M115: 101 | N115: 79 | O115: 4 | P115: 4 | Q115: 2 | T115: 155 | U115: 5 | V115: 971 | W115: 357 | X115: 191 | Y115: 13 | Z115: 12 | AA115: 3 | AD115: 370 | AE115: 25 | AF115: 14 | AG115: 8 | AH115: 1 | AM115: 1 | AN115: 4
A116: HEP A (NO BRAND NAME) | B116: 1329 | C116: 270 | D116: 189 | E116: 22 | F116: 1 | J116: 847 | L116: 552 | M116: 122 | N116: 79 | O116: 18 | P116: 1 | T116: 332 | V116: 732 | W116: 146 | X116: 105 | Y116: 4 | AD116: 477 | AF116: 45 | AG116: 2 | AH116: 5 | AN116: 38
A117: TYPHOID VI POLYSACCHARIDE (NO BRAND NAME) | B117: 1321 | C117: 269 | D117: 108 | E117: 44 | F117: 30 | G117: 7 | H117: 5 | J117: 858 | L117: 764 | M117: 165 | N117: 58 | O117: 33 | P117: 19 | Q117: 2 | R117: 4 | T117: 483 | V117: 478 | W117: 102 | X117: 49 | Y117: 11 | Z117: 11 | AA117: 5 | AB117: 1 | AD117: 299 | AF117: 79 | AG117: 2 | AH117: 1 | AN117: 76
A118: TYPHOID LIVE ORAL TY21A (VIVOTIF) | B118: 1312 | C118: 490 | D118: 135 | E118: 67 | F118: 89 | G118: 30 | H118: 1 | J118: 490 | K118: 10 | L118: 443 | M118: 168 | N118: 45 | O118: 21 | P118: 28 | Q118: 10 | T118: 169 | U118: 2 | V118: 838 | W118: 320 | X118: 89 | Y118: 43 | Z118: 58 | AA118: 20 | AB118: 1 | AD118: 299 | AE118: 8 | AF118: 31 | AG118: 2 | AH118: 1 | AI118: 3 | AJ118: 3 | AN118: 22
A119: INFLUENZA (SEASONAL) (FLUOGEN) | B119: 1297 | C119: 481 | D119: 96 | E119: 20 | F119: 33 | G119: 1 | H119: 16 | I119: 35 | J119: 615 | L119: 324 | M119: 127 | N119: 26 | O119: 6 | P119: 2 | Q119: 1 | R119: 6 | S119: 13 | T119: 143 | V119: 871 | W119: 348 | X119: 70 | Y119: 14 | Z119: 31 | AB119: 10 | AC119: 22 | AD119: 376 | AF119: 102 | AG119: 6 | AN119: 96
A120: INFLUENZA (SEASONAL) (FLUAD QUADRIVALENT) | B120: 1230 | C120: 666 | D120: 2 | F120: 2 | G120: 6 | H120: 1 | J120: 438 | K120: 115 | L120: 325 | M120: 167 | N120: 2 | Q120: 2 | T120: 113 | U120: 41 | V120: 900 | W120: 499 | Z120: 2 | AA120: 4 | AB120: 1 | AD120: 320 | AE120: 74 | AF120: 5 | AN120: 5
A121: RABIES (RABAVERT) | B121: 1201 | C121: 310 | D121: 368 | E121: 218 | F121: 81 | G121: 40 | H121: 6 | I121: 7 | J121: 170 | K121: 1 | L121: 346 | M121: 91 | N121: 91 | O121: 61 | P121: 25 | Q121: 11 | R121: 1 | S121: 2 | T121: 64 | V121: 841 | W121: 217 | X121: 274 | Y121: 153 | Z121: 54 | AA121: 29 | AB121: 5 | AC121: 5 | AD121: 103 | AE121: 1 | AF121: 14 | AG121: 2 | AH121: 3 | AI121: 4 | AJ121: 2 | AN121: 3
A122: INFLUENZA (SEASONAL) (FLUBLOK QUADRIVALENT) | B122: 1173 | C122: 688 | D122: 5 | H122: 1 | J122: 358 | K122: 121 | L122: 243 | M122: 149 | N122: 2 | T122: 56 | U122: 36 | V122: 910 | W122: 535 | X122: 3 | AB122: 1 | AD122: 287 | AE122: 84 | AF122: 20 | AG122: 4 | AN122: 15 | AO122: 1
A123: DT ADSORBED (NO BRAND NAME) | B123: 1132 | C123: 193 | D123: 100 | E123: 31 | F123: 29 | G123: 52 | H123: 52 | I123: 9 | J123: 665 | K123: 1 | L123: 396 | M123: 74 | N123: 36 | O123: 8 | P123: 13 | Q123: 30 | R123: 25 | S123: 7 | T123: 203 | V123: 707 | W123: 116 | X123: 61 | Y123: 23 | Z123: 16 | AA123: 21 | AB123: 27 | AC123: 2 | AD123: 440 | AE123: 1 | AF123: 29 | AG123: 3 | AH123: 3 | AK123: 1 | AN123: 22
A124: ROTAVIRUS (ROTATEQ) | B124: 1096 | C124: 412 | D124: 249 | E124: 165 | F124: 4 | J124: 266 | L124: 573 | M124: 231 | N124: 123 | O124: 92 | P124: 2 | T124: 125 | V124: 496 | W124: 172 | X124: 122 | Y124: 72 | Z124: 2 | AD124: 128 | AF124: 27 | AG124: 9 | AH124: 4 | AI124: 1 | AN124: 13
A125: HIB (HIBTITER) | B125: 1093 | C125: 343 | D125: 194 | E125: 165 | F125: 286 | G125: 6 | H125: 1 | J125: 98 | L125: 536 | M125: 179 | N125: 99 | O125: 80 | P125: 135 | Q125: 2 | T125: 41 | V125: 540 | W125: 162 | X125: 94 | Y125: 83 | Z125: 147 | AA125: 4 | AB125: 1 | AD125: 49 | AF125: 17 | AG125: 2 | AH125: 1 | AI125: 2 | AJ125: 4 | AN125: 8
A126: ROTAVIRUS (ROTARIX) | B126: 1086 | C126: 373 | D126: 289 | E126: 5 | J126: 419 | L126: 540 | M126: 191 | N126: 140 | O126: 1 | T126: 208 | V126: 475 | W126: 162 | X126: 136 | Y126: 3 | AD126: 174 | AF126: 71 | AG126: 20 | AH126: 13 | AI126: 1 | AN126: 37
A127: INFLUENZA (H1N1) (H1N1 (MONOVALENT) (MEDIMMUNE)) | B127: 1012 | C127: 663 | D127: 99 | E127: 1 | J127: 249 | L127: 303 | M127: 187 | N127: 33 | T127: 83 | V127: 703 | W127: 473 | X127: 66 | Y127: 1 | AD127: 163 | AF127: 6 | AG127: 3 | AN127: 3
A128: DTP (TRI-IMMUNOL) | B128: 999 | C128: 101 | D128: 110 | E128: 108 | F128: 224 | G128: 352 | H128: 4 | J128: 100 | L128: 489 | M128: 62 | N128: 56 | O128: 45 | P128: 109 | Q128: 180 | T128: 37 | V128: 472 | W128: 39 | X128: 53 | Y128: 58 | Z128: 111 | AA128: 171 | AB128: 4 | AD128: 36 | AF128: 38 | AH128: 1 | AI128: 5 | AJ128: 4 | AK128: 1 | AN128: 27
A129: SMALLPOX (ACAM2000) | B129: 989 | C129: 530 | D129: 49 | E129: 3 | H129: 2 | I129: 9 | J129: 389 | K129: 7 | L129: 750 | M129: 399 | N129: 33 | O129: 3 | R129: 2 | S129: 7 | T129: 300 | U129: 6 | V129: 229 | W129: 131 | X129: 16 | AC129: 2 | AD129: 79 | AE129: 1 | AF129: 10 | AN129: 10
A130: MENINGOCOCCAL (MENOMUNE) | B130: 918 | C130: 502 | D130: 81 | E130: 13 | F130: 4 | J130: 318 | L130: 426 | M130: 197 | N130: 43 | O130: 6 | P130: 2 | T130: 178 | V130: 479 | W130: 296 | X130: 36 | Y130: 7 | Z130: 2 | AD130: 138 | AF130: 13 | AG130: 9 | AH130: 2 | AN130: 2
A131: HIB (PEDVAXHIB) | B131: 888 | C131: 191 | D131: 154 | E131: 186 | F131: 163 | G131: 13 | H131: 1 | J131: 180 | L131: 449 | M131: 101 | N131: 78 | O131: 98 | P131: 88 | Q131: 10 | R131: 1 | T131: 73 | V131: 419 | W131: 87 | X131: 73 | Y131: 84 | Z131: 74 | AA131: 3 | AD131: 98 | AF131: 20 | AG131: 3 | AH131: 3 | AI131: 4 | AJ131: 1 | AN131: 9
A132: DTAP + HEPB + IPV (PEDIARIX) | B132: 871 | C132: 297 | D132: 212 | E132: 160 | F132: 39 | G132: 12 | I132: 1 | J132: 147 | K132: 3 | L132: 448 | M132: 168 | N132: 102 | O132: 84 | P132: 19 | Q132: 5 | S132: 1 | T132: 68 | U132: 1 | V132: 410 | W132: 126 | X132: 107 | Y132: 75 | Z132: 18 | AA132: 7 | AD132: 75 | AE132: 2 | AF132: 13 | AG132: 3 | AH132: 3 | AI132: 1 | AJ132: 2 | AN132: 4
A133: TD ADSORBED (TDVAX) | B133: 803 | C133: 146 | D133: 88 | E133: 33 | F133: 9 | G133: 5 | H133: 18 | I133: 6 | J133: 489 | K133: 9 | L133: 214 | M133: 37 | N133: 13 | O133: 7 | P133: 2 | Q133: 3 | R133: 4 | S133: 2 | T133: 143 | U133: 3 | V133: 584 | W133: 109 | X133: 74 | Y133: 26 | Z133: 7 | AA133: 2 | AB133: 14 | AC133: 4 | AD133: 342 | AE133: 6 | AF133: 5 | AH133: 1 | AN133: 4
A134: INFLUENZA (SEASONAL) (FLUMIST QUADRIVALENT) | B134: 783 | C134: 182 | D134: 82 | E134: 27 | F134: 15 | G134: 17 | H134: 4 | I134: 21 | J134: 429 | K134: 6 | L134: 317 | M134: 82 | N134: 37 | O134: 19 | P134: 9 | Q134: 7 | R134: 3 | S134: 10 | T134: 147 | U134: 3 | V134: 438 | W134: 99 | X134: 45 | Y134: 8 | Z134: 6 | AA134: 10 | AB134: 1 | AC134: 11 | AD134: 255 | AE134: 3 | AF134: 28 | AG134: 1 | AN134: 27
A135: HEP B (FOREIGN) | B135: 753 | C135: 221 | D135: 185 | E135: 143 | F135: 27 | G135: 2 | H135: 3 | J135: 172 | L135: 237 | M135: 69 | N135: 72 | O135: 62 | P135: 3 | Q135: 1 | T135: 30 | V135: 496 | W135: 148 | X135: 110 | Y135: 77 | Z135: 24 | AA135: 1 | AB135: 3 | AD135: 133 | AF135: 20 | AG135: 4 | AH135: 3 | AI135: 4 | AN135: 9
A136: RUBELLA (MERUVAX II) | B136: 729 | C136: 265 | D136: 25 | E136: 3 | J136: 436 | L136: 53 | M136: 28 | T136: 25 | V136: 665 | W136: 236 | X136: 25 | Y136: 3 | AD136: 401 | AF136: 11 | AG136: 1 | AN136: 10
A137: INFLUENZA (SEASONAL) (FLUZONE INTRADERMAL) | B137: 716 | C137: 263 | D137: 52 | E137: 3 | F137: 8 | G137: 2 | H137: 1 | I137: 5 | J137: 382 | L137: 140 | M137: 40 | N137: 13 | P137: 1 | R137: 1 | S137: 1 | T137: 84 | V137: 549 | W137: 222 | X137: 39 | Y137: 3 | Z137: 7 | AA137: 2 | AC137: 4 | AD137: 272 | AF137: 27 | AG137: 1 | AN137: 26
A138: VARICELLA (NO BRAND NAME) | B138: 704 | C138: 164 | D138: 173 | E138: 11 | F138: 1 | G138: 1 | J138: 354 | L138: 256 | M138: 63 | N138: 52 | O138: 4 | P138: 1 | Q138: 1 | T138: 135 | V138: 442 | W138: 101 | X138: 121 | Y138: 7 | AD138: 213 | AF138: 6 | AN138: 6
A139: HIB (NO BRAND NAME) | B139: 666 | C139: 115 | D139: 69 | E139: 43 | F139: 64 | G139: 3 | J139: 372 | L139: 352 | M139: 62 | N139: 26 | O139: 23 | P139: 35 | Q139: 2 | T139: 204 | V139: 285 | W139: 51 | X139: 40 | Y139: 19 | Z139: 27 | AA139: 1 | AD139: 147 | AF139: 29 | AG139: 2 | AH139: 3 | AI139: 1 | AJ139: 2 | AN139: 21
A140: TETANUS TOXOID, ADSORBED (NO BRAND NAME) | B140: 644 | C140: 102 | D140: 52 | E140: 18 | F140: 9 | G140: 8 | H140: 8 | I140: 5 | J140: 440 | K140: 2 | L140: 176 | M140: 32 | N140: 12 | O140: 4 | P140: 5 | R140: 3 | T140: 120 | V140: 426 | W140: 69 | X140: 40 | Y140: 14 | Z140: 4 | AA140: 8 | AB140: 5 | AC140: 5 | AD140: 279 | AE140: 2 | AF140: 42 | AG140: 1 | AN140: 41
A141: DTAP + IPV + HIB (PENTACEL) | B141: 624 | C141: 209 | D141: 120 | E141: 88 | F141: 70 | G141: 16 | J141: 119 | K141: 2 | L141: 342 | M141: 109 | N141: 62 | O141: 57 | P141: 35 | Q141: 10 | T141: 69 | V141: 278 | W141: 100 | X141: 57 | Y141: 31 | Z141: 35 | AA141: 6 | AD141: 47 | AE141: 2 | AF141: 4 | AH141: 1 | AN141: 3
A142: INFLUENZA (SEASONAL) (FOREIGN) | B142: 622 | C142: 44 | D142: 4 | E142: 3 | F142: 2 | G142: 2 | I142: 2 | J142: 565 | L142: 208 | M142: 9 | N142: 1 | O142: 1 | Q142: 1 | S142: 2 | T142: 194 | V142: 405 | W142: 34 | X142: 3 | Y142: 2 | Z142: 2 | AA142: 1 | AD142: 363 | AF142: 9 | AG142: 1 | AN142: 8
A143: TD ADSORBED (TENIVAC) | B143: 536 | C143: 125 | D143: 58 | E143: 11 | F143: 7 | G143: 9 | H143: 3 | I143: 13 | J143: 286 | K143: 24 | L143: 125 | M143: 30 | N143: 12 | O143: 2 | P143: 3 | Q143: 2 | R143: 3 | S143: 8 | T143: 57 | U143: 8 | V143: 406 | W143: 95 | X143: 44 | Y143: 9 | Z143: 4 | AA143: 7 | AC143: 5 | AD143: 226 | AE143: 16 | AF143: 5 | AH143: 2 | AN143: 3
A144: DTAP+IPV+HEPB+HIB (INFANRIX HEXA) | B144: 485 | C144: 76 | D144: 76 | E144: 49 | F144: 15 | J144: 269 | L144: 256 | M144: 34 | N144: 49 | O144: 27 | P144: 6 | T144: 140 | V144: 200 | W144: 38 | X144: 24 | Y144: 20 | Z144: 5 | AD144: 113 | AF144: 29 | AG144: 4 | AH144: 3 | AI144: 2 | AJ144: 4 | AN144: 16
A145: DTAP (ACEL-IMUNE) | B145: 454 | C145: 93 | D145: 45 | E145: 18 | F145: 102 | G145: 117 | H145: 6 | J145: 73 | L145: 211 | M145: 34 | N145: 22 | O145: 14 | P145: 53 | Q145: 61 | R145: 3 | T145: 24 | V145: 223 | W145: 57 | X145: 21 | Y145: 4 | Z145: 46 | AA145: 55 | AB145: 3 | AD145: 37 | AF145: 20 | AG145: 2 | AH145: 2 | AJ145: 3 | AK145: 1 | AN145: 12
A146: POLIO VIRUS, ORAL (NO BRAND NAME) | B146: 450 | C146: 45 | D146: 22 | E146: 19 | F146: 15 | G146: 3 | J146: 346 | L146: 224 | M146: 17 | N146: 14 | O146: 15 | P146: 11 | Q146: 2 | T146: 165 | V146: 172 | W146: 27 | X146: 7 | Y146: 3 | Z146: 4 | AA146: 1 | AD146: 130 | AF146: 54 | AG146: 1 | AH146: 1 | AI146: 1 | AN146: 51
A147: RABIES (NO BRAND NAME) | B147: 450 | C147: 77 | D147: 82 | E147: 48 | F147: 47 | G147: 20 | H147: 3 | I147: 14 | J147: 159 | L147: 160 | M147: 30 | N147: 21 | O147: 20 | P147: 14 | Q147: 5 | S147: 9 | T147: 61 | V147: 269 | W147: 47 | X147: 60 | Y147: 28 | Z147: 28 | AA147: 13 | AB147: 3 | AC147: 5 | AD147: 85 | AF147: 21 | AH147: 1 | AJ147: 5 | AK147: 2 | AN147: 13
A148: DTP + HIB (TETRAMUNE) | B148: 446 | C148: 116 | D148: 76 | E148: 79 | F148: 105 | G148: 15 | J148: 55 | L148: 220 | M148: 56 | N148: 41 | O148: 43 | P148: 54 | Q148: 6 | T148: 20 | V148: 208 | W148: 55 | X148: 34 | Y148: 35 | Z148: 50 | AA148: 9 | AD148: 25 | AF148: 18 | AG148: 5 | AH148: 1 | AI148: 1 | AJ148: 1 | AN148: 10
A149: RABIES (RABIPUR) | B149: 437 | C149: 79 | D149: 52 | E149: 54 | F149: 6 | G149: 10 | J149: 236 | L149: 180 | M149: 31 | N149: 16 | O149: 18 | P149: 3 | Q149: 3 | T149: 109 | V149: 232 | W149: 45 | X149: 32 | Y149: 33 | Z149: 1 | AA149: 7 | AD149: 114 | AF149: 25 | AG149: 3 | AH149: 4 | AI149: 3 | AJ149: 2 | AN149: 13
A150: INFLUENZA (SEASONAL) (FLUCELVAX) | B150: 437 | C150: 125 | D150: 38 | E150: 7 | G150: 2 | H150: 1 | I150: 11 | J150: 253 | L150: 111 | M150: 28 | N150: 10 | O150: 1 | R150: 1 | S150: 4 | T150: 67 | V150: 319 | W150: 96 | X150: 28 | Y150: 6 | AA150: 2 | AC150: 7 | AD150: 180 | AF150: 7 | AG150: 1 | AN150: 6
A151: YELLOW FEVER (NO BRAND NAME) | B151: 425 | C151: 65 | D151: 12 | E151: 2 | J151: 346 | L151: 241 | M151: 24 | N151: 5 | O151: 2 | T151: 210 | V151: 171 | W151: 38 | X151: 7 | AD151: 126 | AF151: 13 | AG151: 3 | AN151: 10
A152: HIB + HEP B (COMVAX) | B152: 385 | C152: 92 | D152: 84 | E152: 126 | F152: 13 | I152: 1 | J152: 69 | L152: 199 | M152: 34 | N152: 49 | O152: 76 | P152: 8 | S152: 1 | T152: 31 | V152: 181 | W152: 56 | X152: 35 | Y152: 50 | Z152: 5 | AD152: 35 | AF152: 5 | AG152: 2 | AN152: 3
A153: SMALLPOX (NO BRAND NAME) | B153: 362 | C153: 122 | D153: 12 | E153: 1 | F153: 1 | G153: 2 | J153: 224 | L153: 276 | M153: 96 | N153: 9 | O153: 1 | Q153: 2 | T153: 168 | V153: 74 | W153: 26 | X153: 3 | Z153: 1 | AD153: 44 | AF153: 12 | AN153: 12
A154: JAPANESE ENCEPHALITIS (IXIARO) | B154: 349 | C154: 167 | D154: 55 | E154: 10 | F154: 2 | G154: 2 | J154: 112 | K154: 1 | L154: 190 | M154: 87 | N154: 31 | O154: 4 | P154: 2 | Q154: 2 | T154: 64 | V154: 152 | W154: 80 | X154: 24 | Y154: 6 | AD154: 41 | AE154: 1 | AF154: 7 | AN154: 7
A155: HIB (HIBERIX) | B155: 326 | C155: 34 | D155: 19 | E155: 18 | F155: 34 | G155: 1 | J155: 220 | L155: 135 | M155: 21 | N155: 4 | O155: 9 | P155: 13 | Q155: 1 | T155: 87 | V155: 141 | W155: 8 | X155: 13 | Y155: 9 | Z155: 15 | AD155: 96 | AF155: 50 | AG155: 5 | AH155: 2 | AJ155: 6 | AN155: 37
A156: INFLUENZA (SEASONAL) (FLUENZ TETRA) | B156: 322 | C156: 6 | J156: 316 | L156: 146 | M156: 3 | T156: 143 | V156: 171 | W156: 3 | AD156: 168 | AF156: 5 | AN156: 5
A157: INFLUENZA (H1N1) (H1N1 (MONOVALENT) (CSL)) | B157: 312 | C157: 128 | D157: 15 | I157: 3 | J157: 166 | L157: 88 | M157: 29 | T157: 59 | V157: 220 | W157: 99 | X157: 15 | AC157: 3 | AD157: 103 | AF157: 4 | AN157: 4
A158: DTAP + IPV (UNKNOWN) | B158: 308 | C158: 30 | D158: 8 | E158: 35 | F158: 5 | G158: 4 | H158: 1 | J158: 225 | L158: 120 | M158: 9 | N158: 5 | O158: 20 | P158: 3 | Q158: 2 | R158: 1 | T158: 80 | V158: 169 | W158: 16 | X158: 2 | Y158: 14 | Z158: 2 | AA158: 2 | AD158: 133 | AF158: 19 | AG158: 5 | AH158: 1 | AI158: 1 | AN158: 12
A159: DTAP + IPV (INFANRIX TETRA) | B159: 286 | C159: 26 | D159: 6 | E159: 1 | F159: 22 | G159: 16 | J159: 215 | L159: 162 | M159: 15 | N159: 6 | P159: 16 | Q159: 6 | T159: 119 | V159: 111 | W159: 11 | Y159: 1 | Z159: 4 | AA159: 10 | AD159: 85 | AF159: 13 | AJ159: 2 | AN159: 11
A160: MEASLES + MUMPS + RUBELLA (PRIORIX) | B160: 282 | C160: 33 | D160: 10 | J160: 239 | L160: 118 | M160: 12 | N160: 8 | T160: 98 | V160: 152 | W160: 21 | X160: 2 | AD160: 129 | AF160: 12 | AN160: 12
A161: MEASLES + MUMPS + RUBELLA (VIRIVAC) | B161: 276 | C161: 81 | D161: 135 | E161: 8 | F161: 1 | I161: 3 | J161: 48 | L161: 99 | M161: 21 | N161: 64 | O161: 2 | T161: 12 | V161: 176 | W161: 60 | X161: 70 | Y161: 6 | Z161: 1 | AC161: 3 | AD161: 36 | AF161: 1 | AH161: 1
A162: DT + IPV (NO BRAND NAME) | B162: 275 | C162: 7 | D162: 3 | H162: 3 | J162: 262 | L162: 92 | M162: 5 | N162: 2 | R162: 1 | T162: 84 | V162: 174 | W162: 2 | X162: 1 | AB162: 2 | AD162: 169 | AF162: 9 | AN162: 9
A163: HEP B (HEPLISAV-B) | B163: 270 | C163: 138 | D163: 93 | E163: 2 | G163: 1 | J163: 33 | K163: 3 | L163: 45 | M163: 23 | N163: 18 | T163: 4 | V163: 207 | W163: 105 | X163: 72 | Y163: 2 | AA163: 1 | AD163: 24 | AE163: 3 | AF163: 18 | AG163: 10 | AH163: 3 | AN163: 5
A164: DTAP + IPV + HIB (INFANRIX QUINTA) | B164: 269 | C164: 38 | D164: 24 | E164: 17 | F164: 13 | J164: 177 | L164: 132 | M164: 21 | N164: 12 | O164: 9 | P164: 5 | T164: 85 | V164: 80 | W164: 15 | X164: 9 | Y164: 7 | Z164: 4 | AD164: 45 | AF164: 57 | AG164: 2 | AH164: 3 | AI164: 1 | AJ164: 4 | AN164: 47
A165: DTAP + IPV (QUADRACEL) | B165: 234 | C165: 68 | D165: 4 | E165: 3 | F165: 11 | G165: 67 | J165: 73 | K165: 8 | L165: 126 | M165: 39 | N165: 2 | O165: 1 | P165: 7 | Q165: 35 | T165: 38 | U165: 4 | V165: 101 | W165: 28 | X165: 1 | Y165: 2 | Z165: 4 | AA165: 31 | AD165: 31 | AE165: 4 | AF165: 7 | AG165: 1 | AH165: 1 | AK165: 1 | AN165: 4
A166: INFLUENZA (SEASONAL) (QIV DRESDEN) | B166: 225 | C166: 14 | E166: 6 | J166: 205 | L166: 45 | M166: 3 | T166: 42 | V166: 174 | W166: 10 | Y166: 6 | AD166: 158 | AF166: 6 | AG166: 1 | AN166: 5
A167: ROTAVIRUS (NO BRAND NAME) | B167: 217 | C167: 81 | D167: 45 | E167: 14 | F167: 1 | J167: 76 | L167: 115 | M167: 44 | N167: 26 | O167: 5 | T167: 40 | V167: 90 | W167: 32 | X167: 19 | Y167: 9 | Z167: 1 | AD167: 29 | AF167: 12 | AG167: 5 | AN167: 7
A168: INFLUENZA (SEASONAL) (FLU-IMUNE) | B168: 214 | C168: 54 | D168: 9 | E168: 9 | F168: 1 | G168: 1 | I168: 3 | J168: 137 | L168: 60 | M168: 18 | O168: 5 | P168: 1 | T168: 36 | V168: 131 | W168: 35 | X168: 9 | Y168: 4 | AA168: 1 | AC168: 3 | AD168: 79 | AF168: 23 | AG168: 1 | AN168: 22
A169: INFLUENZA (H1N1) (H1N1 (MONOVALENT) (GSK)) | B169: 210 | C169: 48 | D169: 9 | J169: 153 | L169: 75 | M169: 14 | N169: 4 | T169: 57 | V169: 134 | W169: 34 | X169: 5 | AD169: 95 | AF169: 1 | AN169: 1
A170: MEASLES (ATTENUVAX) | B170: 209 | C170: 71 | D170: 27 | E170: 7 | F170: 1 | J170: 103 | L170: 48 | M170: 13 | N170: 11 | O170: 1 | T170: 23 | V170: 160 | W170: 58 | X170: 16 | Y170: 6 | Z170: 1 | AD170: 79 | AF170: 1 | AN170: 1
A171: YELLOW FEVER (STAMARIL) | B171: 207 | C171: 61 | D171: 2 | J171: 140 | K171: 4 | L171: 103 | M171: 27 | T171: 74 | U171: 2 | V171: 102 | W171: 34 | X171: 2 | AD171: 64 | AE171: 2 | AF171: 2 | AN171: 2
A172: INFLUENZA (SEASONAL) (TIV DRESDEN) | B172: 202 | C172: 16 | J172: 186 | L172: 55 | M172: 1 | T172: 54 | V172: 137 | W172: 15 | AD172: 122 | AF172: 10 | AN172: 10
A173: RABIES (IMOVAX ID) | B173: 200 | C173: 46 | D173: 66 | E173: 22 | F173: 8 | G173: 1 | H173: 2 | J173: 55 | L173: 54 | M173: 13 | N173: 18 | O173: 7 | P173: 6 | Q173: 1 | R173: 2 | T173: 7 | V173: 140 | W173: 33 | X173: 47 | Y173: 14 | Z173: 2 | AD173: 44 | AF173: 6 | AH173: 1 | AI173: 1 | AN173: 4
A174: INFLUENZA (SEASONAL) (FLUZONE INTRADERMAL QUADRIVALENT) | B174: 188 | C174: 73 | D174: 9 | E174: 1 | G174: 2 | I174: 3 | J174: 89 | K174: 11 | L174: 42 | M174: 21 | N174: 1 | S174: 1 | T174: 15 | U174: 4 | V174: 142 | W174: 51 | X174: 8 | Y174: 1 | AA174: 2 | AC174: 2 | AD174: 71 | AE174: 7 | AF174: 4 | AG174: 1 | AN174: 3
A175: JAPANESE ENCEPHALITIS (JE-VAX) | B175: 175 | C175: 58 | D175: 47 | E175: 23 | F175: 1 | G175: 1 | J175: 45 | L175: 66 | M175: 19 | N175: 18 | O175: 11 | P175: 1 | Q175: 1 | T175: 16 | V175: 109 | W175: 39 | X175: 29 | Y175: 12 | AD175: 29 | AF175: 0 | AG175: 0 | AH175: 0 | AI175: 0 | AJ175: 0 | AK175: 0 | AL175: 0 | AM175: 0 | AN175: 0 | AO175: 0
A176: DT ADSORBED (DECAVAC) | B176: 156 | C176: 19 | D176: 13 | E176: 1 | F176: 1 | I176: 3 | J176: 119 | L176: 38 | M176: 5 | N176: 7 | S176: 1 | T176: 25 | V176: 117 | W176: 14 | X176: 5 | Y176: 1 | Z176: 1 | AC176: 2 | AD176: 94 | AF176: 1 | AH176: 1
A177: MENINGOCOCCAL CONJUGATE (NO BRAND NAME) | B177: 142 | C177: 19 | D177: 8 | J177: 115 | L177: 60 | M177: 10 | N177: 3 | T177: 47 | V177: 76 | W177: 9 | X177: 5 | AD177: 62 | AF177: 6 | AN177: 6
A178: MEASLES + MUMPS + RUBELLA + VARICELLA (NO BRAND NAME) | B178: 137 | C178: 21 | D178: 18 | E178: 4 | F178: 1 | J178: 93 | L178: 63 | M178: 6 | N178: 7 | O178: 2 | T178: 48 | V178: 70 | W178: 15 | X178: 11 | Y178: 2 | Z178: 1 | AD178: 41 | AF178: 4 | AN178: 4
A179: TICK-BORNE ENCEPH (NO BRAND NAME) | B179: 135 | C179: 30 | D179: 13 | E179: 11 | F179: 4 | J179: 77 | L179: 69 | M179: 12 | N179: 10 | O179: 3 | P179: 4 | T179: 40 | V179: 66 | W179: 18 | X179: 3 | Y179: 8 | AD179: 37 | AF179: 0 | AG179: 0 | AH179: 0 | AI179: 0 | AJ179: 0 | AK179: 0 | AL179: 0 | AM179: 0 | AN179: 0 | AO179: 0
A180: DTAP+IPV+HEPB+HIB (NO BRAND NAME) | B180: 134 | C180: 30 | D180: 13 | E180: 9 | F180: 2 | J180: 80 | L180: 60 | M180: 18 | N180: 5 | O180: 5 | P180: 1 | T180: 31 | V180: 67 | W180: 11 | X180: 8 | Y180: 3 | Z180: 1 | AD180: 44 | AF180: 7 | AG180: 1 | AI180: 1 | AN180: 5
A181: INFLUENZA (SEASONAL) (FLUBLOK) | B181: 134 | C181: 53 | D181: 18 | E181: 2 | I181: 1 | J181: 57 | K181: 3 | L181: 19 | M181: 8 | N181: 1 | T181: 8 | U181: 2 | V181: 114 | W181: 45 | X181: 17 | Y181: 2 | AC181: 1 | AD181: 48 | AE181: 1 | AF181: 1 | AN181: 1
A182: PNEUMO (SYNFLORIX) | B182: 133 | C182: 42 | D182: 24 | E182: 4 | F182: 5 | J182: 58 | L182: 50 | M182: 14 | N182: 9 | O182: 2 | P182: 2 | T182: 23 | V182: 69 | W182: 25 | X182: 11 | Y182: 1 | Z182: 3 | AD182: 29 | AF182: 14 | AG182: 3 | AH182: 4 | AI182: 1 | AN182: 6
A183: TD ADSORBED (DITANRIX) | B183: 130 | C183: 8 | D183: 3 | E183: 6 | F183: 1 | G183: 1 | H183: 3 | J183: 108 | L183: 28 | N183: 1 | O183: 3 | Q183: 1 | R183: 2 | T183: 21 | V183: 97 | W183: 8 | X183: 2 | Y183: 3 | Z183: 1 | AB183: 1 | AD183: 82 | AF183: 5 | AN183: 5
A184: MEASLES + MUMPS + RUBELLA (MMR I) | B184: 127 | C184: 51 | D184: 41 | E184: 5 | J184: 30 | L184: 38 | M184: 13 | N184: 17 | O184: 1 | T184: 7 | V184: 88 | W184: 38 | X184: 23 | Y184: 4 | AD184: 23 | AF184: 1 | AH184: 1
A185: DTP + IPV (NO BRAND NAME) | B185: 127 | C185: 20 | D185: 12 | E185: 27 | F185: 1 | G185: 1 | H185: 4 | J185: 62 | L185: 65 | M185: 8 | N185: 5 | O185: 16 | R185: 4 | T185: 32 | V185: 58 | W185: 12 | X185: 7 | Y185: 11 | Z185: 1 | AA185: 1 | AD185: 26 | AF185: 4 | AN185: 4
A186: HEP A + HEP B (NO BRAND NAME) | B186: 127 | C186: 23 | D186: 10 | E186: 6 | F186: 1 | J186: 87 | L186: 61 | M186: 20 | N186: 5 | O186: 3 | T186: 33 | V186: 63 | W186: 3 | X186: 5 | Y186: 1 | Z186: 1 | AD186: 53 | AF186: 3 | AI186: 2 | AN186: 1
A187: JAPANESE ENCEPHALITIS (J-VAX) | B187: 117 | C187: 35 | D187: 46 | E187: 14 | F187: 1 | J187: 21 | L187: 62 | M187: 23 | N187: 16 | O187: 13 | P187: 1 | T187: 9 | V187: 52 | W187: 12 | X187: 27 | Y187: 1 | AD187: 12 | AF187: 3 | AH187: 3
A188: HEP B (GENHEVAC B) | B188: 116 | C188: 14 | D188: 8 | E188: 5 | F188: 13 | J188: 76 | L188: 39 | M188: 7 | N188: 2 | P188: 7 | T188: 23 | V188: 76 | W188: 7 | X188: 6 | Y188: 5 | Z188: 6 | AD188: 52 | AF188: 1 | AN188: 1
A189: ADENOVIRUS TYPES 4 & 7, LIVE, ORAL (NO BRAND NAME) | B189: 114 | C189: 30 | D189: 10 | J189: 74 | L189: 71 | M189: 16 | N189: 3 | T189: 52 | V189: 40 | W189: 14 | X189: 7 | AD189: 19 | AF189: 3 | AN189: 3
A190: HIB (PROHIBIT) | B190: 113 | C190: 35 | D190: 13 | E190: 5 | F190: 35 | J190: 25 | L190: 58 | M190: 16 | N190: 8 | O190: 1 | P190: 22 | T190: 11 | V190: 50 | W190: 19 | X190: 5 | Y190: 4 | Z190: 12 | AD190: 10 | AF190: 5 | AJ190: 1 | AN190: 4
A191: ROTAVIRUS (ROTASHIELD) | B191: 109 | C191: 71 | D191: 16 | E191: 8 | J191: 14 | L191: 47 | M191: 27 | N191: 9 | O191: 4 | T191: 7 | V191: 61 | W191: 44 | X191: 7 | Y191: 3 | AD191: 7 | AF191: 1 | AI191: 1
A192: MEASLES + RUBELLA (MR-VAX II) | B192: 108 | C192: 40 | D192: 22 | E192: 2 | J192: 44 | L192: 19 | M192: 6 | N192: 6 | T192: 7 | V192: 88 | W192: 34 | X192: 16 | Y192: 2 | AD192: 36 | AF192: 1 | AN192: 1
A193: BCG (NO BRAND NAME) | B193: 106 | C193: 14 | E193: 3 | J193: 89 | L193: 55 | M193: 6 | T193: 49 | V193: 45 | W193: 8 | Y193: 3 | AD193: 34 | AF193: 6 | AN193: 6
A194: DTAP + IPV + HIB (UNKNOWN) | B194: 103 | C194: 15 | D194: 9 | E194: 8 | F194: 3 | J194: 68 | L194: 48 | M194: 9 | N194: 4 | O194: 4 | P194: 2 | T194: 29 | V194: 46 | W194: 6 | X194: 5 | Y194: 4 | AD194: 31 | AF194: 9 | AJ194: 1 | AN194: 8
A195: TYPHOID VI POLYSACCHARIDE (ACETONE INACTIVATED DRIED) | B195: 97 | C195: 32 | D195: 9 | E195: 4 | F195: 2 | G195: 1 | I195: 1 | J195: 48 | L195: 47 | M195: 22 | N195: 5 | O195: 3 | P195: 2 | Q195: 1 | S195: 1 | T195: 13 | V195: 36 | W195: 8 | X195: 4 | Y195: 1 | AD195: 23 | AF195: 14 | AG195: 2 | AN195: 12
A196: PNEUMO (PREVNAR20) | B196: 95 | C196: 63 | D196: 4 | J196: 25 | K196: 3 | L196: 21 | M196: 13 | T196: 8 | V196: 72 | W196: 49 | X196: 4 | AD196: 16 | AE196: 3 | AF196: 2 | AG196: 1 | AN196: 1
A197: CHOLERA (NO BRAND NAME) | B197: 93 | C197: 15 | D197: 6 | J197: 72 | L197: 45 | M197: 4 | N197: 2 | T197: 39 | V197: 47 | W197: 11 | X197: 4 | AD197: 32 | AF197: 1 | AN197: 1
A198: DIPHTHERIA TOXOIDS (NO BRAND NAME) | B198: 91 | C198: 4 | D198: 7 | G198: 4 | H198: 1 | J198: 75 | L198: 24 | N198: 2 | Q198: 2 | T198: 20 | V198: 64 | W198: 4 | X198: 5 | AA198: 2 | AB198: 1 | AD198: 52 | AF198: 3 | AN198: 3
A199: INFLUENZA (SEASONAL) (AGRIFLU) | B199: 91 | C199: 24 | D199: 13 | E199: 3 | H199: 8 | I199: 2 | J199: 41 | L199: 21 | M199: 1 | N199: 9 | T199: 11 | V199: 70 | W199: 23 | X199: 4 | Y199: 3 | AB199: 8 | AC199: 2 | AD199: 30 | AF199: 0 | AG199: 0 | AH199: 0 | AI199: 0 | AJ199: 0 | AK199: 0 | AL199: 0 | AM199: 0 | AN199: 0 | AO199: 0
A200: DIPHTHERIA TOXOID + PERTUSSIS + IPV (NO BRAND NAME) | B200: 83 | C200: 5 | D200: 6 | E200: 1 | G200: 1 | J200: 70 | L200: 23 | M200: 1 | N200: 2 | T200: 20 | V200: 59 | W200: 4 | X200: 4 | Y200: 1 | AD200: 50 | AF200: 1 | AK200: 1
A201: PERTUSSIS (NO BRAND NAME) | B201: 81 | C201: 14 | D201: 5 | E201: 1 | G201: 1 | H201: 2 | J201: 58 | L201: 25 | M201: 5 | O201: 1 | Q201: 1 | R201: 2 | T201: 16 | V201: 55 | W201: 9 | X201: 5 | AD201: 41 | AF201: 1 | AN201: 1
... 361 more rows

Sheet Gender bias
A1: Vaccine Name | B1: Male | C1: Female | D1: Ratio
A2: COVID19 (PFIZER-BIONTECH) | B2: 98378 | C2: 294196 | D2: =C2/B2 -> 3.0
A3: COVID19 (MODERNA) | B3: 65481 | C3: 208678 | D3: 3.2
A4: COVID19 (JANSSEN) | B4: 17488 | C4: 37434 | D4: 2.1
A5: ZOSTER (SHINGRIX) | B5: 13384 | C5: 34891 | D5: 2.6
A6: PNEUMO (PNEUMOVAX) | B6: 10845 | C6: 27437 | D6: 2.5
A7: INFLUENZA (FLUZONE) | B7: 5830 | C7: 15949 | D7: 2.7
A8: HPV (GARDASIL) | B8: 1432 | C8: 18909 | D8: 13.2
A9: INFLUENZA (SEASONAL) | B9: 5700 | C9: 13794 | D9: 2.4
A10: MEASLES + MUMPS + RUBELLA | B10: 5990 | C10: 10234 | D10: 1.7
A11: TDAP (ADACEL) | B11: 4391 | C11: 11859 | D11: 2.7
A12: HEP B (ENGERIX-B) | B12: 4243 | C12: 11283 | D12: 2.7
A13: ZOSTER LIVE (ZOSTAVAX) | B13: 3712 | C13: 10593 | D13: 2.9
A14: INFLUENZA (FLUVIRIN) | B14: 3168 | C14: 8568 | D14: 2.7
A15: PNEUMO (PREVNAR13) | B15: 3482 | C15: 7700 | D15: 2.2
A16: VACCINE NOT SPECIFIED | B16: 2938 | C16: 8310 | D16: 2.8
A17: INFLUENZA (FLUZONE HIGH-DOSE) | B17: 2945 | C17: 8229 | D17: 2.8
A18: TD ADSORBED | B18: 2861 | C18: 7629 | D18: 2.7
A19: VARICELLA (VARIVAX) | B19: 3577 | C19: 6107 | D19: 1.7
A20: HEP B (RECOMBIVAX HB) | B20: 2473 | C20: 6550 | D20: 2.6
A21: TDAP (BOOSTRIX) | B21: 2622 | C21: 5865 | D21: 2.2
A22: MENINGOCOCCAL CONJUGATE (MENACTRA) | B22: 3390 | C22: 4867 | D22: 1.4
A23: INFLUENZA (SEASONAL) (FLUZONE QUADRIVALENT) | B23: 2117 | C23: 5889 | D23: 2.8
A24: INFLUENZA (SEASONAL) (FLUARIX QUADRIVALENT) | B24: 1603 | C24: 5302 | D24: 3.3
A25: HEP A (HAVRIX) | B25: 2470 | C25: 3782 | D25: 1.5
A26: INFLUENZA (SEASONAL) (AFLURIA) | B26: 1400 | C26: 4086 | D26: 2.9
A27: ANTHRAX (BIOTHRAX) | B27: 3775 | C27: 1271 | D27: 0.3
A28: HPV (GARDASIL 9) | B28: 1369 | C28: 3314 | D28: 2.4
A29: POLIO VIRUS, INACT. (IPOL) | B29: 2069 | C29: 2181 | D29: 1.1
A30: INFLUENZA (SEASONAL) (FLUARIX) | B30: 1066 | C30: 2939 | D30: 2.8
A31: PNEUMO (NO BRAND NAME) | B31: 1217 | C31: 2791 | D31: 2.3
A32: INFLUENZA (SEASONAL) (AFLURIA QUADRIVALENT) | B32: 945 | C32: 2701 | D32: 2.9
A33: DTAP (INFANRIX) | B33: 1775 | C33: 1699 | D33: 1.0
A34: HPV (CERVARIX) | B34: 14 | C34: 3499 | D34: =C34/B34 -> 249.9
A35: INFLUENZA (SEASONAL) (FLUCELVAX QUADRIVALENT) | B35: 856 | C35: 2692 | D35: 3.1
A36: MENINGOCOCCAL B (BEXSERO) | B36: 1215 | C36: 2083 | D36: 1.7
A37: LYME (LYMERIX) | B37: 1796 | C37: 1636 | D37: 0.9
A38: HEP A + HEP B (TWINRIX) | B38: 1286 | C38: 1934 | D38: 1.5
A39: POLIO VIRUS, ORAL (ORIMUNE) | B39: 1541 | C39: 1500 | D39: 1.0
A40: INFLUENZA (SEASONAL) (FLUSHIELD) | B40: 647 | C40: 2122 | D40: 3.3
A41: TYPHOID VI POLYSACCHARIDE (TYPHIM VI) | B41: 1525 | C41: 1326 | D41: 0.9
A42: INFLUENZA (H1N1) (H1N1 (MONOVALENT) (SANOFI)) | B42: 844 | C42: 1993 | D42: 2.4
A43: DTAP (DAPTACEL) | B43: 1256 | C43: 1518 | D43: 1.2
A44: TDAP (NO BRAND NAME) | B44: 680 | C44: 1926 | D44: 2.8
A45: ANTHRAX (NO BRAND NAME) | B45: 1877 | C45: 556 | D45: 0.3
A46: HEP A (VAQTA) | B46: 1005 | C46: 1411 | D46: 1.4
A47: HEP B (NO BRAND NAME) | B47: 904 | C47: 1398 | D47: 1.5
A48: INFLUENZA (SEASONAL) (FLULAVAL QUADRIVALENT) | B48: 605 | C48: 1760 | D48: 2.9
A49: PNEUMO (PREVNAR) | B49: 1223 | C49: 1120 | D49: 0.9
A50: DTP (NO BRAND NAME) | B50: 1062 | C50: 1176 | D50: 1.1
A51: INFLUENZA (SEASONAL) (FLULAVAL) | B51: 610 | C51: 1676 | D51: 2.7
A52: INFLUENZA (SEASONAL) (FLUAD) | B52: 675 | C52: 1641 | D52: 2.4
A53: MENINGOCOCCAL B (TRUMENBA) | B53: 765 | C53: 1353 | D53: 1.8
A54: INFLUENZA (SEASONAL) (FLUZONE HIGH-DOSE QUADRIVALENT) | B54: 593 | C54: 1624 | D54: 2.7
A55: SMALLPOX (DRYVAX) | B55: 1402 | C55: 799 | D55: 0.6
A56: MENINGOCOCCAL CONJUGATE (MENVEO) | B56: 940 | C56: 1203 | D56: 1.3
A57: ZOSTER (NO BRAND NAME) | B57: 286 | C57: 631 | D57: 2.2
A58: DTAP (TRIPEDIA) | B58: 1005 | C58: 1000 | D58: 1.0
A59: MEASLES + MUMPS + RUBELLA (NO BRAND NAME) | B59: 841 | C59: 1146 | D59: 1.4
A60: TETANUS TOXOID (NO BRAND NAME) | B60: 599 | C60: 1359 | D60: 2.3
A61: PNEUMO (PNU-IMUNE) | B61: 528 | C61: 1342 | D61: 2.5
A62: YELLOW FEVER (YF-VAX) | B62: 843 | C62: 1078 | D62: 1.3
A63: HIB (ACTHIB) | B63: 930 | C63: 824 | D63: 0.9
A64: INFLUENZA (SEASONAL) (FLUMIST) | B64: 829 | C64: 1008 | D64: 1.2
A65: INFLUENZA (H1N1) (H1N1 (MONOVALENT) (UNKNOWN)) | B65: 571 | C65: 1253 | D65: 2.2
A66: DTAP (NO BRAND NAME) | B66: 662 | C66: 1106 | D66: =C66/B66 -> 1.7
A67: POLIO VIRUS, INACT. (NO BRAND NAME) | B67: 802 | C67: 887 | D67: 1.1
A68: TETANUS DIPHTHERIA (NO BRAND NAME) | B68: 514 | C68: 1190 | D68: 2.3
A69: INFLUENZA (H1N1) (H1N1 (MONOVALENT) (NOVARTIS)) | B69: 572 | C69: 1123 | D69: 2.0
A70: MEASLES + MUMPS + RUBELLA + VARICELLA (PROQUAD) | B70: 813 | C70: 793 | D70: 1.0
A71: DTAP + IPV (KINRIX) | B71: 816 | C71: 754 | D71: 0.9
A72: POLIO VIRUS, INACT. (POLIOVAX) | B72: 745 | C72: 710 | D72: 1.0
A73: RABIES (IMOVAX) | B73: 425 | C73: 1060 | D73: 2.5
A74: COVID19 (COVID19 (UNKNOWN)) | B74: 418 | C74: 1002 | D74: 2.4
A75: HPV (NO BRAND NAME) | B75: 157 | C75: 1125 | D75: 7.2
A76: MENINGOCOCCAL (NO BRAND NAME) | B76: 592 | C76: 731 | D76: 1.2
A77: VACCINE NOT SPECIFIED (OTHER) | B77: 350 | C77: 971 | D77: 2.8
A78: HEP A (NO BRAND NAME) | B78: 552 | C78: 732 | D78: 1.3
A79: TYPHOID VI POLYSACCHARIDE (NO BRAND NAME) | B79: 764 | C79: 478 | D79: 0.6
A80: TYPHOID LIVE ORAL TY21A (VIVOTIF) | B80: 443 | C80: 838 | D80: 1.9
A81: INFLUENZA (SEASONAL) (FLUOGEN) | B81: 324 | C81: 871 | D81: 2.7
A82: INFLUENZA (SEASONAL) (FLUAD QUADRIVALENT) | B82: 325 | C82: 900 | D82: 2.8
A83: RABIES (RABAVERT) | B83: 346 | C83: 841 | D83: 2.4
A84: INFLUENZA (SEASONAL) (FLUBLOK QUADRIVALENT) | B84: 243 | C84: 910 | D84: 3.7
A85: DT ADSORBED (NO BRAND NAME) | B85: 396 | C85: 707 | D85: 1.8
A86: ROTAVIRUS (ROTATEQ) | B86: 573 | C86: 496 | D86: 0.9
A87: HIB (HIBTITER) | B87: 536 | C87: 540 | D87: 1.0
A88: ROTAVIRUS (ROTARIX) | B88: 540 | C88: 475 | D88: 0.9
A89: INFLUENZA (H1N1) (H1N1 (MONOVALENT) (MEDIMMUNE)) | B89: 303 | C89: 703 | D89: 2.3
A90: DTP (TRI-IMMUNOL) | B90: 489 | C90: 472 | D90: 1.0
A91: SMALLPOX (ACAM2000) | B91: 750 | C91: 229 | D91: 0.3
A92: MENINGOCOCCAL (MENOMUNE) | B92: 426 | C92: 479 | D92: 1.1
A93: HIB (PEDVAXHIB) | B93: 449 | C93: 419 | D93: 0.9
A94: DTAP + HEPB + IPV (PEDIARIX) | B94: 448 | C94: 410 | D94: 0.9
A95: TD ADSORBED (TDVAX) | B95: 214 | C95: 584 | D95: 2.7
A96: INFLUENZA (SEASONAL) (FLUMIST QUADRIVALENT) | B96: 317 | C96: 438 | D96: 1.4
A97: HEP B (FOREIGN) | B97: 237 | C97: 496 | D97: 2.1
A98: RUBELLA (MERUVAX II) | B98: 53 | C98: 665 | D98: =C98/B98 -> 12.5
A99: INFLUENZA (SEASONAL) (FLUZONE INTRADERMAL) | B99: 140 | C99: 549 | D99: 3.9
A100: VARICELLA (NO BRAND NAME) | B100: 256 | C100: 442 | D100: 1.7
A101: HIB (NO BRAND NAME) | B101: 352 | C101: 285 | D101: 0.8
A102: TETANUS TOXOID, ADSORBED (NO BRAND NAME) | B102: 176 | C102: 426 | D102: 2.4
A103: DTAP + IPV + HIB (PENTACEL) | B103: 342 | C103: 278 | D103: 0.8
A104: INFLUENZA (SEASONAL) (FOREIGN) | B104: 208 | C104: 405 | D104: 1.9
A105: TD ADSORBED (TENIVAC) | B105: 125 | C105: 406 | D105: 3.2
A106: DTAP+IPV+HEPB+HIB (INFANRIX HEXA) | B106: 256 | C106: 200 | D106: 0.8
A107: DTAP (ACEL-IMUNE) | B107: 211 | C107: 223 | D107: 1.1
A108: POLIO VIRUS, ORAL (NO BRAND NAME) | B108: 224 | C108: 172 | D108: 0.8
A109: RABIES (NO BRAND NAME) | B109: 160 | C109: 269 | D109: 1.7
A110: DTP + HIB (TETRAMUNE) | B110: 220 | C110: 208 | D110: 0.9
A111: RABIES (RABIPUR) | B111: 180 | C111: 232 | D111: 1.3
A112: INFLUENZA (SEASONAL) (FLUCELVAX) | B112: 111 | C112: 319 | D112: 2.9
A113: YELLOW FEVER (NO BRAND NAME) | B113: 241 | C113: 171 | D113: 0.7
A114: HIB + HEP B (COMVAX) | B114: 199 | C114: 181 | D114: 0.9
A115: SMALLPOX (NO BRAND NAME) | B115: 276 | C115: 74 | D115: 0.3
A116: JAPANESE ENCEPHALITIS (IXIARO) | B116: 190 | C116: 152 | D116: 0.8
A117: HIB (HIBERIX) | B117: 135 | C117: 141 | D117: 1.0
A118: INFLUENZA (SEASONAL) (FLUENZ TETRA) | B118: 146 | C118: 171 | D118: 1.2
A119: INFLUENZA (H1N1) (H1N1 (MONOVALENT) (CSL)) | B119: 88 | C119: 220 | D119: 2.5
A120: DTAP + IPV (UNKNOWN) | B120: 120 | C120: 169 | D120: 1.4
A121: DTAP + IPV (INFANRIX TETRA) | B121: 162 | C121: 111 | D121: 0.7
A122: MEASLES + MUMPS + RUBELLA (PRIORIX) | B122: 118 | C122: 152 | D122: 1.3
A123: MEASLES + MUMPS + RUBELLA (VIRIVAC) | B123: 99 | C123: 176 | D123: 1.8
A124: DT + IPV (NO BRAND NAME) | B124: 92 | C124: 174 | D124: 1.9
A125: HEP B (HEPLISAV-B) | B125: 45 | C125: 207 | D125: 4.6
A126: DTAP + IPV + HIB (INFANRIX QUINTA) | B126: 132 | C126: 80 | D126: 0.6
A127: DTAP + IPV (QUADRACEL) | B127: 126 | C127: 101 | D127: 0.8
A128: INFLUENZA (SEASONAL) (QIV DRESDEN) | B128: 45 | C128: 174 | D128: 3.9
A129: ROTAVIRUS (NO BRAND NAME) | B129: 115 | C129: 90 | D129: 0.8
A130: INFLUENZA (SEASONAL) (FLU-IMUNE) | B130: 60 | C130: 131 | D130: =C130/B130 -> 2.2
A131: INFLUENZA (H1N1) (H1N1 (MONOVALENT) (GSK)) | B131: 75 | C131: 134 | D131: 1.8
A132: MEASLES (ATTENUVAX) | B132: 48 | C132: 160 | D132: 3.3
A133: YELLOW FEVER (STAMARIL) | B133: 103 | C133: 102 | D133: 1.0
A134: INFLUENZA (SEASONAL) (TIV DRESDEN) | B134: 55 | C134: 137 | D134: 2.5
A135: RABIES (IMOVAX ID) | B135: 54 | C135: 140 | D135: 2.6
A136: INFLUENZA (SEASONAL) (FLUZONE INTRADERMAL QUADRIVALENT) | B136: 42 | C136: 142 | D136: 3.4
A137: JAPANESE ENCEPHALITIS (JE-VAX) | B137: 66 | C137: 109 | D137: 1.7
A138: DT ADSORBED (DECAVAC) | B138: 38 | C138: 117 | D138: 3.1
A139: MENINGOCOCCAL CONJUGATE (NO BRAND NAME) | B139: 60 | C139: 76 | D139: 1.3
A140: MEASLES + MUMPS + RUBELLA + VARICELLA (NO BRAND NAME) | B140: 63 | C140: 70 | D140: 1.1
A141: TICK-BORNE ENCEPH (NO BRAND NAME) | B141: 69 | C141: 66 | D141: 1.0
A142: DTAP+IPV+HEPB+HIB (NO BRAND NAME) | B142: 60 | C142: 67 | D142: 1.1
A143: INFLUENZA (SEASONAL) (FLUBLOK) | B143: 19 | C143: 114 | D143: 6.0
A144: PNEUMO (SYNFLORIX) | B144: 50 | C144: 69 | D144: 1.4
A145: TD ADSORBED (DITANRIX) | B145: 28 | C145: 97 | D145: 3.5
A146: MEASLES + MUMPS + RUBELLA (MMR I) | B146: 38 | C146: 88 | D146: 2.3
A147: DTP + IPV (NO BRAND NAME) | B147: 65 | C147: 58 | D147: 0.9
A148: HEP A + HEP B (NO BRAND NAME) | B148: 61 | C148: 63 | D148: 1.0
A149: JAPANESE ENCEPHALITIS (J-VAX) | B149: 62 | C149: 52 | D149: 0.8
A150: HEP B (GENHEVAC B) | B150: 39 | C150: 76 | D150: 1.9
A151: ADENOVIRUS TYPES 4 & 7, LIVE, ORAL (NO BRAND NAME) | B151: 71 | C151: 40 | D151: 0.6
A152: HIB (PROHIBIT) | B152: 58 | C152: 50 | D152: 0.9
A153: ROTAVIRUS (ROTASHIELD) | B153: 47 | C153: 61 | D153: 1.3
A154: MEASLES + RUBELLA (MR-VAX II) | B154: 19 | C154: 88 | D154: 4.6
A155: BCG (NO BRAND NAME) | B155: 55 | C155: 45 | D155: 0.8
A156: DTAP + IPV + HIB (UNKNOWN) | B156: 48 | C156: 46 | D156: 1.0

Sheet Table_1
A1: Adverse event | B1: Arthralgia | C1: Asthenia | D1: Back pain | E1: Guillain-Barre syndrome | F1: Hypoaesthesia | G1: Lymphadenopathy | H1: Myalgia | I1: Neck pain | J1: Pain | K1: Pain in extremity | L1: Paraesthesia | N1: Total
A2: Arthralgia | C2: 8,315 | D2: 6,962 | E2: 181 | F2: 4,195 | G2: 4,645 | H2: 26,645 | I2: 6,519 | J2: 19,818 | K2: 18,744 | L2: 4,982 | N2: =SUM(B2:L2) -> 101,006
A3: Asthenia | B3: 8,315 | D3: 2,812 | E3: 1,117 | F3: 3,895 | G3: 1,925 | H3: 10,336 | I3: 1,907 | J3: 13,827 | K3: 7,990 | L3: 4,674 | N3: 56,798
A4: Back pain | B4: 6,962 | C4: 2,812 | E4: 370 | F4: 2,046 | G4: 1,119 | H4: 4,307 | I4: 4,232 | J4: 7,271 | K4: 7,337 | L4: 2,177 | N4: 38,633
A5: Guillain-Barre syndrome | B5: 181 | C5: 1,117 | D5: 370 | F5: 1,291 | G5: 21 | H5: 267 | I5: 80 | J5: 477 | K5: 429 | L5: 1,448 | N5: 5,681
A6: Hypoaesthesia | B6: 4,195 | C6: 3,895 | D6: 2,046 | E6: 1,291 | G6: 1,120 | H6: 2,731 | I6: 1,832 | J6: 6,556 | K6: 8,138 | L6: 16,237 | N6: 48,041
A7: Lymphadenopathy | B7: 4,645 | C7: 1,925 | D7: 1,119 | E7: 21 | F7: 1,120 | H7: 4,451 | I7: 1,833 | J7: 7,378 | K7: 5,228 | L7: 1,366 | N7: 29,086
A8: Myalgia | B8: 26,645 | C8: 10,336 | D8: 4,307 | E8: 267 | F8: 2,731 | G8: 4,451 | I8: 3,318 | J8: 14,898 | K8: 12,787 | L8: 3,975 | N8: 83,715
A9: Neck pain | B9: 6,519 | C9: 1,907 | D9: 4,232 | E9: 80 | F9: 1,832 | G9: 1,833 | H9: 3,318 | J9: 6,286 | K9: 7,352 | L9: 1,957 | N9: 35,316
A10: Pain | B10: 19,818 | C10: 13,827 | D10: 7,271 | E10: 477 | F10: 6,556 | G10: 7,378 | H10: 14,898 | I10: 6,286 | K10: 28,608 | L10: 7,683 | N10: 112,802
A11: Pain in extremity | B11: 18,744 | C11: 7,990 | D11: 7,337 | E11: 429 | F11: 8,138 | G11: 5,228 | H11: 12,787 | I11: 7,352 | J11: 28,608 | L11: 8,002 | N11: 104,615
A12: Paraesthesia | B12: 4,982 | C12: 4,674 | D12: 2,177 | E12: 1,448 | F12: 16,237 | G12: 1,366 | H12: 3,975 | I12: 1,957 | J12: 7,683 | K12: 8,002 | N12: 52,501
A14: Tota | B14: =SUM(B3:B12) -> 101,006 | C14: 48,483 | D14: 31,671 | E14: 5,500 | F14: 43,846 | G14: 24,441 | H14: 57,070 | I14: 28,797 | J14: 92,984 | K14: 85,871 | L14: 47,519
A16: Adverse event | B16: Arthralgia | C16: Asthenia | D16: Hypoaesthesia | E16: Myalgia | F16: Pain | G16: Pain in extremity | H16: Paraesthesia | J16: Total
A17: Arthralgia | C17: 8,315 | D17: 4,195 | E17: 26,645 | F17: 19,818 | G17: 18,744 | H17: 4,982 | J17: =SUM(B17:H17) -> 82,699
A18: Asthenia | B18: 8,315 | D18: 3,895 | E18: 10,336 | F18: 13,827 | G18: 7,990 | H18: 4,674 | J18: 49,037
A19: Hypoaesthesia | B19: 4,195 | C19: 3,895 | E19: 2,731 | F19: 6,556 | G19: 8,138 | H19: 16,237 | J19: 41,752
A20: Myalgia | B20: 26,645 | C20: 10,336 | D20: 2,731 | F20: 14,898 | G20: 12,787 | H20: 3,975 | J20: 71,372
A21: Pain | B21: 19,818 | C21: 13,827 | D21: 6,556 | E21: 14,898 | G21: 28,608 | H21: 7,683 | J21: 91,390
A22: Pain in extremity | B22: 18,744 | C22: 7,990 | D22: 8,138 | E22: 12,787 | F22: 28,608 | H22: 8,002 | J22: 84,269
A23: Paraesthesia | B23: 4,982 | C23: 4,674 | D23: 16,237 | E23: 3,975 | F23: 7,683 | G23: 8,002 | J23: 45,553
A25: Total | B25: =SUM(B18:B23) -> 82,699 | C25: 40,722 | D25: 37,557 | E25: 44,727 | F25: 71,572 | G25: 65,525 | H25: 40,571

Sheet Table_S1
A1: Adverse event | B1: Abdominal pain | C1: Abdominal pain lower | D1: Abdominal pain upper | E1: Arthralgia | F1: Asthenia | G1: Axillary pain | H1: Back pain | I1: Bell's palsy | J1: Bone pain | K1: Breast pain | L1: Chest pain | M1: Dysphagia | N1: Ear pain | O1: Eye pain | P1: Facial pain | Q1: Guillain-Barre syndrome | R1: Hemiparesis | S1: Hypoaesthesia | T1: Injection site pain | U1: Lymph node pain | V1: Lymphadenopathy | W1: Musculoskeletal chest pain | X1: Musculoskeletal pain | Y1: Musculoskeletal stiffness | Z1: Myalgia | AA1: Neck pain | AB1: Neuralgia | AC1: Oropharyngeal pain | AD1: Pain | AE1: Pain in extremity | AF1: Pain in jaw | AG1: Pain of skin | AH1: Paraesthesia | AI1: Renal pain | AJ1: Spinal pain | AK1: Total
A2: Headache | B2: 5557 | C2: 350 | D2: 6387 | E2: 30678 | F2: 20796 | G2: 2239 | H2: 8953 | I2: 559 | J2: 1783 | K2: 667 | L2: 9087 | M2: 1504 | N2: 3211 | O2: 3818 | P2: 975 | Q2: 394 | R2: 379 | S2: 7756 | T2: 18109 | U2: 1706 | V2: 8429 | W2: 552 | X2: 1096 | Y2: 4366 | Z2: 37781 | AA2: 8461 | AB2: 1065 | AC2: 8091 | AD2: 50367 | AE2: 27473 | AF2: 1278 | AG2: 950 | AH2: 7959 | AI2: 450 | AJ2: 451 | AK2: =SUM(B2:AJ2) -> 283677
A3: Pyrexia | B3: 5450 | C3: 367 | D3: 4720 | E3: 26232 | F3: 20019 | G3: 1993 | H3: 6679 | I3: 164 | J3: 1619 | K3: 507 | L3: 7577 | M3: 1188 | N3: 1847 | O3: 1757 | P3: 361 | Q3: 358 | R3: 233 | S3: 4140 | T3: 22455 | U3: 1706 | V3: 10667 | W3: 446 | X3: 1017 | Y3: 3780 | Z3: 39383 | AA3: 4806 | AB3: 714 | AC3: 8567 | AD3: 64718 | AE3: 26911 | AF3: 664 | AG3: 879 | AH3: 4734 | AI3: 380 | AJ3: 299 | AK3: 277337
A4: Fatigue | B4: 3938 | C4: 337 | D4: 4554 | E4: 26644 | F4: 20246 | G4: 2109 | H4: 6626 | I4: 240 | J4: 1387 | K4: 701 | L4: 7811 | M4: 1190 | N4: 1784 | O4: 1890 | P4: 497 | Q4: 301 | R4: 217 | S4: 5114 | T4: 15355 | U4: 1653 | V4: 7414 | W4: 498 | X4: 780 | Y4: 2837 | Z4: 30821 | AA4: 4322 | AB4: 900 | AC4: 5980 | AD4: 37243 | AE4: 23813 | AF4: 681 | AG4: 648 | AH4: 5640 | AI4: 290 | AJ4: 305 | AK4: 224766
A5: Chills | B5: 2881 | C5: 218 | D5: 3606 | E5: 20135 | F5: 14374 | G5: 1555 | H5: 5014 | I5: 100 | J5: 1239 | K5: 392 | L5: 4613 | M5: 684 | N5: 1153 | O5: 1215 | P5: 280 | Q5: 73 | R5: 49 | S5: 2565 | T5: 13637 | U5: 1037 | V5: 5150 | W5: 276 | X5: 468 | Y5: 1869 | Z5: 26797 | AA5: 3057 | AB5: 417 | AC5: 3858 | AD5: 41610 | AE5: 16709 | AF5: 445 | AG5: 558 | AH5: 2970 | AI5: 238 | AJ5: 201 | AK5: 179443
A6: Nausea | B6: 5940 | C6: 404 | D6: 5496 | E6: 15312 | F6: 14614 | G6: 1030 | H6: 4504 | I6: 112 | J6: 880 | K6: 359 | L6: 5409 | M6: 970 | N6: 1146 | O6: 1249 | P6: 318 | Q6: 155 | R6: 161 | S6: 4500 | T6: 10865 | U6: 801 | V6: 4311 | W6: 334 | X6: 603 | Y6: 2249 | Z6: 21004 | AA6: 3458 | AB6: 555 | AC6: 3365 | AD6: 26546 | AE6: 15222 | AF6: 542 | AG6: 465 | AH6: 5318 | AI6: 249 | AJ6: 241 | AK6: 158687
A7: Dizziness | B7: 2770 | C7: 185 | D7: 2730 | E7: 8720 | F7: 15956 | G7: 632 | H7: 3171 | I7: 126 | J7: 599 | K7: 272 | L7: 6322 | M7: 1368 | N7: 1069 | O7: 1018 | P7: 290 | Q7: 140 | R7: 174 | S7: 5280 | T7: 5392 | U7: 465 | V7: 2261 | W7: 223 | X7: 382 | Y7: 1467 | Z7: 8699 | AA7: 2429 | AB7: 403 | AC7: 2027 | AD7: 11738 | AE7: 8715 | AF7: 424 | AG7: 231 | AH7: 6146 | AI7: 164 | AJ7: 174 | AK7: 102162
A8: Dyspnoea | B8: 1961 | C8: 137 | D8: 1344 | E8: 5312 | F8: 8850 | G8: 321 | H8: 2602 | I8: 57 | J8: 376 | K8: 226 | L8: 13359 | M8: 2165 | N8: 485 | O8: 434 | P8: 139 | Q8: 253 | R8: 80 | S8: 2864 | T8: 2001 | U8: 226 | V8: 1426 | W8: 401 | X8: 277 | Y8: 676 | Z8: 4949 | AA8: 1326 | AB8: 255 | AC8: 2202 | AD8: 7419 | AE8: 4556 | AF8: 311 | AG8: 110 | AH8: 3046 | AI8: 113 | AJ8: 115 | AK8: 70374
A9: Malaise | B9: 1702 | C9: 133 | D9: 1517 | E9: 7672 | F9: 7113 | G9: 484 | H9: 1903 | I9: 70 | J9: 372 | K9: 160 | L9: 2471 | M9: 496 | N9: 523 | O9: 562 | P9: 159 | Q9: 185 | R9: 95 | S9: 1896 | T9: 4442 | U9: 446 | V9: 2427 | W9: 155 | X9: 306 | Y9: 937 | Z9: 9436 | AA9: 1293 | AB9: 292 | AC9: 1897 | AD9: 9348 | AE9: 6005 | AF9: 206 | AG9: 172 | AH9: 1997 | AI9: 122 | AJ9: 86 | AK9: 67080
A10: Injection site erythema | B10: 331 | C10: 14 | D10: 436 | E10: 2782 | F10: 1563 | G10: 796 | H10: 658 | I10: 12 | J10: 118 | K10: 128 | L10: 507 | M10: 155 | N10: 146 | O10: 112 | P10: 41 | Q10: 11 | R10: 12 | S10: 864 | T10: 36329 | U10: 449 | V10: 1742 | W10: 52 | X10: 332 | Y10: 656 | Z10: 3025 | AA10: 838 | AB10: 118 | AC10: 398 | AD10: 7355 | AE10: 5155 | AF10: 78 | AG10: 113 | AH10: 1085 | AI10: 21 | AJ10: 22 | AK10: 66454
A11: Vomiting | B11: 4395 | C11: 208 | D11: 3087 | E11: 4503 | F11: 6811 | G11: 219 | H11: 1709 | I11: 46 | J11: 320 | K11: 94 | L11: 2268 | M11: 501 | N11: 407 | O11: 427 | P11: 97 | Q11: 137 | R11: 116 | S11: 1536 | T11: 3284 | U11: 206 | V11: 1349 | W11: 131 | X11: 207 | Y11: 960 | Z11: 6747 | AA11: 1183 | AB11: 151 | AC11: 1476 | AD11: 10851 | AE11: 5042 | AF11: 156 | AG11: 126 | AH11: 1669 | AI11: 102 | AJ11: 89 | AK11: 60610
A12: Injection site swelling | B12: 319 | C12: 18 | D12: 393 | E12: 2949 | F12: 1475 | G12: 728 | H12: 647 | I12: 16 | J12: 117 | K12: 115 | L12: 492 | M12: 150 | N12: 148 | O12: 130 | P12: 48 | Q12: 15 | R12: 10 | S12: 878 | T12: 31018 | U12: 454 | V12: 1883 | W12: 47 | X12: 335 | Y12: 681 | Z12: 3061 | AA12: 864 | AB12: 111 | AC12: 418 | AD12: 7048 | AE12: 4474 | AF12: 83 | AG12: 101 | AH12: 1013 | AI12: 21 | AJ12: 31 | AK12: 60291
A13: Diarrhoea | B13: 4859 | C13: 236 | D13: 3951 | E13: 4829 | F13: 5589 | G13: 231 | H13: 1540 | I13: 41 | J13: 308 | K13: 131 | L13: 1700 | M13: 345 | N13: 401 | O13: 360 | P13: 89 | Q13: 140 | R13: 26 | S13: 1018 | T13: 2333 | U13: 200 | V13: 1138 | W13: 117 | X13: 153 | Y13: 491 | Z13: 5221 | AA13: 877 | AB13: 162 | AC13: 1319 | AD13: 6751 | AE13: 3778 | AF13: 132 | AG13: 121 | AH13: 1061 | AI13: 97 | AJ13: 57 | AK13: 49802
A14: Rash | B14: 1046 | C14: 75 | D14: 756 | E14: 4596 | F14: 2449 | G14: 443 | H14: 1367 | I14: 64 | J14: 220 | K14: 157 | L14: 1448 | M14: 668 | N14: 468 | O14: 388 | P14: 196 | Q14: 65 | R14: 38 | S14: 1561 | T14: 3296 | U14: 333 | V14: 2839 | W14: 132 | X14: 299 | Y14: 676 | Z14: 3783 | AA14: 925 | AB14: 574 | AC14: 1157 | AD14: 9154 | AE14: 5554 | AF14: 155 | AG14: 432 | AH14: 2419 | AI14: 47 | AJ14: 57 | AK14: 47837
A15: Erythema | B15: 485 | C15: 28 | D15: 454 | E15: 2964 | F15: 1847 | G15: 609 | H15: 724 | I15: 24 | J15: 147 | K15: 222 | L15: 811 | M15: 397 | N15: 253 | O15: 220 | P15: 172 | Q15: 25 | R15: 26 | S15: 1207 | T15: 3634 | U15: 333 | V15: 1543 | W15: 57 | X15: 390 | Y15: 685 | Z15: 2372 | AA15: 729 | AB15: 168 | AC15: 519 | AD15: 11790 | AE15: 10660 | AF15: 81 | AG15: 404 | AH15: 1645 | AI15: 18 | AJ15: 36 | AK15: 45679
A16: Pruritus | B16: 705 | C16: 39 | D16: 592 | E16: 3006 | F16: 1960 | G16: 394 | H16: 828 | I16: 37 | J16: 184 | K16: 163 | L16: 1178 | M16: 790 | N16: 327 | O16: 343 | P16: 155 | Q16: 36 | R16: 17 | S16: 1634 | T16: 3827 | U16: 284 | V16: 1631 | W16: 80 | X16: 192 | Y16: 578 | Z16: 2912 | AA16: 732 | AB16: 266 | AC16: 981 | AD16: 8731 | AE16: 6308 | AF16: 140 | AG16: 407 | AH16: 3053 | AI16: 43 | AJ16: 51 | AK16: 42604
A17: Peripheral swelling | B17: 298 | C17: 31 | D17: 379 | E17: 3623 | F17: 1341 | G17: 718 | H17: 813 | I17: 16 | J17: 192 | K17: 192 | L17: 861 | M17: 172 | N17: 176 | O17: 160 | P17: 64 | Q17: 29 | R17: 20 | S17: 1486 | T17: 1967 | U17: 317 | V17: 1752 | W17: 81 | X17: 222 | Y17: 840 | Z17: 2227 | AA17: 834 | AB17: 181 | AC17: 463 | AD17: 5644 | AE17: 12463 | AF17: 115 | AG17: 164 | AH17: 1591 | AI17: 44 | AJ17: 48 | AK17: 39524
A18: Feeling abnormal | B18: 611 | C18: 68 | D18: 959 | E18: 3725 | F18: 4341 | G18: 292 | H18: 1415 | I18: 99 | J18: 332 | K18: 133 | L18: 1719 | M18: 418 | N18: 407 | O18: 485 | P18: 139 | Q18: 58 | R18: 62 | S18: 1964 | T18: 1706 | U18: 251 | V18: 953 | W18: 127 | X18: 163 | Y18: 601 | Z18: 3085 | AA18: 973 | AB18: 239 | AC18: 779 | AD18: 5584 | AE18: 4291 | AF18: 165 | AG18: 150 | AH18: 1885 | AI18: 68 | AJ18: 91 | AK18: 38338
A19: Cough | B19: 1019 | C19: 69 | D19: 667 | E19: 2983 | F19: 4797 | G19: 166 | H19: 1208 | I19: 15 | J19: 203 | K19: 63 | L19: 2996 | M19: 620 | N19: 615 | O19: 395 | P19: 91 | Q19: 78 | R19: 33 | S19: 559 | T19: 1131 | U19: 119 | V19: 849 | W19: 197 | X19: 117 | Y19: 304 | Z19: 3798 | AA19: 553 | AB19: 66 | AC19: 4777 | AD19: 5799 | AE19: 2195 | AF19: 111 | AG19: 67 | AH19: 608 | AI19: 41 | AJ19: 35 | AK19: 37344
A20: Hyperhidrosis | B20: 1000 | C20: 74 | D20: 975 | E20: 3431 | F20: 4842 | G20: 330 | H20: 1204 | I20: 17 | J20: 267 | K20: 94 | L20: 2019 | M20: 397 | N20: 276 | O20: 361 | P20: 66 | Q20: 39 | R20: 34 | S20: 1346 | T20: 2136 | U20: 227 | V20: 940 | W20: 92 | X20: 135 | Y20: 567 | Z20: 3563 | AA20: 806 | AB20: 105 | AC20: 720 | AD20: 5726 | AE20: 3104 | AF20: 160 | AG20: 135 | AH20: 1714 | AI20: 62 | AJ20: 63 | AK20: 37027
A21: Mobility decreased | B21: 245 | C21: 28 | D21: 310 | E21: 3663 | F21: 2415 | G21: 282 | H21: 1160 | I21: 27 | J21: 201 | K21: 88 | L21: 590 | M21: 194 | N21: 133 | O21: 123 | P21: 72 | Q21: 186 | R21: 88 | S21: 1409 | T21: 2447 | U21: 187 | V21: 644 | W21: 79 | X21: 914 | Y21: 1048 | Z21: 2245 | AA21: 1083 | AB21: 255 | AC21: 281 | AD21: 5809 | AE21: 7012 | AF21: 113 | AG21: 102 | AH21: 1075 | AI21: 35 | AJ21: 115 | AK21: 34658
A22: Muscular weakness | B22: 471 | C22: 46 | D22: 339 | E22: 2713 | F22: 2765 | G22: 146 | H22: 1215 | I22: 79 | J22: 136 | K22: 62 | L22: 743 | M22: 455 | N22: 128 | O22: 218 | P22: 70 | Q22: 1288 | R22: 281 | S22: 3648 | T22: 1653 | U22: 95 | V22: 461 | W22: 63 | X22: 408 | Y22: 717 | Z22: 2687 | AA22: 798 | AB22: 426 | AC22: 281 | AD22: 3223 | AE22: 4151 | AF22: 111 | AG22: 54 | AH22: 3191 | AI22: 30 | AJ22: 83 | AK22: 33235
A23: Injection site warmth | B23: 129 | C23: 7 | D23: 178 | E23: 1373 | F23: 652 | G23: 403 | H23: 310 | I23: 0 | J23: 58 | K23: 59 | L23: 190 | M23: 55 | N23: 57 | O23: 48 | P23: 16 | Q23: 7 | R23: 6 | S23: 354 | T23: 17724 | U23: 252 | V23: 775 | W23: 22 | X23: 162 | Y23: 382 | Z23: 1339 | AA23: 424 | AB23: 60 | AC23: 199 | AD23: 3631 | AE23: 2632 | AF23: 44 | AG23: 61 | AH23: 486 | AI23: 11 | AJ23: 16 | AK23: 32122
A24: Swelling | B24: 246 | C24: 22 | D24: 234 | E24: 2186 | F24: 833 | G24: 1298 | H24: 578 | I24: 36 | J24: 115 | K24: 218 | L24: 643 | M24: 321 | N24: 228 | O24: 152 | P24: 102 | Q24: 18 | R24: 24 | S24: 950 | T24: 1880 | U24: 411 | V24: 2195 | W24: 82 | X24: 302 | Y24: 594 | Z24: 1688 | AA24: 1018 | AB24: 140 | AC24: 424 | AD24: 9192 | AE24: 3978 | AF24: 157 | AG24: 131 | AH24: 954 | AI24: 30 | AJ24: 53 | AK24: 31433
A25: Tremor | B25: 645 | C25: 38 | D25: 634 | E25: 2289 | F25: 3973 | G25: 142 | H25: 972 | I25: 28 | J25: 205 | K25: 57 | L25: 1279 | M25: 423 | N25: 214 | O25: 306 | P25: 73 | Q25: 93 | R25: 83 | S25: 1728 | T25: 1547 | U25: 118 | V25: 532 | W25: 76 | X25: 131 | Y25: 833 | Z25: 2711 | AA25: 793 | AB25: 193 | AC25: 511 | AD25: 4894 | AE25: 3012 | AF25: 146 | AG25: 113 | AH25: 2074 | AI25: 70 | AJ25: 72 | AK25: 31008
A26: Vaccination site pain | B26: 447 | C26: 46 | D26: 399 | E26: 4256 | F26: 1901 | G26: 576 | H26: 857 | I26: 44 | J26: 225 | K26: 161 | L26: 815 | M26: 122 | N26: 205 | O26: 208 | P26: 77 | Q26: 27 | R26: 31 | S26: 968 | T26: 135 | U26: 460 | V26: 1703 | W26: 98 | X26: 129 | Y26: 580 | Z26: 5320 | AA26: 899 | AB26: 165 | AC26: 629 | AD26: 3934 | AE26: 3792 | AF26: 101 | AG26: 96 | AH26: 1195 | AI26: 55 | AJ26: 67 | AK26: 30723
A27: Insomnia | B27: 574 | C27: 42 | D27: 638 | E27: 3343 | F27: 2115 | G27: 246 | H27: 1247 | I27: 25 | J27: 225 | K27: 89 | L27: 1065 | M27: 212 | N27: 271 | O27: 284 | P27: 83 | Q27: 50 | R27: 20 | S27: 1127 | T27: 2165 | U27: 155 | V27: 692 | W27: 98 | X27: 409 | Y27: 539 | Z27: 2879 | AA27: 936 | AB27: 294 | AC27: 473 | AD27: 4666 | AE27: 3811 | AF27: 126 | AG27: 106 | AH27: 1181 | AI27: 63 | AJ27: 79 | AK27: 30328
A28: Influenza like illness | B28: 451 | C28: 47 | D28: 530 | E28: 3143 | F28: 2526 | G28: 209 | H28: 832 | I28: 24 | J28: 219 | K28: 65 | L28: 858 | M28: 129 | N28: 243 | O28: 243 | P28: 58 | Q28: 77 | R28: 26 | S28: 672 | T28: 2017 | U28: 225 | V28: 954 | W28: 57 | X28: 206 | Y28: 488 | Z28: 3619 | AA28: 573 | AB28: 136 | AC28: 789 | AD28: 6117 | AE28: 3001 | AF28: 98 | AG28: 106 | AH28: 725 | AI28: 58 | AJ28: 45 | AK28: 29566
A29: Decreased appetite | B29: 1131 | C29: 113 | D29: 1161 | E29: 2932 | F29: 4860 | G29: 200 | H29: 1013 | I29: 7 | J29: 216 | K29: 90 | L29: 917 | M29: 213 | N29: 244 | O29: 277 | P29: 62 | Q29: 35 | R29: 25 | S29: 472 | T29: 1553 | U29: 151 | V29: 651 | W29: 91 | X29: 118 | Y29: 375 | Z29: 2868 | AA29: 563 | AB29: 84 | AC29: 700 | AD29: 4066 | AE29: 2258 | AF29: 95 | AG29: 90 | AH29: 509 | AI29: 58 | AJ29: 50 | AK29: 28248
A30: Palpitations | B30: 552 | C30: 56 | D30: 518 | E30: 1923 | F30: 2369 | G30: 160 | H30: 786 | I30: 30 | J30: 129 | K30: 117 | L30: 4142 | M30: 378 | N30: 212 | O30: 245 | P30: 81 | Q30: 29 | R30: 44 | S30: 1723 | T30: 829 | U30: 159 | V30: 697 | W30: 125 | X30: 99 | Y30: 354 | Z30: 1849 | AA30: 617 | AB30: 196 | AC30: 499 | AD30: 2814 | AE30: 2412 | AF30: 160 | AG30: 57 | AH30: 1930 | AI30: 65 | AJ30: 47 | AK30: 26403
A31: Gait disturbance | B31: 372 | C31: 34 | D31: 294 | E31: 3353 | F31: 3012 | G31: 61 | H31: 1411 | I31: 35 | J31: 198 | K31: 31 | L31: 626 | M31: 298 | N31: 126 | O31: 193 | P31: 62 | Q31: 665 | R31: 179 | S31: 1800 | T31: 805 | U31: 61 | V31: 281 | W31: 54 | X31: 220 | Y31: 550 | Z31: 1767 | AA31: 496 | AB31: 249 | AC31: 250 | AD31: 2930 | AE31: 3162 | AF31: 91 | AG31: 82 | AH31: 1528 | AI31: 35 | AJ31: 123 | AK31: 25434
A32: Muscle spasms | B32: 676 | C32: 70 | D32: 614 | E32: 2301 | F32: 1475 | G32: 128 | H32: 1374 | I32: 26 | J32: 157 | K32: 118 | L32: 938 | M32: 183 | N32: 184 | O32: 187 | P32: 68 | Q32: 101 | R32: 62 | S32: 1605 | T32: 1058 | U32: 101 | V32: 473 | W32: 87 | X32: 214 | Y32: 705 | Z32: 2367 | AA32: 812 | AB32: 307 | AC32: 270 | AD32: 3246 | AE32: 2808 | AF32: 99 | AG32: 63 | AH32: 1718 | AI32: 47 | AJ32: 83 | AK32: 24725
A33: Chest discomfort | B33: 452 | C33: 43 | D33: 445 | E33: 1795 | F33: 1842 | G33: 228 | H33: 994 | I33: 25 | J33: 130 | K33: 119 | L33: 5184 | M33: 596 | N33: 174 | O33: 186 | P33: 55 | Q33: 22 | R33: 17 | S33: 1228 | T33: 793 | U33: 112 | V33: 559 | W33: 147 | X33: 98 | Y33: 274 | Z33: 1421 | AA33: 557 | AB33: 89 | AC33: 690 | AD33: 2666 | AE33: 1852 | AF33: 177 | AG33: 48 | AH33: 1387 | AI33: 44 | AJ33: 43 | AK33: 24492
A34: Sleep disorder | B34: 452 | C34: 50 | D34: 397 | E34: 2477 | F34: 1426 | G34: 210 | H34: 812 | I34: 21 | J34: 140 | K34: 89 | L34: 818 | M34: 121 | N34: 165 | O34: 182 | P34: 74 | Q34: 28 | R34: 25 | S34: 848 | T34: 2064 | U34: 157 | V34: 480 | W34: 80 | X34: 268 | Y34: 474 | Z34: 1791 | AA34: 696 | AB34: 212 | AC34: 280 | AD34: 4368 | AE34: 3461 | AF34: 102 | AG34: 118 | AH34: 967 | AI34: 42 | AJ34: 54 | AK34: =SUM(B34:AJ34) -> 23949
A35: Urticaria | B35: 548 | C35: 21 | D35: 391 | E35: 1815 | F35: 1114 | G35: 162 | H35: 412 | I35: 20 | J35: 90 | K35: 50 | L35: 819 | M35: 586 | N35: 181 | O35: 126 | P35: 58 | Q35: 17 | R35: 16 | S35: 724 | T35: 2219 | U35: 134 | V35: 899 | W35: 33 | X35: 106 | Y35: 301 | Z35: 1553 | AA35: 387 | AB35: 97 | AC35: 635 | AD35: 3767 | AE35: 2558 | AF35: 77 | AG35: 133 | AH35: 1216 | AI35: 26 | AJ35: 21 | AK35: 21312
A36: Condition aggravated | B36: 619 | C36: 84 | D36: 396 | E36: 2490 | F36: 2084 | G36: 120 | H36: 974 | I36: 82 | J36: 133 | K36: 72 | L36: 1136 | M36: 248 | N36: 173 | O36: 183 | P36: 66 | Q36: 113 | R36: 61 | S36: 801 | T36: 740 | U36: 114 | V36: 540 | W36: 90 | X36: 129 | Y36: 330 | Z36: 1300 | AA36: 556 | AB36: 279 | AC36: 322 | AD36: 2569 | AE36: 1840 | AF36: 98 | AG36: 61 | AH36: 819 | AI36: 32 | AJ36: 73 | AK36: 19727
A37: Feeling hot | B37: 290 | C37: 29 | D37: 391 | E37: 1522 | F37: 1659 | G37: 189 | H37: 579 | I37: 12 | J37: 137 | K37: 74 | L37: 679 | M37: 268 | N37: 146 | O37: 182 | P37: 72 | Q37: 12 | R37: 15 | S37: 949 | T37: 1467 | U37: 102 | V37: 478 | W37: 45 | X37: 84 | Y37: 333 | Z37: 1334 | AA37: 463 | AB37: 71 | AC37: 286 | AD37: 3485 | AE37: 2253 | AF37: 66 | AG37: 78 | AH37: 1399 | AI37: 36 | AJ37: 37 | AK37: 19222
A38: Migraine | B38: 364 | C38: 51 | D38: 467 | E38: 1927 | F38: 1257 | G38: 156 | H38: 674 | I38: 47 | J38: 141 | K38: 68 | L38: 723 | M38: 104 | N38: 246 | O38: 372 | P38: 110 | Q38: 26 | R38: 47 | S38: 957 | T38: 876 | U38: 142 | V38: 671 | W38: 47 | X38: 67 | Y38: 386 | Z38: 1831 | AA38: 672 | AB38: 139 | AC38: 389 | AD38: 3133 | AE38: 1844 | AF38: 129 | AG38: 72 | AH38: 872 | AI38: 32 | AJ38: 51 | AK38: 19090
A39: Heart rate increased | B39: 348 | C39: 25 | D39: 446 | E39: 1454 | F39: 2375 | G39: 142 | H39: 595 | I39: 13 | J39: 105 | K39: 52 | L39: 2529 | M39: 358 | N39: 143 | O39: 146 | P39: 52 | Q39: 29 | R39: 26 | S39: 1032 | T39: 828 | U39: 114 | V39: 510 | W39: 70 | X39: 62 | Y39: 229 | Z39: 1398 | AA39: 364 | AB39: 85 | AC39: 367 | AD39: 2212 | AE39: 1558 | AF39: 114 | AG39: 45 | AH39: 1167 | AI39: 35 | AJ39: 41 | AK39: 19069
A40: Injection site pruritus | B40: 104 | C40: 6 | D40: 119 | E40: 841 | F40: 370 | G40: 309 | H40: 168 | I40: 7 | J40: 42 | K40: 40 | L40: 153 | M40: 111 | N40: 47 | O40: 34 | P40: 13 | Q40: 4 | R40: 1 | S40: 266 | T40: 10041 | U40: 196 | V40: 585 | W40: 13 | X40: 47 | Y40: 196 | Z40: 760 | AA40: 226 | AB40: 39 | AC40: 175 | AD40: 1751 | AE40: 1647 | AF40: 19 | AG40: 43 | AH40: 373 | AI40: 7 | AJ40: 4 | AK40: 18757
A41: Somnolence | B41: 450 | C41: 30 | D41: 403 | E41: 1535 | F41: 2575 | G41: 114 | H41: 536 | I41: 9 | J41: 106 | K41: 37 | L41: 438 | M41: 166 | N41: 136 | O41: 194 | P41: 30 | Q41: 34 | R41: 53 | S41: 523 | T41: 1096 | U41: 101 | V41: 509 | W41: 40 | X41: 88 | Y41: 443 | Z41: 1832 | AA41: 444 | AB41: 55 | AC41: 426 | AD41: 2748 | AE41: 2154 | AF41: 44 | AG41: 63 | AH41: 672 | AI41: 30 | AJ41: 28 | AK41: 18142
A42: Skin warm | B42: 98 | C42: 4 | D42: 148 | E42: 902 | F42: 562 | G42: 238 | H42: 235 | I42: 4 | J42: 43 | K42: 52 | L42: 230 | M42: 109 | N42: 71 | O42: 58 | P42: 22 | Q42: 6 | R42: 9 | S42: 431 | T42: 1692 | U42: 154 | V42: 516 | W42: 24 | X42: 171 | Y42: 316 | Z42: 756 | AA42: 363 | AB42: 49 | AC42: 186 | AD42: 4543 | AE42: 5032 | AF42: 30 | AG42: 259 | AH42: 633 | AI42: 6 | AJ42: 13 | AK42: 17965
A43: Syncope | B43: 736 | C43: 41 | D43: 484 | E43: 1186 | F43: 3037 | G43: 57 | H43: 399 | I43: 18 | J43: 73 | K43: 36 | L43: 1082 | M43: 146 | N43: 82 | O43: 98 | P43: 44 | Q43: 61 | R43: 54 | S43: 984 | T43: 935 | U43: 41 | V43: 330 | W43: 43 | X43: 88 | Y43: 496 | Z43: 1634 | AA43: 363 | AB43: 83 | AC43: 224 | AD43: 1750 | AE43: 1431 | AF43: 67 | AG43: 28 | AH43: 1259 | AI43: 19 | AJ43: 23 | AK43: 17432
A44: Burning sensation | B44: 214 | C44: 24 | D44: 224 | E44: 1468 | F44: 845 | G44: 180 | H44: 635 | I44: 27 | J44: 103 | K44: 98 | L44: 673 | M44: 129 | N44: 123 | O44: 145 | P44: 116 | Q44: 57 | R44: 17 | S44: 1364 | T44: 832 | U44: 93 | V44: 374 | W44: 62 | X44: 154 | Y44: 266 | Z44: 838 | AA44: 412 | AB44: 345 | AC44: 187 | AD44: 2459 | AE44: 2197 | AF44: 61 | AG44: 129 | AH44: 2029 | AI44: 17 | AJ44: 55 | AK44: 16952
A45: Lethargy | B45: 455 | C45: 13 | D45: 400 | E45: 1502 | F45: 1903 | G45: 130 | H45: 480 | I45: 24 | J45: 86 | K45: 50 | L45: 507 | M45: 152 | N45: 135 | O45: 142 | P45: 29 | Q45: 46 | R45: 40 | S45: 427 | T45: 1417 | U45: 104 | V45: 544 | W45: 32 | X45: 72 | Y45: 271 | Z45: 1650 | AA45: 382 | AB45: 43 | AC45: 443 | AD45: 2892 | AE45: 1582 | AF45: 48 | AG45: 73 | AH45: 413 | AI45: 24 | AJ45: 20 | AK45: 16531
A46: Rhinorrhoea | B46: 345 | C46: 20 | D46: 260 | E46: 1101 | F46: 1228 | G46: 61 | H46: 384 | I46: 16 | J46: 74 | K46: 23 | L46: 492 | M46: 134 | N46: 297 | O46: 198 | P46: 54 | Q46: 23 | R46: 11 | S46: 217 | T46: 614 | U46: 78 | V46: 409 | W46: 46 | X46: 52 | Y46: 198 | Z46: 1949 | AA46: 245 | AB46: 30 | AC46: 3131 | AD46: 2865 | AE46: 1240 | AF46: 46 | AG46: 32 | AH46: 250 | AI46: 19 | AJ46: 13 | AK46: 16155
A47: Injected limb mobility decreased | B47: 58 | C47: 4 | D47: 57 | E47: 901 | F47: 469 | G47: 139 | H47: 217 | I47: 2 | J47: 49 | K47: 29 | L47: 138 | M47: 25 | N47: 41 | O47: 25 | P47: 12 | Q47: 11 | R47: 17 | S47: 549 | T47: 4602 | U47: 64 | V47: 163 | W47: 24 | X47: 484 | Y47: 364 | Z47: 628 | AA47: 412 | AB47: 81 | AC47: 64 | AD47: 2338 | AE47: 3681 | AF47: 31 | AG47: 18 | AH47: 394 | AI47: 3 | AJ47: 19 | AK47: 16113
A48: Tenderness | B48: 136 | C48: 16 | D48: 124 | E48: 1059 | F48: 476 | G48: 537 | H48: 333 | I48: 9 | J48: 54 | K48: 100 | L48: 250 | M48: 71 | N48: 110 | O48: 79 | P48: 71 | Q48: 13 | R48: 9 | S48: 395 | T48: 1493 | U48: 202 | V48: 1176 | W48: 69 | X48: 242 | Y48: 319 | Z48: 972 | AA48: 453 | AB48: 81 | AC48: 178 | AD48: 3280 | AE48: 2854 | AF48: 66 | AG48: 84 | AH48: 476 | AI48: 9 | AJ48: 29 | AK48: 15825
A49: Oedema peripheral | B49: 187 | C49: 11 | D49: 110 | E49: 1425 | F49: 689 | G49: 657 | H49: 278 | I49: 4 | J49: 40 | K49: 85 | L49: 352 | M49: 73 | N49: 37 | O49: 46 | P49: 10 | Q49: 37 | R49: 17 | S49: 525 | T49: 1365 | U49: 122 | V49: 725 | W49: 22 | X49: 195 | Y49: 266 | Z49: 1058 | AA49: 282 | AB49: 50 | AC49: 116 | AD49: 2897 | AE49: 3260 | AF49: 19 | AG49: 31 | AH49: 706 | AI49: 8 | AJ49: 10 | AK49: 15715
A50: Vision blurred | B50: 323 | C50: 25 | D50: 340 | E50: 1194 | F50: 1335 | G50: 56 | H50: 479 | I50: 88 | J50: 106 | K50: 36 | L50: 758 | M50: 177 | N50: 196 | O50: 747 | P50: 88 | Q50: 53 | R50: 71 | S50: 1385 | T50: 495 | U50: 54 | V50: 319 | W50: 29 | X50: 75 | Y50: 325 | Z50: 1057 | AA50: 509 | AB50: 149 | AC50: 265 | AD50: 1629 | AE50: 1332 | AF50: 115 | AG50: 48 | AH50: 1392 | AI50: 38 | AJ50: 36 | AK50: 15324
A51: Body temperature increased | B51: 357 | C51: 33 | D51: 346 | E51: 1571 | F51: 1503 | G51: 143 | H51: 485 | I51: 9 | J51: 101 | K51: 32 | L51: 374 | M51: 81 | N51: 114 | O51: 129 | P51: 27 | Q51: 8 | R51: 11 | S51: 199 | T51: 1480 | U51: 76 | V51: 424 | W51: 22 | X51: 61 | Y51: 234 | Z51: 1562 | AA51: 293 | AB51: 32 | AC51: 446 | AD51: 3251 | AE51: 1526 | AF51: 44 | AG51: 66 | AH51: 233 | AI51: 16 | AJ51: 22 | AK51: 15311
A52: Loss of personal independence in daily activities | B52: 273 | C52: 27 | D52: 242 | E52: 1749 | F52: 1518 | G52: 75 | H52: 625 | I52: 24 | J52: 98 | K52: 39 | L52: 523 | M52: 118 | N52: 97 | O52: 114 | P52: 36 | Q52: 65 | R52: 37 | S52: 677 | T52: 1013 | U52: 58 | V52: 231 | W52: 58 | X52: 171 | Y52: 325 | Z52: 1140 | AA52: 431 | AB52: 170 | AC52: 182 | AD52: 2369 | AE52: 2004 | AF52: 43 | AG52: 40 | AH52: 573 | AI52: 16 | AJ52: 51 | AK52: 15212
A53: Feeling cold | B53: 249 | C53: 29 | D53: 333 | E53: 1458 | F53: 1678 | G53: 116 | H53: 546 | I53: 6 | J53: 166 | K53: 46 | L53: 455 | M53: 94 | N53: 124 | O53: 167 | P53: 31 | Q53: 23 | R53: 12 | S53: 699 | T53: 849 | U53: 76 | V53: 273 | W53: 38 | X53: 55 | Y53: 259 | Z53: 1334 | AA53: 328 | AB53: 81 | AC53: 268 | AD53: 2568 | AE53: 1624 | AF53: 75 | AG53: 72 | AH53: 745 | AI53: 29 | AJ53: 27 | AK53: 14933
A54: Tinnitus | B54: 252 | C54: 22 | D54: 218 | E54: 1271 | F54: 985 | G54: 64 | H54: 425 | I54: 55 | J54: 80 | K54: 39 | L54: 512 | M54: 129 | N54: 858 | O54: 246 | P54: 99 | Q54: 20 | R54: 28 | S54: 927 | T54: 586 | U54: 77 | V54: 417 | W54: 42 | X54: 80 | Y54: 312 | Z54: 1122 | AA54: 499 | AB54: 144 | AC54: 284 | AD54: 1662 | AE54: 1344 | AF54: 122 | AG54: 52 | AH54: 1109 | AI54: 29 | AJ54: 43 | AK54: 14154
A55: Tachycardia | B55: 489 | C55: 35 | D55: 200 | E55: 1020 | F55: 1832 | G55: 41 | H55: 328 | I55: 13 | J55: 56 | K55: 45 | L55: 1809 | M55: 259 | N55: 60 | O55: 81 | P55: 21 | Q55: 56 | R55: 35 | S55: 662 | T55: 445 | U55: 41 | V55: 392 | W55: 44 | X55: 44 | Y55: 138 | Z55: 1401 | AA55: 256 | AB55: 71 | AC55: 428 | AD55: 1471 | AE55: 815 | AF55: 46 | AG55: 19 | AH55: 1150 | AI55: 20 | AJ55: 17 | AK55: 13840
A56: Limb discomfort | B56: 117 | C56: 21 | D56: 168 | E56: 1173 | F56: 776 | G56: 194 | H56: 407 | I56: 18 | J56: 65 | K56: 58 | L56: 407 | M56: 76 | N56: 71 | O56: 92 | P56: 49 | Q56: 39 | R56: 33 | S56: 1205 | T56: 794 | U56: 91 | V56: 418 | W56: 32 | X56: 91 | Y56: 322 | Z56: 916 | AA56: 328 | AB56: 94 | AC56: 148 | AD56: 1628 | AE56: 2569 | AF56: 66 | AG56: 34 | AH56: 1201 | AI56: 19 | AJ56: 29 | AK56: 13749
A57: Impaired work ability | B57: 220 | C57: 31 | D57: 228 | E57: 1459 | F57: 1254 | G57: 98 | H57: 495 | I57: 39 | J57: 98 | K57: 30 | L57: 522 | M57: 88 | N57: 131 | O57: 135 | P57: 57 | Q57: 57 | R57: 36 | S57: 614 | T57: 811 | U57: 91 | V57: 331 | W57: 38 | X57: 100 | Y57: 201 | Z57: 1197 | AA57: 336 | AB57: 140 | AC57: 290 | AD57: 2339 | AE57: 1473 | AF57: 49 | AG57: 51 | AH57: 536 | AI57: 18 | AJ57: 48 | AK57: 13641
A58: Immediate post-injection reaction | B58: 171 | C58: 13 | D58: 201 | E58: 868 | F58: 729 | G58: 73 | H58: 301 | I58: 10 | J58: 36 | K58: 27 | L58: 408 | M58: 142 | N58: 65 | O58: 68 | P58: 36 | Q58: 24 | R58: 13 | S58: 931 | T58: 2489 | U58: 41 | V58: 191 | W58: 21 | X58: 255 | Y58: 278 | Z58: 563 | AA58: 339 | AB58: 95 | AC58: 136 | AD58: 1895 | AE58: 1931 | AF58: 60 | AG58: 27 | AH58: 954 | AI58: 14 | AJ58: 20 | AK58: 13425
A59: Discomfort | B59: 230 | C59: 16 | D59: 240 | E59: 1192 | F59: 831 | G59: 234 | H59: 494 | I59: 23 | J59: 77 | K59: 84 | L59: 566 | M59: 109 | N59: 99 | O59: 99 | P59: 61 | Q59: 14 | R59: 14 | S59: 567 | T59: 853 | U59: 141 | V59: 527 | W59: 63 | X59: 131 | Y59: 261 | Z59: 841 | AA59: 378 | AB59: 111 | AC59: 164 | AD59: 2215 | AE59: 1431 | AF59: 70 | AG59: 43 | AH59: 650 | AI59: 23 | AJ59: 34 | AK59: 12886
A60: Herpes zoster | B60: 189 | C60: 21 | D60: 121 | E60: 582 | F60: 313 | G60: 77 | H60: 740 | I60: 71 | J60: 31 | K60: 96 | L60: 314 | M60: 41 | N60: 254 | O60: 219 | P60: 201 | Q60: 13 | R60: 8 | S60: 341 | T60: 359 | U60: 57 | V60: 331 | W60: 100 | X60: 145 | Y60: 82 | Z60: 361 | AA60: 241 | AB60: 792 | AC60: 86 | AD60: 4326 | AE60: 958 | AF60: 56 | AG60: 230 | AH60: 592 | AI60: 14 | AJ60: 14 | AK60: 12376
A61: Injection site reaction | B61: 92 | C61: 2 | D61: 69 | E61: 816 | F61: 332 | G61: 119 | H61: 136 | I61: 3 | J61: 41 | K61: 23 | L61: 113 | M61: 31 | N61: 30 | O61: 25 | P61: 7 | Q61: 6 | R61: 7 | S61: 274 | T61: 4098 | U61: 95 | V61: 430 | W61: 7 | X61: 118 | Y61: 420 | Z61: 1188 | AA61: 188 | AB61: 107 | AC61: 91 | AD61: 1538 | AE61: 1064 | AF61: 18 | AG61: 35 | AH61: 461 | AI61: 6 | AJ61: 9 | AK61: 11999
A62: Vertigo | B62: 237 | C62: 21 | D62: 234 | E62: 935 | F62: 1330 | G62: 55 | H62: 333 | I62: 49 | J62: 63 | K62: 22 | L62: 495 | M62: 120 | N62: 304 | O62: 150 | P62: 69 | Q62: 31 | R62: 63 | S62: 724 | T62: 469 | U62: 60 | V62: 312 | W62: 24 | X62: 55 | Y62: 206 | Z62: 1026 | AA62: 400 | AB62: 102 | AC62: 194 | AD62: 1402 | AE62: 1113 | AF62: 58 | AG62: 40 | AH62: 961 | AI62: 25 | AJ62: 31 | AK62: 11713
A63: Joint swelling | B63: 130 | C63: 10 | D63: 78 | E63: 3645 | F63: 372 | G63: 60 | H63: 352 | I63: 7 | J63: 67 | K63: 33 | L63: 225 | M63: 61 | N63: 44 | O63: 49 | P63: 18 | Q63: 15 | R63: 4 | S63: 425 | T63: 388 | U63: 59 | V63: 340 | W63: 39 | X63: 179 | Y63: 352 | Z63: 673 | AA63: 278 | AB63: 70 | AC63: 125 | AD63: 1320 | AE63: 1591 | AF63: 53 | AG63: 34 | AH63: 404 | AI63: 13 | AJ63: 25 | AK63: 11538
A64: Injection site induration | B64: 51 | C64: 3 | D64: 60 | E64: 489 | F64: 220 | G64: 142 | H64: 125 | I64: 1 | J64: 18 | K64: 23 | L64: 57 | M64: 18 | N64: 25 | O64: 11 | P64: 5 | Q64: 0 | R64: 3 | S64: 147 | T64: 6407 | U64: 116 | V64: 326 | W64: 14 | X64: 51 | Y64: 127 | Z64: 438 | AA64: 151 | AB64: 24 | AC64: 61 | AD64: 1383 | AE64: 827 | AF64: 16 | AG64: 15 | AH64: 172 | AI64: 3 | AJ64: 7 | AK64: 11536
A65: Inflammation | B65: 237 | C65: 20 | D65: 141 | E65: 1406 | F65: 668 | G65: 106 | H65: 427 | I65: 22 | J65: 57 | K65: 46 | L65: 583 | M65: 87 | N65: 114 | O65: 82 | P65: 48 | Q65: 40 | R65: 26 | S65: 431 | T65: 496 | U65: 100 | V65: 410 | W65: 52 | X65: 143 | Y65: 262 | Z65: 722 | AA65: 310 | AB65: 132 | AC65: 184 | AD65: 1820 | AE65: 1485 | AF65: 59 | AG65: 37 | AH65: 423 | AI65: 12 | AJ65: 51 | AK65: 11239
A66: Injection site oedema | B66: 71 | C66: 1 | D66: 14 | E66: 362 | F66: 310 | G66: 12 | H66: 83 | I66: 0 | J66: 3 | K66: 8 | L66: 116 | M66: 26 | N66: 18 | O66: 10 | P66: 1 | Q66: 7 | R66: 2 | S66: 113 | T66: 6779 | U66: 26 | V66: 393 | W66: 4 | X66: 14 | Y66: 68 | Z66: 708 | AA66: 132 | AB66: 9 | AC66: 12 | AD66: 1540 | AE66: 119 | AF66: 4 | AG66: 2 | AH66: 258 | AI66: 0 | AJ66: 1 | AK66: =SUM(B66:AJ66) -> 11226
A67: Injection site rash | B67: 60 | C67: 3 | D67: 81 | E67: 620 | F67: 303 | G67: 210 | H67: 135 | I67: 2 | J67: 32 | K67: 24 | L67: 115 | M67: 36 | N67: 35 | O67: 24 | P67: 6 | Q67: 3 | R67: 6 | S67: 178 | T67: 4516 | U67: 134 | V67: 444 | W67: 11 | X67: 56 | Y67: 124 | Z67: 595 | AA67: 184 | AB67: 37 | AC67: 136 | AD67: 1454 | AE67: 1335 | AF67: 23 | AG67: 41 | AH67: 214 | AI67: 3 | AJ67: 3 | AK67: 11183
A68: Swelling face | B68: 167 | C68: 6 | D68: 161 | E68: 723 | F68: 575 | G68: 52 | H68: 223 | I68: 122 | J68: 44 | K68: 24 | L68: 366 | M68: 470 | N68: 219 | O68: 206 | P68: 419 | Q68: 8 | R68: 17 | S68: 980 | T68: 463 | U68: 80 | V68: 661 | W68: 24 | X68: 35 | Y68: 175 | Z68: 544 | AA68: 298 | AB68: 59 | AC68: 397 | AD68: 1300 | AE68: 911 | AF68: 249 | AG68: 70 | AH68: 919 | AI68: 24 | AJ68: 17 | AK68: 11008
A69: Anxiety | B69: 354 | C69: 28 | D69: 281 | E69: 939 | F69: 1235 | G69: 69 | H69: 469 | I69: 22 | J69: 83 | K69: 55 | L69: 996 | M69: 217 | N69: 99 | O69: 124 | P69: 38 | Q69: 33 | R69: 17 | S69: 708 | T69: 376 | U69: 46 | V69: 223 | W69: 50 | X69: 53 | Y69: 154 | Z69: 730 | AA69: 292 | AB69: 84 | AC69: 157 | AD69: 952 | AE69: 846 | AF69: 60 | AG69: 25 | AH69: 951 | AI69: 12 | AJ69: 21 | AK69: 10799
A70: Hypertension | B70: 263 | C70: 25 | D70: 192 | E70: 806 | F70: 1385 | G70: 43 | H70: 401 | I70: 39 | J70: 67 | K70: 27 | L70: 1394 | M70: 245 | N70: 86 | O70: 84 | P70: 29 | Q70: 125 | R70: 78 | S70: 727 | T70: 297 | U70: 35 | V70: 246 | W70: 25 | X70: 44 | Y70: 118 | Z70: 694 | AA70: 264 | AB70: 52 | AC70: 184 | AD70: 1025 | AE70: 734 | AF70: 59 | AG70: 12 | AH70: 857 | AI70: 22 | AJ70: 19 | AK70: 10703
A71: Abdominal discomfort | B71: 504 | C71: 63 | D71: 679 | E71: 997 | F71: 1013 | G71: 69 | H71: 440 | I71: 9 | J71: 79 | K71: 32 | L71: 355 | M71: 84 | N71: 86 | O71: 100 | P71: 21 | Q71: 12 | R71: 2 | S71: 272 | T71: 669 | U71: 44 | V71: 200 | W71: 38 | X71: 49 | Y71: 137 | Z71: 1025 | AA71: 235 | AB71: 49 | AC71: 247 | AD71: 1584 | AE71: 1131 | AF71: 34 | AG71: 39 | AH71: 279 | AI71: 22 | AJ71: 18 | AK71: 10617
A72: Loss of consciousness | B72: 373 | C72: 22 | D72: 341 | E72: 644 | F72: 1984 | G72: 27 | H72: 297 | I72: 12 | J72: 59 | K72: 17 | L72: 572 | M72: 97 | N72: 53 | O72: 83 | P72: 29 | Q72: 33 | R72: 59 | S72: 652 | T72: 538 | U72: 23 | V72: 140 | W72: 29 | X72: 35 | Y72: 503 | Z72: 656 | AA72: 233 | AB72: 58 | AC72: 110 | AD72: 1088 | AE72: 931 | AF72: 35 | AG72: 18 | AH72: 669 | AI72: 14 | AJ72: 25 | AK72: 10459
A73: Rash erythematous | B73: 121 | C73: 13 | D73: 116 | E73: 735 | F73: 355 | G73: 157 | H73: 214 | I73: 6 | J73: 41 | K73: 34 | L73: 162 | M73: 104 | N73: 63 | O73: 54 | P73: 36 | Q73: 6 | R73: 6 | S73: 258 | T73: 1609 | U73: 118 | V73: 515 | W73: 22 | X73: 68 | Y73: 165 | Z73: 646 | AA73: 189 | AB73: 69 | AC73: 223 | AD73: 2033 | AE73: 1653 | AF73: 32 | AG73: 135 | AH73: 454 | AI73: 6 | AJ73: 14 | AK73: 10432
A74: Nasal congestion | B74: 158 | C74: 14 | D74: 168 | E74: 675 | F74: 630 | G74: 46 | H74: 260 | I74: 6 | J74: 53 | K74: 16 | L74: 335 | M74: 118 | N74: 240 | O74: 129 | P74: 58 | Q74: 9 | R74: 6 | S74: 182 | T74: 507 | U74: 53 | V74: 303 | W74: 26 | X74: 32 | Y74: 128 | Z74: 1190 | AA74: 167 | AB74: 19 | AC74: 1704 | AD74: 1788 | AE74: 716 | AF74: 46 | AG74: 26 | AH74: 192 | AI74: 14 | AJ74: 5 | AK74: 10019
A75: Joint range of motion decreased | B75: 35 | C75: 7 | D75: 22 | E75: 1359 | F75: 350 | G75: 77 | H75: 185 | I75: 2 | J75: 33 | K75: 24 | L75: 72 | M75: 18 | N75: 14 | O75: 20 | P75: 6 | Q75: 17 | R75: 7 | S75: 338 | T75: 1291 | U75: 44 | V75: 158 | W75: 17 | X75: 515 | Y75: 381 | Z75: 492 | AA75: 342 | AB75: 63 | AC75: 43 | AD75: 1758 | AE75: 1910 | AF75: 19 | AG75: 12 | AH75: 256 | AI75: 2 | AJ75: 12 | AK75: 9901
A76: Visual impairment | B76: 249 | C76: 30 | D76: 205 | E76: 689 | F76: 977 | G76: 24 | H76: 288 | I76: 46 | J76: 55 | K76: 19 | L76: 394 | M76: 148 | N76: 96 | O76: 371 | P76: 59 | Q76: 39 | R76: 59 | S76: 806 | T76: 279 | U76: 30 | V76: 175 | W76: 37 | X76: 58 | Y76: 181 | Z76: 639 | AA76: 303 | AB76: 81 | AC76: 120 | AD76: 950 | AE76: 779 | AF76: 62 | AG76: 51 | AH76: 854 | AI76: 20 | AJ76: 32 | AK76: 9205
A77: Heart rate | B77: 296 | C77: 21 | D77: 249 | E77: 735 | F77: 1292 | G77: 65 | H77: 254 | I77: 18 | J77: 60 | K77: 34 | L77: 1402 | M77: 179 | N77: 66 | O77: 78 | P77: 23 | Q77: 38 | R77: 45 | S77: 574 | T77: 63 | U77: 43 | V77: 231 | W77: 31 | X77: 20 | Y77: 103 | Z77: 722 | AA77: 153 | AB77: 42 | AC77: 171 | AD77: 637 | AE77: 688 | AF77: 40 | AG77: 19 | AH77: 489 | AI77: 17 | AJ77: 23 | AK77: 8921
A78: Hypokinesia | B78: 98 | C78: 7 | D78: 46 | E78: 894 | F78: 692 | G78: 27 | H78: 275 | I78: 4 | J78: 39 | K78: 14 | L78: 187 | M78: 64 | N78: 39 | O78: 22 | P78: 6 | Q78: 198 | R78: 33 | S78: 311 | T78: 1017 | U78: 14 | V78: 146 | W78: 7 | X78: 62 | Y78: 180 | Z78: 944 | AA78: 272 | AB78: 48 | AC78: 26 | AD78: 1972 | AE78: 567 | AF78: 15 | AG78: 10 | AH78: 525 | AI78: 6 | AJ78: 7 | AK78: 8774
A79: Pallor | B79: 513 | C79: 15 | D79: 324 | E79: 286 | F79: 2133 | G79: 15 | H79: 177 | I79: 0 | J79: 28 | K79: 3 | L79: 398 | M79: 161 | N79: 32 | O79: 38 | P79: 17 | Q79: 10 | R79: 20 | S79: 485 | T79: 552 | U79: 15 | V79: 130 | W79: 9 | X79: 33 | Y79: 534 | Z79: 367 | AA79: 145 | AB79: 18 | AC79: 176 | AD79: 801 | AE79: 564 | AF79: 26 | AG79: 12 | AH79: 633 | AI79: 6 | AJ79: 7 | AK79: 8683
A80: Confusional state | B80: 262 | C80: 24 | D80: 205 | E80: 771 | F80: 1872 | G80: 42 | H80: 336 | I80: 21 | J80: 68 | K80: 21 | L80: 485 | M80: 174 | N80: 69 | O80: 93 | P80: 20 | Q80: 28 | R80: 60 | S80: 415 | T80: 301 | U80: 32 | V80: 160 | W80: 20 | X80: 38 | Y80: 182 | Z80: 689 | AA80: 217 | AB80: 44 | AC80: 112 | AD80: 844 | AE80: 541 | AF80: 28 | AG80: 25 | AH80: 420 | AI80: 28 | AJ80: 23 | AK80: 8670
A81: Injection site hypersensitivity | B81: 72 | C81: 0 | D81: 9 | E81: 308 | F81: 337 | G81: 4 | H81: 67 | I81: 0 | J81: 4 | K81: 7 | L81: 101 | M81: 29 | N81: 14 | O81: 10 | P81: 0 | Q81: 3 | R81: 1 | S81: 48 | T81: 4994 | U81: 5 | V81: 335 | W81: 0 | X81: 3 | Y81: 21 | Z81: 880 | AA81: 115 | AB81: 4 | AC81: 2 | AD81: 1012 | AE81: 29 | AF81: 1 | AG81: 1 | AH81: 229 | AI81: 0 | AJ81: 0 | AK81: 8645
A82: Injection site mass | B82: 50 | C82: 0 | D82: 34 | E82: 396 | F82: 254 | G82: 80 | H82: 87 | I82: 1 | J82: 18 | K82: 15 | L82: 73 | M82: 21 | N82: 17 | O82: 13 | P82: 6 | Q82: 1 | R82: 5 | S82: 127 | T82: 4321 | U82: 36 | V82: 254 | W82: 10 | X82: 44 | Y82: 79 | Z82: 524 | AA82: 120 | AB82: 16 | AC82: 45 | AD82: 1133 | AE82: 608 | AF82: 6 | AG82: 15 | AH82: 203 | AI82: 0 | AJ82: 2 | AK82: 8614
A83: Paraesthesia oral | B83: 89 | C83: 7 | D83: 93 | E83: 294 | F83: 375 | G83: 24 | H83: 122 | I83: 77 | J83: 21 | K83: 11 | L83: 278 | M83: 468 | N83: 87 | O83: 65 | P83: 52 | Q83: 60 | R83: 17 | S83: 1243 | T83: 277 | U83: 41 | V83: 180 | W83: 13 | X83: 21 | Y83: 105 | Z83: 340 | AA83: 173 | AB83: 45 | AC83: 202 | AD83: 549 | AE83: 624 | AF83: 84 | AG83: 24 | AH83: 2501 | AI83: 11 | AJ83: 9 | AK83: 8582
A84: Flushing | B84: 243 | C84: 14 | D84: 164 | E84: 540 | F84: 997 | G84: 48 | H84: 232 | I84: 13 | J84: 35 | K84: 12 | L84: 497 | M84: 408 | N84: 68 | O84: 69 | P84: 33 | Q84: 7 | R84: 4 | S84: 566 | T84: 584 | U84: 46 | V84: 184 | W84: 8 | X84: 28 | Y84: 126 | Z84: 434 | AA84: 162 | AB84: 29 | AC84: 162 | AD84: 879 | AE84: 617 | AF84: 42 | AG84: 25 | AH84: 1023 | AI84: 12 | AJ84: 13 | AK84: 8324
A85: Hypersensitivity | B85: 245 | C85: 8 | D85: 167 | E85: 687 | F85: 624 | G85: 32 | H85: 232 | I85: 17 | J85: 52 | K85: 21 | L85: 395 | M85: 363 | N85: 91 | O85: 103 | P85: 40 | Q85: 31 | R85: 6 | S85: 473 | T85: 657 | U85: 35 | V85: 257 | W85: 13 | X85: 42 | Y85: 123 | Z85: 576 | AA85: 166 | AB85: 67 | AC85: 242 | AD85: 1110 | AE85: 748 | AF85: 27 | AG85: 44 | AH85: 581 | AI85: 14 | AJ85: 10 | AK85: 8299
A86: Photophobia | B86: 257 | C86: 20 | D86: 152 | E86: 739 | F86: 637 | G86: 34 | H86: 317 | I86: 17 | J86: 51 | K86: 17 | L86: 253 | M86: 68 | N86: 130 | O86: 531 | P86: 62 | Q86: 15 | R86: 26 | S86: 395 | T86: 311 | U86: 46 | V86: 192 | W86: 20 | X86: 52 | Y86: 291 | Z86: 736 | AA86: 360 | AB86: 92 | AC86: 186 | AD86: 1110 | AE86: 608 | AF86: 57 | AG86: 54 | AH86: 390 | AI86: 12 | AJ86: 18 | AK86: 8256
A87: Balance disorder | B87: 134 | C87: 15 | D87: 164 | E87: 759 | F87: 1411 | G87: 27 | H87: 365 | I87: 31 | J87: 44 | K87: 15 | L87: 266 | M87: 119 | N87: 141 | O87: 126 | P87: 40 | Q87: 142 | R87: 67 | S87: 657 | T87: 218 | U87: 23 | V87: 127 | W87: 18 | X87: 55 | Y87: 180 | Z87: 521 | AA87: 225 | AB87: 69 | AC87: 98 | AD87: 755 | AE87: 687 | AF87: 34 | AG87: 32 | AH87: 604 | AI87: 13 | AJ87: 22 | AK87: 8204
A88: Disturbance in attention | B88: 299 | C88: 24 | D88: 220 | E88: 1067 | F88: 1029 | G88: 46 | H88: 393 | I88: 4 | J88: 75 | K88: 16 | L88: 343 | M88: 91 | N88: 104 | O88: 117 | P88: 33 | Q88: 13 | R88: 21 | S88: 431 | T88: 220 | U88: 44 | V88: 176 | W88: 22 | X88: 64 | Y88: 145 | Z88: 806 | AA88: 245 | AB88: 63 | AC88: 150 | AD88: 775 | AE88: 576 | AF88: 60 | AG88: 24 | AH88: 438 | AI88: 20 | AJ88: 25 | AK88: 8179
A89: Hypoaesthesia oral | B89: 53 | C89: 6 | D89: 80 | E89: 271 | F89: 310 | G89: 24 | H89: 149 | I89: 231 | J89: 14 | K89: 11 | L89: 227 | M89: 361 | N89: 127 | O89: 79 | P89: 81 | Q89: 78 | R89: 31 | S89: 2681 | T89: 211 | U89: 33 | V89: 115 | W89: 14 | X89: 20 | Y89: 77 | Z89: 221 | AA89: 176 | AB89: 38 | AC89: 132 | AD89: 429 | AE89: 477 | AF89: 92 | AG89: 17 | AH89: 1246 | AI89: 5 | AJ89: 14 | AK89: 8131
A90: Fall | B90: 183 | C90: 12 | D90: 130 | E90: 634 | F90: 2052 | G90: 12 | H90: 369 | I90: 13 | J90: 43 | K90: 10 | L90: 272 | M90: 120 | N90: 50 | O90: 57 | P90: 32 | Q90: 232 | R90: 101 | S90: 494 | T90: 217 | U90: 10 | V90: 58 | W90: 42 | X90: 54 | Y90: 234 | Z90: 343 | AA90: 190 | AB90: 37 | AC90: 81 | AD90: 691 | AE90: 679 | AF90: 20 | AG90: 10 | AH90: 388 | AI90: 6 | AJ90: 19 | AK90: 7895
A91: Influenza | B91: 217 | C91: 7 | D91: 138 | E91: 808 | F91: 918 | G91: 47 | H91: 254 | I91: 10 | J91: 50 | K91: 22 | L91: 290 | M91: 49 | N91: 82 | O91: 80 | P91: 15 | Q91: 58 | R91: 7 | S91: 154 | T91: 329 | U91: 32 | V91: 264 | W91: 22 | X91: 26 | Y91: 92 | Z91: 1219 | AA91: 151 | AB91: 36 | AC91: 338 | AD91: 1285 | AE91: 589 | AF91: 21 | AG91: 27 | AH91: 238 | AI91: 8 | AJ91: 10 | AK91: 7893
A92: Nasopharyngitis | B92: 107 | C92: 13 | D92: 139 | E92: 603 | F92: 707 | G92: 56 | H92: 215 | I92: 18 | J92: 59 | K92: 14 | L92: 273 | M92: 61 | N92: 136 | O92: 71 | P92: 24 | Q92: 36 | R92: 10 | S92: 261 | T92: 312 | U92: 50 | V92: 250 | W92: 33 | X92: 40 | Y92: 128 | Z92: 738 | AA92: 182 | AB92: 42 | AC92: 809 | AD92: 1197 | AE92: 878 | AF92: 25 | AG92: 15 | AH92: 220 | AI92: 17 | AJ92: 13 | AK92: 7752
A93: Throat tightness | B93: 166 | C93: 7 | D93: 122 | E93: 324 | F93: 441 | G93: 24 | H93: 136 | I93: 11 | J93: 27 | K93: 16 | L93: 557 | M93: 1368 | N93: 66 | O93: 59 | P93: 36 | Q93: 7 | R93: 7 | S93: 591 | T93: 307 | U93: 35 | V93: 211 | W93: 17 | X93: 22 | Y93: 83 | Z93: 323 | AA93: 178 | AB93: 41 | AC93: 478 | AD93: 609 | AE93: 491 | AF93: 45 | AG93: 21 | AH93: 857 | AI93: 8 | AJ93: 6 | AK93: 7697
A94: Contusion | B94: 123 | C94: 12 | D94: 108 | E94: 668 | F94: 388 | G94: 146 | H94: 218 | I94: 12 | J94: 46 | K94: 51 | L94: 230 | M94: 44 | N94: 59 | O94: 57 | P94: 24 | Q94: 10 | R94: 8 | S94: 317 | T94: 553 | U94: 61 | V94: 294 | W94: 35 | X94: 80 | Y94: 124 | Z94: 464 | AA94: 157 | AB94: 46 | AC94: 75 | AD94: 1334 | AE94: 1468 | AF94: 26 | AG94: 44 | AH94: 302 | AI94: 14 | AJ94: 13 | AK94: 7611
A95: Vaccination site swelling | B95: 82 | C95: 11 | D95: 66 | E95: 991 | F95: 353 | G95: 196 | H95: 149 | I95: 10 | J95: 47 | K95: 41 | L95: 142 | M95: 30 | N95: 42 | O95: 49 | P95: 16 | Q95: 5 | R95: 2 | S95: 216 | T95: 138 | U95: 137 | V95: 611 | W95: 18 | X95: 22 | Y95: 129 | Z95: 1258 | AA95: 165 | AB95: 35 | AC95: 116 | AD95: 937 | AE95: 1213 | AF95: 17 | AG95: 20 | AH95: 252 | AI95: 9 | AJ95: 9 | AK95: 7534
A96: Illness | B96: 135 | C96: 9 | D96: 326 | E96: 690 | F96: 944 | G96: 60 | H96: 255 | I96: 24 | J96: 75 | K96: 32 | L96: 306 | M96: 57 | N96: 89 | O96: 76 | P96: 22 | Q96: 12 | R96: 8 | S96: 195 | T96: 105 | U96: 45 | V96: 252 | W96: 30 | X96: 9 | Y96: 76 | Z96: 818 | AA96: 161 | AB96: 36 | AC96: 277 | AD96: 1210 | AE96: 858 | AF96: 18 | AG96: 24 | AH96: 164 | AI96: 23 | AJ96: 9 | AK96: 7430
A97: Blood pressure increased | B97: 213 | C97: 11 | D97: 144 | E97: 607 | F97: 941 | G97: 51 | H97: 300 | I97: 27 | J97: 27 | K97: 30 | L97: 870 | M97: 178 | N97: 53 | O97: 91 | P97: 21 | Q97: 17 | R97: 17 | S97: 542 | T97: 246 | U97: 29 | V97: 164 | W97: 23 | X97: 40 | Y97: 92 | Z97: 349 | AA97: 202 | AB97: 36 | AC97: 116 | AD97: 667 | AE97: 574 | AF97: 40 | AG97: 12 | AH97: 572 | AI97: 19 | AJ97: 21 | AK97: 7342
A98: Night sweats | B98: 142 | C98: 18 | D98: 151 | E98: 752 | F98: 529 | G98: 65 | H98: 256 | I98: 4 | J98: 66 | K98: 23 | L98: 242 | M98: 42 | N98: 66 | O98: 82 | P98: 23 | Q98: 6 | R98: 4 | S98: 180 | T98: 447 | U98: 73 | V98: 346 | W98: 26 | X98: 44 | Y98: 137 | Z98: 917 | AA98: 197 | AB98: 33 | AC98: 182 | AD98: 1221 | AE98: 702 | AF98: 42 | AG98: 30 | AH98: 197 | AI98: 17 | AJ98: 14 | AK98: =SUM(B98:AJ98) -> 7276
A99: Hot flush | B99: 179 | C99: 17 | D99: 217 | E99: 758 | F99: 615 | G99: 60 | H99: 291 | I99: 4 | J99: 54 | K99: 40 | L99: 286 | M99: 79 | N99: 73 | O99: 87 | P99: 28 | Q99: 1 | R99: 6 | S99: 336 | T99: 375 | U99: 38 | V99: 213 | W99: 11 | X99: 30 | Y99: 100 | Z99: 650 | AA99: 191 | AB99: 39 | AC99: 150 | AD99: 940 | AE99: 758 | AF99: 46 | AG99: 27 | AH99: 454 | AI99: 18 | AJ99: 14 | AK99: 7185
A100: Weight decreased | B100: 453 | C100: 35 | D100: 317 | E100: 617 | F100: 1118 | G100: 16 | H100: 279 | I100: 10 | J100: 47 | K100: 20 | L100: 282 | M100: 170 | N100: 62 | O100: 56 | P100: 21 | Q100: 66 | R100: 21 | S100: 295 | T100: 133 | U100: 20 | V100: 205 | W100: 29 | X100: 56 | Y100: 143 | Z100: 548 | AA100: 162 | AB100: 49 | AC100: 132 | AD100: 744 | AE100: 524 | AF100: 30 | AG100: 14 | AH100: 333 | AI100: 22 | AJ100: 21 | AK100: 7050
A101: Dysstasia | B101: 127 | C101: 25 | D101: 132 | E101: 795 | F101: 1272 | G101: 25 | H101: 458 | I101: 6 | J101: 61 | K101: 18 | L101: 195 | M101: 80 | N101: 33 | O101: 56 | P101: 5 | Q101: 133 | R101: 35 | S101: 376 | T101: 200 | U101: 18 | V101: 77 | W101: 18 | X101: 54 | Y101: 144 | Z101: 487 | AA101: 138 | AB101: 57 | AC101: 45 | AD101: 826 | AE101: 753 | AF101: 21 | AG101: 18 | AH101: 296 | AI101: 11 | AJ101: 36 | AK101: 7031
A102: Respiratory tract congestion | B102: 112 | C102: 13 | D102: 101 | E102: 341 | F102: 468 | G102: 18 | H102: 149 | I102: 2 | J102: 33 | K102: 16 | L102: 267 | M102: 62 | N102: 137 | O102: 57 | P102: 29 | Q102: 7 | R102: 8 | S102: 89 | T102: 315 | U102: 31 | V102: 138 | W102: 28 | X102: 18 | Y102: 75 | Z102: 703 | AA102: 121 | AB102: 20 | AC102: 1449 | AD102: 1617 | AE102: 444 | AF102: 27 | AG102: 16 | AH102: 82 | AI102: 5 | AJ102: 4 | AK102: 7002
A103: Arthritis | B103: 81 | C103: 8 | D103: 60 | E103: 2053 | F103: 359 | G103: 13 | H103: 306 | I103: 4 | J103: 72 | K103: 9 | L103: 131 | M103: 22 | N103: 38 | O103: 29 | P103: 7 | Q103: 21 | R103: 3 | S103: 220 | T103: 229 | U103: 17 | V103: 148 | W103: 14 | X103: 88 | Y103: 200 | Z103: 556 | AA103: 201 | AB103: 64 | AC103: 36 | AD103: 1013 | AE103: 651 | AF103: 26 | AG103: 8 | AH103: 234 | AI103: 9 | AJ103: 33 | AK103: 6963
A104: Oedema | B104: 165 | C104: 4 | D104: 30 | E104: 681 | F104: 504 | G104: 40 | H104: 86 | I104: 4 | J104: 22 | K104: 15 | L104: 183 | M104: 56 | N104: 32 | O104: 24 | P104: 6 | Q104: 17 | R104: 11 | S104: 128 | T104: 482 | U104: 24 | V104: 353 | W104: 2 | X104: 36 | Y104: 63 | Z104: 734 | AA104: 117 | AB104: 13 | AC104: 99 | AD104: 2237 | AE104: 289 | AF104: 9 | AG104: 8 | AH104: 304 | AI104: 2 | AJ104: 7 | AK104: 6787
A105: Joint stiffness | B105: 63 | C105: 3 | D105: 57 | E105: 1616 | F105: 280 | G105: 19 | H105: 225 | I105: 3 | J105: 39 | K105: 13 | L105: 111 | M105: 35 | N105: 45 | O105: 44 | P105: 15 | Q105: 13 | R105: 4 | S105: 280 | T105: 303 | U105: 32 | V105: 137 | W105: 16 | X105: 82 | Y105: 709 | Z105: 540 | AA105: 192 | AB105: 37 | AC105: 64 | AD105: 721 | AE105: 623 | AF105: 73 | AG105: 17 | AH105: 283 | AI105: 7 | AJ105: 18 | AK105: 6719
A106: Muscle twitching | B106: 139 | C106: 8 | D106: 84 | E106: 471 | F106: 476 | G106: 22 | H106: 221 | I106: 57 | J106: 34 | K106: 16 | L106: 242 | M106: 86 | N106: 61 | O106: 92 | P106: 37 | Q106: 27 | R106: 33 | S106: 753 | T106: 276 | U106: 31 | V106: 151 | W106: 21 | X106: 38 | Y106: 225 | Z106: 479 | AA106: 203 | AB106: 117 | AC106: 68 | AD106: 695 | AE106: 611 | AF106: 30 | AG106: 28 | AH106: 850 | AI106: 9 | AJ106: 19 | AK106: 6710
A107: Urine analysis | B107: 406 | C107: 86 | D107: 255 | E107: 510 | F107: 671 | G107: 24 | H107: 402 | I107: 36 | J107: 29 | K107: 21 | L107: 406 | M107: 78 | N107: 36 | O107: 50 | P107: 13 | Q107: 37 | R107: 26 | S107: 342 | T107: 158 | U107: 21 | V107: 162 | W107: 32 | X107: 36 | Y107: 116 | Z107: 438 | AA107: 151 | AB107: 51 | AC107: 121 | AD107: 908 | AE107: 563 | AF107: 25 | AG107: 13 | AH107: 324 | AI107: 61 | AJ107: 14 | AK107: 6622
A108: Vasodilatation | B108: 100 | C108: 4 | D108: 7 | E108: 302 | F108: 388 | G108: 4 | H108: 63 | I108: 0 | J108: 11 | K108: 8 | L108: 172 | M108: 27 | N108: 24 | O108: 23 | P108: 0 | Q108: 4 | R108: 0 | S108: 54 | T108: 2027 | U108: 2 | V108: 247 | W108: 2 | X108: 2 | Y108: 12 | Z108: 964 | AA108: 120 | AB108: 8 | AC108: 8 | AD108: 1536 | AE108: 86 | AF108: 1 | AG108: 1 | AH108: 307 | AI108: 3 | AJ108: 0 | AK108: 6517
A109: Throat irritation | B109: 104 | C109: 8 | D109: 130 | E109: 353 | F109: 338 | G109: 31 | H109: 131 | I109: 8 | J109: 27 | K109: 16 | L109: 370 | M109: 569 | N109: 99 | O109: 68 | P109: 32 | Q109: 7 | R109: 0 | S109: 306 | T109: 316 | U109: 34 | V109: 188 | W109: 22 | X109: 24 | Y109: 66 | Z109: 368 | AA109: 127 | AB109: 14 | AC109: 763 | AD109: 828 | AE109: 535 | AF109: 39 | AG109: 18 | AH109: 489 | AI109: 5 | AJ109: 8 | AK109: 6441
A110: Peripheral coldness | B110: 144 | C110: 16 | D110: 123 | E110: 502 | F110: 454 | G110: 39 | H110: 225 | I110: 8 | J110: 33 | K110: 13 | L110: 258 | M110: 63 | N110: 48 | O110: 68 | P110: 21 | Q110: 21 | R110: 10 | S110: 820 | T110: 230 | U110: 28 | V110: 96 | W110: 22 | X110: 38 | Y110: 146 | Z110: 414 | AA110: 149 | AB110: 50 | AC110: 96 | AD110: 605 | AE110: 768 | AF110: 30 | AG110: 27 | AH110: 825 | AI110: 13 | AJ110: 15 | AK110: 6418
A111: Vaccination site erythema | B111: 68 | C111: 10 | D111: 64 | E111: 790 | F111: 326 | G111: 169 | H111: 125 | I111: 7 | J111: 39 | K111: 30 | L111: 107 | M111: 29 | N111: 44 | O111: 35 | P111: 14 | Q111: 4 | R111: 0 | S111: 156 | T111: 68 | U111: 101 | V111: 475 | W111: 15 | X111: 9 | Y111: 94 | Z111: 1094 | AA111: 118 | AB111: 28 | AC111: 116 | AD111: 720 | AE111: 1288 | AF111: 20 | AG111: 25 | AH111: 209 | AI111: 8 | AJ111: 5 | AK111: 6410
A112: Sensitive skin | B112: 190 | C112: 3 | D112: 48 | E112: 805 | F112: 751 | G112: 37 | H112: 119 | I112: 9 | J112: 18 | K112: 12 | L112: 124 | M112: 15 | N112: 42 | O112: 77 | P112: 14 | Q112: 11 | R112: 11 | S112: 107 | T112: 211 | U112: 30 | V112: 145 | W112: 10 | X112: 8 | Y112: 39 | Z112: 850 | AA112: 82 | AB112: 48 | AC112: 301 | AD112: 1488 | AE112: 374 | AF112: 15 | AG112: 135 | AH112: 209 | AI112: 8 | AJ112: 8 | AK112: 6354
A113: Cold sweat | B113: 207 | C113: 23 | D113: 265 | E113: 580 | F113: 863 | G113: 35 | H113: 252 | I113: 3 | J113: 48 | K113: 16 | L113: 444 | M113: 63 | N113: 42 | O113: 48 | P113: 14 | Q113: 4 | R113: 3 | S113: 279 | T113: 305 | U113: 25 | V113: 101 | W113: 29 | X113: 22 | Y113: 129 | Z113: 480 | AA113: 141 | AB113: 22 | AC113: 108 | AD113: 857 | AE113: 522 | AF113: 24 | AG113: 15 | AH113: 331 | AI113: 22 | AJ113: 13 | AK113: 6335
A114: Rash pruritic | B114: 99 | C114: 12 | D114: 95 | E114: 509 | F114: 250 | G114: 84 | H114: 133 | I114: 6 | J114: 28 | K114: 21 | L114: 134 | M114: 64 | N114: 42 | O114: 55 | P114: 15 | Q114: 3 | R114: 1 | S114: 146 | T114: 685 | U114: 79 | V114: 322 | W114: 8 | X114: 31 | Y114: 93 | Z114: 437 | AA114: 121 | AB114: 44 | AC114: 158 | AD114: 1256 | AE114: 947 | AF114: 24 | AG114: 76 | AH114: 276 | AI114: 7 | AJ114: 7 | AK114: 6268

Sheet Table_S2
A1: Order | B1: Adverse event | C1: Abdominal pain | D1: Abdominal pain lower | E1: Abdominal pain upper | F1: Arthralgia | G1: Asthenia | H1: Axillary pain | I1: Back pain | J1: Bell's palsy | K1: Bone pain | L1: Breast pain | M1: Chest pain | N1: Dysphagia | O1: Ear pain | P1: Eye pain | Q1: Facial pain | R1: Guillain-Barre syndrome | S1: Hemiparesis | T1: Hypoaesthesia | U1: Injection site pain | V1: Lymph node pain | W1: Lymphadenopathy | X1: Musculoskeletal chest pain | Y1: Musculoskeletal pain | Z1: Musculoskeletal stiffness | AA1: Myalgia | AB1: Neck pain | AC1: Neuralgia | AD1: Oropharyngeal pain | AE1: Pain | AF1: Pain in extremity | AG1: Pain in jaw | AH1: Pain of skin | AI1: Paraesthesia | AJ1: Renal pain | AK1: Spinal pain | AL1: Total
A2: 1 | B2: Abdominal pain | D2: 171 | E2: 816 | F2: 2194 | G2: 2195 | H2: 107 | I2: 1422 | J2: 17 | K2: 116 | L2: 84 | M2: 1354 | N2: 190 | O2: 185 | P2: 182 | Q2: 51 | R2: 73 | S2: 23 | T2: 694 | U2: 869 | V2: 98 | W2: 595 | X2: 84 | Y2: 137 | Z2: 262 | AA2: 2383 | AB2: 504 | AC2: 168 | AD2: 581 | AE2: 3022 | AF2: 1688 | AG2: 83 | AH2: 44 | AI2: 823 | AJ2: 93 | AK2: 61 | AL2: =SUM(C2:AK2) -> 21369
A3: 2 | B3: Abdominal pain lower | C3: 171 | E3: 141 | F3: 164 | G3: 130 | H3: 14 | I3: 222 | J3: 1 | K3: 14 | L3: 14 | M3: 92 | N3: 12 | O3: 15 | P3: 14 | Q3: 3 | R3: 2 | S3: 1 | T3: 61 | U3: 55 | V3: 11 | W3: 50 | X3: 8 | Y3: 14 | Z3: 25 | AA3: 142 | AB3: 37 | AC3: 19 | AD3: 41 | AE3: 307 | AF3: 191 | AG3: 9 | AH3: 9 | AI3: 61 | AJ3: 16 | AK3: 11 | AL3: =SUM(C3:AK3) -> 2077
A4: 3 | B4: Abdominal pain upper | C4: 816 | D4: 141 | F4: 1707 | G4: 1725 | H4: 122 | I4: 1207 | J4: 10 | K4: 151 | L4: 68 | M4: 1098 | N4: 127 | O4: 213 | P4: 227 | Q4: 56 | R4: 30 | S4: 12 | T4: 592 | U4: 972 | V4: 88 | W4: 466 | X4: 124 | Y4: 102 | Z4: 254 | AA4: 1868 | AB4: 498 | AC4: 105 | AD4: 565 | AE4: 3340 | AF4: 2374 | AG4: 75 | AH4: 78 | AI4: 644 | AJ4: 83 | AK4: 43 | AL4: =SUM(C4:AK4) -> 19981
A5: 4 | B5: Arthralgia | C5: 2194 | D5: 164 | E5: 1707 | G5: 8315 | H5: 1363 | I5: 6962 | J5: 76 | K5: 1461 | L5: 492 | M5: 3883 | N5: 481 | O5: 940 | P5: 1044 | Q5: 298 | R5: 181 | S5: 82 | T5: 4195 | U5: 8567 | V5: 919 | W5: 4645 | X5: 505 | Y5: 1319 | Z5: 3185 | AA5: 26645 | AB5: 6519 | AC5: 1096 | AD5: 2337 | AE5: 19818 | AF5: 18744 | AG5: 672 | AH5: 608 | AI5: 4982 | AJ5: 254 | AK5: 478 | AL5: =SUM(C5:AK5) -> 135131
A6: 5 | B6: Asthenia | C6: 2195 | D6: 130 | E6: 1725 | F6: 8315 | H6: 373 | I6: 2812 | J6: 91 | K6: 559 | L6: 153 | M6: 3208 | N6: 845 | O6: 576 | P6: 654 | Q6: 172 | R6: 1117 | S6: 238 | T6: 3895 | U6: 4305 | V6: 278 | W6: 1925 | X6: 191 | Y6: 621 | Z6: 1337 | AA6: 10336 | AB6: 1907 | AC6: 457 | AD6: 1991 | AE6: 13827 | AF6: 7990 | AG6: 242 | AH6: 207 | AI6: 4674 | AJ6: 124 | AK6: 171 | AL6: =SUM(C6:AK6) -> 77641
A7: 6 | B7: Axillary pain | C7: 107 | D7: 14 | E7: 122 | F7: 1363 | G7: 373 | I7: 532 | J7: 5 | K7: 71 | L7: 810 | M7: 699 | N7: 40 | O7: 92 | P7: 74 | Q7: 26 | R7: 4 | S7: 2 | T7: 373 | U7: 1543 | V7: 711 | W7: 3203 | X7: 142 | Y7: 149 | Z7: 205 | AA7: 943 | AB7: 668 | AC7: 81 | AD7: 186 | AE7: 2389 | AF7: 2658 | AG7: 57 | AH7: 60 | AI7: 438 | AJ7: 16 | AK7: 26 | AL7: =SUM(C7:AK7) -> 18182
A8: 7 | B8: Back pain | C8: 1422 | D8: 222 | E8: 1207 | F8: 6962 | G8: 2812 | H8: 532 | J8: 41 | K8: 378 | L8: 322 | M8: 3138 | N8: 239 | O8: 368 | P8: 415 | Q8: 136 | R8: 370 | S8: 52 | T8: 2046 | U8: 2258 | V8: 240 | W8: 1119 | X8: 461 | Y8: 946 | Z8: 1203 | AA8: 4307 | AB8: 4232 | AC8: 509 | AD8: 731 | AE8: 7271 | AF8: 7337 | AG8: 321 | AH8: 198 | AI8: 2177 | AJ8: 300 | AK8: 360 | AL8: =SUM(C8:AK8) -> 54632
A9: 8 | B9: Bell's palsy | C9: 17 | D9: 1 | E9: 10 | F9: 76 | G9: 91 | H9: 5 | I9: 41 | K9: 5 | L9: 3 | M9: 37 | N9: 65 | O9: 295 | P9: 67 | Q9: 103 | R9: 39 | S9: 32 | T9: 595 | U9: 46 | V9: 11 | W9: 59 | X9: 0 | Y9: 3 | Z9: 30 | AA9: 87 | AB9: 134 | AC9: 46 | AD9: 32 | AE9: 197 | AF9: 147 | AG9: 78 | AH9: 11 | AI9: 272 | AJ9: 3 | AK9: 2 | AL9: =SUM(C9:AK9) -> 2640
A10: 9 | B10: Bone pain | C10: 116 | D10: 14 | E10: 151 | F10: 1461 | G10: 559 | H10: 71 | I10: 378 | J10: 5 | L10: 49 | M10: 277 | N10: 42 | O10: 89 | P10: 103 | Q10: 36 | R10: 7 | S10: 3 | T10: 238 | U10: 393 | V10: 67 | W10: 281 | X10: 51 | Y10: 91 | Z10: 143 | AA10: 1527 | AB10: 303 | AC10: 89 | AD10: 162 | AE10: 1283 | AF10: 1130 | AG10: 62 | AH10: 80 | AI10: 244 | AJ10: 26 | AK10: 75 | AL10: =SUM(C10:AK10) -> 9606
A11: 10 | B11: Breast pain | C11: 84 | D11: 14 | E11: 68 | F11: 492 | G11: 153 | H11: 810 | I11: 322 | J11: 3 | K11: 49 | M11: 366 | N11: 14 | O11: 60 | P11: 37 | Q11: 17 | R11: 2 | S11: 3 | T11: 157 | U11: 304 | V11: 229 | W11: 682 | X11: 80 | Y11: 69 | Z11: 60 | AA11: 307 | AB11: 218 | AC11: 44 | AD11: 66 | AE11: 780 | AF11: 863 | AG11: 32 | AH11: 27 | AI11: 184 | AJ11: 14 | AK11: 8 | AL11: =SUM(C11:AK11) -> 6618
A12: 11 | B12: Chest pain | C12: 1354 | D12: 92 | E12: 1098 | F12: 3883 | G12: 3208 | H12: 699 | I12: 3138 | J12: 37 | K12: 277 | L12: 366 | N12: 509 | O12: 426 | P12: 339 | Q12: 122 | R12: 85 | S12: 75 | T12: 2271 | U12: 1616 | V12: 281 | W12: 1370 | X12: 500 | Y12: 412 | Z12: 543 | AA12: 3590 | AB12: 1815 | AC12: 292 | AD12: 1253 | AE12: 6832 | AF12: 5232 | AG12: 510 | AH12: 104 | AI12: 2457 | AJ12: 117 | AK12: 140 | AL12: =SUM(C12:AK12) -> 45043
A13: 12 | B13: Dysphagia | C13: 190 | D13: 12 | E13: 127 | F13: 481 | G13: 845 | H13: 40 | I13: 239 | J13: 65 | K13: 42 | L13: 14 | M13: 509 | O13: 161 | P13: 110 | Q13: 54 | R13: 242 | S13: 91 | T13: 758 | U13: 304 | V13: 63 | W13: 561 | X13: 17 | Y13: 54 | Z13: 187 | AA13: 491 | AB13: 330 | AC13: 47 | AD13: 879 | AE13: 840 | AF13: 580 | AG13: 81 | AH13: 19 | AI13: 916 | AJ13: 9 | AK13: 22 | AL13: =SUM(C13:AK13) -> 9380
A14: 13 | B14: Ear pain | C14: 185 | D14: 15 | E14: 213 | F14: 940 | G14: 576 | H14: 92 | I14: 368 | J14: 295 | K14: 89 | L14: 60 | M14: 426 | N14: 161 | P14: 406 | Q14: 313 | R14: 14 | S14: 16 | T14: 535 | U14: 437 | V14: 140 | W14: 749 | X14: 45 | Y14: 88 | Z14: 239 | AA14: 842 | AB14: 997 | AC14: 130 | AD14: 1208 | AE14: 1691 | AF14: 1016 | AG14: 549 | AH14: 111 | AI14: 472 | AJ14: 18 | AK14: 37 | AL14: =SUM(C14:AK14) -> 13473
A15: 14 | B15: Eye pain | C15: 182 | D15: 14 | E15: 227 | F15: 1044 | G15: 654 | H15: 74 | I15: 415 | J15: 67 | K15: 103 | L15: 37 | M15: 339 | N15: 110 | O15: 406 | Q15: 242 | R15: 14 | S15: 26 | T15: 499 | U15: 393 | V15: 75 | W15: 324 | X15: 37 | Y15: 55 | Z15: 220 | AA15: 948 | AB15: 523 | AC15: 120 | AD15: 421 | AE15: 1651 | AF15: 1041 | AG15: 179 | AH15: 143 | AI15: 534 | AJ15: 23 | AK15: 47 | AL15: =SUM(C15:AK15) -> 11187
A16: 15 | B16: Facial pain | C16: 51 | D16: 3 | E16: 56 | F16: 298 | G16: 172 | H16: 26 | I16: 136 | J16: 103 | K16: 36 | L16: 17 | M16: 122 | N16: 54 | O16: 313 | P16: 242 | R16: 7 | S16: 6 | T16: 398 | U16: 134 | V16: 37 | W16: 134 | X16: 15 | Y16: 38 | Z16: 86 | AA16: 194 | AB16: 405 | AC16: 115 | AD16: 114 | AE16: 552 | AF16: 482 | AG16: 281 | AH16: 62 | AI16: 344 | AJ16: 8 | AK16: 10 | AL16: =SUM(C16:AK16) -> 5051
A17: 16 | B17: Guillain-Barre syndrome | C17: 73 | D17: 2 | E17: 30 | F17: 181 | G17: 1117 | H17: 4 | I17: 370 | J17: 39 | K17: 7 | L17: 2 | M17: 85 | N17: 242 | O17: 14 | P17: 14 | Q17: 7 | S17: 33 | T17: 1291 | U17: 47 | V17: 3 | W17: 21 | X17: 1 | Y17: 47 | Z17: 44 | AA17: 267 | AB17: 80 | AC17: 76 | AD17: 43 | AE17: 477 | AF17: 429 | AG17: 8 | AH17: 7 | AI17: 1448 | AJ17: 1 | AK17: 13 | AL17: =SUM(C17:AK17) -> 6523
A18: 17 | B18: Hemiparesis | C18: 23 | D18: 1 | E18: 12 | F18: 82 | G18: 238 | H18: 2 | I18: 52 | J18: 32 | K18: 3 | L18: 3 | M18: 75 | N18: 91 | O18: 16 | P18: 26 | Q18: 6 | R18: 33 | T18: 409 | U18: 51 | V18: 5 | W18: 28 | X18: 4 | Y18: 11 | Z18: 57 | AA18: 74 | AB18: 49 | AC18: 31 | AD18: 22 | AE18: 184 | AF18: 146 | AG18: 5 | AH18: 2 | AI18: 333 | AJ18: 1 | AK18: 5 | AL18: =SUM(C18:AK18) -> 2112
A19: 18 | B19: Hypoaesthesia | C19: 694 | D19: 61 | E19: 592 | F19: 4195 | G19: 3895 | H19: 373 | I19: 2046 | J19: 595 | K19: 238 | L19: 157 | M19: 2271 | N19: 758 | O19: 535 | P19: 499 | Q19: 398 | R19: 1291 | S19: 409 | U19: 2743 | V19: 229 | W19: 1120 | X19: 125 | Y19: 582 | Z19: 1198 | AA19: 2731 | AB19: 1832 | AC19: 829 | AD19: 574 | AE19: 6556 | AF19: 8138 | AG19: 400 | AH19: 145 | AI19: 16237 | AJ19: 70 | AK19: 190 | AL19: =SUM(C19:AK19) -> 62706
A20: 19 | B20: Injection site pain | C20: 869 | D20: 55 | E20: 972 | F20: 8567 | G20: 4305 | H20: 1543 | I20: 2258 | J20: 46 | K20: 393 | L20: 304 | M20: 1616 | N20: 304 | O20: 437 | P20: 393 | Q20: 134 | R20: 47 | S20: 51 | T20: 2743 | V20: 894 | W20: 3368 | X20: 182 | Y20: 1369 | Z20: 1915 | AA20: 9961 | AB20: 3412 | AC20: 491 | AD20: 1194 | AE20: 19413 | AF20: 10657 | AG20: 306 | AH20: 298 | AI20: 3343 | AJ20: 72 | AK20: 107 | AL20: =SUM(C20:AK20) -> 82019
A21: 20 | B21: Lymph node pain | C21: 98 | D21: 11 | E21: 88 | F21: 919 | G21: 278 | H21: 711 | I21: 240 | J21: 11 | K21: 67 | L21: 229 | M21: 281 | N21: 63 | O21: 140 | P21: 75 | Q21: 37 | R21: 3 | S21: 5 | T21: 229 | U21: 894 | W21: 5636 | X21: 54 | Y21: 42 | Z21: 168 | AA21: 878 | AB21: 449 | AC21: 74 | AD21: 258 | AE21: 1605 | AF21: 1302 | AG21: 94 | AH21: 53 | AI21: 263 | AJ21: 13 | AK21: 18 | AL21: =SUM(C21:AK21) -> 15286
A22: 21 | B22: Lymphadenopathy | C22: 595 | D22: 50 | E22: 466 | F22: 4645 | G22: 1925 | H22: 3203 | I22: 1119 | J22: 59 | K22: 281 | L22: 682 | M22: 1370 | N22: 561 | O22: 749 | P22: 324 | Q22: 134 | R22: 21 | S22: 28 | T22: 1120 | U22: 3368 | V22: 5636 | X22: 165 | Y22: 196 | Z22: 818 | AA22: 4451 | AB22: 1833 | AC22: 236 | AD22: 1706 | AE22: 7378 | AF22: 5228 | AG22: 320 | AH22: 179 | AI22: 1366 | AJ22: 86 | AK22: 66 | AL22: =SUM(C22:AK22) -> 50364
A23: 22 | B23: Musculoskeletal chest pain | C23: 84 | D23: 8 | E23: 124 | F23: 505 | G23: 191 | H23: 142 | I23: 461 | J23: 0 | K23: 51 | L23: 80 | M23: 500 | N23: 17 | O23: 45 | P23: 37 | Q23: 15 | R23: 1 | S23: 4 | T23: 125 | U23: 182 | V23: 54 | W23: 165 | Y23: 90 | Z23: 76 | AA23: 303 | AB23: 196 | AC23: 47 | AD23: 106 | AE23: 703 | AF23: 553 | AG23: 43 | AH23: 32 | AI23: 138 | AJ23: 26 | AK23: 45 | AL23: =SUM(C23:AK23) -> 5149
A24: 23 | B24: Musculoskeletal pain | C24: 137 | D24: 14 | E24: 102 | F24: 1319 | G24: 621 | H24: 149 | I24: 946 | J24: 3 | K24: 91 | L24: 69 | M24: 412 | N24: 54 | O24: 88 | P24: 55 | Q24: 38 | R24: 47 | S24: 11 | T24: 582 | U24: 1369 | V24: 42 | W24: 196 | X24: 90 | Z24: 505 | AA24: 769 | AB24: 1494 | AC24: 132 | AD24: 113 | AE24: 1851 | AF24: 3214 | AG24: 94 | AH24: 34 | AI24: 593 | AJ24: 10 | AK24: 77 | AL24: =SUM(C24:AK24) -> 15321
A25: 24 | B25: Musculoskeletal stiffness | C25: 262 | D25: 25 | E25: 254 | F25: 3185 | G25: 1337 | H25: 205 | I25: 1203 | J25: 30 | K25: 143 | L25: 60 | M25: 543 | N25: 187 | O25: 239 | P25: 220 | Q25: 86 | R25: 44 | S25: 57 | T25: 1198 | U25: 1915 | V25: 168 | W25: 818 | X25: 76 | Y25: 505 | AA25: 2506 | AB25: 2048 | AC25: 199 | AD25: 362 | AE25: 4069 | AF25: 3850 | AG25: 180 | AH25: 105 | AI25: 1264 | AJ25: 29 | AK25: 102 | AL25: =SUM(C25:AK25) -> 27474
A26: 25 | B26: Myalgia | C26: 2383 | D26: 142 | E26: 1868 | F26: 26645 | G26: 10336 | H26: 943 | I26: 4307 | J26: 87 | K26: 1527 | L26: 307 | M26: 3590 | N26: 491 | O26: 842 | P26: 948 | Q26: 194 | R26: 267 | S26: 74 | T26: 2731 | U26: 9961 | V26: 878 | W26: 4451 | X26: 303 | Y26: 769 | Z26: 2506 | AB26: 3318 | AC26: 915 | AD26: 3550 | AE26: 14898 | AF26: 12787 | AG26: 396 | AH26: 568 | AI26: 3975 | AJ26: 196 | AK26: 237 | AL26: =SUM(C26:AK26) -> 117390
A27: 26 | B27: Neck pain | C27: 504 | D27: 37 | E27: 498 | F27: 6519 | G27: 1907 | H27: 668 | I27: 4232 | J27: 134 | K27: 303 | L27: 218 | M27: 1815 | N27: 330 | O27: 997 | P27: 523 | Q27: 405 | R27: 80 | S27: 49 | T27: 1832 | U27: 3412 | V27: 449 | W27: 1833 | X27: 196 | Y27: 1494 | Z27: 2048 | AA27: 3318 | AC27: 367 | AD27: 802 | AE27: 6286 | AF27: 7352 | AG27: 756 | AH27: 189 | AI27: 1957 | AJ27: 70 | AK27: 284 | AL27: =SUM(C27:AK27) -> 51864
A28: 27 | B28: Neuralgia | C28: 168 | D28: 19 | E28: 105 | F28: 1096 | G28: 457 | H28: 81 | I28: 509 | J28: 46 | K28: 89 | L28: 44 | M28: 292 | N28: 47 | O28: 130 | P28: 120 | Q28: 115 | R28: 76 | S28: 31 | T28: 829 | U28: 491 | V28: 74 | W28: 236 | X28: 47 | Y28: 132 | Z28: 199 | AA28: 915 | AB28: 367 | AD28: 88 | AE28: 1527 | AF28: 1489 | AG28: 81 | AH28: 106 | AI28: 1007 | AJ28: 24 | AK28: 67 | AL28: =SUM(C28:AK28) -> 11104
A29: 28 | B29: Oropharyngeal pain | C29: 581 | D29: 41 | E29: 565 | F29: 2337 | G29: 1991 | H29: 186 | I29: 731 | J29: 32 | K29: 162 | L29: 66 | M29: 1253 | N29: 879 | O29: 1208 | P29: 421 | Q29: 114 | R29: 43 | S29: 22 | T29: 574 | U29: 1194 | V29: 258 | W29: 1706 | X29: 106 | Y29: 113 | Z29: 362 | AA29: 3550 | AB29: 802 | AC29: 88 | AE29: 5765 | AF29: 2476 | AG29: 215 | AH29: 106 | AI29: 654 | AJ29: 43 | AK29: 41 | AL29: =SUM(C29:AK29) -> 28685
A30: 29 | B30: Pain | C30: 3022 | D30: 307 | E30: 3340 | F30: 19818 | G30: 13827 | H30: 2389 | I30: 7271 | J30: 197 | K30: 1283 | L30: 780 | M30: 6832 | N30: 840 | O30: 1691 | P30: 1651 | Q30: 552 | R30: 477 | S30: 184 | T30: 6556 | U30: 19413 | V30: 1605 | W30: 7378 | X30: 703 | Y30: 1851 | Z30: 4069 | AA30: 14898 | AB30: 6286 | AC30: 1527 | AD30: 5765 | AF30: 28608 | AG30: 943 | AH30: 894 | AI30: 7683 | AJ30: 314 | AK30: 474 | AL30: =SUM(C30:AK30) -> 173428
A31: 30 | B31: Pain in extremity | C31: 1688 | D31: 191 | E31: 2374 | F31: 18744 | G31: 7990 | H31: 2658 | I31: 7337 | J31: 147 | K31: 1130 | L31: 863 | M31: 5232 | N31: 580 | O31: 1016 | P31: 1041 | Q31: 482 | R31: 429 | S31: 146 | T31: 8138 | U31: 10657 | V31: 1302 | W31: 5228 | X31: 553 | Y31: 3214 | Z31: 3850 | AA31: 12787 | AB31: 7352 | AC31: 1489 | AD31: 2476 | AE31: 28608 | AG31: 805 | AH31: 576 | AI31: 8002 | AJ31: 223 | AK31: 422 | AL31: =SUM(C31:AK31) -> 147730
A32: 31 | B32: Pain in jaw | C32: 83 | D32: 9 | E32: 75 | F32: 672 | G32: 242 | H32: 57 | I32: 321 | J32: 78 | K32: 62 | L32: 32 | M32: 510 | N32: 81 | O32: 549 | P32: 179 | Q32: 281 | R32: 8 | S32: 5 | T32: 400 | U32: 306 | V32: 94 | W32: 320 | X32: 43 | Y32: 94 | Z32: 180 | AA32: 396 | AB32: 756 | AC32: 81 | AD32: 215 | AE32: 943 | AF32: 805 | AH32: 38 | AI32: 328 | AJ32: 15 | AK32: 23 | AL32: =SUM(C32:AK32) -> 8281
A33: 32 | B33: Pain of skin | C33: 44 | D33: 9 | E33: 78 | F33: 608 | G33: 207 | H33: 60 | I33: 198 | J33: 11 | K33: 80 | L33: 27 | M33: 104 | N33: 19 | O33: 111 | P33: 143 | Q33: 62 | R33: 7 | S33: 2 | T33: 145 | U33: 298 | V33: 53 | W33: 179 | X33: 32 | Y33: 34 | Z33: 105 | AA33: 568 | AB33: 189 | AC33: 106 | AD33: 106 | AE33: 894 | AF33: 576 | AG33: 38 | AI33: 228 | AJ33: 11 | AK33: 19 | AL33: =SUM(C33:AK33) -> 5351
A34: 33 | B34: Paraesthesia | C34: 823 | D34: 61 | E34: 644 | F34: 4982 | G34: 4674 | H34: 438 | I34: 2177 | J34: 272 | K34: 244 | L34: 184 | M34: 2457 | N34: 916 | O34: 472 | P34: 534 | Q34: 344 | R34: 1448 | S34: 333 | T34: 16237 | U34: 3343 | V34: 263 | W34: 1366 | X34: 138 | Y34: 593 | Z34: 1264 | AA34: 3975 | AB34: 1957 | AC34: 1007 | AD34: 654 | AE34: 7683 | AF34: 8002 | AG34: 328 | AH34: 228 | AJ34: 64 | AK34: 168 | AL34: =SUM(C34:AK34) -> 68273
A35: 34 | B35: Renal pain | C35: 93 | D35: 16 | E35: 83 | F35: 254 | G35: 124 | H35: 16 | I35: 300 | J35: 3 | K35: 26 | L35: 14 | M35: 117 | N35: 9 | O35: 18 | P35: 23 | Q35: 8 | R35: 1 | S35: 1 | T35: 70 | U35: 72 | V35: 13 | W35: 86 | X35: 26 | Y35: 10 | Z35: 29 | AA35: 196 | AB35: 70 | AC35: 24 | AD35: 43 | AE35: 314 | AF35: 223 | AG35: 15 | AH35: 11 | AI35: 64 | AK35: 26 | AL35: =SUM(C35:AK35) -> 2398
A36: 35 | B36: Spinal pain | C36: 61 | D36: 11 | E36: 43 | F36: 478 | G36: 171 | H36: 26 | I36: 360 | J36: 2 | K36: 75 | L36: 8 | M36: 140 | N36: 22 | O36: 37 | P36: 47 | Q36: 10 | R36: 13 | S36: 5 | T36: 190 | U36: 107 | V36: 18 | W36: 66 | X36: 45 | Y36: 77 | Z36: 102 | AA36: 237 | AB36: 284 | AC36: 67 | AD36: 41 | AE36: 474 | AF36: 422 | AG36: 23 | AH36: 19 | AI36: 168 | AJ36: 26 | AL36: =SUM(C36:AK36) -> 3875

Sheet N_abdominal_pain
A1: Selected VAERS search terms:
A2: Abdominal pain
A4: Dose report
A5: Vaccine Name | B5: All | C5: 1 | D5: 2 | E5: 3 | F5: 4 | G5: 5 | H5: 6 | I5: 7+ | J5: UNK | K5: N/A | L5: All male | M5: 1 male | N5: 2 male | O5: 3 male | P5: 4 male | Q5: 5 male | R5: 6 male | S5: 7+ male | T5: UNK male | U5: N/A male | V5: All female | W5: 1 female | X5: 2 female | Y5: 3 female | Z5: 4 female | AA5: 5 female | AB5: 6 female | AC5: 7+ female | AD5: UNK female | AE5: N/A female | AF5: All Unknown | AG5: 1 Unknown | AH5: 2 Unknown | AI5: 3 Unknown | AJ5: 4 Unknown | AK5: 5 Unknown | AL5: 6 Unknown | AM5: 7+ Unknown | AN5: UNK Unknown | AO5: N/A Unknown
A6: COVID19 (COVID19 (PFIZER-BIONTECH)) | B6: 8030 | C6: 3522 | D6: 3043 | E6: 345 | F6: 14 | G6: 1 | J6: 1103 | K6: 2 | L6: 2016 | M6: 899 | N6: 736 | O6: 95 | P6: 5 | T6: 281 | V6: 5901 | W6: 2580 | X6: 2265 | Y6: 242 | Z6: 9 | AA6: 1 | AD6: 802 | AE6: 2 | AF6: 113 | AG6: 43 | AH6: 42 | AI6: 8 | AN6: 20
A7: COVID19 (COVID19 (MODERNA)) | B7: 3633 | C7: 1753 | D7: 1162 | E7: 234 | F7: 14 | J7: 462 | K7: 8 | L7: 976 | M7: 440 | N7: 303 | O7: 69 | P7: 3 | T7: 159 | U7: 2 | V7: 2616 | W7: 1293 | X7: 846 | Y7: 164 | Z7: 11 | AD7: 296 | AE7: 6 | AF7: 41 | AG7: 20 | AH7: 13 | AI7: 1 | AN7: 7
A8: HPV (GARDASIL) | B8: 1234 | C8: 462 | D8: 252 | E8: 268 | F8: 2 | J8: 250 | L8: 48 | M8: 23 | N8: 11 | O8: 7 | T8: 7 | V8: 1169 | W8: 435 | X8: 238 | Y8: 260 | Z8: 2 | AD8: 234 | AF8: 17 | AG8: 4 | AH8: 3 | AI8: 1 | AN8: 9
A9: COVID19 (COVID19 (JANSSEN)) | B9: 1119 | C9: 663 | D9: 15 | E9: 3 | I9: 1 | J9: 399 | K9: 38 | L9: 319 | M9: 170 | N9: 7 | O9: 1 | S9: 1 | T9: 129 | U9: 11 | V9: 776 | W9: 489 | X9: 7 | Y9: 2 | AD9: 251 | AE9: 27 | AF9: 24 | AG9: 4 | AH9: 1 | AN9: 19
A10: HEP B (ENGERIX-B) | B10: 750 | C10: 259 | D10: 183 | E10: 84 | F10: 13 | G10: 4 | I10: 3 | J10: 204 | L10: 233 | M10: 91 | N10: 55 | O10: 26 | P10: 4 | T10: 57 | V10: 499 | W10: 165 | X10: 127 | Y10: 55 | Z10: 9 | AA10: 4 | AC10: 3 | AD10: 136 | AF10: 18 | AG10: 3 | AH10: 1 | AI10: 3 | AN10: 11
A11: HEP B (RECOMBIVAX HB) | B11: 540 | C11: 211 | D11: 152 | E11: 67 | F11: 5 | J11: 105 | L11: 170 | M11: 67 | N11: 40 | O11: 22 | P11: 1 | T11: 40 | V11: 356 | W11: 141 | X11: 108 | Y11: 43 | Z11: 4 | AD11: 60 | AF11: 14 | AG11: 3 | AH11: 4 | AI11: 2 | AN11: 5
A12: MEASLES + MUMPS + RUBELLA (MMR II) | B12: 537 | C12: 96 | D12: 266 | E12: 13 | F12: 1 | J12: 160 | K12: 1 | L12: 269 | M12: 39 | N12: 133 | O12: 7 | P12: 1 | T12: 88 | U12: 1 | V12: 262 | W12: 57 | X12: 130 | Y12: 5 | AD12: 70 | AF12: 6 | AH12: 3 | AI12: 1 | AN12: 2
A13: ROTAVIRUS (ROTARIX) | B13: 487 | C13: 173 | D13: 132 | E13: 2 | J13: 180 | L13: 256 | M13: 94 | N13: 73 | T13: 89 | V13: 209 | W13: 69 | X13: 57 | Y13: 2 | AD13: 81 | AF13: 22 | AG13: 10 | AH13: 2 | AN13: 10
A14: ROTAVIRUS (ROTATEQ) | B14: 410 | C14: 151 | D14: 98 | E14: 62 | F14: 2 | J14: 97 | L14: 225 | M14: 92 | N14: 51 | O14: 31 | P14: 1 | T14: 50 | V14: 174 | W14: 56 | X14: 44 | Y14: 31 | Z14: 1 | AD14: 42 | AF14: 11 | AG14: 3 | AH14: 3 | AN14: 5
A15: PNEUMO (PREVNAR13) | B15: 349 | C15: 115 | D15: 56 | E15: 34 | F15: 8 | G15: 3 | J15: 130 | K15: 3 | L15: 179 | M15: 61 | N15: 32 | O15: 21 | P15: 3 | Q15: 2 | T15: 60 | V15: 166 | W15: 54 | X15: 24 | Y15: 13 | Z15: 5 | AA15: 1 | AD15: 66 | AE15: 3 | AF15: 4 | AN15: 4
A16: ZOSTER (SHINGRIX) | B16: 319 | C16: 155 | D16: 92 | J16: 71 | K16: 1 | L16: 92 | M16: 40 | N16: 29 | T16: 23 | V16: 217 | W16: 114 | X16: 61 | AD16: 41 | AE16: 1 | AF16: 10 | AG16: 1 | AH16: 2 | AN16: 7
A17: TYPHOID LIVE ORAL TY21A (VIVOTIF) | B17: 304 | C17: 105 | D17: 38 | E17: 30 | F17: 17 | G17: 8 | H17: 1 | J17: 105 | L17: 96 | M17: 30 | N17: 11 | O17: 12 | P17: 6 | Q17: 3 | T17: 34 | V17: 203 | W17: 73 | X17: 27 | Y17: 18 | Z17: 11 | AA17: 5 | AB17: 1 | AD17: 68 | AF17: 5 | AG17: 2 | AN17: 3
A18: INFLUENZA (SEASONAL) (NO BRAND NAME) | B18: 292 | C18: 51 | D18: 12 | E18: 8 | F18: 3 | G18: 2 | I18: 3 | J18: 211 | K18: 2 | L18: 103 | M18: 15 | N18: 6 | O18: 5 | Q18: 1 | T18: 76 | V18: 184 | W18: 36 | X18: 6 | Y18: 3 | Z18: 3 | AA18: 1 | AC18: 3 | AD18: 130 | AE18: 2 | AF18: 5 | AN18: 5
A19: VARICELLA (VARIVAX) | B19: 281 | C19: 104 | D19: 124 | E19: 2 | F19: 1 | J19: 50 | L19: 122 | M19: 48 | N19: 54 | O19: 1 | P19: 1 | T19: 18 | V19: 153 | W19: 55 | X19: 67 | Y19: 1 | AD19: 30 | AF19: 6 | AG19: 1 | AH19: 3 | AN19: 2
A20: INFLUENZA (SEASONAL) (FLUZONE) | B20: 277 | C20: 87 | D20: 25 | E20: 17 | F20: 12 | G20: 2 | H20: 6 | I20: 2 | J20: 126 | L20: 91 | M20: 30 | N20: 9 | O20: 4 | P20: 3 | R20: 4 | T20: 41 | V20: 179 | W20: 56 | X20: 16 | Y20: 12 | Z20: 8 | AA20: 2 | AB20: 2 | AC20: 2 | AD20: 81 | AF20: 7 | AG20: 1 | AI20: 1 | AJ20: 1 | AN20: 4
A21: HEP A (HAVRIX) | B21: 263 | C21: 142 | D21: 47 | E21: 2 | G21: 1 | J21: 71 | L21: 95 | M21: 61 | N21: 14 | O21: 2 | Q21: 1 | T21: 17 | V21: 160 | W21: 75 | X21: 33 | AD21: 52 | AF21: 8 | AG21: 6 | AN21: 2
A22: VACCINE NOT SPECIFIED (NO BRAND NAME) | B22: 232 | C22: 28 | D22: 15 | E22: 5 | F22: 2 | G22: 1 | H22: 1 | J22: 179 | K22: 1 | L22: 68 | M22: 5 | N22: 3 | P22: 2 | Q22: 1 | T22: 57 | V22: 155 | W22: 19 | X22: 11 | Y22: 5 | AB22: 1 | AD22: 118 | AE22: 1 | AF22: 9 | AG22: 4 | AH22: 1 | AN22: 4
A23: HPV (CERVARIX) | B23: 227 | C23: 72 | D23: 23 | E23: 47 | J23: 85 | L23: 1 | T23: 1 | V23: 217 | W23: 69 | X23: 22 | Y23: 45 | AD23: 81 | AF23: 9 | AG23: 3 | AH23: 1 | AI23: 2 | AN23: 3
A24: PNEUMO (PNEUMOVAX) | B24: 205 | C24: 72 | D24: 25 | E24: 1 | G24: 1 | J24: 103 | K24: 3 | L24: 72 | M24: 26 | N24: 8 | T24: 37 | U24: 1 | V24: 131 | W24: 46 | X24: 17 | Y24: 1 | AA24: 1 | AD24: 64 | AE24: 2 | AF24: 2 | AN24: 2
A25: TDAP (ADACEL) | B25: 199 | C25: 111 | D25: 10 | E25: 3 | G25: 3 | H25: 8 | I25: 2 | J25: 61 | K25: 1 | L25: 68 | M25: 40 | N25: 2 | O25: 2 | Q25: 1 | R25: 4 | S25: 2 | T25: 17 | V25: 129 | W25: 71 | X25: 8 | Y25: 1 | AA25: 2 | AB25: 4 | AD25: 42 | AE25: 1 | AF25: 2 | AN25: 2
A26: HPV (GARDASIL 9) | B26: 192 | C26: 76 | D26: 43 | E26: 27 | F26: 2 | J26: 43 | K26: 1 | L26: 53 | M26: 29 | N26: 10 | O26: 4 | P26: 1 | T26: 9 | V26: 137 | W26: 46 | X26: 33 | Y26: 23 | Z26: 1 | AD26: 33 | AE26: 1 | AF26: 2 | AG26: 1 | AN26: 1
A27: MENINGOCOCCAL CONJUGATE (MENACTRA) | B27: 191 | C27: 131 | D27: 18 | J27: 42 | L27: 63 | M27: 40 | N27: 5 | T27: 18 | V27: 122 | W27: 88 | X27: 13 | AD27: 21 | AF27: 6 | AG27: 3 | AN27: 3
A28: TD ADSORBED (NO BRAND NAME) | B28: 189 | C28: 42 | D28: 13 | E28: 3 | F28: 5 | G28: 14 | H28: 15 | J28: 97 | L28: 62 | M28: 17 | N28: 3 | P28: 4 | Q28: 6 | R28: 5 | T28: 27 | V28: 123 | W28: 25 | X28: 10 | Y28: 3 | Z28: 1 | AA28: 8 | AB28: 10 | AD28: 66 | AF28: 4 | AN28: 4
A29: PNEUMO (PREVNAR) | B29: 168 | C29: 50 | D29: 46 | E29: 23 | F29: 6 | G29: 1 | J29: 42 | L29: 92 | M29: 27 | N29: 29 | O29: 9 | P29: 3 | Q29: 1 | T29: 23 | V29: 73 | W29: 21 | X29: 17 | Y29: 14 | Z29: 3 | AD29: 18 | AF29: 3 | AG29: 2 | AN29: 1
A30: POLIO VIRUS, ORAL (ORIMUNE) | B30: 162 | C30: 15 | D30: 14 | E30: 14 | F30: 78 | G30: 26 | J30: 15 | L30: 90 | M30: 9 | N30: 7 | O30: 11 | P30: 41 | Q30: 14 | T30: 8 | V30: 72 | W30: 6 | X30: 7 | Y30: 3 | Z30: 37 | AA30: 12 | AD30: 7 | AF30: 0 | AG30: 0 | AH30: 0 | AI30: 0 | AJ30: 0 | AK30: 0 | AL30: 0 | AM30: 0 | AN30: 0 | AO30: 0
A31: TDAP (BOOSTRIX) | B31: 155 | C31: 64 | D31: 6 | E31: 2 | F31: 1 | G31: 4 | H31: 4 | J31: 73 | K31: 1 | L31: 54 | M31: 21 | N31: 1 | Q31: 2 | R31: 1 | T31: 29 | V31: 92 | W31: 41 | X31: 4 | Y31: 2 | Z31: 1 | AA31: 1 | AB31: 2 | AD31: 40 | AE31: 1 | AF31: 9 | AG31: 2 | AH31: 1 | AK31: 1 | AL31: 1 | AN31: 4
A32: HEP B (NO BRAND NAME) | B32: 142 | C32: 20 | D32: 24 | E32: 15 | F32: 2 | H32: 1 | J32: 80 | L32: 67 | M32: 14 | N32: 9 | O32: 8 | R32: 1 | T32: 35 | V32: 70 | W32: 6 | X32: 15 | Y32: 7 | Z32: 2 | AD32: 40 | AF32: 5 | AN32: 5
A33: POLIO VIRUS, INACT. (IPOL) | B33: 130 | C33: 26 | D33: 22 | E33: 5 | F33: 42 | G33: 5 | J33: 30 | L33: 67 | M33: 16 | N33: 11 | O33: 3 | P33: 20 | Q33: 3 | T33: 14 | V33: 60 | W33: 10 | X33: 11 | Y33: 2 | Z33: 19 | AA33: 2 | AD33: 16 | AF33: 3 | AJ33: 3
A34: ANTHRAX (BIOTHRAX) | B34: 124 | C34: 33 | D34: 12 | E34: 14 | F34: 13 | G34: 4 | H34: 2 | I34: 10 | J34: 36 | L34: 93 | M34: 22 | N34: 9 | O34: 10 | P34: 12 | Q34: 3 | R34: 2 | S34: 8 | T34: 27 | V34: 27 | W34: 11 | X34: 3 | Y34: 3 | Z34: 1 | AA34: 1 | AC34: 2 | AD34: 6 | AF34: 4 | AI34: 1 | AN34: 3
A35: HIB (ACTHIB) | B35: 120 | C35: 37 | D35: 36 | E35: 21 | F35: 6 | G35: 2 | J35: 18 | L35: 71 | M35: 21 | N35: 22 | O35: 12 | P35: 2 | Q35: 1 | T35: 13 | V35: 47 | W35: 15 | X35: 14 | Y35: 9 | Z35: 4 | AA35: 1 | AD35: 4 | AF35: 2 | AG35: 1 | AN35: 1
A36: DTAP + HEPB + IPV (PEDIARIX) | B36: 116 | C36: 43 | D36: 30 | E36: 21 | F36: 1 | J36: 21 | L36: 59 | M36: 24 | N36: 17 | O36: 10 | T36: 8 | V36: 57 | W36: 19 | X36: 13 | Y36: 11 | Z36: 1 | AD36: 13 | AF36: 0 | AG36: 0 | AH36: 0 | AI36: 0 | AJ36: 0 | AK36: 0 | AL36: 0 | AM36: 0 | AN36: 0 | AO36: 0
A37: HEP A + HEP B (TWINRIX) | B37: 111 | C37: 26 | D37: 11 | E37: 13 | J37: 61 | L37: 41 | M37: 7 | N37: 5 | O37: 3 | T37: 26 | V37: 68 | W37: 19 | X37: 6 | Y37: 10 | AD37: 33 | AF37: 2 | AN37: 2
A38: POLIO VIRUS, INACT. (NO BRAND NAME) | B38: 111 | C38: 15 | D38: 7 | E38: 2 | F38: 5 | G38: 2 | J38: 80 | L38: 49 | M38: 7 | N38: 1 | O38: 1 | P38: 3 | Q38: 1 | T38: 36 | V38: 59 | W38: 8 | X38: 6 | Y38: 1 | Z38: 2 | AD38: 42 | AF38: 3 | AK38: 1 | AN38: 2
A39: DTAP+IPV+HEPB+HIB (INFANRIX HEXA) | B39: 106 | C39: 26 | D39: 14 | E39: 5 | J39: 61 | L39: 47 | M39: 9 | N39: 7 | O39: 2 | T39: 29 | V39: 53 | W39: 14 | X39: 7 | Y39: 3 | AD39: 29 | AF39: 6 | AG39: 3 | AN39: 3
A40: TYPHOID VI POLYSACCHARIDE (TYPHIM VI) | B40: 105 | C40: 40 | D40: 10 | E40: 2 | F40: 1 | G40: 1 | H40: 1 | J40: 49 | K40: 1 | L40: 46 | M40: 22 | N40: 3 | O40: 1 | P40: 1 | R40: 1 | T40: 17 | U40: 1 | V40: 53 | W40: 18 | X40: 6 | Y40: 1 | AA40: 1 | AD40: 27 | AF40: 6 | AH40: 1 | AN40: 5
A41: ZOSTER LIVE (ZOSTAVAX) | B41: 105 | C41: 33 | D41: 4 | J41: 67 | K41: 1 | L41: 37 | M41: 16 | N41: 1 | T41: 20 | V41: 63 | W41: 17 | X41: 3 | AD41: 42 | AE41: 1 | AF41: 5 | AN41: 5
A42: DTAP (INFANRIX) | B42: 104 | C42: 14 | D42: 8 | E42: 6 | F42: 8 | G42: 29 | J42: 39 | L42: 51 | M42: 7 | N42: 5 | O42: 4 | P42: 1 | Q42: 14 | T42: 20 | V42: 51 | W42: 7 | X42: 3 | Y42: 2 | Z42: 6 | AA42: 15 | AD42: 18 | AF42: 2 | AJ42: 1 | AN42: 1
A43: DTP (NO BRAND NAME) | B43: 101 | C43: 11 | D43: 7 | E43: 6 | F43: 13 | G43: 31 | H43: 2 | J43: 31 | L43: 54 | M43: 6 | N43: 4 | O43: 5 | P43: 6 | Q43: 15 | T43: 18 | V43: 46 | W43: 5 | X43: 3 | Y43: 1 | Z43: 7 | AA43: 16 | AB43: 2 | AD43: 12 | AF43: 1 | AN43: 1
A44: INFLUENZA (SEASONAL) (FLUVIRIN) | B44: 100 | C44: 29 | D44: 8 | E44: 1 | G44: 1 | H44: 1 | I44: 7 | J44: 53 | L44: 40 | M44: 9 | N44: 3 | Q44: 1 | S44: 5 | T44: 22 | V44: 58 | W44: 20 | X44: 5 | Y44: 1 | AB44: 1 | AC44: 2 | AD44: 29 | AF44: 2 | AN44: 2
A45: HEP A (VAQTA) | B45: 100 | C45: 61 | D45: 22 | E45: 2 | J45: 15 | L45: 39 | M45: 22 | N45: 9 | O45: 1 | T45: 7 | V45: 60 | W45: 39 | X45: 12 | Y45: 1 | AD45: 8 | AF45: 1 | AH45: 1
A46: YELLOW FEVER (YF-VAX) | B46: 97 | C46: 57 | D46: 4 | J46: 35 | K46: 1 | L46: 37 | M46: 22 | N46: 2 | T46: 13 | V46: 51 | W46: 34 | X46: 1 | AD46: 15 | AE46: 1 | AF46: 9 | AG46: 1 | AH46: 1 | AN46: 7
A47: PNEUMO (NO BRAND NAME) | B47: 95 | C47: 16 | D47: 13 | E47: 3 | J47: 63 | L47: 41 | M47: 9 | N47: 6 | T47: 26 | V47: 39 | W47: 6 | X47: 6 | Y47: 3 | AD47: 24 | AF47: 15 | AG47: 1 | AH47: 1 | AN47: 13
A48: MENINGOCOCCAL B (BEXSERO) | B48: 93 | C48: 28 | D48: 18 | E48: 1 | J48: 46 | L48: 40 | M48: 11 | N48: 6 | T48: 23 | V48: 46 | W48: 15 | X48: 12 | Y48: 1 | AD48: 18 | AF48: 7 | AG48: 2 | AN48: 5
A49: INFLUENZA (SEASONAL) (FLUMIST) | B49: 93 | C49: 34 | D49: 10 | F49: 1 | H49: 1 | J49: 47 | L49: 36 | M49: 16 | N49: 4 | T49: 16 | V49: 55 | W49: 18 | X49: 6 | Z49: 1 | AB49: 1 | AD49: 29 | AF49: 2 | AN49: 2
A50: INFLUENZA (SEASONAL) (FLUZONE QUADRIVALENT) | B50: 88 | C50: 33 | D50: 3 | E50: 2 | F50: 2 | H50: 3 | I50: 2 | J50: 37 | K50: 6 | L50: 27 | M50: 10 | N50: 3 | P50: 2 | R50: 2 | T50: 9 | U50: 1 | V50: 60 | W50: 22 | Y50: 2 | AB50: 1 | AC50: 2 | AD50: 28 | AE50: 5 | AF50: 1 | AG50: 1
A51: MEASLES + MUMPS + RUBELLA (NO BRAND NAME) | B51: 78 | C51: 9 | D51: 7 | J51: 62 | L51: 44 | M51: 7 | N51: 3 | T51: 34 | V51: 33 | W51: 2 | X51: 4 | AD51: 27 | AF51: 1 | AN51: 1
A52: POLIO VIRUS, INACT. (POLIOVAX) | B52: 77 | C52: 27 | D52: 14 | E52: 4 | F52: 7 | G52: 2 | H52: 1 | J52: 22 | L52: 34 | M52: 9 | N52: 10 | O52: 2 | P52: 3 | T52: 10 | V52: 39 | W52: 18 | X52: 4 | Y52: 1 | Z52: 4 | AA52: 1 | AB52: 1 | AD52: 10 | AF52: 4 | AI52: 1 | AK52: 1 | AN52: 2
A53: RABIES (IMOVAX) | B53: 77 | C53: 24 | D53: 18 | E53: 10 | F53: 7 | G53: 2 | I53: 1 | J53: 15 | L53: 18 | M53: 4 | N53: 3 | O53: 2 | P53: 4 | T53: 5 | V53: 56 | W53: 20 | X53: 14 | Y53: 8 | Z53: 3 | AA53: 2 | AC53: 1 | AD53: 8 | AF53: 3 | AH53: 1 | AN53: 2
A54: TYPHOID VI POLYSACCHARIDE (NO BRAND NAME) | B54: 72 | C54: 17 | D54: 8 | E54: 1 | F54: 5 | J54: 41 | L54: 45 | M54: 13 | N54: 6 | P54: 3 | T54: 23 | V54: 27 | W54: 4 | X54: 2 | Y54: 1 | Z54: 2 | AD54: 18 | AF54: 0 | AG54: 0 | AH54: 0 | AI54: 0 | AJ54: 0 | AK54: 0 | AL54: 0 | AM54: 0 | AN54: 0 | AO54: 0
A55: DTAP (TRIPEDIA) | B55: 72 | C55: 13 | D55: 18 | E55: 7 | F55: 8 | G55: 21 | H55: 1 | J55: 4 | L55: 38 | M55: 6 | N55: 10 | O55: 4 | P55: 3 | Q55: 13 | R55: 1 | T55: 1 | V55: 29 | W55: 7 | X55: 8 | Y55: 2 | Z55: 5 | AA55: 6 | AD55: 1 | AF55: 5 | AI55: 1 | AK55: 2 | AN55: 2
A56: HIB (PEDVAXHIB) | B56: 72 | C56: 22 | D56: 23 | E56: 9 | F56: 4 | G56: 1 | J56: 13 | L56: 38 | M56: 11 | N56: 15 | O56: 6 | Q56: 1 | T56: 5 | V56: 34 | W56: 11 | X56: 8 | Y56: 3 | Z56: 4 | AD56: 8 | AF56: 0 | AG56: 0 | AH56: 0 | AI56: 0 | AJ56: 0 | AK56: 0 | AL56: 0 | AM56: 0 | AN56: 0 | AO56: 0
A57: ROTAVIRUS (ROTASHIELD) | B57: 71 | C57: 47 | D57: 10 | E57: 5 | J57: 9 | L57: 33 | M57: 19 | N57: 5 | O57: 3 | T57: 6 | V57: 37 | W57: 28 | X57: 5 | Y57: 1 | AD57: 3 | AF57: 1 | AI57: 1
A58: DTAP (DAPTACEL) | B58: 69 | C58: 16 | D58: 12 | E58: 3 | G58: 26 | H58: 1 | J58: 11 | L58: 34 | M58: 7 | N58: 9 | O58: 2 | Q58: 12 | R58: 1 | T58: 3 | V58: 33 | W58: 9 | X58: 3 | Y58: 1 | AA58: 13 | AD58: 7 | AF58: 2 | AK58: 1 | AN58: 1
A59: HIB (NO BRAND NAME) | B59: 69 | C59: 10 | D59: 8 | F59: 1 | G59: 1 | J59: 49 | L59: 34 | M59: 3 | N59: 4 | P59: 1 | Q59: 1 | T59: 25 | V59: 27 | W59: 6 | X59: 3 | AD59: 18 | AF59: 8 | AG59: 1 | AH59: 1 | AN59: 6
A60: DTAP + IPV + HIB (PENTACEL) | B60: 65 | C60: 25 | D60: 18 | E60: 10 | J60: 12 | L60: 40 | M60: 16 | N60: 12 | O60: 6 | T60: 6 | V60: 25 | W60: 9 | X60: 6 | Y60: 4 | AD60: 6 | AF60: 0 | AG60: 0 | AH60: 0 | AI60: 0 | AJ60: 0 | AK60: 0 | AL60: 0 | AM60: 0 | AN60: 0 | AO60: 0
A61: DTAP (NO BRAND NAME) | B61: 65 | C61: 6 | D61: 5 | E61: 3 | F61: 4 | G61: 2 | J61: 45 | L61: 29 | M61: 4 | N61: 2 | O61: 1 | P61: 2 | Q61: 1 | T61: 19 | V61: 35 | W61: 2 | X61: 3 | Y61: 2 | Z61: 2 | AA61: 1 | AD61: 25 | AF61: 1 | AN61: 1
A62: HIB (HIBTITER) | B62: 63 | C62: 19 | D62: 15 | E62: 10 | F62: 7 | G62: 1 | J62: 11 | L62: 29 | M62: 7 | N62: 6 | O62: 6 | P62: 3 | Q62: 1 | T62: 6 | V62: 33 | W62: 12 | X62: 9 | Y62: 3 | Z62: 4 | AD62: 5 | AF62: 1 | AI62: 1
A63: HEP A (NO BRAND NAME) | B63: 60 | C63: 14 | D63: 5 | J63: 41 | L63: 22 | M63: 7 | N63: 3 | T63: 12 | V63: 34 | W63: 7 | X63: 2 | AD63: 25 | AF63: 4 | AN63: 4
A64: MENINGOCOCCAL CONJUGATE (MENVEO) | B64: 58 | C64: 23 | D64: 8 | E64: 1 | J64: 26 | L64: 24 | M64: 7 | N64: 3 | T64: 14 | V64: 31 | W64: 16 | X64: 5 | Y64: 1 | AD64: 9 | AF64: 3 | AN64: 3
A65: ANTHRAX (NO BRAND NAME) | B65: 57 | C65: 18 | D65: 9 | E65: 7 | F65: 9 | G65: 4 | J65: 10 | L65: 42 | M65: 17 | N65: 4 | O65: 5 | P65: 6 | Q65: 3 | T65: 7 | V65: 13 | W65: 1 | X65: 4 | Y65: 2 | Z65: 3 | AA65: 1 | AD65: 2 | AF65: 2 | AH65: 1 | AN65: 1
A66: INFLUENZA (H1N1) (H1N1 (MONOVALENT) (SANOFI)) | B66: 55 | C66: 36 | D66: 4 | J66: 15 | L66: 23 | M66: 15 | N66: 2 | T66: 6 | V66: 31 | W66: 21 | X66: 2 | AD66: 8 | AF66: 1 | AN66: 1
A67: INFLUENZA (SEASONAL) (FLUARIX QUADRIVALENT) | B67: 53 | C67: 21 | G67: 1 | H67: 1 | I67: 2 | J67: 27 | K67: 1 | L67: 17 | M67: 4 | R67: 1 | S67: 2 | T67: 10 | V67: 33 | W67: 15 | AA67: 1 | AD67: 16 | AE67: 1 | AF67: 3 | AG67: 2 | AN67: 1
A68: INFLUENZA (SEASONAL) (FLUZONE HIGH-DOSE) | B68: 53 | C68: 26 | F68: 1 | G68: 2 | I68: 3 | J68: 18 | K68: 3 | L68: 17 | M68: 6 | P68: 1 | Q68: 1 | S68: 2 | T68: 7 | V68: 36 | W68: 20 | AA68: 1 | AC68: 1 | AD68: 11 | AE68: 3 | AF68: 0 | AG68: 0 | AH68: 0 | AI68: 0 | AJ68: 0 | AK68: 0 | AL68: 0 | AM68: 0 | AN68: 0 | AO68: 0
A69: DTP (TRI-IMMUNOL) | B69: 52 | C69: 2 | D69: 3 | E69: 6 | F69: 3 | G69: 35 | J69: 3 | L69: 27 | M69: 1 | O69: 2 | P69: 2 | Q69: 19 | T69: 3 | V69: 25 | W69: 1 | X69: 3 | Y69: 4 | Z69: 1 | AA69: 16 | AF69: 0 | AG69: 0 | AH69: 0 | AI69: 0 | AJ69: 0 | AK69: 0 | AL69: 0 | AM69: 0 | AN69: 0 | AO69: 0
A70: HPV (NO BRAND NAME) | B70: 49 | C70: 8 | D70: 6 | E70: 6 | F70: 1 | J70: 28 | L70: 8 | M70: 2 | N70: 2 | T70: 4 | V70: 40 | W70: 6 | X70: 4 | Y70: 6 | Z70: 1 | AD70: 23 | AF70: 1 | AN70: 1
A71: MENINGOCOCCAL (NO BRAND NAME) | B71: 47 | C71: 9 | D71: 4 | E71: 2 | J71: 32 | L71: 20 | M71: 6 | O71: 1 | T71: 13 | V71: 24 | W71: 2 | X71: 3 | Y71: 1 | AD71: 18 | AF71: 3 | AG71: 1 | AH71: 1 | AN71: 1
A72: INFLUENZA (SEASONAL) (FLUSHIELD) | B72: 45 | C72: 10 | D72: 9 | E72: 2 | G72: 3 | H72: 1 | I72: 1 | J72: 19 | L72: 13 | M72: 4 | N72: 2 | O72: 1 | Q72: 1 | T72: 5 | V72: 32 | W72: 6 | X72: 7 | Y72: 1 | AA72: 2 | AB72: 1 | AC72: 1 | AD72: 14 | AF72: 0 | AG72: 0 | AH72: 0 | AI72: 0 | AJ72: 0 | AK72: 0 | AL72: 0 | AM72: 0 | AN72: 0 | AO72: 0
A73: RABIES (RABAVERT) | B73: 45 | C73: 14 | D73: 14 | E73: 5 | F73: 4 | H73: 1 | J73: 7 | L73: 13 | M73: 4 | N73: 6 | O73: 1 | T73: 2 | V73: 31 | W73: 10 | X73: 8 | Y73: 3 | Z73: 4 | AB73: 1 | AD73: 5 | AF73: 1 | AI73: 1
A74: ROTAVIRUS (NO BRAND NAME) | B74: 43 | C74: 13 | D74: 12 | E74: 1 | J74: 17 | L74: 22 | M74: 4 | N74: 7 | O74: 1 | T74: 10 | V74: 17 | W74: 6 | X74: 5 | AD74: 6 | AF74: 4 | AG74: 3 | AN74: 1
A75: MEASLES + MUMPS + RUBELLA + VARICELLA (PROQUAD) | B75: 43 | C75: 17 | D75: 14 | J75: 12 | L75: 24 | M75: 11 | N75: 7 | T75: 6 | V75: 19 | W75: 6 | X75: 7 | AD75: 6 | AF75: 0 | AG75: 0 | AH75: 0 | AI75: 0 | AJ75: 0 | AK75: 0 | AL75: 0 | AM75: 0 | AN75: 0 | AO75: 0
A76: DTAP+IPV+HEPB+HIB (NO BRAND NAME) | B76: 41 | C76: 6 | D76: 5 | E76: 2 | J76: 28 | L76: 17 | M76: 5 | N76: 2 | O76: 1 | T76: 9 | V76: 23 | W76: 1 | X76: 3 | Y76: 1 | AD76: 18 | AF76: 1 | AN76: 1
A77: INFLUENZA (H1N1) (H1N1 (MONOVALENT) (MEDIMMUNE)) | B77: 40 | C77: 26 | D77: 5 | J77: 9 | L77: 11 | M77: 7 | N77: 1 | T77: 3 | V77: 28 | W77: 18 | X77: 4 | AD77: 6 | AF77: 1 | AG77: 1
A78: DTAP + IPV (KINRIX) | B78: 39 | C78: 16 | D78: 1 | F78: 3 | G78: 8 | H78: 1 | J78: 10 | L78: 19 | M78: 11 | Q78: 4 | T78: 4 | V78: 20 | W78: 5 | X78: 1 | Z78: 3 | AA78: 4 | AB78: 1 | AD78: 6 | AF78: 0 | AG78: 0 | AH78: 0 | AI78: 0 | AJ78: 0 | AK78: 0 | AL78: 0 | AM78: 0 | AN78: 0 | AO78: 0
A79: DTAP (ACEL-IMUNE) | B79: 38 | C79: 16 | D79: 5 | E79: 3 | F79: 1 | G79: 4 | J79: 9 | L79: 17 | M79: 3 | N79: 2 | O79: 2 | P79: 1 | Q79: 3 | T79: 6 | V79: 21 | W79: 13 | X79: 3 | Y79: 1 | AA79: 1 | AD79: 3 | AF79: 0 | AG79: 0 | AH79: 0 | AI79: 0 | AJ79: 0 | AK79: 0 | AL79: 0 | AM79: 0 | AN79: 0 | AO79: 0
A80: INFLUENZA (SEASONAL) (FLUARIX) | B80: 38 | C80: 4 | D80: 2 | E80: 2 | F80: 1 | I80: 1 | J80: 28 | L80: 13 | M80: 1 | N80: 2 | O80: 1 | T80: 9 | V80: 25 | W80: 3 | Y80: 1 | Z80: 1 | AC80: 1 | AD80: 19 | AF80: 0 | AG80: 0 | AH80: 0 | AI80: 0 | AJ80: 0 | AK80: 0 | AL80: 0 | AM80: 0 | AN80: 0 | AO80: 0
A81: INFLUENZA (H1N1) (H1N1 (MONOVALENT) (NOVARTIS)) | B81: 37 | C81: 22 | D81: 7 | J81: 8 | L81: 12 | M81: 9 | N81: 2 | T81: 1 | V81: 25 | W81: 13 | X81: 5 | AD81: 7 | AF81: 0 | AG81: 0 | AH81: 0 | AI81: 0 | AJ81: 0 | AK81: 0 | AL81: 0 | AM81: 0 | AN81: 0 | AO81: 0
A82: TETANUS TOXOID (NO BRAND NAME) | B82: 35 | C82: 9 | D82: 2 | G82: 1 | J82: 23 | L82: 8 | M82: 3 | N82: 1 | T82: 4 | V82: 26 | W82: 6 | X82: 1 | AA82: 1 | AD82: 18 | AF82: 1 | AN82: 1
A83: DT ADSORBED (NO BRAND NAME) | B83: 34 | C83: 5 | D83: 6 | E83: 1 | F83: 1 | G83: 2 | J83: 19 | L83: 12 | M83: 1 | N83: 5 | Q83: 1 | T83: 5 | V83: 21 | W83: 3 | X83: 1 | Y83: 1 | Z83: 1 | AA83: 1 | AD83: 14 | AF83: 1 | AG83: 1
A84: SMALLPOX (DRYVAX) | B84: 34 | C84: 12 | D84: 9 | J84: 13 | L84: 17 | M84: 8 | N84: 1 | T84: 8 | V84: 15 | W84: 4 | X84: 8 | AD84: 3 | AF84: 2 | AN84: 2
A85: MENINGOCOCCAL (MENOMUNE) | B85: 33 | C85: 20 | D85: 1 | J85: 12 | L85: 11 | M85: 6 | T85: 5 | V85: 20 | W85: 12 | X85: 1 | AD85: 7 | AF85: 2 | AG85: 2
A86: INFLUENZA (SEASONAL) (AFLURIA) | B86: 33 | C86: 12 | D86: 1 | G86: 1 | H86: 1 | I86: 1 | J86: 17 | L86: 10 | M86: 5 | S86: 1 | T86: 4 | V86: 23 | W86: 7 | X86: 1 | AA86: 1 | AB86: 1 | AD86: 13 | AF86: 0 | AG86: 0 | AH86: 0 | AI86: 0 | AJ86: 0 | AK86: 0 | AL86: 0 | AM86: 0 | AN86: 0 | AO86: 0
A87: MENINGOCOCCAL B (TRUMENBA) | B87: 32 | C87: 10 | D87: 9 | J87: 13 | L87: 14 | M87: 2 | N87: 4 | T87: 8 | V87: 17 | W87: 8 | X87: 5 | AD87: 4 | AF87: 1 | AN87: 1
A88: INFLUENZA (SEASONAL) (FLUMIST QUADRIVALENT) | B88: 32 | C88: 6 | D88: 2 | J88: 24 | L88: 12 | M88: 4 | T88: 8 | V88: 20 | W88: 2 | X88: 2 | AD88: 16 | AF88: 0 | AG88: 0 | AH88: 0 | AI88: 0 | AJ88: 0 | AK88: 0 | AL88: 0 | AM88: 0 | AN88: 0 | AO88: 0
A89: INFLUENZA (H1N1) (H1N1 (MONOVALENT) (UNKNOWN)) | B89: 31 | C89: 15 | D89: 2 | J89: 14 | L89: 6 | M89: 4 | N89: 1 | T89: 1 | V89: 25 | W89: 11 | X89: 1 | AD89: 13 | AF89: 0 | AG89: 0 | AH89: 0 | AI89: 0 | AJ89: 0 | AK89: 0 | AL89: 0 | AM89: 0 | AN89: 0 | AO89: 0
A90: TDAP (NO BRAND NAME) | B90: 30 | C90: 6 | J90: 24 | L90: 10 | M90: 2 | T90: 8 | V90: 20 | W90: 4 | AD90: 16 | AF90: 0 | AG90: 0 | AH90: 0 | AI90: 0 | AJ90: 0 | AK90: 0 | AL90: 0 | AM90: 0 | AN90: 0 | AO90: 0
A91: HEP B (FOREIGN) | B91: 28 | C91: 7 | D91: 7 | E91: 7 | F91: 1 | J91: 6 | L91: 13 | M91: 2 | N91: 3 | O91: 4 | T91: 4 | V91: 15 | W91: 5 | X91: 4 | Y91: 3 | Z91: 1 | AD91: 2 | AF91: 0 | AG91: 0 | AH91: 0 | AI91: 0 | AJ91: 0 | AK91: 0 | AL91: 0 | AM91: 0 | AN91: 0 | AO91: 0
A92: TETANUS DIPHTHERIA (NO BRAND NAME) | B92: 28 | C92: 4 | D92: 3 | E92: 1 | F92: 1 | G92: 1 | H92: 2 | J92: 16 | L92: 14 | M92: 2 | N92: 1 | T92: 11 | V92: 13 | W92: 2 | X92: 2 | Y92: 1 | Z92: 1 | AB92: 2 | AD92: 5 | AF92: 1 | AK92: 1
A93: INFLUENZA (SEASONAL) (FLUOGEN) | B93: 25 | C93: 8 | D93: 4 | F93: 1 | H93: 1 | I93: 1 | J93: 10 | L93: 6 | M93: 2 | N93: 1 | T93: 3 | V93: 19 | W93: 6 | X93: 3 | Z93: 1 | AB93: 1 | AC93: 1 | AD93: 7 | AF93: 0 | AG93: 0 | AH93: 0 | AI93: 0 | AJ93: 0 | AK93: 0 | AL93: 0 | AM93: 0 | AN93: 0 | AO93: 0
A94: POLIO VIRUS, ORAL (NO BRAND NAME) | B94: 25 | C94: 5 | G94: 1 | J94: 19 | L94: 10 | M94: 1 | Q94: 1 | T94: 8 | V94: 12 | W94: 4 | AD94: 8 | AF94: 3 | AN94: 3
A95: INFLUENZA (SEASONAL) (AFLURIA QUADRIVALENT) | B95: 24 | C95: 9 | E95: 1 | J95: 11 | K95: 3 | L95: 5 | M95: 2 | O95: 1 | T95: 1 | U95: 1 | V95: 19 | W95: 7 | AD95: 10 | AE95: 2 | AF95: 0 | AG95: 0 | AH95: 0 | AI95: 0 | AJ95: 0 | AK95: 0 | AL95: 0 | AM95: 0 | AN95: 0 | AO95: 0
A96: INFLUENZA (SEASONAL) (FOREIGN) | B96: 24 | D96: 1 | J96: 23 | L96: 9 | T96: 9 | V96: 14 | X96: 1 | AD96: 13 | AF96: 1 | AN96: 1
A97: COVID19 (COVID19 (UNKNOWN)) | B97: 24 | C97: 11 | D97: 3 | E97: 2 | J97: 8 | L97: 8 | M97: 4 | N97: 1 | O97: 1 | T97: 2 | V97: 15 | W97: 7 | X97: 2 | Y97: 1 | AD97: 5 | AF97: 1 | AN97: 1
A98: INFLUENZA (SEASONAL) (FLUAD) | B98: 23 | C98: 4 | D98: 1 | J98: 16 | K98: 2 | L98: 6 | M98: 1 | N98: 1 | T98: 2 | U98: 2 | V98: 17 | W98: 3 | AD98: 14 | AF98: 0 | AG98: 0 | AH98: 0 | AI98: 0 | AJ98: 0 | AK98: 0 | AL98: 0 | AM98: 0 | AN98: 0 | AO98: 0
A99: LYME (LYMERIX) | B99: 23 | C99: 15 | D99: 5 | E99: 3 | L99: 11 | M99: 7 | N99: 3 | O99: 1 | V99: 12 | W99: 8 | X99: 2 | Y99: 2 | AF99: 0 | AG99: 0 | AH99: 0 | AI99: 0 | AJ99: 0 | AK99: 0 | AL99: 0 | AM99: 0 | AN99: 0 | AO99: 0
A100: DTAP + IPV + HIB (INFANRIX QUINTA) | B100: 23 | C100: 9 | D100: 5 | E100: 1 | J100: 8 | L100: 8 | M100: 2 | N100: 2 | O100: 1 | T100: 3 | V100: 13 | W100: 7 | X100: 2 | AD100: 4 | AF100: 2 | AH100: 1 | AN100: 1
A101: RABIES (RABIPUR) | B101: 22 | C101: 4 | D101: 4 | E101: 3 | J101: 11 | L101: 8 | M101: 1 | O101: 1 | T101: 6 | V101: 12 | W101: 3 | X101: 4 | Y101: 1 | AD101: 4 | AF101: 2 | AI101: 1 | AN101: 1
A102: INFLUENZA (SEASONAL) (FLUCELVAX QUADRIVALENT) | B102: 20 | C102: 6 | J102: 14 | L102: 6 | M102: 2 | T102: 4 | V102: 13 | W102: 4 | AD102: 9 | AF102: 1 | AN102: 1
A103: DTAP + IPV (UNKNOWN) | B103: 20 | C103: 6 | E103: 2 | J103: 12 | L103: 8 | M103: 1 | O103: 2 | T103: 5 | V103: 12 | W103: 5 | AD103: 7 | AF103: 0 | AG103: 0 | AH103: 0 | AI103: 0 | AJ103: 0 | AK103: 0 | AL103: 0 | AM103: 0 | AN103: 0 | AO103: 0
A104: INFLUENZA (SEASONAL) (FLULAVAL QUADRIVALENT) | B104: 20 | C104: 10 | E104: 1 | J104: 7 | K104: 2 | L104: 5 | M104: 3 | O104: 1 | T104: 1 | V104: 15 | W104: 7 | AD104: 6 | AE104: 2 | AF104: 0 | AG104: 0 | AH104: 0 | AI104: 0 | AJ104: 0 | AK104: 0 | AL104: 0 | AM104: 0 | AN104: 0 | AO104: 0
A105: PNEUMO (PNU-IMUNE) | B105: 19 | C105: 13 | D105: 2 | J105: 4 | L105: 6 | M105: 4 | N105: 1 | T105: 1 | V105: 13 | W105: 9 | X105: 1 | AD105: 3 | AF105: 0 | AG105: 0 | AH105: 0 | AI105: 0 | AJ105: 0 | AK105: 0 | AL105: 0 | AM105: 0 | AN105: 0 | AO105: 0
A106: DTAP + IPV (INFANRIX TETRA) | B106: 18 | C106: 2 | D106: 1 | F106: 3 | G106: 1 | J106: 11 | L106: 9 | M106: 1 | N106: 1 | P106: 2 | T106: 5 | V106: 7 | W106: 1 | Z106: 1 | AA106: 1 | AD106: 4 | AF106: 2 | AN106: 2
A107: INFLUENZA (SEASONAL) (FLULAVAL) | B107: 16 | C107: 9 | J107: 7 | L107: 6 | M107: 5 | T107: 1 | V107: 10 | W107: 4 | AD107: 6 | AF107: 0 | AG107: 0 | AH107: 0 | AI107: 0 | AJ107: 0 | AK107: 0 | AL107: 0 | AM107: 0 | AN107: 0 | AO107: 0
A108: MEASLES + MUMPS + RUBELLA (PRIORIX) | B108: 16 | C108: 2 | J108: 14 | L108: 5 | M108: 1 | T108: 4 | V108: 10 | W108: 1 | AD108: 9 | AF108: 1 | AN108: 1
A109: HIB + HEP B (COMVAX) | B109: 16 | C109: 8 | D109: 2 | E109: 2 | J109: 4 | L109: 6 | M109: 1 | N109: 2 | O109: 1 | T109: 2 | V109: 10 | W109: 7 | Y109: 1 | AD109: 2 | AF109: 0 | AG109: 0 | AH109: 0 | AI109: 0 | AJ109: 0 | AK109: 0 | AL109: 0 | AM109: 0 | AN109: 0 | AO109: 0
A110: CHOLERA (NO BRAND NAME) | B110: 16 | C110: 6 | D110: 2 | J110: 8 | L110: 8 | M110: 3 | T110: 5 | V110: 8 | W110: 3 | X110: 2 | AD110: 3 | AF110: 0 | AG110: 0 | AH110: 0 | AI110: 0 | AJ110: 0 | AK110: 0 | AL110: 0 | AM110: 0 | AN110: 0 | AO110: 0
A111: DTAP + IPV + HIB (UNKNOWN) | B111: 15 | C111: 2 | E111: 1 | F111: 1 | J111: 11 | L111: 6 | M111: 1 | O111: 1 | P111: 1 | T111: 3 | V111: 7 | W111: 1 | AD111: 6 | AF111: 2 | AN111: 2
A112: YELLOW FEVER (NO BRAND NAME) | B112: 14 | C112: 3 | D112: 1 | E112: 1 | J112: 9 | L112: 7 | M112: 3 | O112: 1 | T112: 3 | V112: 6 | X112: 1 | AD112: 5 | AF112: 1 | AN112: 1
A113: INFLUENZA (SEASONAL) (FLUZONE HIGH-DOSE QUADRIVALENT) | B113: 14 | C113: 6 | D113: 1 | J113: 6 | K113: 1 | L113: 4 | M113: 1 | N113: 1 | T113: 1 | U113: 1 | V113: 8 | W113: 5 | AD113: 3 | AF113: 2 | AN113: 2
A114: INFLUENZA (SEASONAL) (FLUENZ TETRA) | B114: 14 | J114: 14 | L114: 7 | T114: 7 | V114: 7 | AD114: 7 | AF114: 0 | AG114: 0 | AH114: 0 | AI114: 0 | AJ114: 0 | AK114: 0 | AL114: 0 | AM114: 0 | AN114: 0 | AO114: 0
A115: HIB (HIBERIX) | B115: 14 | C115: 3 | D115: 1 | E115: 2 | J115: 8 | L115: 8 | M115: 2 | O115: 1 | T115: 5 | V115: 6 | W115: 1 | X115: 1 | Y115: 1 | AD115: 3 | AF115: 0 | AG115: 0 | AH115: 0 | AI115: 0 | AJ115: 0 | AK115: 0 | AL115: 0 | AM115: 0 | AN115: 0 | AO115: 0
A116: VACCINE NOT SPECIFIED (OTHER) | B116: 13 | C116: 6 | D116: 1 | F116: 1 | J116: 5 | L116: 5 | M116: 3 | N116: 1 | T116: 1 | V116: 7 | W116: 2 | Z116: 1 | AD116: 4 | AF116: 1 | AG116: 1
A117: RABIES (NO BRAND NAME) | B117: 13 | C117: 1 | D117: 1 | E117: 2 | F117: 2 | G117: 2 | I117: 1 | J117: 4 | L117: 4 | O117: 1 | T117: 3 | V117: 9 | W117: 1 | X117: 1 | Y117: 1 | Z117: 2 | AA117: 2 | AC117: 1 | AD117: 1 | AF117: 0 | AG117: 0 | AH117: 0 | AI117: 0 | AJ117: 0 | AK117: 0 | AL117: 0 | AM117: 0 | AN117: 0 | AO117: 0
A118: INFLUENZA (SEASONAL) (FLUAD QUADRIVALENT) | B118: 13 | C118: 5 | H118: 1 | J118: 4 | K118: 3 | L118: 3 | M118: 1 | T118: 1 | U118: 1 | V118: 10 | W118: 4 | AB118: 1 | AD118: 3 | AE118: 2 | AF118: 0 | AG118: 0 | AH118: 0 | AI118: 0 | AJ118: 0 | AK118: 0 | AL118: 0 | AM118: 0 | AN118: 0 | AO118: 0
A119: JAPANESE ENCEPHALITIS (JE-VAX) | B119: 12 | C119: 4 | D119: 5 | E119: 1 | J119: 2 | L119: 4 | M119: 1 | O119: 1 | T119: 2 | V119: 8 | W119: 3 | X119: 5 | AF119: 0 | AG119: 0 | AH119: 0 | AI119: 0 | AJ119: 0 | AK119: 0 | AL119: 0 | AM119: 0 | AN119: 0 | AO119: 0
A120: VARICELLA (NO BRAND NAME) | B120: 12 | C120: 5 | D120: 1 | J120: 6 | L120: 5 | M120: 3 | T120: 2 | V120: 7 | W120: 2 | X120: 1 | AD120: 4 | AF120: 0 | AG120: 0 | AH120: 0 | AI120: 0 | AJ120: 0 | AK120: 0 | AL120: 0 | AM120: 0 | AN120: 0 | AO120: 0
A121: TD ADSORBED (TDVAX) | B121: 11 | C121: 2 | D121: 2 | G121: 1 | H121: 1 | J121: 4 | K121: 1 | L121: 4 | N121: 1 | R121: 1 | T121: 1 | U121: 1 | V121: 7 | W121: 2 | X121: 1 | AA121: 1 | AD121: 3 | AF121: 0 | AG121: 0 | AH121: 0 | AI121: 0 | AJ121: 0 | AK121: 0 | AL121: 0 | AM121: 0 | AN121: 0 | AO121: 0
A122: SMALLPOX (NO BRAND NAME) | B122: 11 | C122: 2 | J122: 9 | L122: 6 | M122: 1 | T122: 5 | V122: 5 | W122: 1 | AD122: 4 | AF122: 0 | AG122: 0 | AH122: 0 | AI122: 0 | AJ122: 0 | AK122: 0 | AL122: 0 | AM122: 0 | AN122: 0 | AO122: 0
A123: JAPANESE ENCEPHALITIS (IXIARO) | B123: 10 | C123: 8 | D123: 1 | J123: 1 | L123: 3 | M123: 3 | V123: 7 | W123: 5 | X123: 1 | AD123: 1 | AF123: 0 | AG123: 0 | AH123: 0 | AI123: 0 | AJ123: 0 | AK123: 0 | AL123: 0 | AM123: 0 | AN123: 0 | AO123: 0
A124: INFLUENZA (SEASONAL) (FLUBLOK QUADRIVALENT) | B124: 10 | C124: 5 | D124: 1 | J124: 3 | K124: 1 | L124: 3 | M124: 1 | N124: 1 | U124: 1 | V124: 7 | W124: 4 | AD124: 3 | AF124: 0 | AG124: 0 | AH124: 0 | AI124: 0 | AJ124: 0 | AK124: 0 | AL124: 0 | AM124: 0 | AN124: 0 | AO124: 0
A125: HEP B (HEPLISAV-B) | B125: 10 | C125: 4 | D125: 4 | J125: 2 | L125: 2 | N125: 1 | T125: 1 | V125: 8 | W125: 4 | X125: 3 | AD125: 1 | AF125: 0 | AG125: 0 | AH125: 0 | AI125: 0 | AJ125: 0 | AK125: 0 | AL125: 0 | AM125: 0 | AN125: 0 | AO125: 0
A126: RABIES (IMOVAX ID) | B126: 10 | C126: 1 | D126: 4 | J126: 5 | L126: 0 | M126: 0 | N126: 0 | O126: 0 | P126: 0 | Q126: 0 | R126: 0 | S126: 0 | T126: 0 | U126: 0 | V126: 8 | W126: 1 | X126: 3 | AD126: 4 | AF126: 2 | AH126: 1 | AN126: 1
A127: PNEUMO (SYNFLORIX) | B127: 10 | C127: 2 | F127: 1 | J127: 7 | L127: 4 | M127: 1 | P127: 1 | T127: 2 | V127: 6 | W127: 1 | AD127: 5 | AF127: 0 | AG127: 0 | AH127: 0 | AI127: 0 | AJ127: 0 | AK127: 0 | AL127: 0 | AM127: 0 | AN127: 0 | AO127: 0
A128: TYPHOID LIVE ORAL TY21A (NO BRAND NAME) | B128: 9 | F128: 1 | G128: 1 | J128: 7 | L128: 2 | T128: 2 | V128: 7 | Z128: 1 | AA128: 1 | AD128: 5 | AF128: 0 | AG128: 0 | AH128: 0 | AI128: 0 | AJ128: 0 | AK128: 0 | AL128: 0 | AM128: 0 | AN128: 0 | AO128: 0
A129: SMALLPOX (ACAM2000) | B129: 9 | C129: 7 | D129: 1 | J129: 1 | L129: 6 | M129: 5 | T129: 1 | V129: 3 | W129: 2 | X129: 1 | AF129: 0 | AG129: 0 | AH129: 0 | AI129: 0 | AJ129: 0 | AK129: 0 | AL129: 0 | AM129: 0 | AN129: 0 | AO129: 0
A130: BCG (NO BRAND NAME) | B130: 9 | C130: 2 | J130: 7 | L130: 7 | M130: 2 | T130: 5 | V130: 2 | AD130: 2 | AF130: 0 | AG130: 0 | AH130: 0 | AI130: 0 | AJ130: 0 | AK130: 0 | AL130: 0 | AM130: 0 | AN130: 0 | AO130: 0
A131: TETANUS TOXOID, ADSORBED (NO BRAND NAME) | B131: 9 | C131: 3 | J131: 6 | L131: 2 | T131: 2 | V131: 6 | W131: 3 | AD131: 3 | AF131: 1 | AN131: 1
A132: YELLOW FEVER (STAMARIL) | B132: 9 | C132: 3 | J132: 6 | L132: 7 | M132: 3 | T132: 4 | V132: 2 | AD132: 2 | AF132: 0 | AG132: 0 | AH132: 0 | AI132: 0 | AJ132: 0 | AK132: 0 | AL132: 0 | AM132: 0 | AN132: 0 | AO132: 0
A133: RUBELLA (MERUVAX II) | B133: 9 | C133: 2 | J133: 7 | L133: 1 | M133: 1 | V133: 8 | W133: 1 | AD133: 7 | AF133: 0 | AG133: 0 | AH133: 0 | AI133: 0 | AJ133: 0 | AK133: 0 | AL133: 0 | AM133: 0 | AN133: 0 | AO133: 0
A134: DTP + IPV (NO BRAND NAME) | B134: 8 | C134: 2 | D134: 2 | E134: 2 | H134: 1 | J134: 1 | L134: 5 | M134: 1 | N134: 1 | O134: 1 | R134: 1 | T134: 1 | V134: 3 | W134: 1 | X134: 1 | Y134: 1 | AF134: 0 | AG134: 0 | AH134: 0 | AI134: 0 | AJ134: 0 | AK134: 0 | AL134: 0 | AM134: 0 | AN134: 0 | AO134: 0
A135: DTP + HIB (TETRAMUNE) | B135: 8 | C135: 4 | D135: 2 | E135: 1 | F135: 1 | L135: 6 | M135: 3 | N135: 1 | O135: 1 | P135: 1 | V135: 2 | W135: 1 | X135: 1 | AF135: 0 | AG135: 0 | AH135: 0 | AI135: 0 | AJ135: 0 | AK135: 0 | AL135: 0 | AM135: 0 | AN135: 0 | AO135: 0
A136: DTAP + IPV (QUADRACEL) | B136: 7 | C136: 1 | F136: 1 | G136: 2 | J136: 3 | L136: 6 | M136: 1 | P136: 1 | Q136: 2 | T136: 2 | V136: 1 | AD136: 1 | AF136: 0 | AG136: 0 | AH136: 0 | AI136: 0 | AJ136: 0 | AK136: 0 | AL136: 0 | AM136: 0 | AN136: 0 | AO136: 0
A137: DT+IPV+HIB+HEPB (NO BRAND NAME) | B137: 7 | C137: 1 | D137: 2 | E137: 2 | J137: 2 | L137: 6 | M137: 1 | N137: 2 | O137: 2 | T137: 1 | V137: 1 | AD137: 1 | AF137: 0 | AG137: 0 | AH137: 0 | AI137: 0 | AJ137: 0 | AK137: 0 | AL137: 0 | AM137: 0 | AN137: 0 | AO137: 0
A138: DTP + HEP B (NO BRAND NAME) | B138: 7 | C138: 5 | J138: 2 | L138: 4 | M138: 2 | T138: 2 | V138: 3 | W138: 3 | AF138: 0 | AG138: 0 | AH138: 0 | AI138: 0 | AJ138: 0 | AK138: 0 | AL138: 0 | AM138: 0 | AN138: 0 | AO138: 0
A139: INFLUENZA (H1N1) (H1N1 (MONOVALENT) (GSK)) | B139: 6 | C139: 1 | J139: 5 | L139: 2 | M139: 1 | T139: 1 | V139: 4 | AD139: 4 | AF139: 0 | AG139: 0 | AH139: 0 | AI139: 0 | AJ139: 0 | AK139: 0 | AL139: 0 | AM139: 0 | AN139: 0 | AO139: 0
A140: DTAP + IPV + HIB (NO BRAND NAME) | B140: 6 | C140: 4 | D140: 1 | J140: 1 | L140: 2 | M140: 1 | N140: 1 | V140: 4 | W140: 3 | AD140: 1 | AF140: 0 | AG140: 0 | AH140: 0 | AI140: 0 | AJ140: 0 | AK140: 0 | AL140: 0 | AM140: 0 | AN140: 0 | AO140: 0
A141: CHOLERA (USP) | B141: 6 | C141: 2 | J141: 4 | L141: 2 | M141: 1 | T141: 1 | V141: 4 | W141: 1 | AD141: 3 | AF141: 0 | AG141: 0 | AH141: 0 | AI141: 0 | AJ141: 0 | AK141: 0 | AL141: 0 | AM141: 0 | AN141: 0 | AO141: 0
A142: INFLUENZA (H1N1) (H1N1 (MONOVALENT) (CSL)) | B142: 6 | C142: 4 | J142: 2 | L142: 2 | M142: 2 | V142: 4 | W142: 2 | AD142: 2 | AF142: 0 | AG142: 0 | AH142: 0 | AI142: 0 | AJ142: 0 | AK142: 0 | AL142: 0 | AM142: 0 | AN142: 0 | AO142: 0
A143: ZOSTER (NO BRAND NAME) | B143: 6 | C143: 3 | D143: 2 | J143: 1 | L143: 2 | M143: 1 | N143: 1 | V143: 3 | W143: 2 | AD143: 1 | AF143: 1 | AH143: 1
A144: DTAP + HEPB + IPV (NO BRAND NAME) | B144: 6 | C144: 1 | D144: 1 | E144: 1 | J144: 3 | L144: 4 | M144: 1 | N144: 1 | T144: 2 | V144: 2 | Y144: 1 | AD144: 1 | AF144: 0 | AG144: 0 | AH144: 0 | AI144: 0 | AJ144: 0 | AK144: 0 | AL144: 0 | AM144: 0 | AN144: 0 | AO144: 0
A145: DT + IPV (NO BRAND NAME) | B145: 5 | J145: 5 | L145: 4 | T145: 4 | V145: 1 | AD145: 1 | AF145: 0 | AG145: 0 | AH145: 0 | AI145: 0 | AJ145: 0 | AK145: 0 | AL145: 0 | AM145: 0 | AN145: 0 | AO145: 0
A146: MENINGOCOCCAL CONJUGATE (NO BRAND NAME) | B146: 5 | D146: 1 | J146: 4 | L146: 4 | N146: 1 | T146: 3 | V146: 1 | AD146: 1 | AF146: 0 | AG146: 0 | AH146: 0 | AI146: 0 | AJ146: 0 | AK146: 0 | AL146: 0 | AM146: 0 | AN146: 0 | AO146: 0
A147: MEASLES + MUMPS + RUBELLA + VARICELLA (NO BRAND NAME) | B147: 5 | J147: 5 | L147: 4 | T147: 4 | V147: 1 | AD147: 1 | AF147: 0 | AG147: 0 | AH147: 0 | AI147: 0 | AJ147: 0 | AK147: 0 | AL147: 0 | AM147: 0 | AN147: 0 | AO147: 0
A148: INFLUENZA (SEASONAL) (FLU-IMUNE) | B148: 5 | C148: 1 | J148: 4 | L148: 1 | T148: 1 | V148: 2 | AD148: 2 | AF148: 2 | AG148: 1 | AN148: 1
A149: TYPHOID VI POLYSACCHARIDE (ACETONE INACTIVATED DRIED) | B149: 5 | C149: 2 | J149: 3 | L149: 4 | M149: 2 | T149: 2 | V149: 0 | W149: 0 | X149: 0 | Y149: 0 | Z149: 0 | AA149: 0 | AB149: 0 | AC149: 0 | AD149: 0 | AE149: 0 | AF149: 1 | AN149: 1
A150: HIB (PROHIBIT) | B150: 5 | C150: 2 | D150: 1 | F150: 2 | L150: 3 | M150: 1 | P150: 2 | V150: 2 | W150: 1 | X150: 1 | AF150: 0 | AG150: 0 | AH150: 0 | AI150: 0 | AJ150: 0 | AK150: 0 | AL150: 0 | AM150: 0 | AN150: 0 | AO150: 0
A151: HEP A + HEP B (NO BRAND NAME) | B151: 5 | C151: 1 | J151: 4 | L151: 3 | M151: 1 | T151: 2 | V151: 2 | AD151: 2 | AF151: 0 | AG151: 0 | AH151: 0 | AI151: 0 | AJ151: 0 | AK151: 0 | AL151: 0 | AM151: 0 | AN151: 0 | AO151: 0
A152: INFLUENZA (SEASONAL) (FLUZONE INTRADERMAL) | B152: 5 | C152: 4 | D152: 1 | L152: 0 | M152: 0 | N152: 0 | O152: 0 | P152: 0 | Q152: 0 | R152: 0 | S152: 0 | T152: 0 | U152: 0 | V152: 5 | W152: 4 | X152: 1 | AF152: 0 | AG152: 0 | AH152: 0 | AI152: 0 | AJ152: 0 | AK152: 0 | AL152: 0 | AM152: 0 | AN152: 0 | AO152: 0
A153: INFLUENZA (SEASONAL) (QIV DRESDEN) | B153: 5 | J153: 5 | L153: 0 | M153: 0 | N153: 0 | O153: 0 | P153: 0 | Q153: 0 | R153: 0 | S153: 0 | T153: 0 | U153: 0 | V153: 5 | AD153: 5 | AF153: 0 | AG153: 0 | AH153: 0 | AI153: 0 | AJ153: 0 | AK153: 0 | AL153: 0 | AM153: 0 | AN153: 0 | AO153: 0
A154: JAPANESE ENCEPHALITIS (J-VAX) | B154: 5 | C154: 2 | D154: 1 | J154: 2 | L154: 1 | T154: 1 | V154: 4 | W154: 2 | X154: 1 | AD154: 1 | AF154: 0 | AG154: 0 | AH154: 0 | AI154: 0 | AJ154: 0 | AK154: 0 | AL154: 0 | AM154: 0 | AN154: 0 | AO154: 0
A155: MEASLES (ATTENUVAX) | B155: 5 | C155: 1 | D155: 2 | E155: 1 | J155: 1 | L155: 4 | M155: 1 | N155: 2 | T155: 1 | V155: 1 | Y155: 1 | AF155: 0 | AG155: 0 | AH155: 0 | AI155: 0 | AJ155: 0 | AK155: 0 | AL155: 0 | AM155: 0 | AN155: 0 | AO155: 0
A156: RABIES (RABIE-VAX) | B156: 4 | C156: 1 | E156: 1 | J156: 2 | L156: 0 | M156: 0 | N156: 0 | O156: 0 | P156: 0 | Q156: 0 | R156: 0 | S156: 0 | T156: 0 | U156: 0 | V156: 4 | W156: 1 | Y156: 1 | AD156: 2 | AF156: 0 | AG156: 0 | AH156: 0 | AI156: 0 | AJ156: 0 | AK156: 0 | AL156: 0 | AM156: 0 | AN156: 0 | AO156: 0
A157: MEASLES + RUBELLA (MR-VAX II) | B157: 4 | C157: 3 | D157: 1 | L157: 1 | M157: 1 | V157: 3 | W157: 2 | X157: 1 | AF157: 0 | AG157: 0 | AH157: 0 | AI157: 0 | AJ157: 0 | AK157: 0 | AL157: 0 | AM157: 0 | AN157: 0 | AO157: 0
A158: JAPANESE ENCEPHALITIS (NO BRAND NAME) | B158: 4 | C158: 2 | D158: 1 | J158: 1 | L158: 3 | M158: 2 | T158: 1 | V158: 1 | X158: 1 | AF158: 0 | AG158: 0 | AH158: 0 | AI158: 0 | AJ158: 0 | AK158: 0 | AL158: 0 | AM158: 0 | AN158: 0 | AO158: 0
A159: DTAP + HIB (NO BRAND NAME) | B159: 4 | D159: 1 | E159: 2 | J159: 1 | L159: 2 | N159: 1 | T159: 1 | V159: 2 | Y159: 2 | AF159: 0 | AG159: 0 | AH159: 0 | AI159: 0 | AJ159: 0 | AK159: 0 | AL159: 0 | AM159: 0 | AN159: 0 | AO159: 0
A160: MEASLES + MUMPS + RUBELLA (VIRIVAC) | B160: 4 | C160: 1 | D160: 3 | L160: 2 | M160: 1 | N160: 1 | V160: 2 | X160: 2 | AF160: 0 | AG160: 0 | AH160: 0 | AI160: 0 | AJ160: 0 | AK160: 0 | AL160: 0 | AM160: 0 | AN160: 0 | AO160: 0
A161: DTP + HIB (NO BRAND NAME) | B161: 4 | D161: 1 | F161: 1 | J161: 2 | L161: 2 | P161: 1 | T161: 1 | V161: 2 | X161: 1 | AD161: 1 | AF161: 0 | AG161: 0 | AH161: 0 | AI161: 0 | AJ161: 0 | AK161: 0 | AL161: 0 | AM161: 0 | AN161: 0 | AO161: 0
A162: DT ADSORBED (DECAVAC) | B162: 3 | J162: 3 | L162: 1 | T162: 1 | V162: 2 | AD162: 2 | AF162: 0 | AG162: 0 | AH162: 0 | AI162: 0 | AJ162: 0 | AK162: 0 | AL162: 0 | AM162: 0 | AN162: 0 | AO162: 0
A163: HEP A + TYP (HEPATYRIX) | B163: 3 | J163: 3 | L163: 1 | T163: 1 | V163: 2 | AD163: 2 | AF163: 0 | AG163: 0 | AH163: 0 | AI163: 0 | AJ163: 0 | AK163: 0 | AL163: 0 | AM163: 0 | AN163: 0 | AO163: 0
A164: DTAP (CERTIVA) | B164: 3 | D164: 1 | E164: 1 | G164: 1 | L164: 1 | N164: 1 | V164: 2 | Y164: 1 | AA164: 1 | AF164: 0 | AG164: 0 | AH164: 0 | AI164: 0 | AJ164: 0 | AK164: 0 | AL164: 0 | AM164: 0 | AN164: 0 | AO164: 0
A165: INFLUENZA (SEASONAL) (FLUBLOK) | B165: 3 | C165: 2 | J165: 1 | L165: 1 | T165: 1 | V165: 2 | W165: 2 | AF165: 0 | AG165: 0 | AH165: 0 | AI165: 0 | AJ165: 0 | AK165: 0 | AL165: 0 | AM165: 0 | AN165: 0 | AO165: 0
A166: VARICELLA (VARILRIX) | B166: 3 | D166: 1 | J166: 2 | L166: 2 | N166: 1 | T166: 1 | V166: 1 | AD166: 1 | AF166: 0 | AG166: 0 | AH166: 0 | AI166: 0 | AJ166: 0 | AK166: 0 | AL166: 0 | AM166: 0 | AN166: 0 | AO166: 0
A167: INFLUENZA (SEASONAL) (TIV DRESDEN) | B167: 3 | C167: 1 | J167: 2 | L167: 2 | T167: 2 | V167: 1 | W167: 1 | AF167: 0 | AG167: 0 | AH167: 0 | AI167: 0 | AJ167: 0 | AK167: 0 | AL167: 0 | AM167: 0 | AN167: 0 | AO167: 0
A168: INFLUENZA (SEASONAL) (OPTAFLU) | B168: 3 | J168: 3 | L168: 1 | T168: 1 | V168: 2 | AD168: 2 | AF168: 0 | AG168: 0 | AH168: 0 | AI168: 0 | AJ168: 0 | AK168: 0 | AL168: 0 | AM168: 0 | AN168: 0 | AO168: 0
A169: MUMPS (MUMPSVAX I) | B169: 3 | J169: 3 | L169: 1 | T169: 1 | V169: 2 | AD169: 2 | AF169: 0 | AG169: 0 | AH169: 0 | AI169: 0 | AJ169: 0 | AK169: 0 | AL169: 0 | AM169: 0 | AN169: 0 | AO169: 0
A170: DTP + IPV + ACT-HIB (NO BRAND NAME) | B170: 3 | C170: 1 | J170: 2 | L170: 2 | T170: 2 | V170: 1 | W170: 1 | AF170: 0 | AG170: 0 | AH170: 0 | AI170: 0 | AJ170: 0 | AK170: 0 | AL170: 0 | AM170: 0 | AN170: 0 | AO170: 0
A171: BCG (TICE) | B171: 2 | C171: 1 | J171: 1 | L171: 1 | T171: 1 | V171: 1 | W171: 1 | AF171: 0 | AG171: 0 | AH171: 0 | AI171: 0 | AJ171: 0 | AK171: 0 | AL171: 0 | AM171: 0 | AN171: 0 | AO171: 0
A172: PERTUSSIS (NO BRAND NAME) | B172: 2 | J172: 2 | L172: 2 | T172: 2 | V172: 0 | W172: 0 | X172: 0 | Y172: 0 | Z172: 0 | AA172: 0 | AB172: 0 | AC172: 0 | AD172: 0 | AE172: 0 | AF172: 0 | AG172: 0 | AH172: 0 | AI172: 0 | AJ172: 0 | AK172: 0 | AL172: 0 | AM172: 0 | AN172: 0 | AO172: 0
A173: MEASLES (NO BRAND NAME) | B173: 2 | J173: 2 | L173: 2 | T173: 2 | V173: 0 | W173: 0 | X173: 0 | Y173: 0 | Z173: 0 | AA173: 0 | AB173: 0 | AC173: 0 | AD173: 0 | AE173: 0 | AF173: 0 | AG173: 0 | AH173: 0 | AI173: 0 | AJ173: 0 | AK173: 0 | AL173: 0 | AM173: 0 | AN173: 0 | AO173: 0
A174: ADENOVIRUS TYPES 4 & 7, LIVE, ORAL (NO BRAND NAME) | B174: 2 | J174: 2 | L174: 1 | T174: 1 | V174: 1 | AD174: 1 | AF174: 0 | AG174: 0 | AH174: 0 | AI174: 0 | AJ174: 0 | AK174: 0 | AL174: 0 | AM174: 0 | AN174: 0 | AO174: 0
A175: TD ADSORBED (TENIVAC) | B175: 2 | J175: 1 | K175: 1 | L175: 0 | M175: 0 | N175: 0 | O175: 0 | P175: 0 | Q175: 0 | R175: 0 | S175: 0 | T175: 0 | U175: 0 | V175: 2 | AD175: 1 | AE175: 1 | AF175: 0 | AG175: 0 | AH175: 0 | AI175: 0 | AJ175: 0 | AK175: 0 | AL175: 0 | AM175: 0 | AN175: 0 | AO175: 0
A176: INFLUENZA (SEASONAL) (FLUCELVAX) | B176: 2 | C176: 1 | J176: 1 | L176: 1 | M176: 1 | V176: 1 | AD176: 1 | AF176: 0 | AG176: 0 | AH176: 0 | AI176: 0 | AJ176: 0 | AK176: 0 | AL176: 0 | AM176: 0 | AN176: 0 | AO176: 0
A177: DENGUE TETRAVALENT (DENGVAXIA) | B177: 2 | E177: 1 | J177: 1 | L177: 0 | M177: 0 | N177: 0 | O177: 0 | P177: 0 | Q177: 0 | R177: 0 | S177: 0 | T177: 0 | U177: 0 | V177: 2 | Y177: 1 | AD177: 1 | AF177: 0 | AG177: 0 | AH177: 0 | AI177: 0 | AJ177: 0 | AK177: 0 | AL177: 0 | AM177: 0 | AN177: 0 | AO177: 0
A178: BCG (MYCOBAX) | B178: 2 | J178: 2 | L178: 2 | T178: 2 | V178: 0 | W178: 0 | X178: 0 | Y178: 0 | Z178: 0 | AA178: 0 | AB178: 0 | AC178: 0 | AD178: 0 | AE178: 0 | AF178: 0 | AG178: 0 | AH178: 0 | AI178: 0 | AJ178: 0 | AK178: 0 | AL178: 0 | AM178: 0 | AN178: 0 | AO178: 0
A179: MEASLES + MUMPS (MM-VAX) | B179: 2 | J179: 2 | L179: 2 | T179: 2 | V179: 0 | W179: 0 | X179: 0 | Y179: 0 | Z179: 0 | AA179: 0 | AB179: 0 | AC179: 0 | AD179: 0 | AE179: 0 | AF179: 0 | AG179: 0 | AH179: 0 | AI179: 0 | AJ179: 0 | AK179: 0 | AL179: 0 | AM179: 0 | AN179: 0 | AO179: 0
A180: DTP + HEP B (TRITANRIX) | B180: 2 | J180: 2 | L180: 2 | T180: 2 | V180: 0 | W180: 0 | X180: 0 | Y180: 0 | Z180: 0 | AA180: 0 | AB180: 0 | AC180: 0 | AD180: 0 | AE180: 0 | AF180: 0 | AG180: 0 | AH180: 0 | AI180: 0 | AJ180: 0 | AK180: 0 | AL180: 0 | AM180: 0 | AN180: 0 | AO180: 0
A181: DT ADSORBED (DITANRIX) | B181: 2 | J181: 2 | L181: 0 | M181: 0 | N181: 0 | O181: 0 | P181: 0 | Q181: 0 | R181: 0 | S181: 0 | T181: 0 | U181: 0 | V181: 2 | AD181: 2 | AF181: 0 | AG181: 0 | AH181: 0 | AI181: 0 | AJ181: 0 | AK181: 0 | AL181: 0 | AM181: 0 | AN181: 0 | AO181: 0
A182: MEASLES + MUMPS + RUBELLA (MMR I) | B182: 2 | D182: 2 | L182: 2 | N182: 2 | V182: 0 | W182: 0 | X182: 0 | Y182: 0 | Z182: 0 | AA182: 0 | AB182: 0 | AC182: 0 | AD182: 0 | AE182: 0 | AF182: 0 | AG182: 0 | AH182: 0 | AI182: 0 | AJ182: 0 | AK182: 0 | AL182: 0 | AM182: 0 | AN182: 0 | AO182: 0
A183: RUBELLA (NO BRAND NAME) | B183: 2 | J183: 2 | L183: 1 | T183: 1 | V183: 1 | AD183: 1 | AF183: 0 | AG183: 0 | AH183: 0 | AI183: 0 | AJ183: 0 | AK183: 0 | AL183: 0 | AM183: 0 | AN183: 0 | AO183: 0
A184: FSME-IMMUN. (NO BRAND NAME) | B184: 2 | C184: 1 | J184: 1 | L184: 2 | M184: 1 | T184: 1 | V184: 0 | W184: 0 | X184: 0 | Y184: 0 | Z184: 0 | AA184: 0 | AB184: 0 | AC184: 0 | AD184: 0 | AE184: 0 | AF184: 0 | AG184: 0 | AH184: 0 | AI184: 0 | AJ184: 0 | AK184: 0 | AL184: 0 | AM184: 0 | AN184: 0 | AO184: 0
A185: DTAP+IPV+HEPB+HIB (HEXAVAC) | B185: 1 | C185: 1 | L185: 1 | M185: 1 | V185: 0 | W185: 0 | X185: 0 | Y185: 0 | Z185: 0 | AA185: 0 | AB185: 0 | AC185: 0 | AD185: 0 | AE185: 0 | AF185: 0 | AG185: 0 | AH185: 0 | AI185: 0 | AJ185: 0 | AK185: 0 | AL185: 0 | AM185: 0 | AN185: 0 | AO185: 0
A186: DIPHTHERIA TOXOIDS (NO BRAND NAME) | B186: 1 | J186: 1 | L186: 0 | M186: 0 | N186: 0 | O186: 0 | P186: 0 | Q186: 0 | R186: 0 | S186: 0 | T186: 0 | U186: 0 | V186: 1 | AD186: 1 | AF186: 0 | AG186: 0 | AH186: 0 | AI186: 0 | AJ186: 0 | AK186: 0 | AL186: 0 | AM186: 0 | AN186: 0 | AO186: 0
A187: VACCINE NOT SPECIFIED (FOREIGN) | B187: 1 | D187: 1 | L187: 0 | M187: 0 | N187: 0 | O187: 0 | P187: 0 | Q187: 0 | R187: 0 | S187: 0 | T187: 0 | U187: 0 | V187: 1 | X187: 1 | AF187: 0 | AG187: 0 | AH187: 0 | AI187: 0 | AJ187: 0 | AK187: 0 | AL187: 0 | AM187: 0 | AN187: 0 | AO187: 0
A188: MENINGOCOCCAL (MENOMUNE-A/C) | B188: 1 | C188: 1 | L188: 0 | M188: 0 | N188: 0 | O188: 0 | P188: 0 | Q188: 0 | R188: 0 | S188: 0 | T188: 0 | U188: 0 | V188: 1 | W188: 1 | AF188: 0 | AG188: 0 | AH188: 0 | AI188: 0 | AJ188: 0 | AK188: 0 | AL188: 0 | AM188: 0 | AN188: 0 | AO188: 0
A189: MEASLES (FOREIGN) | B189: 1 | E189: 1 | L189: 1 | O189: 1 | V189: 0 | W189: 0 | X189: 0 | Y189: 0 | Z189: 0 | AA189: 0 | AB189: 0 | AC189: 0 | AD189: 0 | AE189: 0 | AF189: 0 | AG189: 0 | AH189: 0 | AI189: 0 | AJ189: 0 | AK189: 0 | AL189: 0 | AM189: 0 | AN189: 0 | AO189: 0
A190: HEP B (GENHEVAC B) | B190: 1 | J190: 1 | L190: 0 | M190: 0 | N190: 0 | O190: 0 | P190: 0 | Q190: 0 | R190: 0 | S190: 0 | T190: 0 | U190: 0 | V190: 1 | AD190: 1 | AF190: 0 | AG190: 0 | AH190: 0 | AI190: 0 | AJ190: 0 | AK190: 0 | AL190: 0 | AM190: 0 | AN190: 0 | AO190: 0
A191: SUMMER/SPRING ENCEPH (NO BRAND NAME) | B191: 1 | E191: 1 | L191: 0 | M191: 0 | N191: 0 | O191: 0 | P191: 0 | Q191: 0 | R191: 0 | S191: 0 | T191: 0 | U191: 0 | V191: 1 | Y191: 1 | AF191: 0 | AG191: 0 | AH191: 0 | AI191: 0 | AJ191: 0 | AK191: 0 | AL191: 0 | AM191: 0 | AN191: 0 | AO191: 0
A192: DTAP + HIB (TRIHIBIT) | B192: 1 | F192: 1 | L192: 0 | M192: 0 | N192: 0 | O192: 0 | P192: 0 | Q192: 0 | R192: 0 | S192: 0 | T192: 0 | U192: 0 | V192: 1 | Z192: 1 | AF192: 0 | AG192: 0 | AH192: 0 | AI192: 0 | AJ192: 0 | AK192: 0 | AL192: 0 | AM192: 0 | AN192: 0 | AO192: 0
A193: PLAGUE (NO BRAND NAME) | B193: 1 | E193: 1 | L193: 1 | O193: 1 | V193: 0 | W193: 0 | X193: 0 | Y193: 0 | Z193: 0 | AA193: 0 | AB193: 0 | AC193: 0 | AD193: 0 | AE193: 0 | AF193: 0 | AG193: 0 | AH193: 0 | AI193: 0 | AJ193: 0 | AK193: 0 | AL193: 0 | AM193: 0 | AN193: 0 | AO193: 0
A194: CHOLERA (VAXCHORA) | B194: 1 | J194: 1 | L194: 0 | M194: 0 | N194: 0 | O194: 0 | P194: 0 | Q194: 0 | R194: 0 | S194: 0 | T194: 0 | U194: 0 | V194: 1 | AD194: 1 | AF194: 0 | AG194: 0 | AH194: 0 | AI194: 0 | AJ194: 0 | AK194: 0 | AL194: 0 | AM194: 0 | AN194: 0 | AO194: 0
A195: INFLUENZA (SEASONAL) (FLUZONE INTRADERMAL QUADRIVALENT) | B195: 1 | J195: 1 | L195: 0 | M195: 0 | N195: 0 | O195: 0 | P195: 0 | Q195: 0 | R195: 0 | S195: 0 | T195: 0 | U195: 0 | V195: 1 | AD195: 1 | AF195: 0 | AG195: 0 | AH195: 0 | AI195: 0 | AJ195: 0 | AK195: 0 | AL195: 0 | AM195: 0 | AN195: 0 | AO195: 0
A196: TICK-BORNE ENCEPH (NO BRAND NAME) | B196: 1 | J196: 1 | L196: 1 | T196: 1 | V196: 0 | W196: 0 | X196: 0 | Y196: 0 | Z196: 0 | AA196: 0 | AB196: 0 | AC196: 0 | AD196: 0 | AE196: 0 | AF196: 0 | AG196: 0 | AH196: 0 | AI196: 0 | AJ196: 0 | AK196: 0 | AL196: 0 | AM196: 0 | AN196: 0 | AO196: 0
A197: TDAP + IPV (FOREIGN) | B197: 1 | J197: 1 | L197: 1 | T197: 1 | V197: 0 | W197: 0 | X197: 0 | Y197: 0 | Z197: 0 | AA197: 0 | AB197: 0 | AC197: 0 | AD197: 0 | AE197: 0 | AF197: 0 | AG197: 0 | AH197: 0 | AI197: 0 | AJ197: 0 | AK197: 0 | AL197: 0 | AM197: 0 | AN197: 0 | AO197: 0
A198: HIB POLYSACCHARIDE (HIBIMUNE) | B198: 1 | C198: 1 | L198: 0 | M198: 0 | N198: 0 | O198: 0 | P198: 0 | Q198: 0 | R198: 0 | S198: 0 | T198: 0 | U198: 0 | V198: 1 | W198: 1 | AF198: 0 | AG198: 0 | AH198: 0 | AI198: 0 | AJ198: 0 | AK198: 0 | AL198: 0 | AM198: 0 | AN198: 0 | AO198: 0
A199: MENINGOCOCCAL (MENINGITEC) | B199: 1 | J199: 1 | L199: 0 | M199: 0 | N199: 0 | O199: 0 | P199: 0 | Q199: 0 | R199: 0 | S199: 0 | T199: 0 | U199: 0 | V199: 1 | AD199: 1 | AF199: 0 | AG199: 0 | AH199: 0 | AI199: 0 | AJ199: 0 | AK199: 0 | AL199: 0 | AM199: 0 | AN199: 0 | AO199: 0
A200: DIPHTHERIA TOXOID + PERTUSSIS + IPV (NO BRAND NAME) | B200: 1 | J200: 1 | L200: 0 | M200: 0 | N200: 0 | O200: 0 | P200: 0 | Q200: 0 | R200: 0 | S200: 0 | T200: 0 | U200: 0 | V200: 1 | AD200: 1 | AF200: 0 | AG200: 0 | AH200: 0 | AI200: 0 | AJ200: 0 | AK200: 0 | AL200: 0 | AM200: 0 | AN200: 0 | AO200: 0
A201: TD ADSORBED (TD-RIX) | B201: 1 | G201: 1 | L201: 0 | M201: 0 | N201: 0 | O201: 0 | P201: 0 | Q201: 0 | R201: 0 | S201: 0 | T201: 0 | U201: 0 | V201: 1 | AA201: 1 | AF201: 0 | AG201: 0 | AH201: 0 | AI201: 0 | AJ201: 0 | AK201: 0 | AL201: 0 | AM201: 0 | AN201: 0 | AO201: 0
... 360 more rows

Sheet N_adominal_pain_lower
A1: Selected VAERS search terms:
A2: Abdominal pain lower
A4: Dose report
A5: Vaccine Name | B5: All | C5: 1 | D5: 2 | E5: 3 | F5: 4 | G5: 5 | H5: 6 | I5: 7+ | J5: UNK | K5: N/A | L5: All male | M5: 1 male | N5: 2 male | O5: 3 male | P5: 4 male | Q5: 5 male | R5: 6 male | S5: 7+ male | T5: UNK male | U5: N/A male | V5: All female | W5: 1 female | X5: 2 female | Y5: 3 female | Z5: 4 female | AA5: 5 female | AB5: 6 female | AC5: 7+ female | AD5: UNK female | AE5: N/A female | AF5: All Unknown | AG5: 1 Unknown | AH5: 2 Unknown | AI5: 3 Unknown | AJ5: 4 Unknown | AK5: 5 Unknown | AL5: 6 Unknown | AM5: 7+ Unknown | AN5: UNK Unknown | AO5: N/A Unknown
A6: COVID19 (COVID19 (PFIZER-BIONTECH)) | B6: 886 | C6: 399 | D6: 319 | E6: 41 | F6: 2 | J6: 125 | L6: 197 | M6: 87 | N6: 69 | O6: 7 | P6: 1 | T6: 33 | V6: 674 | W6: 305 | X6: 245 | Y6: 33 | Z6: 1 | AD6: 90 | AF6: 15 | AG6: 7 | AH6: 5 | AI6: 1 | AN6: 2
A7: COVID19 (COVID19 (MODERNA)) | B7: 445 | C7: 204 | D7: 147 | E7: 29 | F7: 3 | J7: 62 | L7: 108 | M7: 49 | N7: 35 | O7: 6 | P7: 2 | T7: 16 | V7: 331 | W7: 150 | X7: 112 | Y7: 23 | Z7: 1 | AD7: 45 | AF7: 6 | AG7: 5 | AN7: 1
A8: COVID19 (COVID19 (JANSSEN)) | B8: 119 | C8: 82 | D8: 1 | J8: 32 | K8: 4 | L8: 32 | M8: 20 | T8: 12 | V8: 86 | W8: 62 | X8: 1 | AD8: 19 | AE8: 4 | AF8: 1 | AN8: 1
A9: HPV (GARDASIL) | B9: 108 | C9: 37 | D9: 29 | E9: 27 | J9: 15 | L9: 3 | N9: 1 | O9: 1 | T9: 1 | V9: 101 | W9: 36 | X9: 27 | Y9: 25 | AD9: 13 | AF9: 4 | AG9: 1 | AH9: 1 | AI9: 1 | AN9: 1
A10: ZOSTER (SHINGRIX) | B10: 31 | C10: 15 | D10: 12 | J10: 4 | L10: 11 | M10: 6 | N10: 4 | T10: 1 | V10: 19 | W10: 9 | X10: 8 | AD10: 2 | AF10: 1 | AN10: 1
A11: HPV (CERVARIX) | B11: 24 | C11: 4 | D11: 2 | E11: 7 | J11: 11 | L11: 0 | M11: 0 | N11: 0 | O11: 0 | P11: 0 | Q11: 0 | R11: 0 | S11: 0 | T11: 0 | U11: 0 | V11: 22 | W11: 4 | X11: 2 | Y11: 6 | AD11: 10 | AF11: 2 | AI11: 1 | AN11: 1
A12: TDAP (ADACEL) | B12: 16 | C12: 10 | D12: 1 | J12: 5 | L12: 2 | M12: 2 | V12: 14 | W12: 8 | X12: 1 | AD12: 5 | AF12: 0 | AG12: 0 | AH12: 0 | AI12: 0 | AJ12: 0 | AK12: 0 | AL12: 0 | AM12: 0 | AN12: 0 | AO12: 0
A13: VACCINE NOT SPECIFIED (NO BRAND NAME) | B13: 15 | C13: 3 | D13: 2 | J13: 9 | K13: 1 | L13: 1 | T13: 1 | V13: 14 | W13: 3 | X13: 2 | AD13: 8 | AE13: 1 | AF13: 0 | AG13: 0 | AH13: 0 | AI13: 0 | AJ13: 0 | AK13: 0 | AL13: 0 | AM13: 0 | AN13: 0 | AO13: 0
A14: INFLUENZA (SEASONAL) (NO BRAND NAME) | B14: 13 | E14: 1 | J14: 12 | L14: 5 | T14: 5 | V14: 8 | Y14: 1 | AD14: 7 | AF14: 0 | AG14: 0 | AH14: 0 | AI14: 0 | AJ14: 0 | AK14: 0 | AL14: 0 | AM14: 0 | AN14: 0 | AO14: 0
A15: HEP A (HAVRIX) | B15: 13 | C15: 5 | D15: 2 | J15: 6 | L15: 1 | N15: 1 | V15: 12 | W15: 5 | X15: 1 | AD15: 6 | AF15: 0 | AG15: 0 | AH15: 0 | AI15: 0 | AJ15: 0 | AK15: 0 | AL15: 0 | AM15: 0 | AN15: 0 | AO15: 0
A16: HEP B (ENGERIX-B) | B16: 12 | C16: 3 | D16: 3 | E16: 3 | J16: 3 | L16: 4 | M16: 1 | O16: 1 | T16: 2 | V16: 8 | W16: 2 | X16: 3 | Y16: 2 | AD16: 1 | AF16: 0 | AG16: 0 | AH16: 0 | AI16: 0 | AJ16: 0 | AK16: 0 | AL16: 0 | AM16: 0 | AN16: 0 | AO16: 0
A17: HPV (GARDASIL 9) | B17: 11 | C17: 6 | D17: 3 | E17: 1 | J17: 1 | L17: 2 | M17: 1 | N17: 1 | V17: 8 | W17: 4 | X17: 2 | Y17: 1 | AD17: 1 | AF17: 1 | AG17: 1
A18: MENINGOCOCCAL CONJUGATE (MENACTRA) | B18: 10 | C18: 5 | D18: 4 | J18: 1 | L18: 1 | M18: 1 | V18: 9 | W18: 4 | X18: 4 | AD18: 1 | AF18: 0 | AG18: 0 | AH18: 0 | AI18: 0 | AJ18: 0 | AK18: 0 | AL18: 0 | AM18: 0 | AN18: 0 | AO18: 0
A19: PNEUMO (PREVNAR13) | B19: 10 | C19: 3 | D19: 1 | J19: 6 | L19: 7 | M19: 1 | N19: 1 | T19: 5 | V19: 3 | W19: 2 | AD19: 1 | AF19: 0 | AG19: 0 | AH19: 0 | AI19: 0 | AJ19: 0 | AK19: 0 | AL19: 0 | AM19: 0 | AN19: 0 | AO19: 0
A20: PNEUMO (PNEUMOVAX) | B20: 10 | C20: 2 | D20: 2 | J20: 6 | L20: 2 | N20: 1 | T20: 1 | V20: 8 | W20: 2 | X20: 1 | AD20: 5 | AF20: 0 | AG20: 0 | AH20: 0 | AI20: 0 | AJ20: 0 | AK20: 0 | AL20: 0 | AM20: 0 | AN20: 0 | AO20: 0
A21: INFLUENZA (SEASONAL) (FLUZONE) | B21: 9 | C21: 1 | E21: 1 | J21: 7 | L21: 2 | O21: 1 | T21: 1 | V21: 7 | W21: 1 | AD21: 6 | AF21: 0 | AG21: 0 | AH21: 0 | AI21: 0 | AJ21: 0 | AK21: 0 | AL21: 0 | AM21: 0 | AN21: 0 | AO21: 0
A22: HPV (NO BRAND NAME) | B22: 8 | C22: 3 | D22: 3 | J22: 2 | L22: 1 | T22: 1 | V22: 5 | W22: 2 | X22: 3 | AF22: 2 | AG22: 1 | AN22: 1
A23: ZOSTER LIVE (ZOSTAVAX) | B23: 8 | C23: 3 | D23: 1 | J23: 4 | L23: 2 | N23: 1 | T23: 1 | V23: 6 | W23: 3 | AD23: 3 | AF23: 0 | AG23: 0 | AH23: 0 | AI23: 0 | AJ23: 0 | AK23: 0 | AL23: 0 | AM23: 0 | AN23: 0 | AO23: 0
A24: HEP A (VAQTA) | B24: 7 | C24: 2 | D24: 2 | J24: 3 | L24: 1 | T24: 1 | V24: 5 | W24: 2 | X24: 1 | AD24: 2 | AF24: 1 | AH24: 1
A25: TDAP (BOOSTRIX) | B25: 7 | C25: 1 | J25: 6 | L25: 2 | T25: 2 | V25: 5 | W25: 1 | AD25: 4 | AF25: 0 | AG25: 0 | AH25: 0 | AI25: 0 | AJ25: 0 | AK25: 0 | AL25: 0 | AM25: 0 | AN25: 0 | AO25: 0
A26: HEP A + HEP B (TWINRIX) | B26: 6 | C26: 1 | D26: 3 | E26: 1 | J26: 1 | L26: 0 | M26: 0 | N26: 0 | O26: 0 | P26: 0 | Q26: 0 | R26: 0 | S26: 0 | T26: 0 | U26: 0 | V26: 6 | W26: 1 | X26: 3 | Y26: 1 | AD26: 1 | AF26: 0 | AG26: 0 | AH26: 0 | AI26: 0 | AJ26: 0 | AK26: 0 | AL26: 0 | AM26: 0 | AN26: 0 | AO26: 0
A27: MEASLES + MUMPS + RUBELLA (MMR II) | B27: 6 | C27: 1 | D27: 2 | J27: 3 | L27: 1 | T27: 1 | V27: 5 | W27: 1 | X27: 2 | AD27: 2 | AF27: 0 | AG27: 0 | AH27: 0 | AI27: 0 | AJ27: 0 | AK27: 0 | AL27: 0 | AM27: 0 | AN27: 0 | AO27: 0
A28: VARICELLA (VARIVAX) | B28: 5 | C28: 1 | D28: 1 | E28: 1 | J28: 2 | L28: 1 | T28: 1 | V28: 4 | W28: 1 | X28: 1 | Y28: 1 | AD28: 1 | AF28: 0 | AG28: 0 | AH28: 0 | AI28: 0 | AJ28: 0 | AK28: 0 | AL28: 0 | AM28: 0 | AN28: 0 | AO28: 0
A29: INFLUENZA (SEASONAL) (FLUZONE HIGH-DOSE) | B29: 5 | C29: 2 | J29: 2 | K29: 1 | L29: 2 | M29: 1 | T29: 1 | V29: 3 | W29: 1 | AD29: 1 | AE29: 1 | AF29: 0 | AG29: 0 | AH29: 0 | AI29: 0 | AJ29: 0 | AK29: 0 | AL29: 0 | AM29: 0 | AN29: 0 | AO29: 0
A30: COVID19 (COVID19 (UNKNOWN)) | B30: 5 | C30: 1 | D30: 1 | J30: 2 | K30: 1 | L30: 0 | M30: 0 | N30: 0 | O30: 0 | P30: 0 | Q30: 0 | R30: 0 | S30: 0 | T30: 0 | U30: 0 | V30: 5 | W30: 1 | X30: 1 | AD30: 2 | AE30: 1 | AF30: 0 | AG30: 0 | AH30: 0 | AI30: 0 | AJ30: 0 | AK30: 0 | AL30: 0 | AM30: 0 | AN30: 0 | AO30: 0
A31: MENINGOCOCCAL B (TRUMENBA) | B31: 5 | C31: 2 | D31: 3 | L31: 0 | M31: 0 | N31: 0 | O31: 0 | P31: 0 | Q31: 0 | R31: 0 | S31: 0 | T31: 0 | U31: 0 | V31: 5 | W31: 2 | X31: 3 | AF31: 0 | AG31: 0 | AH31: 0 | AI31: 0 | AJ31: 0 | AK31: 0 | AL31: 0 | AM31: 0 | AN31: 0 | AO31: 0
A32: INFLUENZA (SEASONAL) (FLUARIX) | B32: 4 | C32: 1 | I32: 1 | J32: 2 | L32: 2 | T32: 2 | V32: 2 | W32: 1 | AC32: 1 | AF32: 0 | AG32: 0 | AH32: 0 | AI32: 0 | AJ32: 0 | AK32: 0 | AL32: 0 | AM32: 0 | AN32: 0 | AO32: 0
A33: YELLOW FEVER (YF-VAX) | B33: 4 | C33: 1 | D33: 2 | J33: 1 | L33: 2 | N33: 1 | T33: 1 | V33: 2 | W33: 1 | X33: 1 | AF33: 0 | AG33: 0 | AH33: 0 | AI33: 0 | AJ33: 0 | AK33: 0 | AL33: 0 | AM33: 0 | AN33: 0 | AO33: 0
A34: INFLUENZA (SEASONAL) (FLUAD) | B34: 4 | C34: 1 | J34: 3 | L34: 2 | T34: 2 | V34: 2 | W34: 1 | AD34: 1 | AF34: 0 | AG34: 0 | AH34: 0 | AI34: 0 | AJ34: 0 | AK34: 0 | AL34: 0 | AM34: 0 | AN34: 0 | AO34: 0
A35: INFLUENZA (SEASONAL) (FLUVIRIN) | B35: 4 | D35: 2 | J35: 2 | L35: 2 | N35: 1 | T35: 1 | V35: 2 | X35: 1 | AD35: 1 | AF35: 0 | AG35: 0 | AH35: 0 | AI35: 0 | AJ35: 0 | AK35: 0 | AL35: 0 | AM35: 0 | AN35: 0 | AO35: 0
A36: INFLUENZA (SEASONAL) (FLUZONE QUADRIVALENT) | B36: 4 | J36: 3 | K36: 1 | L36: 2 | T36: 1 | U36: 1 | V36: 2 | AD36: 2 | AF36: 0 | AG36: 0 | AH36: 0 | AI36: 0 | AJ36: 0 | AK36: 0 | AL36: 0 | AM36: 0 | AN36: 0 | AO36: 0
A37: INFLUENZA (SEASONAL) (FLUARIX QUADRIVALENT) | B37: 4 | C37: 3 | J37: 1 | L37: 2 | M37: 1 | T37: 1 | V37: 2 | W37: 2 | AF37: 0 | AG37: 0 | AH37: 0 | AI37: 0 | AJ37: 0 | AK37: 0 | AL37: 0 | AM37: 0 | AN37: 0 | AO37: 0
A38: RABIES (RABIPUR) | B38: 3 | J38: 3 | L38: 0 | M38: 0 | N38: 0 | O38: 0 | P38: 0 | Q38: 0 | R38: 0 | S38: 0 | T38: 0 | U38: 0 | V38: 3 | AD38: 3 | AF38: 0 | AG38: 0 | AH38: 0 | AI38: 0 | AJ38: 0 | AK38: 0 | AL38: 0 | AM38: 0 | AN38: 0 | AO38: 0
A39: INFLUENZA (SEASONAL) (FLULAVAL) | B39: 3 | C39: 2 | J39: 1 | L39: 0 | M39: 0 | N39: 0 | O39: 0 | P39: 0 | Q39: 0 | R39: 0 | S39: 0 | T39: 0 | U39: 0 | V39: 3 | W39: 2 | AD39: 1 | AF39: 0 | AG39: 0 | AH39: 0 | AI39: 0 | AJ39: 0 | AK39: 0 | AL39: 0 | AM39: 0 | AN39: 0 | AO39: 0
A40: TYPHOID VI POLYSACCHARIDE (TYPHIM VI) | B40: 3 | J40: 3 | L40: 1 | T40: 1 | V40: 2 | AD40: 2 | AF40: 0 | AG40: 0 | AH40: 0 | AI40: 0 | AJ40: 0 | AK40: 0 | AL40: 0 | AM40: 0 | AN40: 0 | AO40: 0
A41: RABIES (IMOVAX) | B41: 3 | C41: 1 | D41: 1 | F41: 1 | L41: 0 | M41: 0 | N41: 0 | O41: 0 | P41: 0 | Q41: 0 | R41: 0 | S41: 0 | T41: 0 | U41: 0 | V41: 3 | W41: 1 | X41: 1 | Z41: 1 | AF41: 0 | AG41: 0 | AH41: 0 | AI41: 0 | AJ41: 0 | AK41: 0 | AL41: 0 | AM41: 0 | AN41: 0 | AO41: 0
A42: INFLUENZA (SEASONAL) (FLUZONE HIGH-DOSE QUADRIVALENT) | B42: 3 | C42: 2 | J42: 1 | L42: 2 | M42: 1 | T42: 1 | V42: 1 | W42: 1 | AF42: 0 | AG42: 0 | AH42: 0 | AI42: 0 | AJ42: 0 | AK42: 0 | AL42: 0 | AM42: 0 | AN42: 0 | AO42: 0
A43: ROTAVIRUS (ROTATEQ) | B43: 2 | J43: 2 | L43: 1 | T43: 1 | V43: 1 | AD43: 1 | AF43: 0 | AG43: 0 | AH43: 0 | AI43: 0 | AJ43: 0 | AK43: 0 | AL43: 0 | AM43: 0 | AN43: 0 | AO43: 0
A44: TETANUS DIPHTHERIA (NO BRAND NAME) | B44: 2 | C44: 1 | J44: 1 | L44: 1 | T44: 1 | V44: 1 | W44: 1 | AF44: 0 | AG44: 0 | AH44: 0 | AI44: 0 | AJ44: 0 | AK44: 0 | AL44: 0 | AM44: 0 | AN44: 0 | AO44: 0
A45: TYPHOID LIVE ORAL TY21A (NO BRAND NAME) | B45: 2 | C45: 2 | L45: 0 | M45: 0 | N45: 0 | O45: 0 | P45: 0 | Q45: 0 | R45: 0 | S45: 0 | T45: 0 | U45: 0 | V45: 2 | W45: 2 | AF45: 0 | AG45: 0 | AH45: 0 | AI45: 0 | AJ45: 0 | AK45: 0 | AL45: 0 | AM45: 0 | AN45: 0 | AO45: 0
A46: INFLUENZA (H1N1) (H1N1 (MONOVALENT) (SANOFI)) | B46: 2 | C46: 2 | L46: 1 | M46: 1 | V46: 1 | W46: 1 | AF46: 0 | AG46: 0 | AH46: 0 | AI46: 0 | AJ46: 0 | AK46: 0 | AL46: 0 | AM46: 0 | AN46: 0 | AO46: 0
A47: DTAP (DAPTACEL) | B47: 2 | F47: 1 | J47: 1 | L47: 1 | P47: 1 | V47: 1 | AD47: 1 | AF47: 0 | AG47: 0 | AH47: 0 | AI47: 0 | AJ47: 0 | AK47: 0 | AL47: 0 | AM47: 0 | AN47: 0 | AO47: 0
A48: MEASLES + MUMPS + RUBELLA (NO BRAND NAME) | B48: 2 | D48: 1 | J48: 1 | L48: 0 | M48: 0 | N48: 0 | O48: 0 | P48: 0 | Q48: 0 | R48: 0 | S48: 0 | T48: 0 | U48: 0 | V48: 2 | X48: 1 | AD48: 1 | AF48: 0 | AG48: 0 | AH48: 0 | AI48: 0 | AJ48: 0 | AK48: 0 | AL48: 0 | AM48: 0 | AN48: 0 | AO48: 0
A49: INFLUENZA (SEASONAL) (FLUMIST QUADRIVALENT) | B49: 2 | C49: 1 | E49: 1 | L49: 2 | M49: 1 | O49: 1 | V49: 0 | W49: 0 | X49: 0 | Y49: 0 | Z49: 0 | AA49: 0 | AB49: 0 | AC49: 0 | AD49: 0 | AE49: 0 | AF49: 0 | AG49: 0 | AH49: 0 | AI49: 0 | AJ49: 0 | AK49: 0 | AL49: 0 | AM49: 0 | AN49: 0 | AO49: 0
A50: HEP B (RECOMBIVAX HB) | B50: 2 | J50: 2 | L50: 1 | T50: 1 | V50: 1 | AD50: 1 | AF50: 0 | AG50: 0 | AH50: 0 | AI50: 0 | AJ50: 0 | AK50: 0 | AL50: 0 | AM50: 0 | AN50: 0 | AO50: 0
A51: LYME (LYMERIX) | B51: 2 | C51: 1 | E51: 1 | L51: 0 | M51: 0 | N51: 0 | O51: 0 | P51: 0 | Q51: 0 | R51: 0 | S51: 0 | T51: 0 | U51: 0 | V51: 2 | W51: 1 | Y51: 1 | AF51: 0 | AG51: 0 | AH51: 0 | AI51: 0 | AJ51: 0 | AK51: 0 | AL51: 0 | AM51: 0 | AN51: 0 | AO51: 0
A52: PNEUMO (NO BRAND NAME) | B52: 2 | D52: 1 | J52: 1 | L52: 1 | T52: 1 | V52: 1 | X52: 1 | AF52: 0 | AG52: 0 | AH52: 0 | AI52: 0 | AJ52: 0 | AK52: 0 | AL52: 0 | AM52: 0 | AN52: 0 | AO52: 0
A53: MENINGOCOCCAL CONJUGATE (MENVEO) | B53: 2 | C53: 2 | L53: 1 | M53: 1 | V53: 1 | W53: 1 | AF53: 0 | AG53: 0 | AH53: 0 | AI53: 0 | AJ53: 0 | AK53: 0 | AL53: 0 | AM53: 0 | AN53: 0 | AO53: 0
A54: INFLUENZA (SEASONAL) (FLULAVAL QUADRIVALENT) | B54: 2 | C54: 2 | L54: 0 | M54: 0 | N54: 0 | O54: 0 | P54: 0 | Q54: 0 | R54: 0 | S54: 0 | T54: 0 | U54: 0 | V54: 2 | W54: 2 | AF54: 0 | AG54: 0 | AH54: 0 | AI54: 0 | AJ54: 0 | AK54: 0 | AL54: 0 | AM54: 0 | AN54: 0 | AO54: 0
A55: INFLUENZA (SEASONAL) (FLUBLOK QUADRIVALENT) | B55: 2 | C55: 2 | L55: 0 | M55: 0 | N55: 0 | O55: 0 | P55: 0 | Q55: 0 | R55: 0 | S55: 0 | T55: 0 | U55: 0 | V55: 2 | W55: 2 | AF55: 0 | AG55: 0 | AH55: 0 | AI55: 0 | AJ55: 0 | AK55: 0 | AL55: 0 | AM55: 0 | AN55: 0 | AO55: 0
A56: YELLOW FEVER (STAMARIL) | B56: 2 | J56: 2 | L56: 1 | T56: 1 | V56: 1 | AD56: 1 | AF56: 0 | AG56: 0 | AH56: 0 | AI56: 0 | AJ56: 0 | AK56: 0 | AL56: 0 | AM56: 0 | AN56: 0 | AO56: 0
A57: INFLUENZA (SEASONAL) (FLUCELVAX QUADRIVALENT) | B57: 2 | C57: 1 | J57: 1 | L57: 0 | M57: 0 | N57: 0 | O57: 0 | P57: 0 | Q57: 0 | R57: 0 | S57: 0 | T57: 0 | U57: 0 | V57: 2 | W57: 1 | AD57: 1 | AF57: 0 | AG57: 0 | AH57: 0 | AI57: 0 | AJ57: 0 | AK57: 0 | AL57: 0 | AM57: 0 | AN57: 0 | AO57: 0
A58: INFLUENZA (SEASONAL) (AFLURIA QUADRIVALENT) | B58: 2 | C58: 1 | J58: 1 | L58: 1 | M58: 1 | V58: 1 | AD58: 1 | AF58: 0 | AG58: 0 | AH58: 0 | AI58: 0 | AJ58: 0 | AK58: 0 | AL58: 0 | AM58: 0 | AN58: 0 | AO58: 0
A59: VACCINE NOT SPECIFIED (OTHER) | B59: 2 | C59: 1 | J59: 1 | L59: 1 | T59: 1 | V59: 1 | W59: 1 | AF59: 0 | AG59: 0 | AH59: 0 | AI59: 0 | AJ59: 0 | AK59: 0 | AL59: 0 | AM59: 0 | AN59: 0 | AO59: 0
A60: MENINGOCOCCAL B (BEXSERO) | B60: 2 | D60: 1 | J60: 1 | L60: 2 | N60: 1 | T60: 1 | V60: 0 | W60: 0 | X60: 0 | Y60: 0 | Z60: 0 | AA60: 0 | AB60: 0 | AC60: 0 | AD60: 0 | AE60: 0 | AF60: 0 | AG60: 0 | AH60: 0 | AI60: 0 | AJ60: 0 | AK60: 0 | AL60: 0 | AM60: 0 | AN60: 0 | AO60: 0
A61: INFLUENZA (H1N1) (H1N1 (MONOVALENT) (UNKNOWN)) | B61: 2 | J61: 2 | L61: 0 | M61: 0 | N61: 0 | O61: 0 | P61: 0 | Q61: 0 | R61: 0 | S61: 0 | T61: 0 | U61: 0 | V61: 2 | AD61: 2 | AF61: 0 | AG61: 0 | AH61: 0 | AI61: 0 | AJ61: 0 | AK61: 0 | AL61: 0 | AM61: 0 | AN61: 0 | AO61: 0
A62: JAPANESE ENCEPHALITIS (IXIARO) | B62: 2 | C62: 1 | J62: 1 | L62: 0 | M62: 0 | N62: 0 | O62: 0 | P62: 0 | Q62: 0 | R62: 0 | S62: 0 | T62: 0 | U62: 0 | V62: 2 | W62: 1 | AD62: 1 | AF62: 0 | AG62: 0 | AH62: 0 | AI62: 0 | AJ62: 0 | AK62: 0 | AL62: 0 | AM62: 0 | AN62: 0 | AO62: 0
A63: ROTAVIRUS (ROTARIX) | B63: 2 | D63: 1 | J63: 1 | L63: 1 | T63: 1 | V63: 1 | X63: 1 | AF63: 0 | AG63: 0 | AH63: 0 | AI63: 0 | AJ63: 0 | AK63: 0 | AL63: 0 | AM63: 0 | AN63: 0 | AO63: 0
A64: HEP B (NO BRAND NAME) | B64: 2 | J64: 2 | L64: 0 | M64: 0 | N64: 0 | O64: 0 | P64: 0 | Q64: 0 | R64: 0 | S64: 0 | T64: 0 | U64: 0 | V64: 2 | AD64: 2 | AF64: 0 | AG64: 0 | AH64: 0 | AI64: 0 | AJ64: 0 | AK64: 0 | AL64: 0 | AM64: 0 | AN64: 0 | AO64: 0
A65: MUMPS (NO BRAND NAME) | B65: 1 | J65: 1 | L65: 0 | M65: 0 | N65: 0 | O65: 0 | P65: 0 | Q65: 0 | R65: 0 | S65: 0 | T65: 0 | U65: 0 | V65: 1 | AD65: 1 | AF65: 0 | AG65: 0 | AH65: 0 | AI65: 0 | AJ65: 0 | AK65: 0 | AL65: 0 | AM65: 0 | AN65: 0 | AO65: 0
A66: DTAP+IPV+HEPB+HIB (NO BRAND NAME) | B66: 1 | J66: 1 | L66: 1 | T66: 1 | V66: 0 | W66: 0 | X66: 0 | Y66: 0 | Z66: 0 | AA66: 0 | AB66: 0 | AC66: 0 | AD66: 0 | AE66: 0 | AF66: 0 | AG66: 0 | AH66: 0 | AI66: 0 | AJ66: 0 | AK66: 0 | AL66: 0 | AM66: 0 | AN66: 0 | AO66: 0
A67: INFLUENZA (SEASONAL) (FLUMIST) | B67: 1 | C67: 1 | L67: 0 | M67: 0 | N67: 0 | O67: 0 | P67: 0 | Q67: 0 | R67: 0 | S67: 0 | T67: 0 | U67: 0 | V67: 1 | W67: 1 | AF67: 0 | AG67: 0 | AH67: 0 | AI67: 0 | AJ67: 0 | AK67: 0 | AL67: 0 | AM67: 0 | AN67: 0 | AO67: 0
A68: INFLUENZA (SEASONAL) (FLUAD QUADRIVALENT) | B68: 1 | C68: 1 | L68: 1 | M68: 1 | V68: 0 | W68: 0 | X68: 0 | Y68: 0 | Z68: 0 | AA68: 0 | AB68: 0 | AC68: 0 | AD68: 0 | AE68: 0 | AF68: 0 | AG68: 0 | AH68: 0 | AI68: 0 | AJ68: 0 | AK68: 0 | AL68: 0 | AM68: 0 | AN68: 0 | AO68: 0
A69: HIB (PEDVAXHIB) | B69: 1 | C69: 1 | L69: 1 | M69: 1 | V69: 0 | W69: 0 | X69: 0 | Y69: 0 | Z69: 0 | AA69: 0 | AB69: 0 | AC69: 0 | AD69: 0 | AE69: 0 | AF69: 0 | AG69: 0 | AH69: 0 | AI69: 0 | AJ69: 0 | AK69: 0 | AL69: 0 | AM69: 0 | AN69: 0 | AO69: 0
A70: ANTHRAX (BIOTHRAX) | B70: 1 | E70: 1 | L70: 1 | O70: 1 | V70: 0 | W70: 0 | X70: 0 | Y70: 0 | Z70: 0 | AA70: 0 | AB70: 0 | AC70: 0 | AD70: 0 | AE70: 0 | AF70: 0 | AG70: 0 | AH70: 0 | AI70: 0 | AJ70: 0 | AK70: 0 | AL70: 0 | AM70: 0 | AN70: 0 | AO70: 0
A71: RABIES (NO BRAND NAME) | B71: 1 | J71: 1 | L71: 0 | M71: 0 | N71: 0 | O71: 0 | P71: 0 | Q71: 0 | R71: 0 | S71: 0 | T71: 0 | U71: 0 | V71: 1 | AD71: 1 | AF71: 0 | AG71: 0 | AH71: 0 | AI71: 0 | AJ71: 0 | AK71: 0 | AL71: 0 | AM71: 0 | AN71: 0 | AO71: 0
A72: POLIO VIRUS, INACT. (IPOL) | B72: 1 | J72: 1 | L72: 0 | M72: 0 | N72: 0 | O72: 0 | P72: 0 | Q72: 0 | R72: 0 | S72: 0 | T72: 0 | U72: 0 | V72: 1 | AD72: 1 | AF72: 0 | AG72: 0 | AH72: 0 | AI72: 0 | AJ72: 0 | AK72: 0 | AL72: 0 | AM72: 0 | AN72: 0 | AO72: 0
A73: INFLUENZA (H1N1) (H1N1 (MONOVALENT) (MEDIMMUNE)) | B73: 1 | C73: 1 | L73: 1 | M73: 1 | V73: 0 | W73: 0 | X73: 0 | Y73: 0 | Z73: 0 | AA73: 0 | AB73: 0 | AC73: 0 | AD73: 0 | AE73: 0 | AF73: 0 | AG73: 0 | AH73: 0 | AI73: 0 | AJ73: 0 | AK73: 0 | AL73: 0 | AM73: 0 | AN73: 0 | AO73: 0
A74: DTAP+IPV+HEPB+HIB (INFANRIX HEXA) | B74: 1 | J74: 1 | L74: 0 | M74: 0 | N74: 0 | O74: 0 | P74: 0 | Q74: 0 | R74: 0 | S74: 0 | T74: 0 | U74: 0 | V74: 1 | AD74: 1 | AF74: 0 | AG74: 0 | AH74: 0 | AI74: 0 | AJ74: 0 | AK74: 0 | AL74: 0 | AM74: 0 | AN74: 0 | AO74: 0
A75: TD ADSORBED (NO BRAND NAME) | B75: 1 | J75: 1 | L75: 0 | M75: 0 | N75: 0 | O75: 0 | P75: 0 | Q75: 0 | R75: 0 | S75: 0 | T75: 0 | U75: 0 | V75: 1 | AD75: 1 | AF75: 0 | AG75: 0 | AH75: 0 | AI75: 0 | AJ75: 0 | AK75: 0 | AL75: 0 | AM75: 0 | AN75: 0 | AO75: 0
A76: TYPHOID LIVE ORAL TY21A (VIVOTIF) | B76: 1 | C76: 1 | L76: 0 | M76: 0 | N76: 0 | O76: 0 | P76: 0 | Q76: 0 | R76: 0 | S76: 0 | T76: 0 | U76: 0 | V76: 1 | W76: 1 | AF76: 0 | AG76: 0 | AH76: 0 | AI76: 0 | AJ76: 0 | AK76: 0 | AL76: 0 | AM76: 0 | AN76: 0 | AO76: 0
A77: MEASLES + MUMPS + RUBELLA (MMR I) | B77: 1 | C77: 1 | L77: 0 | M77: 0 | N77: 0 | O77: 0 | P77: 0 | Q77: 0 | R77: 0 | S77: 0 | T77: 0 | U77: 0 | V77: 1 | W77: 1 | AF77: 0 | AG77: 0 | AH77: 0 | AI77: 0 | AJ77: 0 | AK77: 0 | AL77: 0 | AM77: 0 | AN77: 0 | AO77: 0
A78: INFLUENZA (SEASONAL) (FLUZONE INTRADERMAL) | B78: 1 | J78: 1 | L78: 0 | M78: 0 | N78: 0 | O78: 0 | P78: 0 | Q78: 0 | R78: 0 | S78: 0 | T78: 0 | U78: 0 | V78: 1 | AD78: 1 | AF78: 0 | AG78: 0 | AH78: 0 | AI78: 0 | AJ78: 0 | AK78: 0 | AL78: 0 | AM78: 0 | AN78: 0 | AO78: 0
A79: TDAP (NO BRAND NAME) | B79: 1 | C79: 1 | L79: 0 | M79: 0 | N79: 0 | O79: 0 | P79: 0 | Q79: 0 | R79: 0 | S79: 0 | T79: 0 | U79: 0 | V79: 1 | W79: 1 | AF79: 0 | AG79: 0 | AH79: 0 | AI79: 0 | AJ79: 0 | AK79: 0 | AL79: 0 | AM79: 0 | AN79: 0 | AO79: 0
A80: MENINGOCOCCAL (MENOMUNE) | B80: 1 | C80: 1 | L80: 0 | M80: 0 | N80: 0 | O80: 0 | P80: 0 | Q80: 0 | R80: 0 | S80: 0 | T80: 0 | U80: 0 | V80: 1 | W80: 1 | AF80: 0 | AG80: 0 | AH80: 0 | AI80: 0 | AJ80: 0 | AK80: 0 | AL80: 0 | AM80: 0 | AN80: 0 | AO80: 0
A81: DTAP + IPV + HIB (PENTACEL) | B81: 1 | J81: 1 | L81: 1 | T81: 1 | V81: 0 | W81: 0 | X81: 0 | Y81: 0 | Z81: 0 | AA81: 0 | AB81: 0 | AC81: 0 | AD81: 0 | AE81: 0 | AF81: 0 | AG81: 0 | AH81: 0 | AI81: 0 | AJ81: 0 | AK81: 0 | AL81: 0 | AM81: 0 | AN81: 0 | AO81: 0
A82: TD ADSORBED (TDVAX) | B82: 1 | J82: 1 | L82: 1 | T82: 1 | V82: 0 | W82: 0 | X82: 0 | Y82: 0 | Z82: 0 | AA82: 0 | AB82: 0 | AC82: 0 | AD82: 0 | AE82: 0 | AF82: 0 | AG82: 0 | AH82: 0 | AI82: 0 | AJ82: 0 | AK82: 0 | AL82: 0 | AM82: 0 | AN82: 0 | AO82: 0
A83: INFLUENZA (SEASONAL) (FOREIGN) | B83: 1 | D83: 1 | L83: 1 | N83: 1 | V83: 0 | W83: 0 | X83: 0 | Y83: 0 | Z83: 0 | AA83: 0 | AB83: 0 | AC83: 0 | AD83: 0 | AE83: 0 | AF83: 0 | AG83: 0 | AH83: 0 | AI83: 0 | AJ83: 0 | AK83: 0 | AL83: 0 | AM83: 0 | AN83: 0 | AO83: 0
A84: HEP A (NO BRAND NAME) | B84: 1 | J84: 1 | L84: 0 | M84: 0 | N84: 0 | O84: 0 | P84: 0 | Q84: 0 | R84: 0 | S84: 0 | T84: 0 | U84: 0 | V84: 1 | AD84: 1 | AF84: 0 | AG84: 0 | AH84: 0 | AI84: 0 | AJ84: 0 | AK84: 0 | AL84: 0 | AM84: 0 | AN84: 0 | AO84: 0
A85: RABIES (RABAVERT) | B85: 1 | E85: 1 | L85: 1 | O85: 1 | V85: 0 | W85: 0 | X85: 0 | Y85: 0 | Z85: 0 | AA85: 0 | AB85: 0 | AC85: 0 | AD85: 0 | AE85: 0 | AF85: 0 | AG85: 0 | AH85: 0 | AI85: 0 | AJ85: 0 | AK85: 0 | AL85: 0 | AM85: 0 | AN85: 0 | AO85: 0
A86: SMALLPOX (ACAM2000) | B86: 1 | J86: 1 | L86: 1 | T86: 1 | V86: 0 | W86: 0 | X86: 0 | Y86: 0 | Z86: 0 | AA86: 0 | AB86: 0 | AC86: 0 | AD86: 0 | AE86: 0 | AF86: 0 | AG86: 0 | AH86: 0 | AI86: 0 | AJ86: 0 | AK86: 0 | AL86: 0 | AM86: 0 | AN86: 0 | AO86: 0
A88: Age report
A89: Age | B89: COVID19 (COVID19 (PFIZER-BIONTECH)) | C89: All | D89: 1 | E89: 2 | F89: 3 | G89: 4 | H89: All male | I89: 1 male | J89: 2 male | K89: 3 male | L89: 4 male | M89: All female | N89: 1 female | O89: 2 female | P89: 3 female | Q89: 4 female | R89: COVID19 (COVID19 (MODERNA)) | S89: All | T89: 1 | U89: 2 | V89: 3 | W89: 4 | X89: All male | Y89: 1 male | Z89: 2 male | AA89: 3 male | AB89: 4 male | AC89: All female | AD89: 1 female | AE89: 2 female | AF89: 3 female | AG89: 4 female | AH89: COVID19 (COVID19 (JANSSEN)) | AI89: All | AJ89: 1 | AK89: 2 | AL89: 3 | AM89: 4 | AN89: All male | AO89: 1 male | AP89: 2 male | AQ89: 3 male | AR89: 4 male | AS89: All female | AT89: 1 female | AU89: 2 female | AV89: 3 female | AW89: 4 female | AX89: HPV (GARDASIL) | AY89: All | AZ89: 1 | BA89: 2 | BB89: 3 | BC89: 4 | BD89: All male | BE89: 1 male | BF89: 2 male | BG89: 3 male | BH89: 4 male | BI89: All female | BJ89: 1 female | BK89: 2 female | BL89: 3 female | BM89: 4 female | BN89: ZOSTER (SHINGRIX) | BO89: All | BP89: 1 | BQ89: 2 | BR89: 3 | BS89: 4 | BT89: All male | BU89: 1 male | BV89: 2 male | BW89: 3 male | BX89: 4 male | BY89: All female | BZ89: 1 female | CA89: 2 female | CB89: 3 female | CC89: 4 female | CD89: HPV (CERVARIX) | CE89: All | CF89: 1 | CG89: 2 | CH89: 3 | CI89: 4 | CJ89: All male | CK89: 1 male | CL89: 2 male | CM89: 3 male | CN89: 4 male | CO89: All female | CP89: 1 female | CQ89: 2 female | CR89: 3 female | CS89: 4 female | CT89: TDAP (ADACEL) | CU89: All | CV89: 1 | CW89: 2 | CX89: 3 | CY89: 4 | CZ89: All male | DA89: 1 male | DB89: 2 male | DC89: 3 male | DD89: 4 male | DE89: All female | DF89: 1 female | DG89: 2 female | DH89: 3 female | DI89: 4 female | DJ89: VACCINE NOT SPECIFIED (NO BRAND NAME) | DK89: All | DL89: 1 | DM89: 2 | DN89: 3 | DO89: 4 | DP89: All male | DQ89: 1 male | DR89: 2 male | DS89: 3 male | DT89: 4 male | DU89: All female | DV89: 1 female | DW89: 2 female | DX89: 3 female | DY89: 4 female | DZ89: INFLUENZA (SEASONAL) (NO BRAND NAME) | EA89: All | EB89: 1 | EC89: 2 | ED89: 3 | EE89: 4 | EF89: All male | EG89: 1 male | EH89: 2 male | EI89: 3 male | EJ89: 4 male | EK89: All female | EL89: 1 female | EM89: 2 female | EN89: 3 female | EO89: 4 female | EP89: HEP A (HAVRIX) | EQ89: All | ER89: 1 | ES89: 2 | ET89: 3 | EU89: 4 | EV89: All male | EW89: 1 male | EX89: 2 male | EY89: 3 male | EZ89: 4 male | FA89: All female | FB89: 1 female | FC89: 2 female | FD89: 3 female | FE89: 4 female | FF89: HEP B (ENGERIX-B) | FG89: All | FH89: 1 | FI89: 2 | FJ89: 3 | FK89: 4 | FL89: All male | FM89: 1 male | FN89: 2 male | FO89: 3 male | FP89: 4 male | FQ89: All female | FR89: 1 female | FS89: 2 female | FT89: 3 female | FU89: 4 female | FV89: HPV (GARDASIL 9) | FW89: All | FX89: 1 | FY89: 2 | FZ89: 3 | GA89: 4 | GB89: All male | GC89: 1 male | GD89: 2 male | GE89: 3 male | GF89: 4 male | GG89: All female | GH89: 1 female | GI89: 2 female | GJ89: 3 female | GK89: 4 female | GL89: MENINGOCOCCAL CONJUGATE (MENACTRA) | GM89: All | GN89: 1 | GO89: 2 | GP89: 3 | GQ89: 4 | GR89: All male | GS89: 1 male | GT89: 2 male | GU89: 3 male | GV89: 4 male | GW89: All female | GX89: 1 female | GY89: 2 female | GZ89: 3 female | HA89: 4 female | HB89: PNEUMO (PREVNAR13) | HC89: All | HD89: 1 | HE89: 2 | HF89: 3 | HG89: 4 | HH89: All male | HI89: 1 male | HJ89: 2 male | HK89: 3 male | HL89: 4 male | HM89: All female | HN89: 1 female | HO89: 2 female | HP89: 3 female | HQ89: 4 female | HR89: PNEUMO (PNEUMOVAX) | HS89: All | HT89: 1 | HU89: 2 | HV89: 3 | HW89: 4 | HX89: All male | HY89: 1 male | HZ89: 2 male | IA89: 3 male | IB89: 4 male | IC89: All female | ID89: 1 female | IE89: 2 female | IF89: 3 female | IG89: 4 female | IH89: INFLUENZA (SEASONAL) (FLUZONE) | II89: All | IJ89: 1 | IK89: 2 | IL89: 3 | IM89: 4 | IN89: All male | IO89: 1 male | IP89: 2 male | IQ89: 3 male | IR89: 4 male | IS89: All female | IT89: 1 female | IU89: 2 female | IV89: 3 female | IW89: 4 female | IX89: HPV (NO BRAND NAME) | IY89: All | IZ89: 1 | JA89: 2 | JB89: 3 | JC89: 4 | JD89: All male | JE89: 1 male | JF89: 2 male | JG89: 3 male | JH89: 4 male | JI89: All female | JJ89: 1 female | JK89: 2 female | JL89: 3 female | JM89: 4 female | JN89: ZOSTER LIVE (ZOSTAVAX) | JO89: All | JP89: 1 | JQ89: 2 | JR89: 3 | JS89: 4 | JT89: All male | JU89: 1 male | JV89: 2 male | JW89: 3 male | JX89: 4 male | JY89: All female | JZ89: 1 female | KA89: 2 female | KB89: 3 female | KC89: 4 female | KD89: HEP A (VAQTA) | KE89: All | KF89: 1 | KG89: 2 | KH89: 3 | KI89: 4 | KJ89: All male | KK89: 1 male | KL89: 2 male | KM89: 3 male | KN89: 4 male | KO89: All female | KP89: 1 female | KQ89: 2 female | KR89: 3 female | KS89: 4 female | KT89: TDAP (BOOSTRIX) | KU89: All | KV89: 1 | KW89: 2 | KX89: 3 | KY89: 4 | KZ89: All male | LA89: 1 male | LB89: 2 male | LC89: 3 male | LD89: 4 male | LE89: All female | LF89: 1 female | LG89: 2 female | LH89: 3 female | LI89: 4 female | LJ89: HEP A + HEP B (TWINRIX) | LK89: All | LL89: 1 | LM89: 2 | LN89: 3 | LO89: 4 | LP89: All male | LQ89: 1 male | LR89: 2 male | LS89: 3 male | LT89: 4 male | LU89: All female | LV89: 1 female | LW89: 2 female | LX89: 3 female | LY89: 4 female | LZ89: MEASLES + MUMPS + RUBELLA (MMR II) | MA89: All | MB89: 1 | MC89: 2 | MD89: 3 | ME89: 4 | MF89: All male | MG89: 1 male | MH89: 2 male | MI89: 3 male | MJ89: 4 male | MK89: All female | ML89: 1 female | MM89: 2 female | MN89: 3 female | MO89: 4 female | MP89: VARICELLA (VARIVAX) | MQ89: All | MR89: 1 | MS89: 2 | MT89: 3 | MU89: 4 | MV89: All male | MW89: 1 male | MX89: 2 male | MY89: 3 male | MZ89: 4 male | NA89: All female | NB89: 1 female | NC89: 2 female | ND89: 3 female | NE89: 4 female | NF89: INFLUENZA (SEASONAL) (FLUZONE HIGH-DOSE) | NG89: All | NH89: 1 | NI89: 2 | NJ89: 3 | NK89: 4 | NL89: All male | NM89: 1 male | NN89: 2 male | NO89: 3 male | NP89: 4 male | NQ89: All female | NR89: 1 female | NS89: 2 female | NT89: 3 female | NU89: 4 female | NV89: COVID19 (COVID19 (UNKNOWN)) | NW89: All | NX89: 1 | NY89: 2 | NZ89: 3 | OA89: 4 | OB89: All male | OC89: 1 male | OD89: 2 male | OE89: 3 male | OF89: 4 male | OG89: All female | OH89: 1 female | OI89: 2 female | OJ89: 3 female | OK89: 4 female | OL89: MENINGOCOCCAL B (TRUMENBA) | OM89: All | ON89: 1 | OO89: 2 | OP89: 3 | OQ89: 4 | OR89: All male | OS89: 1 male | OT89: 2 male | OU89: 3 male | OV89: 4 male | OW89: All female | OX89: 1 female | OY89: 2 female | OZ89: 3 female | PA89: 4 female | PB89: INFLUENZA (SEASONAL) (FLUARIX) | PC89: All | PD89: 1 | PE89: 2 | PF89: 3 | PG89: 4 | PH89: All male | PI89: 1 male | PJ89: 2 male | PK89: 3 male | PL89: 4 male | PM89: All female | PN89: 1 female | PO89: 2 female | PP89: 3 female | PQ89: 4 female | PR89: YELLOW FEVER (YF-VAX) | PS89: All | PT89: 1 | PU89: 2 | PV89: 3 | PW89: 4 | PX89: All male | PY89: 1 male | PZ89: 2 male | QA89: 3 male | QB89: 4 male | QC89: All female | QD89: 1 female | QE89: 2 female | QF89: 3 female | QG89: 4 female | QH89: INFLUENZA (SEASONAL) (FLUAD) | QI89: All | QJ89: 1 | QK89: 2 | QL89: 3 | QM89: 4 | QN89: All male | QO89: 1 male | QP89: 2 male | QQ89: 3 male | QR89: 4 male | QS89: All female | QT89: 1 female | QU89: 2 female | QV89: 3 female | QW89: 4 female | QX89: INFLUENZA (SEASONAL) (FLUVIRIN) | QY89: All | QZ89: 1 | RA89: 2 | RB89: 3 | RC89: 4 | RD89: All male | RE89: 1 male | RF89: 2 male | RG89: 3 male | RH89: 4 male | RI89: All female | RJ89: 1 female | RK89: 2 female | RL89: 3 female | RM89: 4 female | RN89: INFLUENZA (SEASONAL) (FLUZONE QUADRIVALENT) | RO89: All | RP89: 1 | RQ89: 2 | RR89: 3 | RS89: 4 | RT89: All male | RU89: 1 male | RV89: 2 male | RW89: 3 male | RX89: 4 male | RY89: All female | RZ89: 1 female | SA89: 2 female | SB89: 3 female | SC89: 4 female | SD89: INFLUENZA (SEASONAL) (FLUARIX QUADRIVALENT) | SE89: All | SF89: 1 | SG89: 2 | SH89: 3 | SI89: 4 | SJ89: All male | SK89: 1 male | SL89: 2 male | SM89: 3 male | SN89: 4 male | SO89: All female | SP89: 1 female | SQ89: 2 female | SR89: 3 female | SS89: 4 female | ST89: RABIES (RABIPUR) | SU89: All | SV89: 1 | SW89: 2 | SX89: 3 | SY89: 4 | SZ89: All male | TA89: 1 male | TB89: 2 male | TC89: 3 male | TD89: 4 male | TE89: All female | TF89: 1 female | TG89: 2 female | TH89: 3 female | TI89: 4 female | TJ89: INFLUENZA (SEASONAL) (FLULAVAL) | TK89: All | TL89: 1 | TM89: 2 | TN89: 3 | TO89: 4 | TP89: All male | TQ89: 1 male | TR89: 2 male | TS89: 3 male | TT89: 4 male | TU89: All female | TV89: 1 female | TW89: 2 female | TX89: 3 female | TY89: 4 female | TZ89: TYPHOID VI POLYSACCHARIDE (TYPHIM VI) | UA89: All | UB89: 1 | UC89: 2 | UD89: 3 | UE89: 4 | UF89: All male | UG89: 1 male | UH89: 2 male | UI89: 3 male | UJ89: 4 male | UK89: All female | UL89: 1 female | UM89: 2 female | UN89: 3 female | UO89: 4 female | UP89: RABIES (IMOVAX) | UQ89: All | UR89: 1 | US89: 2 | UT89: 3 | UU89: 4 | UV89: All male | UW89: 1 male | UX89: 2 male | UY89: 3 male | UZ89: 4 male | VA89: All female | VB89: 1 female | VC89: 2 female | VD89: 3 female | VE89: 4 female | VF89: INFLUENZA (SEASONAL) (FLUZONE HIGH-DOSE QUADRIVALENT) | VG89: All | VH89: 1 | VI89: 2 | VJ89: 3 | VK89: 4 | VL89: All male | VM89: 1 male | VN89: 2 male | VO89: 3 male | VP89: 4 male | VQ89: All female | VR89: 1 female | VS89: 2 female | VT89: 3 female | VU89: 4 female | VV89: ROTAVIRUS (ROTATEQ) | VW89: All | VX89: 1 | VY89: 2 | VZ89: 3 | WA89: 4 | WB89: All male | WC89: 1 male | WD89: 2 male | WE89: 3 male | WF89: 4 male | WG89: All female | WH89: 1 female | WI89: 2 female | WJ89: 3 female | WK89: 4 female | WL89: TETANUS DIPHTHERIA (NO BRAND NAME) | WM89: All | WN89: 1 | WO89: 2 | WP89: 3 | WQ89: 4 | WR89: All male | WS89: 1 male | WT89: 2 male | WU89: 3 male | WV89: 4 male | WW89: All female | WX89: 1 female | WY89: 2 female | WZ89: 3 female | XA89: 4 female | XB89: TYPHOID LIVE ORAL TY21A (NO BRAND NAME) | XC89: All | XD89: 1 | XE89: 2 | XF89: 3 | XG89: 4 | XH89: All male | XI89: 1 male | XJ89: 2 male | XK89: 3 male | XL89: 4 male | XM89: All female | XN89: 1 female | XO89: 2 female | XP89: 3 female | XQ89: 4 female | XR89: INFLUENZA (H1N1) (H1N1 (MONOVALENT) (SANOFI)) | XS89: All | XT89: 1 | XU89: 2 | XV89: 3 | XW89: 4 | XX89: All male | XY89: 1 male | XZ89: 2 male | YA89: 3 male | YB89: 4 male | YC89: All female | YD89: 1 female | YE89: 2 female | YF89: 3 female | YG89: 4 female | YH89: DTAP (DAPTACEL) | YI89: All | YJ89: 1 | YK89: 2 | YL89: 3 | YM89: 4 | YN89: All male | YO89: 1 male | YP89: 2 male | YQ89: 3 male | YR89: 4 male | YS89: All female | YT89: 1 female | YU89: 2 female | YV89: 3 female | YW89: 4 female | YX89: MEASLES + MUMPS + RUBELLA (NO BRAND NAME) | YY89: All | YZ89: 1 | ZA89: 2 | ZB89: 3 | ZC89: 4 | ZD89: All male | ZE89: 1 male | ZF89: 2 male | ZG89: 3 male | ZH89: 4 male | ZI89: All female | ZJ89: 1 female | ZK89: 2 female | ZL89: 3 female | ZM89: 4 female | ZN89: INFLUENZA (SEASONAL) (FLUMIST QUADRIVALENT) | ZO89: All | ZP89: 1 | ZQ89: 2 | ZR89: 3 | ZS89: 4 | ZT89: All male | ZU89: 1 male | ZV89: 2 male | ZW89: 3 male | ZX89: 4 male | ZY89: All female | ZZ89: 1 female | AAA89: 2 female | AAB89: 3 female | AAC89: 4 female | AAD89: HEP B (RECOMBIVAX HB) | AAE89: All | AAF89: 1 | AAG89: 2 | AAH89: 3 | AAI89: 4 | AAJ89: All male | AAK89: 1 male | AAL89: 2 male | AAM89: 3 male | AAN89: 4 male | AAO89: All female | AAP89: 1 female | AAQ89: 2 female | AAR89: 3 female | AAS89: 4 female | AAT89: LYME (LYMERIX) | AAU89: All | AAV89: 1 | AAW89: 2 | AAX89: 3 | AAY89: 4 | AAZ89: All male | ABA89: 1 male | ABB89: 2 male | ABC89: 3 male | ABD89: 4 male | ABE89: All female | ABF89: 1 female | ABG89: 2 female | ABH89: 3 female | ABI89: 4 female | ABJ89: PNEUMO (NO BRAND NAME) | ABK89: All | ABL89: 1 | ABM89: 2 | ABN89: 3 | ABO89: 4 | ABP89: All male | ABQ89: 1 male | ABR89: 2 male | ABS89: 3 male | ABT89: 4 male | ABU89: All female | ABV89: 1 female | ABW89: 2 female | ABX89: 3 female | ABY89: 4 female | ABZ89: MENINGOCOCCAL CONJUGATE (MENVEO) | ACA89: All | ACB89: 1 | ACC89: 2 | ACD89: 3 | ACE89: 4 | ACF89: All male | ACG89: 1 male | ACH89: 2 male | ACI89: 3 male | ACJ89: 4 male | ACK89: All female | ACL89: 1 female | ACM89: 2 female | ACN89: 3 female | ACO89: 4 female | ACP89: INFLUENZA (SEASONAL) (FLULAVAL QUADRIVALENT) | ACQ89: All | ACR89: 1 | ACS89: 2 | ACT89: 3 | ACU89: 4 | ACV89: All male | ACW89: 1 male | ACX89: 2 male | ACY89: 3 male | ACZ89: 4 male | ADA89: All female | ADB89: 1 female | ADC89: 2 female | ADD89: 3 female | ADE89: 4 female | ADF89: INFLUENZA (SEASONAL) (FLUBLOK QUADRIVALENT) | ADG89: All | ADH89: 1 | ADI89: 2 | ADJ89: 3 | ADK89: 4 | ADL89: All male | ADM89: 1 male | ADN89: 2 male | ADO89: 3 male | ADP89: 4 male | ADQ89: All female | ADR89: 1 female | ADS89: 2 female | ADT89: 3 female | ADU89: 4 female | ADV89: YELLOW FEVER (STAMARIL) | ADW89: All | ADX89: 1 | ADY89: 2 | ADZ89: 3 | AEA89: 4 | AEB89: All male | AEC89: 1 male | AED89: 2 male | AEE89: 3 male | AEF89: 4 male | AEG89: All female | AEH89: 1 female | AEI89: 2 female | AEJ89: 3 female | AEK89: 4 female | AEL89: INFLUENZA (SEASONAL) (FLUCELVAX QUADRIVALENT) | AEM89: All | AEN89: 1 | AEO89: 2 | AEP89: 3 | AEQ89: 4 | AER89: All male | AES89: 1 male | AET89: 2 male | AEU89: 3 male | AEV89: 4 male | AEW89: All female | AEX89: 1 female | AEY89: 2 female | AEZ89: 3 female | AFA89: 4 female | AFB89: INFLUENZA (SEASONAL) (AFLURIA QUADRIVALENT) | AFC89: All | AFD89: 1 | AFE89: 2 | AFF89: 3 | AFG89: 4 | AFH89: All male | AFI89: 1 male | AFJ89: 2 male | AFK89: 3 male | AFL89: 4 male | AFM89: All female | AFN89: 1 female | AFO89: 2 female | AFP89: 3 female | AFQ89: 4 female | AFR89: VACCINE NOT SPECIFIED (OTHER) | AFS89: All | AFT89: 1 | AFU89: 2 | AFV89: 3 | AFW89: 4 | AFX89: All male | AFY89: 1 male | AFZ89: 2 male | AGA89: 3 male | AGB89: 4 male | AGC89: All female | AGD89: 1 female | AGE89: 2 female | AGF89: 3 female | AGG89: 4 female | AGH89: MENINGOCOCCAL B (BEXSERO) | AGI89: All | AGJ89: 1 | AGK89: 2 | AGL89: 3 | AGM89: 4 | AGN89: All male | AGO89: 1 male | AGP89: 2 male | AGQ89: 3 male | AGR89: 4 male | AGS89: All female | AGT89: 1 female | AGU89: 2 female | AGV89: 3 female | AGW89: 4 female | AGX89: INFLUENZA (H1N1) (H1N1 (MONOVALENT) (UNKNOWN)) | AGY89: All | AGZ89: 1 | AHA89: 2 | AHB89: 3 | AHC89: 4 | AHD89: All male | AHE89: 1 male | AHF89: 2 male | AHG89: 3 male | AHH89: 4 male | AHI89: All female | AHJ89: 1 female | AHK89: 2 female | AHL89: 3 female | AHM89: 4 female | AHN89: JAPANESE ENCEPHALITIS (IXIARO) | AHO89: All | AHP89: 1 | AHQ89: 2 | AHR89: 3 | AHS89: 4 | AHT89: All male | AHU89: 1 male | AHV89: 2 male | AHW89: 3 male | AHX89: 4 male | AHY89: All female | AHZ89: 1 female | AIA89: 2 female | AIB89: 3 female | AIC89: 4 female | AID89: ROTAVIRUS (ROTARIX) | AIE89: All | AIF89: 1 | AIG89: 2 | AIH89: 3 | AII89: 4 | AIJ89: All male | AIK89: 1 male | AIL89: 2 male | AIM89: 3 male | AIN89: 4 male | AIO89: All female | AIP89: 1 female | AIQ89: 2 female | AIR89: 3 female | AIS89: 4 female | AIT89: HEP B (NO BRAND NAME) | AIU89: All | AIV89: 1 | AIW89: 2 | AIX89: 3 | AIY89: 4 | AIZ89: All male | AJA89: 1 male | AJB89: 2 male | AJC89: 3 male | AJD89: 4 male | AJE89: All female | AJF89: 1 female | AJG89: 2 female | AJH89: 3 female | AJI89: 4 female | AJJ89: MUMPS (NO BRAND NAME) | AJK89: All | AJL89: 1 | AJM89: 2 | AJN89: 3 | AJO89: 4 | AJP89: All male | AJQ89: 1 male | AJR89: 2 male | AJS89: 3 male | AJT89: 4 male | AJU89: All female | AJV89: 1 female | AJW89: 2 female | AJX89: 3 female | AJY89: 4 female | AJZ89: DTAP+IPV+HEPB+HIB (NO BRAND NAME) | AKA89: All | AKB89: 1 | AKC89: 2 | AKD89: 3 | AKE89: 4 | AKF89: All male | AKG89: 1 male | AKH89: 2 male | AKI89: 3 male | AKJ89: 4 male | AKK89: All female | AKL89: 1 female | AKM89: 2 female | AKN89: 3 female | AKO89: 4 female | AKP89: INFLUENZA (SEASONAL) (FLUMIST) | AKQ89: All | AKR89: 1 | AKS89: 2 | AKT89: 3 | AKU89: 4 | AKV89: All male | AKW89: 1 male | AKX89: 2 male | AKY89: 3 male | AKZ89: 4 male | ALA89: All female | ALB89: 1 female | ALC89: 2 female | ALD89: 3 female | ALE89: 4 female | ALF89: INFLUENZA (SEASONAL) (FLUAD QUADRIVALENT) | ALG89: All | ALH89: 1 | ALI89: 2 | ALJ89: 3 | ALK89: 4 | ALL89: All male | ALM89: 1 male | ALN89: 2 male | ALO89: 3 male | ALP89: 4 male | ALQ89: All female | ALR89: 1 female | ALS89: 2 female | ALT89: 3 female | ALU89: 4 female | ALV89: HIB (PEDVAXHIB) | ALW89: All | ALX89: 1 | ALY89: 2 | ALZ89: 3 | AMA89: 4 | AMB89: All male | AMC89: 1 male | AMD89: 2 male | AME89: 3 male | AMF89: 4 male | AMG89: All female | AMH89: 1 female | AMI89: 2 female | AMJ89: 3 female | AMK89: 4 female | AML89: ANTHRAX (BIOTHRAX) | AMM89: All | AMN89: 1 | AMO89: 2 | AMP89: 3 | AMQ89: 4 | AMR89: All male | AMS89: 1 male | AMT89: 2 male | AMU89: 3 male | AMV89: 4 male | AMW89: All female | AMX89: 1 female | AMY89: 2 female | AMZ89: 3 female | ANA89: 4 female | ANB89: RABIES (NO BRAND NAME) | ANC89: All | AND89: 1 | ANE89: 2 | ANF89: 3 | ANG89: 4 | ANH89: All male | ANI89: 1 male | ANJ89: 2 male | ANK89: 3 male | ANL89: 4 male | ANM89: All female | ANN89: 1 female | ANO89: 2 female | ANP89: 3 female | ANQ89: 4 female | ANR89: POLIO VIRUS, INACT. (IPOL) | ANS89: All | ANT89: 1 | ANU89: 2 | ANV89: 3 | ANW89: 4 | ANX89: All male | ANY89: 1 male | ANZ89: 2 male | AOA89: 3 male | AOB89: 4 male | AOC89: All female | AOD89: 1 female | AOE89: 2 female | AOF89: 3 female | AOG89: 4 female | AOH89: INFLUENZA (H1N1) (H1N1 (MONOVALENT) (MEDIMMUNE)) | AOI89: All | AOJ89: 1 | AOK89: 2 | AOL89: 3 | AOM89: 4 | AON89: All male | AOO89: 1 male | AOP89: 2 male | AOQ89: 3 male | AOR89: 4 male | AOS89: All female | AOT89: 1 female | AOU89: 2 female | AOV89: 3 female | AOW89: 4 female | AOX89: DTAP+IPV+HEPB+HIB (INFANRIX HEXA) | AOY89: All | AOZ89: 1 | APA89: 2 | APB89: 3 | APC89: 4 | APD89: All male | APE89: 1 male | APF89: 2 male | APG89: 3 male | APH89: 4 male | API89: All female | APJ89: 1 female | APK89: 2 female | APL89: 3 female | APM89: 4 female | APN89: TD ADSORBED (NO BRAND NAME) | APO89: All | APP89: 1 | APQ89: 2 | APR89: 3 | APS89: 4 | APT89: All male | APU89: 1 male | APV89: 2 male | APW89: 3 male | APX89: 4 male | APY89: All female | APZ89: 1 female | AQA89: 2 female | AQB89: 3 female | AQC89: 4 female | AQD89: TYPHOID LIVE ORAL TY21A (VIVOTIF) | AQE89: All | AQF89: 1 | AQG89: 2 | AQH89: 3 | AQI89: 4 | AQJ89: All male | AQK89: 1 male | AQL89: 2 male | AQM89: 3 male | AQN89: 4 male | AQO89: All female | AQP89: 1 female | AQQ89: 2 female | AQR89: 3 female | AQS89: 4 female | AQT89: MEASLES + MUMPS + RUBELLA (MMR I) | AQU89: All | AQV89: 1 | AQW89: 2 | AQX89: 3 | AQY89: 4 | AQZ89: All male | ARA89: 1 male | ARB89: 2 male | ARC89: 3 male | ARD89: 4 male | ARE89: All female | ARF89: 1 female | ARG89: 2 female | ARH89: 3 female | ARI89: 4 female | ARJ89: INFLUENZA (SEASONAL) (FLUZONE INTRADERMAL) | ARK89: All | ARL89: 1 | ARM89: 2 | ARN89: 3 | ARO89: 4 | ARP89: All male | ARQ89: 1 male | ARR89: 2 male | ARS89: 3 male | ART89: 4 male | ARU89: All female | ARV89: 1 female | ARW89: 2 female | ARX89: 3 female | ARY89: 4 female | ARZ89: TDAP (NO BRAND NAME) | ASA89: All | ASB89: 1 | ASC89: 2 | ASD89: 3 | ASE89: 4 | ASF89: All male | ASG89: 1 male | ASH89: 2 male | ASI89: 3 male | ASJ89: 4 male | ASK89: All female | ASL89: 1 female | ASM89: 2 female | ASN89: 3 female | ASO89: 4 female | ASP89: MENINGOCOCCAL (MENOMUNE) | ASQ89: All | ASR89: 1 | ASS89: 2 | AST89: 3 | ASU89: 4 | ASV89: All male | ASW89: 1 male | ASX89: 2 male | ASY89: 3 male | ASZ89: 4 male | ATA89: All female | ATB89: 1 female | ATC89: 2 female | ATD89: 3 female | ATE89: 4 female | ATF89: DTAP + IPV + HIB (PENTACEL) | ATG89: All | ATH89: 1 | ATI89: 2 | ATJ89: 3 | ATK89: 4 | ATL89: All male | ATM89: 1 male | ATN89: 2 male | ATO89: 3 male | ATP89: 4 male | ATQ89: All female | ATR89: 1 female | ATS89: 2 female | ATT89: 3 female | ATU89: 4 female | ATV89: TD ADSORBED (TDVAX) | ATW89: All | ATX89: 1 | ATY89: 2 | ATZ89: 3 | AUA89: 4 | AUB89: All male | AUC89: 1 male | AUD89: 2 male | AUE89: 3 male | AUF89: 4 male | AUG89: All female | AUH89: 1 female | AUI89: 2 female | AUJ89: 3 female | AUK89: 4 female | AUL89: INFLUENZA (SEASONAL) (FOREIGN) | AUM89: All | AUN89: 1 | AUO89: 2 | AUP89: 3 | AUQ89: 4 | AUR89: All male | AUS89: 1 male | AUT89: 2 male | AUU89: 3 male | AUV89: 4 male | AUW89: All female | AUX89: 1 female | AUY89: 2 female | AUZ89: 3 female | AVA89: 4 female | AVB89: HEP A (NO BRAND NAME) | AVC89: All | AVD89: 1 | AVE89: 2 | AVF89: 3 | AVG89: 4 | AVH89: All male | AVI89: 1 male | AVJ89: 2 male | AVK89: 3 male | AVL89: 4 male | AVM89: All female | AVN89: 1 female | AVO89: 2 female | AVP89: 3 female | AVQ89: 4 female | AVR89: RABIES (RABAVERT) | AVS89: All | AVT89: 1 | AVU89: 2 | AVV89: 3 | AVW89: 4 | AVX89: All male | AVY89: 1 male | AVZ89: 2 male | AWA89: 3 male | AWB89: 4 male | AWC89: All female | AWD89: 1 female | AWE89: 2 female | AWF89: 3 female | AWG89: 4 female | AWH89: SMALLPOX (ACAM2000) | AWI89: All | AWJ89: 1 | AWK89: 2 | AWL89: 3 | AWM89: 4 | AWN89: All male | AWO89: 1 male | AWP89: 2 male | AWQ89: 3 male | AWR89: 4 male | AWS89: All female | AWT89: 1 female | AWU89: 2 female | AWV89: 3 female | AWW89: 4 female
A90: -1 | B90: COVID19 (COVID19 (PFIZER-BIONTECH)) | C90: 253 | D90: 111 | E90: 87 | F90: 2 | H90: 54 | I90: 24 | J90: 17 | M90: 188 | N90: 82 | O90: 67 | P90: 1 | R90: COVID19 (COVID19 (MODERNA)) | S90: 21 | T90: 15 | X90: 5 | Y90: 4 | AC90: 11 | AD90: 6 | AH90: COVID19 (COVID19 (JANSSEN)) | AI90: 6 | AN90: 3 | AS90: 2 | AX90: HPV (GARDASIL) | AY90: 14 | AZ90: 4 | BA90: 2 | BB90: 5 | BI90: 12 | BJ90: 4 | BK90: 2 | BL90: 4 | BN90: ZOSTER (SHINGRIX) | BO90: 3 | BP90: 2 | BQ90: 1 | BT90: 1 | BU90: 1 | BY90: 2 | BZ90: 1 | CA90: 1 | CD90: HPV (CERVARIX) | CE90: 4 | CO90: 3 | CT90: TDAP (ADACEL) | DJ90: VACCINE NOT SPECIFIED (NO BRAND NAME) | DK90: 4 | DU90: 4 | DZ90: INFLUENZA (SEASONAL) (NO BRAND NAME) | EP90: HEP A (HAVRIX) | FF90: HEP B (ENGERIX-B) | FG90: 1 | FJ90: 1 | FQ90: 1 | FT90: 1 | FV90: HPV (GARDASIL 9) | FW90: 2 | FX90: 1 | GG90: 2 | GH90: 1 | GL90: MENINGOCOCCAL CONJUGATE (MENACTRA) | HB90: PNEUMO (PREVNAR13) | HR90: PNEUMO (PNEUMOVAX) | HS90: 1 | IC90: 1 | IH90: INFLUENZA (SEASONAL) (FLUZONE) | IX90: HPV (NO BRAND NAME) | IY90: 3 | IZ90: 1 | JA90: 1 | JI90: 2 | JJ90: 1 | JK90: 1 | JN90: ZOSTER LIVE (ZOSTAVAX) | KD90: HEP A (VAQTA) | KE90: 1 | KJ90: 1 | KT90: TDAP (BOOSTRIX) | KU90: 1 | LE90: 1 | LJ90: HEP A + HEP B (TWINRIX) | LZ90: MEASLES + MUMPS + RUBELLA (MMR II) | MP90: VARICELLA (VARIVAX) | NF90: INFLUENZA (SEASONAL) (FLUZONE HIGH-DOSE) | NV90: COVID19 (COVID19 (UNKNOWN)) | OL90: MENINGOCOCCAL B (TRUMENBA) | OM90: 1 | OO90: 1 | OW90: 1 | OY90: 1 | PB90: INFLUENZA (SEASONAL) (FLUARIX) | PR90: YELLOW FEVER (YF-VAX) | QH90: INFLUENZA (SEASONAL) (FLUAD) | QX90: INFLUENZA (SEASONAL) (FLUVIRIN) | RN90: INFLUENZA (SEASONAL) (FLUZONE QUADRIVALENT) | SD90: INFLUENZA (SEASONAL) (FLUARIX QUADRIVALENT) | ST90: RABIES (RABIPUR) | SU90: 1 | TE90: 1 | TJ90: INFLUENZA (SEASONAL) (FLULAVAL) | TZ90: TYPHOID VI POLYSACCHARIDE (TYPHIM VI) | UA90: 1 | UF90: 1 | UP90: RABIES (IMOVAX) | UQ90: 1 | UU90: 1 | VA90: 1 | VE90: 1 | VF90: INFLUENZA (SEASONAL) (FLUZONE HIGH-DOSE QUADRIVALENT) | VV90: ROTAVIRUS (ROTATEQ) | WL90: TETANUS DIPHTHERIA (NO BRAND NAME) | XB90: TYPHOID LIVE ORAL TY21A (NO BRAND NAME) | XR90: INFLUENZA (H1N1) (H1N1 (MONOVALENT) (SANOFI)) | YH90: DTAP (DAPTACEL) | YX90: MEASLES + MUMPS + RUBELLA (NO BRAND NAME) | ZN90: INFLUENZA (SEASONAL) (FLUMIST QUADRIVALENT) | AAD90: HEP B (RECOMBIVAX HB) | AAT90: LYME (LYMERIX) | ABJ90: PNEUMO (NO BRAND NAME) | ABZ90: MENINGOCOCCAL CONJUGATE (MENVEO) | ACP90: INFLUENZA (SEASONAL) (FLULAVAL QUADRIVALENT) | ADF90: INFLUENZA (SEASONAL) (FLUBLOK QUADRIVALENT) | ADV90: YELLOW FEVER (STAMARIL) | ADW90: 1 | AEB90: 1 | AEL90: INFLUENZA (SEASONAL) (FLUCELVAX QUADRIVALENT) | AFB90: INFLUENZA (SEASONAL) (AFLURIA QUADRIVALENT) | AFR90: VACCINE NOT SPECIFIED (OTHER) | AGH90: MENINGOCOCCAL B (BEXSERO) | AGX90: INFLUENZA (H1N1) (H1N1 (MONOVALENT) (UNKNOWN)) | AHN90: JAPANESE ENCEPHALITIS (IXIARO) | AHO90: 1 | AHY90: 1 | AID90: ROTAVIRUS (ROTARIX) | AIT90: HEP B (NO BRAND NAME) | AJJ90: MUMPS (NO BRAND NAME) | AJZ90: DTAP+IPV+HEPB+HIB (NO BRAND NAME) | AKP90: INFLUENZA (SEASONAL) (FLUMIST) | ALF90: INFLUENZA (SEASONAL) (FLUAD QUADRIVALENT) | ALV90: HIB (PEDVAXHIB) | AML90: ANTHRAX (BIOTHRAX) | ANB90: RABIES (NO BRAND NAME) | ANR90: POLIO VIRUS, INACT. (IPOL) | AOH90: INFLUENZA (H1N1) (H1N1 (MONOVALENT) (MEDIMMUNE)) | AOX90: DTAP+IPV+HEPB+HIB (INFANRIX HEXA) | APN90: TD ADSORBED (NO BRAND NAME) | AQD90: TYPHOID LIVE ORAL TY21A (VIVOTIF) | AQT90: MEASLES + MUMPS + RUBELLA (MMR I) | ARJ90: INFLUENZA (SEASONAL) (FLUZONE INTRADERMAL) | ARZ90: TDAP (NO BRAND NAME) | ASP90: MENINGOCOCCAL (MENOMUNE) | ATF90: DTAP + IPV + HIB (PENTACEL) | ATV90: TD ADSORBED (TDVAX) | AUL90: INFLUENZA (SEASONAL) (FOREIGN) | AVB90: HEP A (NO BRAND NAME) | AVR90: RABIES (RABAVERT) | AWH90: SMALLPOX (ACAM2000) | AWI90: 1 | AWN90: 1
A91: 0 | B91: COVID19 (COVID19 (PFIZER-BIONTECH)) | R91: COVID19 (COVID19 (MODERNA)) | AH91: COVID19 (COVID19 (JANSSEN)) | AX91: HPV (GARDASIL) | BN91: ZOSTER (SHINGRIX) | CD91: HPV (CERVARIX) | CT91: TDAP (ADACEL) | DJ91: VACCINE NOT SPECIFIED (NO BRAND NAME) | DZ91: INFLUENZA (SEASONAL) (NO BRAND NAME) | EA91: 1 | EF91: 1 | EP91: HEP A (HAVRIX) | FF91: HEP B (ENGERIX-B) | FV91: HPV (GARDASIL 9) | GL91: MENINGOCOCCAL CONJUGATE (MENACTRA) | HB91: PNEUMO (PREVNAR13) | HC91: 3 | HE91: 1 | HH91: 3 | HJ91: 1 | HR91: PNEUMO (PNEUMOVAX) | IH91: INFLUENZA (SEASONAL) (FLUZONE) | IX91: HPV (NO BRAND NAME) | JN91: ZOSTER LIVE (ZOSTAVAX) | KD91: HEP A (VAQTA) | KT91: TDAP (BOOSTRIX) | LJ91: HEP A + HEP B (TWINRIX) | LZ91: MEASLES + MUMPS + RUBELLA (MMR II) | MP91: VARICELLA (VARIVAX) | NF91: INFLUENZA (SEASONAL) (FLUZONE HIGH-DOSE) | NV91: COVID19 (COVID19 (UNKNOWN)) | OL91: MENINGOCOCCAL B (TRUMENBA) | PB91: INFLUENZA (SEASONAL) (FLUARIX) | PR91: YELLOW FEVER (YF-VAX) | QH91: INFLUENZA (SEASONAL) (FLUAD) | QX91: INFLUENZA (SEASONAL) (FLUVIRIN) | RN91: INFLUENZA (SEASONAL) (FLUZONE QUADRIVALENT) | SD91: INFLUENZA (SEASONAL) (FLUARIX QUADRIVALENT) | ST91: RABIES (RABIPUR) | TJ91: INFLUENZA (SEASONAL) (FLULAVAL) | TZ91: TYPHOID VI POLYSACCHARIDE (TYPHIM VI) | UP91: RABIES (IMOVAX) | VF91: INFLUENZA (SEASONAL) (FLUZONE HIGH-DOSE QUADRIVALENT) | VV91: ROTAVIRUS (ROTATEQ) | VW91: 1 | WB91: 1 | WL91: TETANUS DIPHTHERIA (NO BRAND NAME) | XB91: TYPHOID LIVE ORAL TY21A (NO BRAND NAME) | XR91: INFLUENZA (H1N1) (H1N1 (MONOVALENT) (SANOFI)) | YH91: DTAP (DAPTACEL) | YX91: MEASLES + MUMPS + RUBELLA (NO BRAND NAME) | ZN91: INFLUENZA (SEASONAL) (FLUMIST QUADRIVALENT) | AAD91: HEP B (RECOMBIVAX HB) | AAE91: 1 | AAJ91: 1 | AAT91: LYME (LYMERIX) | ABJ91: PNEUMO (NO BRAND NAME) | ABK91: 1 | ABP91: 1 | ABZ91: MENINGOCOCCAL CONJUGATE (MENVEO) | ACP91: INFLUENZA (SEASONAL) (FLULAVAL QUADRIVALENT) | ADF91: INFLUENZA (SEASONAL) (FLUBLOK QUADRIVALENT) | ADV91: YELLOW FEVER (STAMARIL) | AEL91: INFLUENZA (SEASONAL) (FLUCELVAX QUADRIVALENT) | AFB91: INFLUENZA (SEASONAL) (AFLURIA QUADRIVALENT) | AFR91: VACCINE NOT SPECIFIED (OTHER) | AGH91: MENINGOCOCCAL B (BEXSERO) | AGX91: INFLUENZA (H1N1) (H1N1 (MONOVALENT) (UNKNOWN)) | AHN91: JAPANESE ENCEPHALITIS (IXIARO) | AID91: ROTAVIRUS (ROTARIX) | AIE91: 2 | AIG91: 1 | AIJ91: 1 | AIO91: 1 | AIQ91: 1 | AIT91: HEP B (NO BRAND NAME) | AJJ91: MUMPS (NO BRAND NAME) | AJZ91: DTAP+IPV+HEPB+HIB (NO BRAND NAME) | AKA91: 1 | AKF91: 1 | AKP91: INFLUENZA (SEASONAL) (FLUMIST) | ALF91: INFLUENZA (SEASONAL) (FLUAD QUADRIVALENT) | ALV91: HIB (PEDVAXHIB) | AML91: ANTHRAX (BIOTHRAX) | ANB91: RABIES (NO BRAND NAME) | ANR91: POLIO VIRUS, INACT. (IPOL) | AOH91: INFLUENZA (H1N1) (H1N1 (MONOVALENT) (MEDIMMUNE)) | AOX91: DTAP+IPV+HEPB+HIB (INFANRIX HEXA) | APN91: TD ADSORBED (NO BRAND NAME) | AQD91: TYPHOID LIVE ORAL TY21A (VIVOTIF) | AQT91: MEASLES + MUMPS + RUBELLA (MMR I) | ARJ91: INFLUENZA (SEASONAL) (FLUZONE INTRADERMAL) | ARZ91: TDAP (NO BRAND NAME) | ASP91: MENINGOCOCCAL (MENOMUNE) | ATF91: DTAP + IPV + HIB (PENTACEL) | ATG91: 1 | ATL91: 1 | ATV91: TD ADSORBED (TDVAX) | AUL91: INFLUENZA (SEASONAL) (FOREIGN) | AVB91: HEP A (NO BRAND NAME) | AVR91: RABIES (RABAVERT) | AWH91: SMALLPOX (ACAM2000)
A92: 1 | B92: COVID19 (COVID19 (PFIZER-BIONTECH)) | R92: COVID19 (COVID19 (MODERNA)) | AH92: COVID19 (COVID19 (JANSSEN)) | AX92: HPV (GARDASIL) | BN92: ZOSTER (SHINGRIX) | CD92: HPV (CERVARIX) | CT92: TDAP (ADACEL) | DJ92: VACCINE NOT SPECIFIED (NO BRAND NAME) | DZ92: INFLUENZA (SEASONAL) (NO BRAND NAME) | EP92: HEP A (HAVRIX) | FF92: HEP B (ENGERIX-B) | FV92: HPV (GARDASIL 9) | GL92: MENINGOCOCCAL CONJUGATE (MENACTRA) | HB92: PNEUMO (PREVNAR13) | HC92: 1 | HH92: 1 | HR92: PNEUMO (PNEUMOVAX) | IH92: INFLUENZA (SEASONAL) (FLUZONE) | II92: 1 | IL92: 1 | IN92: 1 | IQ92: 1 | IX92: HPV (NO BRAND NAME) | JN92: ZOSTER LIVE (ZOSTAVAX) | KD92: HEP A (VAQTA) | KT92: TDAP (BOOSTRIX) | LJ92: HEP A + HEP B (TWINRIX) | LZ92: MEASLES + MUMPS + RUBELLA (MMR II) | MP92: VARICELLA (VARIVAX) | NF92: INFLUENZA (SEASONAL) (FLUZONE HIGH-DOSE) | NV92: COVID19 (COVID19 (UNKNOWN)) | OL92: MENINGOCOCCAL B (TRUMENBA) | PB92: INFLUENZA (SEASONAL) (FLUARIX) | PR92: YELLOW FEVER (YF-VAX) | QH92: INFLUENZA (SEASONAL) (FLUAD) | QX92: INFLUENZA (SEASONAL) (FLUVIRIN) | RN92: INFLUENZA (SEASONAL) (FLUZONE QUADRIVALENT) | SD92: INFLUENZA (SEASONAL) (FLUARIX QUADRIVALENT) | ST92: RABIES (RABIPUR) | TJ92: INFLUENZA (SEASONAL) (FLULAVAL) | TZ92: TYPHOID VI POLYSACCHARIDE (TYPHIM VI) | UP92: RABIES (IMOVAX) | VF92: INFLUENZA (SEASONAL) (FLUZONE HIGH-DOSE QUADRIVALENT) | VV92: ROTAVIRUS (ROTATEQ) | WL92: TETANUS DIPHTHERIA (NO BRAND NAME) | XB92: TYPHOID LIVE ORAL TY21A (NO BRAND NAME) | XR92: INFLUENZA (H1N1) (H1N1 (MONOVALENT) (SANOFI)) | YH92: DTAP (DAPTACEL) | YI92: 1 | YM92: 1 | YN92: 1 | YR92: 1 | YX92: MEASLES + MUMPS + RUBELLA (NO BRAND NAME) | ZN92: INFLUENZA (SEASONAL) (FLUMIST QUADRIVALENT) | AAD92: HEP B (RECOMBIVAX HB) | AAT92: LYME (LYMERIX) | ABJ92: PNEUMO (NO BRAND NAME) | ABZ92: MENINGOCOCCAL CONJUGATE (MENVEO) | ACP92: INFLUENZA (SEASONAL) (FLULAVAL QUADRIVALENT) | ADF92: INFLUENZA (SEASONAL) (FLUBLOK QUADRIVALENT) | ADV92: YELLOW FEVER (STAMARIL) | AEL92: INFLUENZA (SEASONAL) (FLUCELVAX QUADRIVALENT) | AFB92: INFLUENZA (SEASONAL) (AFLURIA QUADRIVALENT) | AFR92: VACCINE NOT SPECIFIED (OTHER) | AGH92: MENINGOCOCCAL B (BEXSERO) | AGX92: INFLUENZA (H1N1) (H1N1 (MONOVALENT) (UNKNOWN)) | AHN92: JAPANESE ENCEPHALITIS (IXIARO) | AID92: ROTAVIRUS (ROTARIX) | AIT92: HEP B (NO BRAND NAME) | AJJ92: MUMPS (NO BRAND NAME) | AJZ92: DTAP+IPV+HEPB+HIB (NO BRAND NAME) | AKP92: INFLUENZA (SEASONAL) (FLUMIST) | ALF92: INFLUENZA (SEASONAL) (FLUAD QUADRIVALENT) | ALV92: HIB (PEDVAXHIB) | ALW92: 1 | ALX92: 1 | AMB92: 1 | AMC92: 1 | AML92: ANTHRAX (BIOTHRAX) | ANB92: RABIES (NO BRAND NAME) | ANR92: POLIO VIRUS, INACT. (IPOL) | AOH92: INFLUENZA (H1N1) (H1N1 (MONOVALENT) (MEDIMMUNE)) | AOX92: DTAP+IPV+HEPB+HIB (INFANRIX HEXA) | APN92: TD ADSORBED (NO BRAND NAME) | AQD92: TYPHOID LIVE ORAL TY21A (VIVOTIF) | AQT92: MEASLES + MUMPS + RUBELLA (MMR I) | ARJ92: INFLUENZA (SEASONAL) (FLUZONE INTRADERMAL) | ARZ92: TDAP (NO BRAND NAME) | ASP92: MENINGOCOCCAL (MENOMUNE) | ATF92: DTAP + IPV + HIB (PENTACEL) | ATV92: TD ADSORBED (TDVAX) | AUL92: INFLUENZA (SEASONAL) (FOREIGN) | AVB92: HEP A (NO BRAND NAME) | AVR92: RABIES (RABAVERT) | AWH92: SMALLPOX (ACAM2000)
A93: 2 | B93: COVID19 (COVID19 (PFIZER-BIONTECH)) | R93: COVID19 (COVID19 (MODERNA)) | AH93: COVID19 (COVID19 (JANSSEN)) | AX93: HPV (GARDASIL) | BN93: ZOSTER (SHINGRIX) | CD93: HPV (CERVARIX) | CT93: TDAP (ADACEL) | DJ93: VACCINE NOT SPECIFIED (NO BRAND NAME) | DZ93: INFLUENZA (SEASONAL) (NO BRAND NAME) | EP93: HEP A (HAVRIX) | FF93: HEP B (ENGERIX-B) | FV93: HPV (GARDASIL 9) | GL93: MENINGOCOCCAL CONJUGATE (MENACTRA) | HB93: PNEUMO (PREVNAR13) | HR93: PNEUMO (PNEUMOVAX) | IH93: INFLUENZA (SEASONAL) (FLUZONE) | IX93: HPV (NO BRAND NAME) | JN93: ZOSTER LIVE (ZOSTAVAX) | KD93: HEP A (VAQTA) | KT93: TDAP (BOOSTRIX) | LJ93: HEP A + HEP B (TWINRIX) | LZ93: MEASLES + MUMPS + RUBELLA (MMR II) | MP93: VARICELLA (VARIVAX) | NF93: INFLUENZA (SEASONAL) (FLUZONE HIGH-DOSE) | NV93: COVID19 (COVID19 (UNKNOWN)) | OL93: MENINGOCOCCAL B (TRUMENBA) | PB93: INFLUENZA (SEASONAL) (FLUARIX) | PR93: YELLOW FEVER (YF-VAX) | QH93: INFLUENZA (SEASONAL) (FLUAD) | QX93: INFLUENZA (SEASONAL) (FLUVIRIN) | RN93: INFLUENZA (SEASONAL) (FLUZONE QUADRIVALENT) | SD93: INFLUENZA (SEASONAL) (FLUARIX QUADRIVALENT) | ST93: RABIES (RABIPUR) | TJ93: INFLUENZA (SEASONAL) (FLULAVAL) | TZ93: TYPHOID VI POLYSACCHARIDE (TYPHIM VI) | UP93: RABIES (IMOVAX) | VF93: INFLUENZA (SEASONAL) (FLUZONE HIGH-DOSE QUADRIVALENT) | VV93: ROTAVIRUS (ROTATEQ) | WL93: TETANUS DIPHTHERIA (NO BRAND NAME) | XB93: TYPHOID LIVE ORAL TY21A (NO BRAND NAME) | XR93: INFLUENZA (H1N1) (H1N1 (MONOVALENT) (SANOFI)) | YH93: DTAP (DAPTACEL) | YX93: MEASLES + MUMPS + RUBELLA (NO BRAND NAME) | ZN93: INFLUENZA (SEASONAL) (FLUMIST QUADRIVALENT) | AAD93: HEP B (RECOMBIVAX HB) | AAT93: LYME (LYMERIX) | ABJ93: PNEUMO (NO BRAND NAME) | ABZ93: MENINGOCOCCAL CONJUGATE (MENVEO) | ACP93: INFLUENZA (SEASONAL) (FLULAVAL QUADRIVALENT) | ADF93: INFLUENZA (SEASONAL) (FLUBLOK QUADRIVALENT) | ADV93: YELLOW FEVER (STAMARIL) | AEL93: INFLUENZA (SEASONAL) (FLUCELVAX QUADRIVALENT) | AFB93: INFLUENZA (SEASONAL) (AFLURIA QUADRIVALENT) | AFR93: VACCINE NOT SPECIFIED (OTHER) | AGH93: MENINGOCOCCAL B (BEXSERO) | AGX93: INFLUENZA (H1N1) (H1N1 (MONOVALENT) (UNKNOWN)) | AHN93: JAPANESE ENCEPHALITIS (IXIARO) | AID93: ROTAVIRUS (ROTARIX) | AIT93: HEP B (NO BRAND NAME) | AJJ93: MUMPS (NO BRAND NAME) | AJZ93: DTAP+IPV+HEPB+HIB (NO BRAND NAME) | AKP93: INFLUENZA (SEASONAL) (FLUMIST) | ALF93: INFLUENZA (SEASONAL) (FLUAD QUADRIVALENT) | ALV93: HIB (PEDVAXHIB) | AML93: ANTHRAX (BIOTHRAX) | ANB93: RABIES (NO BRAND NAME) | ANR93: POLIO VIRUS, INACT. (IPOL) | AOH93: INFLUENZA (H1N1) (H1N1 (MONOVALENT) (MEDIMMUNE)) | AOX93: DTAP+IPV+HEPB+HIB (INFANRIX HEXA) | APN93: TD ADSORBED (NO BRAND NAME) | AQD93: TYPHOID LIVE ORAL TY21A (VIVOTIF) | AQT93: MEASLES + MUMPS + RUBELLA (MMR I) | ARJ93: INFLUENZA (SEASONAL) (FLUZONE INTRADERMAL) | ARZ93: TDAP (NO BRAND NAME) | ASP93: MENINGOCOCCAL (MENOMUNE) | ATF93: DTAP + IPV + HIB (PENTACEL) | ATV93: TD ADSORBED (TDVAX) | AUL93: INFLUENZA (SEASONAL) (FOREIGN) | AVB93: HEP A (NO BRAND NAME) | AVR93: RABIES (RABAVERT) | AWH93: SMALLPOX (ACAM2000)
A94: 3 | B94: COVID19 (COVID19 (PFIZER-BIONTECH)) | R94: COVID19 (COVID19 (MODERNA)) | AH94: COVID19 (COVID19 (JANSSEN)) | AX94: HPV (GARDASIL) | BN94: ZOSTER (SHINGRIX) | CD94: HPV (CERVARIX) | CT94: TDAP (ADACEL) | DJ94: VACCINE NOT SPECIFIED (NO BRAND NAME) | DZ94: INFLUENZA (SEASONAL) (NO BRAND NAME) | EP94: HEP A (HAVRIX) | FF94: HEP B (ENGERIX-B) | FV94: HPV (GARDASIL 9) | GL94: MENINGOCOCCAL CONJUGATE (MENACTRA) | HB94: PNEUMO (PREVNAR13) | HC94: 1 | HH94: 1 | HR94: PNEUMO (PNEUMOVAX) | IH94: INFLUENZA (SEASONAL) (FLUZONE) | IX94: HPV (NO BRAND NAME) | JN94: ZOSTER LIVE (ZOSTAVAX) | KD94: HEP A (VAQTA) | KT94: TDAP (BOOSTRIX) | LJ94: HEP A + HEP B (TWINRIX) | LZ94: MEASLES + MUMPS + RUBELLA (MMR II) | MP94: VARICELLA (VARIVAX) | NF94: INFLUENZA (SEASONAL) (FLUZONE HIGH-DOSE) | NV94: COVID19 (COVID19 (UNKNOWN)) | OL94: MENINGOCOCCAL B (TRUMENBA) | PB94: INFLUENZA (SEASONAL) (FLUARIX) | PR94: YELLOW FEVER (YF-VAX) | QH94: INFLUENZA (SEASONAL) (FLUAD) | QX94: INFLUENZA (SEASONAL) (FLUVIRIN) | RN94: INFLUENZA (SEASONAL) (FLUZONE QUADRIVALENT) | SD94: INFLUENZA (SEASONAL) (FLUARIX QUADRIVALENT) | ST94: RABIES (RABIPUR) | TJ94: INFLUENZA (SEASONAL) (FLULAVAL) | TZ94: TYPHOID VI POLYSACCHARIDE (TYPHIM VI) | UP94: RABIES (IMOVAX) | VF94: INFLUENZA (SEASONAL) (FLUZONE HIGH-DOSE QUADRIVALENT) | VV94: ROTAVIRUS (ROTATEQ) | WL94: TETANUS DIPHTHERIA (NO BRAND NAME) | XB94: TYPHOID LIVE ORAL TY21A (NO BRAND NAME) | XR94: INFLUENZA (H1N1) (H1N1 (MONOVALENT) (SANOFI)) | YH94: DTAP (DAPTACEL) | YX94: MEASLES + MUMPS + RUBELLA (NO BRAND NAME) | ZN94: INFLUENZA (SEASONAL) (FLUMIST QUADRIVALENT) | AAD94: HEP B (RECOMBIVAX HB) | AAT94: LYME (LYMERIX) | ABJ94: PNEUMO (NO BRAND NAME) | ABZ94: MENINGOCOCCAL CONJUGATE (MENVEO) | ACP94: INFLUENZA (SEASONAL) (FLULAVAL QUADRIVALENT) | ADF94: INFLUENZA (SEASONAL) (FLUBLOK QUADRIVALENT) | ADV94: YELLOW FEVER (STAMARIL) | AEL94: INFLUENZA (SEASONAL) (FLUCELVAX QUADRIVALENT) | AFB94: INFLUENZA (SEASONAL) (AFLURIA QUADRIVALENT) | AFR94: VACCINE NOT SPECIFIED (OTHER) | AGH94: MENINGOCOCCAL B (BEXSERO) | AGX94: INFLUENZA (H1N1) (H1N1 (MONOVALENT) (UNKNOWN)) | AHN94: JAPANESE ENCEPHALITIS (IXIARO) | AID94: ROTAVIRUS (ROTARIX) | AIT94: HEP B (NO BRAND NAME) | AJJ94: MUMPS (NO BRAND NAME) | AJZ94: DTAP+IPV+HEPB+HIB (NO BRAND NAME) | AKP94: INFLUENZA (SEASONAL) (FLUMIST) | ALF94: INFLUENZA (SEASONAL) (FLUAD QUADRIVALENT) | ALV94: HIB (PEDVAXHIB) | AML94: ANTHRAX (BIOTHRAX) | ANB94: RABIES (NO BRAND NAME) | ANR94: POLIO VIRUS, INACT. (IPOL) | AOH94: INFLUENZA (H1N1) (H1N1 (MONOVALENT) (MEDIMMUNE)) | AOX94: DTAP+IPV+HEPB+HIB (INFANRIX HEXA) | APN94: TD ADSORBED (NO BRAND NAME) | AQD94: TYPHOID LIVE ORAL TY21A (VIVOTIF) | AQT94: MEASLES + MUMPS + RUBELLA (MMR I) | ARJ94: INFLUENZA (SEASONAL) (FLUZONE INTRADERMAL) | ARZ94: TDAP (NO BRAND NAME) | ASP94: MENINGOCOCCAL (MENOMUNE) | ATF94: DTAP + IPV + HIB (PENTACEL) | ATV94: TD ADSORBED (TDVAX) | AUL94: INFLUENZA (SEASONAL) (FOREIGN) | AVB94: HEP A (NO BRAND NAME) | AVR94: RABIES (RABAVERT) | AWH94: SMALLPOX (ACAM2000)
A95: 4 | B95: COVID19 (COVID19 (PFIZER-BIONTECH)) | R95: COVID19 (COVID19 (MODERNA)) | AH95: COVID19 (COVID19 (JANSSEN)) | AX95: HPV (GARDASIL) | BN95: ZOSTER (SHINGRIX) | CD95: HPV (CERVARIX) | CT95: TDAP (ADACEL) | DJ95: VACCINE NOT SPECIFIED (NO BRAND NAME) | DZ95: INFLUENZA (SEASONAL) (NO BRAND NAME) | EP95: HEP A (HAVRIX) | FF95: HEP B (ENGERIX-B) | FV95: HPV (GARDASIL 9) | GL95: MENINGOCOCCAL CONJUGATE (MENACTRA) | HB95: PNEUMO (PREVNAR13) | HC95: 1 | HM95: 1 | HR95: PNEUMO (PNEUMOVAX) | IH95: INFLUENZA (SEASONAL) (FLUZONE) | IX95: HPV (NO BRAND NAME) | JN95: ZOSTER LIVE (ZOSTAVAX) | KD95: HEP A (VAQTA) | KT95: TDAP (BOOSTRIX) | LJ95: HEP A + HEP B (TWINRIX) | LZ95: MEASLES + MUMPS + RUBELLA (MMR II) | MP95: VARICELLA (VARIVAX) | NF95: INFLUENZA (SEASONAL) (FLUZONE HIGH-DOSE) | NV95: COVID19 (COVID19 (UNKNOWN)) | OL95: MENINGOCOCCAL B (TRUMENBA) | PB95: INFLUENZA (SEASONAL) (FLUARIX) | PR95: YELLOW FEVER (YF-VAX) | QH95: INFLUENZA (SEASONAL) (FLUAD) | QX95: INFLUENZA (SEASONAL) (FLUVIRIN) | RN95: INFLUENZA (SEASONAL) (FLUZONE QUADRIVALENT) | SD95: INFLUENZA (SEASONAL) (FLUARIX QUADRIVALENT) | ST95: RABIES (RABIPUR) | TJ95: INFLUENZA (SEASONAL) (FLULAVAL) | TZ95: TYPHOID VI POLYSACCHARIDE (TYPHIM VI) | UP95: RABIES (IMOVAX) | VF95: INFLUENZA (SEASONAL) (FLUZONE HIGH-DOSE QUADRIVALENT) | VV95: ROTAVIRUS (ROTATEQ) | VW95: 1 | WG95: 1 | WL95: TETANUS DIPHTHERIA (NO BRAND NAME) | XB95: TYPHOID LIVE ORAL TY21A (NO BRAND NAME) | XR95: INFLUENZA (H1N1) (H1N1 (MONOVALENT) (SANOFI)) | YH95: DTAP (DAPTACEL) | YX95: MEASLES + MUMPS + RUBELLA (NO BRAND NAME) | ZN95: INFLUENZA (SEASONAL) (FLUMIST QUADRIVALENT) | AAD95: HEP B (RECOMBIVAX HB) | AAT95: LYME (LYMERIX) | ABJ95: PNEUMO (NO BRAND NAME) | ABZ95: MENINGOCOCCAL CONJUGATE (MENVEO) | ACP95: INFLUENZA (SEASONAL) (FLULAVAL QUADRIVALENT) | ADF95: INFLUENZA (SEASONAL) (FLUBLOK QUADRIVALENT) | ADV95: YELLOW FEVER (STAMARIL) | AEL95: INFLUENZA (SEASONAL) (FLUCELVAX QUADRIVALENT) | AFB95: INFLUENZA (SEASONAL) (AFLURIA QUADRIVALENT) | AFR95: VACCINE NOT SPECIFIED (OTHER) | AGH95: MENINGOCOCCAL B (BEXSERO) | AGX95: INFLUENZA (H1N1) (H1N1 (MONOVALENT) (UNKNOWN)) | AHN95: JAPANESE ENCEPHALITIS (IXIARO) | AID95: ROTAVIRUS (ROTARIX) | AIT95: HEP B (NO BRAND NAME) | AJJ95: MUMPS (NO BRAND NAME) | AJZ95: DTAP+IPV+HEPB+HIB (NO BRAND NAME) | AKP95: INFLUENZA (SEASONAL) (FLUMIST) | ALF95: INFLUENZA (SEASONAL) (FLUAD QUADRIVALENT) | ALV95: HIB (PEDVAXHIB) | AML95: ANTHRAX (BIOTHRAX) | ANB95: RABIES (NO BRAND NAME) | ANR95: POLIO VIRUS, INACT. (IPOL) | AOH95: INFLUENZA (H1N1) (H1N1 (MONOVALENT) (MEDIMMUNE)) | AOX95: DTAP+IPV+HEPB+HIB (INFANRIX HEXA) | AOY95: 1 | API95: 1 | APN95: TD ADSORBED (NO BRAND NAME) | AQD95: TYPHOID LIVE ORAL TY21A (VIVOTIF) | AQT95: MEASLES + MUMPS + RUBELLA (MMR I) | ARJ95: INFLUENZA (SEASONAL) (FLUZONE INTRADERMAL) | ARZ95: TDAP (NO BRAND NAME) | ASP95: MENINGOCOCCAL (MENOMUNE) | ATF95: DTAP + IPV + HIB (PENTACEL) | ATV95: TD ADSORBED (TDVAX) | AUL95: INFLUENZA (SEASONAL) (FOREIGN) | AVB95: HEP A (NO BRAND NAME) | AVR95: RABIES (RABAVERT) | AWH95: SMALLPOX (ACAM2000)
A96: 5 | B96: COVID19 (COVID19 (PFIZER-BIONTECH)) | C96: 1 | D96: 1 | M96: 1 | N96: 1 | R96: COVID19 (COVID19 (MODERNA)) | AH96: COVID19 (COVID19 (JANSSEN)) | AX96: HPV (GARDASIL) | BN96: ZOSTER (SHINGRIX) | CD96: HPV (CERVARIX) | CT96: TDAP (ADACEL) | DJ96: VACCINE NOT SPECIFIED (NO BRAND NAME) | DZ96: INFLUENZA (SEASONAL) (NO BRAND NAME) | EP96: HEP A (HAVRIX) | FF96: HEP B (ENGERIX-B) | FV96: HPV (GARDASIL 9) | GL96: MENINGOCOCCAL CONJUGATE (MENACTRA) | HB96: PNEUMO (PREVNAR13) | HR96: PNEUMO (PNEUMOVAX) | IH96: INFLUENZA (SEASONAL) (FLUZONE) | IX96: HPV (NO BRAND NAME) | JN96: ZOSTER LIVE (ZOSTAVAX) | KD96: HEP A (VAQTA) | KT96: TDAP (BOOSTRIX) | LJ96: HEP A + HEP B (TWINRIX) | LZ96: MEASLES + MUMPS + RUBELLA (MMR II) | MP96: VARICELLA (VARIVAX) | NF96: INFLUENZA (SEASONAL) (FLUZONE HIGH-DOSE) | NV96: COVID19 (COVID19 (UNKNOWN)) | OL96: MENINGOCOCCAL B (TRUMENBA) | PB96: INFLUENZA (SEASONAL) (FLUARIX) | PR96: YELLOW FEVER (YF-VAX) | QH96: INFLUENZA (SEASONAL) (FLUAD) | QX96: INFLUENZA (SEASONAL) (FLUVIRIN) | RN96: INFLUENZA (SEASONAL) (FLUZONE QUADRIVALENT) | SD96: INFLUENZA (SEASONAL) (FLUARIX QUADRIVALENT) | ST96: RABIES (RABIPUR) | TJ96: INFLUENZA (SEASONAL) (FLULAVAL) | TZ96: TYPHOID VI POLYSACCHARIDE (TYPHIM VI) | UP96: RABIES (IMOVAX) | VF96: INFLUENZA (SEASONAL) (FLUZONE HIGH-DOSE QUADRIVALENT) | VV96: ROTAVIRUS (ROTATEQ) | WL96: TETANUS DIPHTHERIA (NO BRAND NAME) | XB96: TYPHOID LIVE ORAL TY21A (NO BRAND NAME) | XR96: INFLUENZA (H1N1) (H1N1 (MONOVALENT) (SANOFI)) | XS96: 1 | XT96: 1 | XX96: 1 | XY96: 1 | YH96: DTAP (DAPTACEL) | YX96: MEASLES + MUMPS + RUBELLA (NO BRAND NAME) | ZN96: INFLUENZA (SEASONAL) (FLUMIST QUADRIVALENT) | AAD96: HEP B (RECOMBIVAX HB) | AAT96: LYME (LYMERIX) | ABJ96: PNEUMO (NO BRAND NAME) | ABZ96: MENINGOCOCCAL CONJUGATE (MENVEO) | ACP96: INFLUENZA (SEASONAL) (FLULAVAL QUADRIVALENT) | ADF96: INFLUENZA (SEASONAL) (FLUBLOK QUADRIVALENT) | ADV96: YELLOW FEVER (STAMARIL) | AEL96: INFLUENZA (SEASONAL) (FLUCELVAX QUADRIVALENT) | AFB96: INFLUENZA (SEASONAL) (AFLURIA QUADRIVALENT) | AFR96: VACCINE NOT SPECIFIED (OTHER) | AGH96: MENINGOCOCCAL B (BEXSERO) | AGX96: INFLUENZA (H1N1) (H1N1 (MONOVALENT) (UNKNOWN)) | AHN96: JAPANESE ENCEPHALITIS (IXIARO) | AID96: ROTAVIRUS (ROTARIX) | AIT96: HEP B (NO BRAND NAME) | AJJ96: MUMPS (NO BRAND NAME) | AJZ96: DTAP+IPV+HEPB+HIB (NO BRAND NAME) | AKP96: INFLUENZA (SEASONAL) (FLUMIST) | ALF96: INFLUENZA (SEASONAL) (FLUAD QUADRIVALENT) | ALV96: HIB (PEDVAXHIB) | AML96: ANTHRAX (BIOTHRAX) | ANB96: RABIES (NO BRAND NAME) | ANR96: POLIO VIRUS, INACT. (IPOL) | AOH96: INFLUENZA (H1N1) (H1N1 (MONOVALENT) (MEDIMMUNE)) | AOX96: DTAP+IPV+HEPB+HIB (INFANRIX HEXA) | APN96: TD ADSORBED (NO BRAND NAME) | AQD96: TYPHOID LIVE ORAL TY21A (VIVOTIF) | AQT96: MEASLES + MUMPS + RUBELLA (MMR I) | ARJ96: INFLUENZA (SEASONAL) (FLUZONE INTRADERMAL) | ARZ96: TDAP (NO BRAND NAME) | ASP96: MENINGOCOCCAL (MENOMUNE) | ATF96: DTAP + IPV + HIB (PENTACEL) | ATV96: TD ADSORBED (TDVAX) | AUL96: INFLUENZA (SEASONAL) (FOREIGN) | AVB96: HEP A (NO BRAND NAME) | AVR96: RABIES (RABAVERT) | AWH96: SMALLPOX (ACAM2000)
A97: 6 | B97: COVID19 (COVID19 (PFIZER-BIONTECH)) | C97: 1 | D97: 1 | M97: 1 | N97: 1 | R97: COVID19 (COVID19 (MODERNA)) | AH97: COVID19 (COVID19 (JANSSEN)) | AX97: HPV (GARDASIL) | BN97: ZOSTER (SHINGRIX) | CD97: HPV (CERVARIX) | CT97: TDAP (ADACEL) | DJ97: VACCINE NOT SPECIFIED (NO BRAND NAME) | DZ97: INFLUENZA (SEASONAL) (NO BRAND NAME) | EP97: HEP A (HAVRIX) | FF97: HEP B (ENGERIX-B) | FV97: HPV (GARDASIL 9) | GL97: MENINGOCOCCAL CONJUGATE (MENACTRA) | HB97: PNEUMO (PREVNAR13) | HR97: PNEUMO (PNEUMOVAX) | IH97: INFLUENZA (SEASONAL) (FLUZONE) | IX97: HPV (NO BRAND NAME) | JN97: ZOSTER LIVE (ZOSTAVAX) | KD97: HEP A (VAQTA) | KT97: TDAP (BOOSTRIX) | LJ97: HEP A + HEP B (TWINRIX) | LZ97: MEASLES + MUMPS + RUBELLA (MMR II) | MP97: VARICELLA (VARIVAX) | NF97: INFLUENZA (SEASONAL) (FLUZONE HIGH-DOSE) | NV97: COVID19 (COVID19 (UNKNOWN)) | OL97: MENINGOCOCCAL B (TRUMENBA) | PB97: INFLUENZA (SEASONAL) (FLUARIX) | PR97: YELLOW FEVER (YF-VAX) | QH97: INFLUENZA (SEASONAL) (FLUAD) | QX97: INFLUENZA (SEASONAL) (FLUVIRIN) | RN97: INFLUENZA (SEASONAL) (FLUZONE QUADRIVALENT) | SD97: INFLUENZA (SEASONAL) (FLUARIX QUADRIVALENT) | ST97: RABIES (RABIPUR) | TJ97: INFLUENZA (SEASONAL) (FLULAVAL) | TZ97: TYPHOID VI POLYSACCHARIDE (TYPHIM VI) | UP97: RABIES (IMOVAX) | VF97: INFLUENZA (SEASONAL) (FLUZONE HIGH-DOSE QUADRIVALENT) | VV97: ROTAVIRUS (ROTATEQ) | WL97: TETANUS DIPHTHERIA (NO BRAND NAME) | XB97: TYPHOID LIVE ORAL TY21A (NO BRAND NAME) | XR97: INFLUENZA (H1N1) (H1N1 (MONOVALENT) (SANOFI)) | YH97: DTAP (DAPTACEL) | YX97: MEASLES + MUMPS + RUBELLA (NO BRAND NAME) | ZN97: INFLUENZA (SEASONAL) (FLUMIST QUADRIVALENT) | AAD97: HEP B (RECOMBIVAX HB) | AAT97: LYME (LYMERIX) | ABJ97: PNEUMO (NO BRAND NAME) | ABZ97: MENINGOCOCCAL CONJUGATE (MENVEO) | ACP97: INFLUENZA (SEASONAL) (FLULAVAL QUADRIVALENT) | ADF97: INFLUENZA (SEASONAL) (FLUBLOK QUADRIVALENT) | ADV97: YELLOW FEVER (STAMARIL) | AEL97: INFLUENZA (SEASONAL) (FLUCELVAX QUADRIVALENT) | AFB97: INFLUENZA (SEASONAL) (AFLURIA QUADRIVALENT) | AFR97: VACCINE NOT SPECIFIED (OTHER) | AGH97: MENINGOCOCCAL B (BEXSERO) | AGX97: INFLUENZA (H1N1) (H1N1 (MONOVALENT) (UNKNOWN)) | AHN97: JAPANESE ENCEPHALITIS (IXIARO) | AID97: ROTAVIRUS (ROTARIX) | AIT97: HEP B (NO BRAND NAME) | AJJ97: MUMPS (NO BRAND NAME) | AJZ97: DTAP+IPV+HEPB+HIB (NO BRAND NAME) | AKP97: INFLUENZA (SEASONAL) (FLUMIST) | ALF97: INFLUENZA (SEASONAL) (FLUAD QUADRIVALENT) | ALV97: HIB (PEDVAXHIB) | AML97: ANTHRAX (BIOTHRAX) | ANB97: RABIES (NO BRAND NAME) | ANR97: POLIO VIRUS, INACT. (IPOL) | AOH97: INFLUENZA (H1N1) (H1N1 (MONOVALENT) (MEDIMMUNE)) | AOX97: DTAP+IPV+HEPB+HIB (INFANRIX HEXA) | APN97: TD ADSORBED (NO BRAND NAME) | AQD97: TYPHOID LIVE ORAL TY21A (VIVOTIF) | AQT97: MEASLES + MUMPS + RUBELLA (MMR I) | ARJ97: INFLUENZA (SEASONAL) (FLUZONE INTRADERMAL) | ARZ97: TDAP (NO BRAND NAME) | ASP97: MENINGOCOCCAL (MENOMUNE) | ATF97: DTAP + IPV + HIB (PENTACEL) | ATV97: TD ADSORBED (TDVAX) | AUL97: INFLUENZA (SEASONAL) (FOREIGN) | AVB97: HEP A (NO BRAND NAME) | AVR97: RABIES (RABAVERT) | AWH97: SMALLPOX (ACAM2000)
A98: 7 | B98: COVID19 (COVID19 (PFIZER-BIONTECH)) | R98: COVID19 (COVID19 (MODERNA)) | AH98: COVID19 (COVID19 (JANSSEN)) | AX98: HPV (GARDASIL) | BN98: ZOSTER (SHINGRIX) | CD98: HPV (CERVARIX) | CT98: TDAP (ADACEL) | DJ98: VACCINE NOT SPECIFIED (NO BRAND NAME) | DZ98: INFLUENZA (SEASONAL) (NO BRAND NAME) | EP98: HEP A (HAVRIX) | FF98: HEP B (ENGERIX-B) | FV98: HPV (GARDASIL 9) | GL98: MENINGOCOCCAL CONJUGATE (MENACTRA) | HB98: PNEUMO (PREVNAR13) | HR98: PNEUMO (PNEUMOVAX) | IH98: INFLUENZA (SEASONAL) (FLUZONE) | IX98: HPV (NO BRAND NAME) | JN98: ZOSTER LIVE (ZOSTAVAX) | KD98: HEP A (VAQTA) | KT98: TDAP (BOOSTRIX) | LJ98: HEP A + HEP B (TWINRIX) | LZ98: MEASLES + MUMPS + RUBELLA (MMR II) | MP98: VARICELLA (VARIVAX) | NF98: INFLUENZA (SEASONAL) (FLUZONE HIGH-DOSE) | NV98: COVID19 (COVID19 (UNKNOWN)) | OL98: MENINGOCOCCAL B (TRUMENBA) | PB98: INFLUENZA (SEASONAL) (FLUARIX) | PR98: YELLOW FEVER (YF-VAX) | QH98: INFLUENZA (SEASONAL) (FLUAD) | QX98: INFLUENZA (SEASONAL) (FLUVIRIN) | RN98: INFLUENZA (SEASONAL) (FLUZONE QUADRIVALENT) | SD98: INFLUENZA (SEASONAL) (FLUARIX QUADRIVALENT) | ST98: RABIES (RABIPUR) | TJ98: INFLUENZA (SEASONAL) (FLULAVAL) | TZ98: TYPHOID VI POLYSACCHARIDE (TYPHIM VI) | UP98: RABIES (IMOVAX) | VF98: INFLUENZA (SEASONAL) (FLUZONE HIGH-DOSE QUADRIVALENT) | VV98: ROTAVIRUS (ROTATEQ) | WL98: TETANUS DIPHTHERIA (NO BRAND NAME) | XB98: TYPHOID LIVE ORAL TY21A (NO BRAND NAME) | XR98: INFLUENZA (H1N1) (H1N1 (MONOVALENT) (SANOFI)) | YH98: DTAP (DAPTACEL) | YX98: MEASLES + MUMPS + RUBELLA (NO BRAND NAME) | ZN98: INFLUENZA (SEASONAL) (FLUMIST QUADRIVALENT) | AAD98: HEP B (RECOMBIVAX HB) | AAT98: LYME (LYMERIX) | ABJ98: PNEUMO (NO BRAND NAME) | ABZ98: MENINGOCOCCAL CONJUGATE (MENVEO) | ACP98: INFLUENZA (SEASONAL) (FLULAVAL QUADRIVALENT) | ADF98: INFLUENZA (SEASONAL) (FLUBLOK QUADRIVALENT) | ADV98: YELLOW FEVER (STAMARIL) | AEL98: INFLUENZA (SEASONAL) (FLUCELVAX QUADRIVALENT) | AFB98: INFLUENZA (SEASONAL) (AFLURIA QUADRIVALENT) | AFR98: VACCINE NOT SPECIFIED (OTHER) | AGH98: MENINGOCOCCAL B (BEXSERO) | AGX98: INFLUENZA (H1N1) (H1N1 (MONOVALENT) (UNKNOWN)) | AHN98: JAPANESE ENCEPHALITIS (IXIARO) | AID98: ROTAVIRUS (ROTARIX) | AIT98: HEP B (NO BRAND NAME) | AJJ98: MUMPS (NO BRAND NAME) | AJZ98: DTAP+IPV+HEPB+HIB (NO BRAND NAME) | AKP98: INFLUENZA (SEASONAL) (FLUMIST) | ALF98: INFLUENZA (SEASONAL) (FLUAD QUADRIVALENT) | ALV98: HIB (PEDVAXHIB) | AML98: ANTHRAX (BIOTHRAX) | ANB98: RABIES (NO BRAND NAME) | ANR98: POLIO VIRUS, INACT. (IPOL) | AOH98: INFLUENZA (H1N1) (H1N1 (MONOVALENT) (MEDIMMUNE)) | AOX98: DTAP+IPV+HEPB+HIB (INFANRIX HEXA) | APN98: TD ADSORBED (NO BRAND NAME) | AQD98: TYPHOID LIVE ORAL TY21A (VIVOTIF) | AQT98: MEASLES + MUMPS + RUBELLA (MMR I) | ARJ98: INFLUENZA (SEASONAL) (FLUZONE INTRADERMAL) | ARZ98: TDAP (NO BRAND NAME) | ASP98: MENINGOCOCCAL (MENOMUNE) | ATF98: DTAP + IPV + HIB (PENTACEL) | ATV98: TD ADSORBED (TDVAX) | AUL98: INFLUENZA (SEASONAL) (FOREIGN) | AVB98: HEP A (NO BRAND NAME) | AVR98: RABIES (RABAVERT) | AWH98: SMALLPOX (ACAM2000)
A99: 8 | B99: COVID19 (COVID19 (PFIZER-BIONTECH)) | R99: COVID19 (COVID19 (MODERNA)) | AH99: COVID19 (COVID19 (JANSSEN)) | AX99: HPV (GARDASIL) | BN99: ZOSTER (SHINGRIX) | CD99: HPV (CERVARIX) | CT99: TDAP (ADACEL) | DJ99: VACCINE NOT SPECIFIED (NO BRAND NAME) | DZ99: INFLUENZA (SEASONAL) (NO BRAND NAME) | EP99: HEP A (HAVRIX) | FF99: HEP B (ENGERIX-B) | FV99: HPV (GARDASIL 9) | GL99: MENINGOCOCCAL CONJUGATE (MENACTRA) | HB99: PNEUMO (PREVNAR13) | HR99: PNEUMO (PNEUMOVAX) | IH99: INFLUENZA (SEASONAL) (FLUZONE) | IX99: HPV (NO BRAND NAME) | JN99: ZOSTER LIVE (ZOSTAVAX) | KD99: HEP A (VAQTA) | KT99: TDAP (BOOSTRIX) | LJ99: HEP A + HEP B (TWINRIX) | LZ99: MEASLES + MUMPS + RUBELLA (MMR II) | MP99: VARICELLA (VARIVAX) | NF99: INFLUENZA (SEASONAL) (FLUZONE HIGH-DOSE) | NV99: COVID19 (COVID19 (UNKNOWN)) | OL99: MENINGOCOCCAL B (TRUMENBA) | PB99: INFLUENZA (SEASONAL) (FLUARIX) | PR99: YELLOW FEVER (YF-VAX) | QH99: INFLUENZA (SEASONAL) (FLUAD) | QX99: INFLUENZA (SEASONAL) (FLUVIRIN) | RN99: INFLUENZA (SEASONAL) (FLUZONE QUADRIVALENT) | SD99: INFLUENZA (SEASONAL) (FLUARIX QUADRIVALENT) | SE99: 1 | SJ99: 1 | ST99: RABIES (RABIPUR) | TJ99: INFLUENZA (SEASONAL) (FLULAVAL) | TZ99: TYPHOID VI POLYSACCHARIDE (TYPHIM VI) | UP99: RABIES (IMOVAX) | VF99: INFLUENZA (SEASONAL) (FLUZONE HIGH-DOSE QUADRIVALENT) | VV99: ROTAVIRUS (ROTATEQ) | WL99: TETANUS DIPHTHERIA (NO BRAND NAME) | XB99: TYPHOID LIVE ORAL TY21A (NO BRAND NAME) | XR99: INFLUENZA (H1N1) (H1N1 (MONOVALENT) (SANOFI)) | YH99: DTAP (DAPTACEL) | YX99: MEASLES + MUMPS + RUBELLA (NO BRAND NAME) | ZN99: INFLUENZA (SEASONAL) (FLUMIST QUADRIVALENT) | AAD99: HEP B (RECOMBIVAX HB) | AAT99: LYME (LYMERIX) | ABJ99: PNEUMO (NO BRAND NAME) | ABZ99: MENINGOCOCCAL CONJUGATE (MENVEO) | ACP99: INFLUENZA (SEASONAL) (FLULAVAL QUADRIVALENT) | ADF99: INFLUENZA (SEASONAL) (FLUBLOK QUADRIVALENT) | ADV99: YELLOW FEVER (STAMARIL) | AEL99: INFLUENZA (SEASONAL) (FLUCELVAX QUADRIVALENT) | AFB99: INFLUENZA (SEASONAL) (AFLURIA QUADRIVALENT) | AFR99: VACCINE NOT SPECIFIED (OTHER) | AGH99: MENINGOCOCCAL B (BEXSERO) | AGX99: INFLUENZA (H1N1) (H1N1 (MONOVALENT) (UNKNOWN)) | AHN99: JAPANESE ENCEPHALITIS (IXIARO) | AID99: ROTAVIRUS (ROTARIX) | AIT99: HEP B (NO BRAND NAME) | AJJ99: MUMPS (NO BRAND NAME) | AJZ99: DTAP+IPV+HEPB+HIB (NO BRAND NAME) | AKP99: INFLUENZA (SEASONAL) (FLUMIST) | ALF99: INFLUENZA (SEASONAL) (FLUAD QUADRIVALENT) | ALV99: HIB (PEDVAXHIB) | AML99: ANTHRAX (BIOTHRAX) | ANB99: RABIES (NO BRAND NAME) | ANR99: POLIO VIRUS, INACT. (IPOL) | AOH99: INFLUENZA (H1N1) (H1N1 (MONOVALENT) (MEDIMMUNE)) | AOX99: DTAP+IPV+HEPB+HIB (INFANRIX HEXA) | APN99: TD ADSORBED (NO BRAND NAME) | AQD99: TYPHOID LIVE ORAL TY21A (VIVOTIF) | AQT99: MEASLES + MUMPS + RUBELLA (MMR I) | ARJ99: INFLUENZA (SEASONAL) (FLUZONE INTRADERMAL) | ARZ99: TDAP (NO BRAND NAME) | ASP99: MENINGOCOCCAL (MENOMUNE) | ATF99: DTAP + IPV + HIB (PENTACEL) | ATV99: TD ADSORBED (TDVAX) | AUL99: INFLUENZA (SEASONAL) (FOREIGN) | AVB99: HEP A (NO BRAND NAME) | AVR99: RABIES (RABAVERT) | AWH99: SMALLPOX (ACAM2000)
A100: 9 | B100: COVID19 (COVID19 (PFIZER-BIONTECH)) | R100: COVID19 (COVID19 (MODERNA)) | AH100: COVID19 (COVID19 (JANSSEN)) | AX100: HPV (GARDASIL) | BN100: ZOSTER (SHINGRIX) | CD100: HPV (CERVARIX) | CT100: TDAP (ADACEL) | DJ100: VACCINE NOT SPECIFIED (NO BRAND NAME) | DZ100: INFLUENZA (SEASONAL) (NO BRAND NAME) | EP100: HEP A (HAVRIX) | FF100: HEP B (ENGERIX-B) | FV100: HPV (GARDASIL 9) | GL100: MENINGOCOCCAL CONJUGATE (MENACTRA) | HB100: PNEUMO (PREVNAR13) | HR100: PNEUMO (PNEUMOVAX) | IH100: INFLUENZA (SEASONAL) (FLUZONE) | IX100: HPV (NO BRAND NAME) | JN100: ZOSTER LIVE (ZOSTAVAX) | KD100: HEP A (VAQTA) | KE100: 1 | KF100: 1 | KO100: 1 | KP100: 1 | KT100: TDAP (BOOSTRIX) | LJ100: HEP A + HEP B (TWINRIX) | LZ100: MEASLES + MUMPS + RUBELLA (MMR II) | MP100: VARICELLA (VARIVAX) | NF100: INFLUENZA (SEASONAL) (FLUZONE HIGH-DOSE) | NV100: COVID19 (COVID19 (UNKNOWN)) | OL100: MENINGOCOCCAL B (TRUMENBA) | PB100: INFLUENZA (SEASONAL) (FLUARIX) | PR100: YELLOW FEVER (YF-VAX) | QH100: INFLUENZA (SEASONAL) (FLUAD) | QX100: INFLUENZA (SEASONAL) (FLUVIRIN) | RN100: INFLUENZA (SEASONAL) (FLUZONE QUADRIVALENT) | SD100: INFLUENZA (SEASONAL) (FLUARIX QUADRIVALENT) | ST100: RABIES (RABIPUR) | TJ100: INFLUENZA (SEASONAL) (FLULAVAL) | TZ100: TYPHOID VI POLYSACCHARIDE (TYPHIM VI) | UP100: RABIES (IMOVAX) | VF100: INFLUENZA (SEASONAL) (FLUZONE HIGH-DOSE QUADRIVALENT) | VV100: ROTAVIRUS (ROTATEQ) | WL100: TETANUS DIPHTHERIA (NO BRAND NAME) | XB100: TYPHOID LIVE ORAL TY21A (NO BRAND NAME) | XR100: INFLUENZA (H1N1) (H1N1 (MONOVALENT) (SANOFI)) | YH100: DTAP (DAPTACEL) | YX100: MEASLES + MUMPS + RUBELLA (NO BRAND NAME) | ZN100: INFLUENZA (SEASONAL) (FLUMIST QUADRIVALENT) | AAD100: HEP B (RECOMBIVAX HB) | AAT100: LYME (LYMERIX) | ABJ100: PNEUMO (NO BRAND NAME) | ABZ100: MENINGOCOCCAL CONJUGATE (MENVEO) | ACP100: INFLUENZA (SEASONAL) (FLULAVAL QUADRIVALENT) | ADF100: INFLUENZA (SEASONAL) (FLUBLOK QUADRIVALENT) | ADV100: YELLOW FEVER (STAMARIL) | AEL100: INFLUENZA (SEASONAL) (FLUCELVAX QUADRIVALENT) | AFB100: INFLUENZA (SEASONAL) (AFLURIA QUADRIVALENT) | AFR100: VACCINE NOT SPECIFIED (OTHER) | AGH100: MENINGOCOCCAL B (BEXSERO) | AGI100: 1 | AGN100: 1 | AGX100: INFLUENZA (H1N1) (H1N1 (MONOVALENT) (UNKNOWN)) | AHN100: JAPANESE ENCEPHALITIS (IXIARO) | AID100: ROTAVIRUS (ROTARIX) | AIT100: HEP B (NO BRAND NAME) | AJJ100: MUMPS (NO BRAND NAME) | AJZ100: DTAP+IPV+HEPB+HIB (NO BRAND NAME) | AKP100: INFLUENZA (SEASONAL) (FLUMIST) | ALF100: INFLUENZA (SEASONAL) (FLUAD QUADRIVALENT) | ALV100: HIB (PEDVAXHIB) | AML100: ANTHRAX (BIOTHRAX) | ANB100: RABIES (NO BRAND NAME) | ANR100: POLIO VIRUS, INACT. (IPOL) | AOH100: INFLUENZA (H1N1) (H1N1 (MONOVALENT) (MEDIMMUNE)) | AOX100: DTAP+IPV+HEPB+HIB (INFANRIX HEXA) | APN100: TD ADSORBED (NO BRAND NAME) | AQD100: TYPHOID LIVE ORAL TY21A (VIVOTIF) | AQT100: MEASLES + MUMPS + RUBELLA (MMR I) | ARJ100: INFLUENZA (SEASONAL) (FLUZONE INTRADERMAL) | ARZ100: TDAP (NO BRAND NAME) | ASP100: MENINGOCOCCAL (MENOMUNE) | ATF100: DTAP + IPV + HIB (PENTACEL) | ATV100: TD ADSORBED (TDVAX) | AUL100: INFLUENZA (SEASONAL) (FOREIGN) | AVB100: HEP A (NO BRAND NAME) | AVR100: RABIES (RABAVERT) | AWH100: SMALLPOX (ACAM2000)
A101: 10 | B101: COVID19 (COVID19 (PFIZER-BIONTECH)) | C101: 3 | D101: 1 | E101: 2 | H101: 2 | I101: 1 | J101: 1 | M101: 1 | O101: 1 | R101: COVID19 (COVID19 (MODERNA)) | AH101: COVID19 (COVID19 (JANSSEN)) | AX101: HPV (GARDASIL) | AY101: 1 | BA101: 1 | BN101: ZOSTER (SHINGRIX) | CD101: HPV (CERVARIX) | CT101: TDAP (ADACEL) | DJ101: VACCINE NOT SPECIFIED (NO BRAND NAME) | DZ101: INFLUENZA (SEASONAL) (NO BRAND NAME) | EP101: HEP A (HAVRIX) | EQ101: 1 | ES101: 1 | EV101: 1 | EX101: 1 | FF101: HEP B (ENGERIX-B) | FV101: HPV (GARDASIL 9) | GL101: MENINGOCOCCAL CONJUGATE (MENACTRA) | HB101: PNEUMO (PREVNAR13) | HR101: PNEUMO (PNEUMOVAX) | IH101: INFLUENZA (SEASONAL) (FLUZONE) | IX101: HPV (NO BRAND NAME) | IY101: 1 | IZ101: 1 | JN101: ZOSTER LIVE (ZOSTAVAX) | KD101: HEP A (VAQTA) | KT101: TDAP (BOOSTRIX) | LJ101: HEP A + HEP B (TWINRIX) | LZ101: MEASLES + MUMPS + RUBELLA (MMR II) | MP101: VARICELLA (VARIVAX) | NF101: INFLUENZA (SEASONAL) (FLUZONE HIGH-DOSE) | NV101: COVID19 (COVID19 (UNKNOWN)) | OL101: MENINGOCOCCAL B (TRUMENBA) | PB101: INFLUENZA (SEASONAL) (FLUARIX) | PR101: YELLOW FEVER (YF-VAX) | QH101: INFLUENZA (SEASONAL) (FLUAD) | QX101: INFLUENZA (SEASONAL) (FLUVIRIN) | RN101: INFLUENZA (SEASONAL) (FLUZONE QUADRIVALENT) | SD101: INFLUENZA (SEASONAL) (FLUARIX QUADRIVALENT) | ST101: RABIES (RABIPUR) | TJ101: INFLUENZA (SEASONAL) (FLULAVAL) | TZ101: TYPHOID VI POLYSACCHARIDE (TYPHIM VI) | UP101: RABIES (IMOVAX) | VF101: INFLUENZA (SEASONAL) (FLUZONE HIGH-DOSE QUADRIVALENT) | VV101: ROTAVIRUS (ROTATEQ) | WL101: TETANUS DIPHTHERIA (NO BRAND NAME) | XB101: TYPHOID LIVE ORAL TY21A (NO BRAND NAME) | XR101: INFLUENZA (H1N1) (H1N1 (MONOVALENT) (SANOFI)) | YH101: DTAP (DAPTACEL) | YX101: MEASLES + MUMPS + RUBELLA (NO BRAND NAME) | ZN101: INFLUENZA (SEASONAL) (FLUMIST QUADRIVALENT) | AAD101: HEP B (RECOMBIVAX HB) | AAT101: LYME (LYMERIX) | ABJ101: PNEUMO (NO BRAND NAME) | ABZ101: MENINGOCOCCAL CONJUGATE (MENVEO) | ACP101: INFLUENZA (SEASONAL) (FLULAVAL QUADRIVALENT) | ADF101: INFLUENZA (SEASONAL) (FLUBLOK QUADRIVALENT) | ADV101: YELLOW FEVER (STAMARIL) | AEL101: INFLUENZA (SEASONAL) (FLUCELVAX QUADRIVALENT) | AFB101: INFLUENZA (SEASONAL) (AFLURIA QUADRIVALENT) | AFR101: VACCINE NOT SPECIFIED (OTHER) | AGH101: MENINGOCOCCAL B (BEXSERO) | AGX101: INFLUENZA (H1N1) (H1N1 (MONOVALENT) (UNKNOWN)) | AHN101: JAPANESE ENCEPHALITIS (IXIARO) | AID101: ROTAVIRUS (ROTARIX) | AIT101: HEP B (NO BRAND NAME) | AJJ101: MUMPS (NO BRAND NAME) | AJZ101: DTAP+IPV+HEPB+HIB (NO BRAND NAME) | AKP101: INFLUENZA (SEASONAL) (FLUMIST) | ALF101: INFLUENZA (SEASONAL) (FLUAD QUADRIVALENT) | ALV101: HIB (PEDVAXHIB) | AML101: ANTHRAX (BIOTHRAX) | ANB101: RABIES (NO BRAND NAME) | ANR101: POLIO VIRUS, INACT. (IPOL) | AOH101: INFLUENZA (H1N1) (H1N1 (MONOVALENT) (MEDIMMUNE)) | AOX101: DTAP+IPV+HEPB+HIB (INFANRIX HEXA) | APN101: TD ADSORBED (NO BRAND NAME) | AQD101: TYPHOID LIVE ORAL TY21A (VIVOTIF) | AQT101: MEASLES + MUMPS + RUBELLA (MMR I) | ARJ101: INFLUENZA (SEASONAL) (FLUZONE INTRADERMAL) | ARZ101: TDAP (NO BRAND NAME) | ASP101: MENINGOCOCCAL (MENOMUNE) | ATF101: DTAP + IPV + HIB (PENTACEL) | ATV101: TD ADSORBED (TDVAX) | AUL101: INFLUENZA (SEASONAL) (FOREIGN) | AVB101: HEP A (NO BRAND NAME) | AVR101: RABIES (RABAVERT) | AWH101: SMALLPOX (ACAM2000)
A102: 11 | B102: COVID19 (COVID19 (PFIZER-BIONTECH)) | C102: 2 | D102: 1 | E102: 1 | H102: 1 | I102: 1 | M102: 1 | O102: 1 | R102: COVID19 (COVID19 (MODERNA)) | AH102: COVID19 (COVID19 (JANSSEN)) | AX102: HPV (GARDASIL) | AY102: 1 | BD102: 1 | BN102: ZOSTER (SHINGRIX) | CD102: HPV (CERVARIX) | CE102: 1 | CO102: 1 | CT102: TDAP (ADACEL) | CU102: 2 | CV102: 2 | CZ102: 2 | DA102: 2 | DJ102: VACCINE NOT SPECIFIED (NO BRAND NAME) | DZ102: INFLUENZA (SEASONAL) (NO BRAND NAME) | EP102: HEP A (HAVRIX) | FF102: HEP B (ENGERIX-B) | FG102: 1 | FJ102: 1 | FQ102: 1 | FT102: 1 | FV102: HPV (GARDASIL 9) | FW102: 1 | FX102: 1 | GB102: 1 | GC102: 1 | GL102: MENINGOCOCCAL CONJUGATE (MENACTRA) | GM102: 1 | GN102: 1 | GR102: 1 | GS102: 1 | HB102: PNEUMO (PREVNAR13) | HR102: PNEUMO (PNEUMOVAX) | IH102: INFLUENZA (SEASONAL) (FLUZONE) | IX102: HPV (NO BRAND NAME) | IY102: 2 | JA102: 2 | JI102: 2 | JK102: 2 | JN102: ZOSTER LIVE (ZOSTAVAX) | KD102: HEP A (VAQTA) | KT102: TDAP (BOOSTRIX) | LJ102: HEP A + HEP B (TWINRIX) | LZ102: MEASLES + MUMPS + RUBELLA (MMR II) | MP102: VARICELLA (VARIVAX) | MQ102: 1 | MV102: 1 | NF102: INFLUENZA (SEASONAL) (FLUZONE HIGH-DOSE) | NV102: COVID19 (COVID19 (UNKNOWN)) | OL102: MENINGOCOCCAL B (TRUMENBA) | PB102: INFLUENZA (SEASONAL) (FLUARIX) | PR102: YELLOW FEVER (YF-VAX) | QH102: INFLUENZA (SEASONAL) (FLUAD) | QX102: INFLUENZA (SEASONAL) (FLUVIRIN) | RN102: INFLUENZA (SEASONAL) (FLUZONE QUADRIVALENT) | SD102: INFLUENZA (SEASONAL) (FLUARIX QUADRIVALENT) | ST102: RABIES (RABIPUR) | TJ102: INFLUENZA (SEASONAL) (FLULAVAL) | TZ102: TYPHOID VI POLYSACCHARIDE (TYPHIM VI) | UP102: RABIES (IMOVAX) | VF102: INFLUENZA (SEASONAL) (FLUZONE HIGH-DOSE QUADRIVALENT) | VV102: ROTAVIRUS (ROTATEQ) | WL102: TETANUS DIPHTHERIA (NO BRAND NAME) | XB102: TYPHOID LIVE ORAL TY21A (NO BRAND NAME) | XR102: INFLUENZA (H1N1) (H1N1 (MONOVALENT) (SANOFI)) | YH102: DTAP (DAPTACEL) | YX102: MEASLES + MUMPS + RUBELLA (NO BRAND NAME) | ZN102: INFLUENZA (SEASONAL) (FLUMIST QUADRIVALENT) | ZO102: 2 | ZP102: 1 | ZR102: 1 | ZT102: 2 | ZU102: 1 | ZW102: 1 | AAD102: HEP B (RECOMBIVAX HB) | AAT102: LYME (LYMERIX) | ABJ102: PNEUMO (NO BRAND NAME) | ABZ102: MENINGOCOCCAL CONJUGATE (MENVEO) | ACA102: 1 | ACB102: 1 | ACF102: 1 | ACG102: 1 | ACP102: INFLUENZA (SEASONAL) (FLULAVAL QUADRIVALENT) | ADF102: INFLUENZA (SEASONAL) (FLUBLOK QUADRIVALENT) | ADV102: YELLOW FEVER (STAMARIL) | AEL102: INFLUENZA (SEASONAL) (FLUCELVAX QUADRIVALENT) | AFB102: INFLUENZA (SEASONAL) (AFLURIA QUADRIVALENT) | AFR102: VACCINE NOT SPECIFIED (OTHER) | AGH102: MENINGOCOCCAL B (BEXSERO) | AGX102: INFLUENZA (H1N1) (H1N1 (MONOVALENT) (UNKNOWN)) | AHN102: JAPANESE ENCEPHALITIS (IXIARO) | AID102: ROTAVIRUS (ROTARIX) | AIT102: HEP B (NO BRAND NAME) | AJJ102: MUMPS (NO BRAND NAME) | AJZ102: DTAP+IPV+HEPB+HIB (NO BRAND NAME) | AKP102: INFLUENZA (SEASONAL) (FLUMIST) | ALF102: INFLUENZA (SEASONAL) (FLUAD QUADRIVALENT) | ALV102: HIB (PEDVAXHIB) | AML102: ANTHRAX (BIOTHRAX) | ANB102: RABIES (NO BRAND NAME) | ANR102: POLIO VIRUS, INACT. (IPOL) | AOH102: INFLUENZA (H1N1) (H1N1 (MONOVALENT) (MEDIMMUNE)) | AOX102: DTAP+IPV+HEPB+HIB (INFANRIX HEXA) | APN102: TD ADSORBED (NO BRAND NAME) | AQD102: TYPHOID LIVE ORAL TY21A (VIVOTIF) | AQT102: MEASLES + MUMPS + RUBELLA (MMR I) | ARJ102: INFLUENZA (SEASONAL) (FLUZONE INTRADERMAL) | ARZ102: TDAP (NO BRAND NAME) | ASP102: MENINGOCOCCAL (MENOMUNE) | ATF102: DTAP + IPV + HIB (PENTACEL) | ATV102: TD ADSORBED (TDVAX) | AUL102: INFLUENZA (SEASONAL) (FOREIGN) | AVB102: HEP A (NO BRAND NAME) | AVR102: RABIES (RABAVERT) | AWH102: SMALLPOX (ACAM2000)
A103: 12 | B103: COVID19 (COVID19 (PFIZER-BIONTECH)) | C103: 8 | D103: 5 | E103: 1 | H103: 3 | I103: 2 | M103: 5 | N103: 3 | O103: 1 | R103: COVID19 (COVID19 (MODERNA)) | AH103: COVID19 (COVID19 (JANSSEN)) | AX103: HPV (GARDASIL) | AY103: 8 | AZ103: 3 | BA103: 1 | BB103: 2 | BI103: 8 | BJ103: 3 | BK103: 1 | BL103: 2 | BN103: ZOSTER (SHINGRIX) | CD103: HPV (CERVARIX) | CE103: 1 | CF103: 1 | CO103: 1 | CP103: 1 | CT103: TDAP (ADACEL) | DJ103: VACCINE NOT SPECIFIED (NO BRAND NAME) | DZ103: INFLUENZA (SEASONAL) (NO BRAND NAME) | EP103: HEP A (HAVRIX) | FF103: HEP B (ENGERIX-B) | FV103: HPV (GARDASIL 9) | FW103: 1 | FX103: 1 | GG103: 1 | GH103: 1 | GL103: MENINGOCOCCAL CONJUGATE (MENACTRA) | HB103: PNEUMO (PREVNAR13) | HR103: PNEUMO (PNEUMOVAX) | IH103: INFLUENZA (SEASONAL) (FLUZONE) | IX103: HPV (NO BRAND NAME) | JN103: ZOSTER LIVE (ZOSTAVAX) | KD103: HEP A (VAQTA) | KE103: 1 | KG103: 1 | KO103: 1 | KQ103: 1 | KT103: TDAP (BOOSTRIX) | LJ103: HEP A + HEP B (TWINRIX) | LZ103: MEASLES + MUMPS + RUBELLA (MMR II) | MP103: VARICELLA (VARIVAX) | NF103: INFLUENZA (SEASONAL) (FLUZONE HIGH-DOSE) | NV103: COVID19 (COVID19 (UNKNOWN)) | OL103: MENINGOCOCCAL B (TRUMENBA) | PB103: INFLUENZA (SEASONAL) (FLUARIX) | PR103: YELLOW FEVER (YF-VAX) | QH103: INFLUENZA (SEASONAL) (FLUAD) | QX103: INFLUENZA (SEASONAL) (FLUVIRIN) | RN103: INFLUENZA (SEASONAL) (FLUZONE QUADRIVALENT) | SD103: INFLUENZA (SEASONAL) (FLUARIX QUADRIVALENT) | ST103: RABIES (RABIPUR) | TJ103: INFLUENZA (SEASONAL) (FLULAVAL) | TZ103: TYPHOID VI POLYSACCHARIDE (TYPHIM VI) | UP103: RABIES (IMOVAX) | VF103: INFLUENZA (SEASONAL) (FLUZONE HIGH-DOSE QUADRIVALENT) | VV103: ROTAVIRUS (ROTATEQ) | WL103: TETANUS DIPHTHERIA (NO BRAND NAME) | XB103: TYPHOID LIVE ORAL TY21A (NO BRAND NAME) | XR103: INFLUENZA (H1N1) (H1N1 (MONOVALENT) (SANOFI)) | YH103: DTAP (DAPTACEL) | YX103: MEASLES + MUMPS + RUBELLA (NO BRAND NAME) | ZN103: INFLUENZA (SEASONAL) (FLUMIST QUADRIVALENT) | AAD103: HEP B (RECOMBIVAX HB) | AAT103: LYME (LYMERIX) | ABJ103: PNEUMO (NO BRAND NAME) | ABZ103: MENINGOCOCCAL CONJUGATE (MENVEO) | ACP103: INFLUENZA (SEASONAL) (FLULAVAL QUADRIVALENT) | ADF103: INFLUENZA (SEASONAL) (FLUBLOK QUADRIVALENT) | ADV103: YELLOW FEVER (STAMARIL) | AEL103: INFLUENZA (SEASONAL) (FLUCELVAX QUADRIVALENT) | AFB103: INFLUENZA (SEASONAL) (AFLURIA QUADRIVALENT) | AFR103: VACCINE NOT SPECIFIED (OTHER) | AGH103: MENINGOCOCCAL B (BEXSERO) | AGX103: INFLUENZA (H1N1) (H1N1 (MONOVALENT) (UNKNOWN)) | AHN103: JAPANESE ENCEPHALITIS (IXIARO) | AID103: ROTAVIRUS (ROTARIX) | AIT103: HEP B (NO BRAND NAME) | AJJ103: MUMPS (NO BRAND NAME) | AJZ103: DTAP+IPV+HEPB+HIB (NO BRAND NAME) | AKP103: INFLUENZA (SEASONAL) (FLUMIST) | ALF103: INFLUENZA (SEASONAL) (FLUAD QUADRIVALENT) | ALV103: HIB (PEDVAXHIB) | AML103: ANTHRAX (BIOTHRAX) | ANB103: RABIES (NO BRAND NAME) | ANR103: POLIO VIRUS, INACT. (IPOL) | AOH103: INFLUENZA (H1N1) (H1N1 (MONOVALENT) (MEDIMMUNE)) | AOI103: 1 | AOJ103: 1 | AON103: 1 | AOO103: 1 | AOX103: DTAP+IPV+HEPB+HIB (INFANRIX HEXA) | APN103: TD ADSORBED (NO BRAND NAME) | AQD103: TYPHOID LIVE ORAL TY21A (VIVOTIF) | AQT103: MEASLES + MUMPS + RUBELLA (MMR I) | ARJ103: INFLUENZA (SEASONAL) (FLUZONE INTRADERMAL) | ARZ103: TDAP (NO BRAND NAME) | ASP103: MENINGOCOCCAL (MENOMUNE) | ATF103: DTAP + IPV + HIB (PENTACEL) | ATV103: TD ADSORBED (TDVAX) | AUL103: INFLUENZA (SEASONAL) (FOREIGN) | AVB103: HEP A (NO BRAND NAME) | AVR103: RABIES (RABAVERT) | AWH103: SMALLPOX (ACAM2000)
A104: 13 | B104: COVID19 (COVID19 (PFIZER-BIONTECH)) | C104: 4 | D104: 3 | E104: 1 | H104: 2 | I104: 1 | J104: 1 | M104: 2 | N104: 2 | R104: COVID19 (COVID19 (MODERNA)) | AH104: COVID19 (COVID19 (JANSSEN)) | AX104: HPV (GARDASIL) | AY104: 15 | AZ104: 7 | BA104: 1 | BB104: 6 | BI104: 14 | BJ104: 6 | BK104: 1 | BL104: 6 | BN104: ZOSTER (SHINGRIX) | CD104: HPV (CERVARIX) | CE104: 5 | CF104: 1 | CH104: 4 | CO104: 4 | CP104: 1 | CR104: 3 | CT104: TDAP (ADACEL) | DJ104: VACCINE NOT SPECIFIED (NO BRAND NAME) | DZ104: INFLUENZA (SEASONAL) (NO BRAND NAME) | EP104: HEP A (HAVRIX) | EQ104: 1 | ES104: 1 | FA104: 1 | FC104: 1 | FF104: HEP B (ENGERIX-B) | FV104: HPV (GARDASIL 9) | FW104: 1 | FX104: 1 | GL104: MENINGOCOCCAL CONJUGATE (MENACTRA) | GM104: 1 | GN104: 1 | GW104: 1 | GX104: 1 | HB104: PNEUMO (PREVNAR13) | HR104: PNEUMO (PNEUMOVAX) | IH104: INFLUENZA (SEASONAL) (FLUZONE) | IX104: HPV (NO BRAND NAME) | IY104: 1 | JD104: 1 | JN104: ZOSTER LIVE (ZOSTAVAX) | KD104: HEP A (VAQTA) | KE104: 1 | KG104: 1 | KT104: TDAP (BOOSTRIX) | LJ104: HEP A + HEP B (TWINRIX) | LZ104: MEASLES + MUMPS + RUBELLA (MMR II) | MP104: VARICELLA (VARIVAX) | MQ104: 1 | MT104: 1 | NA104: 1 | ND104: 1 | NF104: INFLUENZA (SEASONAL) (FLUZONE HIGH-DOSE) | NV104: COVID19 (COVID19 (UNKNOWN)) | NW104: 1 | OG104: 1 | OL104: MENINGOCOCCAL B (TRUMENBA) | PB104: INFLUENZA (SEASONAL) (FLUARIX) | PR104: YELLOW FEVER (YF-VAX) | QH104: INFLUENZA (SEASONAL) (FLUAD) | QX104: INFLUENZA (SEASONAL) (FLUVIRIN) | RN104: INFLUENZA (SEASONAL) (FLUZONE QUADRIVALENT) | SD104: INFLUENZA (SEASONAL) (FLUARIX QUADRIVALENT) | ST104: RABIES (RABIPUR) | TJ104: INFLUENZA (SEASONAL) (FLULAVAL) | TZ104: TYPHOID VI POLYSACCHARIDE (TYPHIM VI) | UP104: RABIES (IMOVAX) | VF104: INFLUENZA (SEASONAL) (FLUZONE HIGH-DOSE QUADRIVALENT) | VV104: ROTAVIRUS (ROTATEQ) | WL104: TETANUS DIPHTHERIA (NO BRAND NAME) | XB104: TYPHOID LIVE ORAL TY21A (NO BRAND NAME) | XR104: INFLUENZA (H1N1) (H1N1 (MONOVALENT) (SANOFI)) | YH104: DTAP (DAPTACEL) | YX104: MEASLES + MUMPS + RUBELLA (NO BRAND NAME) | ZN104: INFLUENZA (SEASONAL) (FLUMIST QUADRIVALENT) | AAD104: HEP B (RECOMBIVAX HB) | AAT104: LYME (LYMERIX) | ABJ104: PNEUMO (NO BRAND NAME) | ABZ104: MENINGOCOCCAL CONJUGATE (MENVEO) | ACP104: INFLUENZA (SEASONAL) (FLULAVAL QUADRIVALENT) | ADF104: INFLUENZA (SEASONAL) (FLUBLOK QUADRIVALENT) | ADV104: YELLOW FEVER (STAMARIL) | AEL104: INFLUENZA (SEASONAL) (FLUCELVAX QUADRIVALENT) | AFB104: INFLUENZA (SEASONAL) (AFLURIA QUADRIVALENT) | AFR104: VACCINE NOT SPECIFIED (OTHER) | AGH104: MENINGOCOCCAL B (BEXSERO) | AGX104: INFLUENZA (H1N1) (H1N1 (MONOVALENT) (UNKNOWN)) | AHN104: JAPANESE ENCEPHALITIS (IXIARO) | AID104: ROTAVIRUS (ROTARIX) | AIT104: HEP B (NO BRAND NAME) | AJJ104: MUMPS (NO BRAND NAME) | AJZ104: DTAP+IPV+HEPB+HIB (NO BRAND NAME) | AKP104: INFLUENZA (SEASONAL) (FLUMIST) | ALF104: INFLUENZA (SEASONAL) (FLUAD QUADRIVALENT) | ALV104: HIB (PEDVAXHIB) | AML104: ANTHRAX (BIOTHRAX) | ANB104: RABIES (NO BRAND NAME) | ANR104: POLIO VIRUS, INACT. (IPOL) | AOH104: INFLUENZA (H1N1) (H1N1 (MONOVALENT) (MEDIMMUNE)) | AOX104: DTAP+IPV+HEPB+HIB (INFANRIX HEXA) | APN104: TD ADSORBED (NO BRAND NAME) | AQD104: TYPHOID LIVE ORAL TY21A (VIVOTIF) | AQT104: MEASLES + MUMPS + RUBELLA (MMR I) | AQU104: 1 | AQV104: 1 | ARE104: 1 | ARF104: 1 | ARJ104: INFLUENZA (SEASONAL) (FLUZONE INTRADERMAL) | ARZ104: TDAP (NO BRAND NAME) | ASP104: MENINGOCOCCAL (MENOMUNE) | ATF104: DTAP + IPV + HIB (PENTACEL) | ATV104: TD ADSORBED (TDVAX) | AUL104: INFLUENZA (SEASONAL) (FOREIGN) | AVB104: HEP A (NO BRAND NAME) | AVR104: RABIES (RABAVERT) | AWH104: SMALLPOX (ACAM2000)
A105: 14 | B105: COVID19 (COVID19 (PFIZER-BIONTECH)) | C105: 2 | D105: 1 | E105: 1 | M105: 2 | N105: 1 | O105: 1 | R105: COVID19 (COVID19 (MODERNA)) | AH105: COVID19 (COVID19 (JANSSEN)) | AX105: HPV (GARDASIL) | AY105: 10 | AZ105: 3 | BA105: 4 | BB105: 2 | BI105: 10 | BJ105: 3 | BK105: 4 | BL105: 2 | BN105: ZOSTER (SHINGRIX) | CD105: HPV (CERVARIX) | CE105: 1 | CH105: 1 | CO105: 1 | CR105: 1 | CT105: TDAP (ADACEL) | DJ105: VACCINE NOT SPECIFIED (NO BRAND NAME) | DZ105: INFLUENZA (SEASONAL) (NO BRAND NAME) | EP105: HEP A (HAVRIX) | EQ105: 2 | ER105: 1 | FA105: 2 | FB105: 1 | FF105: HEP B (ENGERIX-B) | FV105: HPV (GARDASIL 9) | GL105: MENINGOCOCCAL CONJUGATE (MENACTRA) | GM105: 1 | GN105: 1 | GW105: 1 | GX105: 1 | HB105: PNEUMO (PREVNAR13) | HR105: PNEUMO (PNEUMOVAX) | IH105: INFLUENZA (SEASONAL) (FLUZONE) | IX105: HPV (NO BRAND NAME) | JN105: ZOSTER LIVE (ZOSTAVAX) | KD105: HEP A (VAQTA) | KT105: TDAP (BOOSTRIX) | LJ105: HEP A + HEP B (TWINRIX) | LZ105: MEASLES + MUMPS + RUBELLA (MMR II) | MP105: VARICELLA (VARIVAX) | MQ105: 1 | MS105: 1 | NA105: 1 | NC105: 1 | NF105: INFLUENZA (SEASONAL) (FLUZONE HIGH-DOSE) | NV105: COVID19 (COVID19 (UNKNOWN)) | OL105: MENINGOCOCCAL B (TRUMENBA) | PB105: INFLUENZA (SEASONAL) (FLUARIX) | PR105: YELLOW FEVER (YF-VAX) | QH105: INFLUENZA (SEASONAL) (FLUAD) | QX105: INFLUENZA (SEASONAL) (FLUVIRIN) | RN105: INFLUENZA (SEASONAL) (FLUZONE QUADRIVALENT) | SD105: INFLUENZA (SEASONAL) (FLUARIX QUADRIVALENT) | ST105: RABIES (RABIPUR) | TJ105: INFLUENZA (SEASONAL) (FLULAVAL) | TZ105: TYPHOID VI POLYSACCHARIDE (TYPHIM VI) | UP105: RABIES (IMOVAX) | VF105: INFLUENZA (SEASONAL) (FLUZONE HIGH-DOSE QUADRIVALENT) | VV105: ROTAVIRUS (ROTATEQ) | WL105: TETANUS DIPHTHERIA (NO BRAND NAME) | WM105: 1 | WR105: 1 | XB105: TYPHOID LIVE ORAL TY21A (NO BRAND NAME) | XR105: INFLUENZA (H1N1) (H1N1 (MONOVALENT) (SANOFI)) | YH105: DTAP (DAPTACEL) | YX105: MEASLES + MUMPS + RUBELLA (NO BRAND NAME) | ZN105: INFLUENZA (SEASONAL) (FLUMIST QUADRIVALENT) | AAD105: HEP B (RECOMBIVAX HB) | AAT105: LYME (LYMERIX) | ABJ105: PNEUMO (NO BRAND NAME) | ABZ105: MENINGOCOCCAL CONJUGATE (MENVEO) | ACP105: INFLUENZA (SEASONAL) (FLULAVAL QUADRIVALENT) | ADF105: INFLUENZA (SEASONAL) (FLUBLOK QUADRIVALENT) | ADV105: YELLOW FEVER (STAMARIL) | AEL105: INFLUENZA (SEASONAL) (FLUCELVAX QUADRIVALENT) | AFB105: INFLUENZA (SEASONAL) (AFLURIA QUADRIVALENT) | AFR105: VACCINE NOT SPECIFIED (OTHER) | AGH105: MENINGOCOCCAL B (BEXSERO) | AGX105: INFLUENZA (H1N1) (H1N1 (MONOVALENT) (UNKNOWN)) | AHN105: JAPANESE ENCEPHALITIS (IXIARO) | AID105: ROTAVIRUS (ROTARIX) | AIT105: HEP B (NO BRAND NAME) | AJJ105: MUMPS (NO BRAND NAME) | AJZ105: DTAP+IPV+HEPB+HIB (NO BRAND NAME) | AKP105: INFLUENZA (SEASONAL) (FLUMIST) | ALF105: INFLUENZA (SEASONAL) (FLUAD QUADRIVALENT) | ALV105: HIB (PEDVAXHIB) | AML105: ANTHRAX (BIOTHRAX) | ANB105: RABIES (NO BRAND NAME) | ANR105: POLIO VIRUS, INACT. (IPOL) | AOH105: INFLUENZA (H1N1) (H1N1 (MONOVALENT) (MEDIMMUNE)) | AOX105: DTAP+IPV+HEPB+HIB (INFANRIX HEXA) | APN105: TD ADSORBED (NO BRAND NAME) | AQD105: TYPHOID LIVE ORAL TY21A (VIVOTIF) | AQT105: MEASLES + MUMPS + RUBELLA (MMR I) | ARJ105: INFLUENZA (SEASONAL) (FLUZONE INTRADERMAL) | ARZ105: TDAP (NO BRAND NAME) | ASP105: MENINGOCOCCAL (MENOMUNE) | ATF105: DTAP + IPV + HIB (PENTACEL) | ATV105: TD ADSORBED (TDVAX) | AUL105: INFLUENZA (SEASONAL) (FOREIGN) | AVB105: HEP A (NO BRAND NAME) | AVR105: RABIES (RABAVERT) | AWH105: SMALLPOX (ACAM2000)
A106: 15 | B106: COVID19 (COVID19 (PFIZER-BIONTECH)) | C106: 3 | E106: 3 | H106: 1 | J106: 1 | M106: 2 | O106: 2 | R106: COVID19 (COVID19 (MODERNA)) | AH106: COVID19 (COVID19 (JANSSEN)) | AX106: HPV (GARDASIL) | AY106: 10 | AZ106: 2 | BA106: 1 | BB106: 4 | BD106: 1 | BG106: 1 | BI106: 9 | BJ106: 2 | BK106: 1 | BL106: 3 | BN106: ZOSTER (SHINGRIX) | CD106: HPV (CERVARIX) | CE106: 3 | CF106: 1 | CO106: 3 | CP106: 1 | CT106: TDAP (ADACEL) | CU106: 1 | DE106: 1 | DJ106: VACCINE NOT SPECIFIED (NO BRAND NAME) | DZ106: INFLUENZA (SEASONAL) (NO BRAND NAME) | EP106: HEP A (HAVRIX) | FF106: HEP B (ENGERIX-B) | FV106: HPV (GARDASIL 9) | FW106: 1 | FY106: 1 | GG106: 1 | GI106: 1 | GL106: MENINGOCOCCAL CONJUGATE (MENACTRA) | GM106: 1 | GW106: 1 | HB106: PNEUMO (PREVNAR13) | HR106: PNEUMO (PNEUMOVAX) | IH106: INFLUENZA (SEASONAL) (FLUZONE) | II106: 1 | IS106: 1 | IX106: HPV (NO BRAND NAME) | IY106: 1 | IZ106: 1 | JI106: 1 | JJ106: 1 | JN106: ZOSTER LIVE (ZOSTAVAX) | KD106: HEP A (VAQTA) | KT106: TDAP (BOOSTRIX) | LJ106: HEP A + HEP B (TWINRIX) | LZ106: MEASLES + MUMPS + RUBELLA (MMR II) | MP106: VARICELLA (VARIVAX) | NF106: INFLUENZA (SEASONAL) (FLUZONE HIGH-DOSE) | NV106: COVID19 (COVID19 (UNKNOWN)) | OL106: MENINGOCOCCAL B (TRUMENBA) | PB106: INFLUENZA (SEASONAL) (FLUARIX) | PR106: YELLOW FEVER (YF-VAX) | QH106: INFLUENZA (SEASONAL) (FLUAD) | QX106: INFLUENZA (SEASONAL) (FLUVIRIN) | RN106: INFLUENZA (SEASONAL) (FLUZONE QUADRIVALENT) | SD106: INFLUENZA (SEASONAL) (FLUARIX QUADRIVALENT) | ST106: RABIES (RABIPUR) | TJ106: INFLUENZA (SEASONAL) (FLULAVAL) | TZ106: TYPHOID VI POLYSACCHARIDE (TYPHIM VI) | UP106: RABIES (IMOVAX) | VF106: INFLUENZA (SEASONAL) (FLUZONE HIGH-DOSE QUADRIVALENT) | VV106: ROTAVIRUS (ROTATEQ) | WL106: TETANUS DIPHTHERIA (NO BRAND NAME) | XB106: TYPHOID LIVE ORAL TY21A (NO BRAND NAME) | XR106: INFLUENZA (H1N1) (H1N1 (MONOVALENT) (SANOFI)) | YH106: DTAP (DAPTACEL) | YX106: MEASLES + MUMPS + RUBELLA (NO BRAND NAME) | ZN106: INFLUENZA (SEASONAL) (FLUMIST QUADRIVALENT) | AAD106: HEP B (RECOMBIVAX HB) | AAT106: LYME (LYMERIX) | ABJ106: PNEUMO (NO BRAND NAME) | ABZ106: MENINGOCOCCAL CONJUGATE (MENVEO) | ACP106: INFLUENZA (SEASONAL) (FLULAVAL QUADRIVALENT) | ADF106: INFLUENZA (SEASONAL) (FLUBLOK QUADRIVALENT) | ADV106: YELLOW FEVER (STAMARIL) | AEL106: INFLUENZA (SEASONAL) (FLUCELVAX QUADRIVALENT) | AFB106: INFLUENZA (SEASONAL) (AFLURIA QUADRIVALENT) | AFR106: VACCINE NOT SPECIFIED (OTHER) | AGH106: MENINGOCOCCAL B (BEXSERO) | AGX106: INFLUENZA (H1N1) (H1N1 (MONOVALENT) (UNKNOWN)) | AHN106: JAPANESE ENCEPHALITIS (IXIARO) | AID106: ROTAVIRUS (ROTARIX) | AIT106: HEP B (NO BRAND NAME) | AJJ106: MUMPS (NO BRAND NAME) | AJZ106: DTAP+IPV+HEPB+HIB (NO BRAND NAME) | AKP106: INFLUENZA (SEASONAL) (FLUMIST) | ALF106: INFLUENZA (SEASONAL) (FLUAD QUADRIVALENT) | ALV106: HIB (PEDVAXHIB) | AML106: ANTHRAX (BIOTHRAX) | ANB106: RABIES (NO BRAND NAME) | ANR106: POLIO VIRUS, INACT. (IPOL) | AOH106: INFLUENZA (H1N1) (H1N1 (MONOVALENT) (MEDIMMUNE)) | AOX106: DTAP+IPV+HEPB+HIB (INFANRIX HEXA) | APN106: TD ADSORBED (NO BRAND NAME) | AQD106: TYPHOID LIVE ORAL TY21A (VIVOTIF) | AQT106: MEASLES + MUMPS + RUBELLA (MMR I) | ARJ106: INFLUENZA (SEASONAL) (FLUZONE INTRADERMAL) | ARZ106: TDAP (NO BRAND NAME) | ASP106: MENINGOCOCCAL (MENOMUNE) | ATF106: DTAP + IPV + HIB (PENTACEL) | ATV106: TD ADSORBED (TDVAX) | AUL106: INFLUENZA (SEASONAL) (FOREIGN) | AVB106: HEP A (NO BRAND NAME) | AVR106: RABIES (RABAVERT) | AWH106: SMALLPOX (ACAM2000)
A107: 16 | B107: COVID19 (COVID19 (PFIZER-BIONTECH)) | C107: 4 | D107: 2 | E107: 2 | H107: 3 | I107: 2 | J107: 1 | M107: 1 | O107: 1 | R107: COVID19 (COVID19 (MODERNA)) | AH107: COVID19 (COVID19 (JANSSEN)) | AX107: HPV (GARDASIL) | AY107: 12 | AZ107: 4 | BA107: 4 | BB107: 3 | BI107: 12 | BJ107: 4 | BK107: 4 | BL107: 3 | BN107: ZOSTER (SHINGRIX) | CD107: HPV (CERVARIX) | CE107: 3 | CH107: 1 | CO107: 3 | CR107: 1 | CT107: TDAP (ADACEL) | DJ107: VACCINE NOT SPECIFIED (NO BRAND NAME) | DK107: 1 | DU107: 1 | DZ107: INFLUENZA (SEASONAL) (NO BRAND NAME) | EP107: HEP A (HAVRIX) | EQ107: 1 | ER107: 1 | FA107: 1 | FB107: 1 | FF107: HEP B (ENGERIX-B) | FV107: HPV (GARDASIL 9) | FW107: 2 | FY107: 2 | GB107: 1 | GD107: 1 | GG107: 1 | GI107: 1 | GL107: MENINGOCOCCAL CONJUGATE (MENACTRA) | GM107: 2 | GO107: 2 | GW107: 2 | GY107: 2 | HB107: PNEUMO (PREVNAR13) | HR107: PNEUMO (PNEUMOVAX) | IH107: INFLUENZA (SEASONAL) (FLUZONE) | IX107: HPV (NO BRAND NAME) | JN107: ZOSTER LIVE (ZOSTAVAX) | KD107: HEP A (VAQTA) | KT107: TDAP (BOOSTRIX) | LJ107: HEP A + HEP B (TWINRIX) | LZ107: MEASLES + MUMPS + RUBELLA (MMR II) | MP107: VARICELLA (VARIVAX) | NF107: INFLUENZA (SEASONAL) (FLUZONE HIGH-DOSE) | NV107: COVID19 (COVID19 (UNKNOWN)) | OL107: MENINGOCOCCAL B (TRUMENBA) | OM107: 2 | ON107: 1 | OO107: 1 | OW107: 2 | OX107: 1 | OY107: 1 | PB107: INFLUENZA (SEASONAL) (FLUARIX) | PR107: YELLOW FEVER (YF-VAX) | QH107: INFLUENZA (SEASONAL) (FLUAD) | QX107: INFLUENZA (SEASONAL) (FLUVIRIN) | RN107: INFLUENZA (SEASONAL) (FLUZONE QUADRIVALENT) | RO107: 1 | RY107: 1 | SD107: INFLUENZA (SEASONAL) (FLUARIX QUADRIVALENT) | ST107: RABIES (RABIPUR) | TJ107: INFLUENZA (SEASONAL) (FLULAVAL) | TZ107: TYPHOID VI POLYSACCHARIDE (TYPHIM VI) | UP107: RABIES (IMOVAX) | VF107: INFLUENZA (SEASONAL) (FLUZONE HIGH-DOSE QUADRIVALENT) | VV107: ROTAVIRUS (ROTATEQ) | WL107: TETANUS DIPHTHERIA (NO BRAND NAME) | XB107: TYPHOID LIVE ORAL TY21A (NO BRAND NAME) | XR107: INFLUENZA (H1N1) (H1N1 (MONOVALENT) (SANOFI)) | YH107: DTAP (DAPTACEL) | YX107: MEASLES + MUMPS + RUBELLA (NO BRAND NAME) | ZN107: INFLUENZA (SEASONAL) (FLUMIST QUADRIVALENT) | AAD107: HEP B (RECOMBIVAX HB) | AAT107: LYME (LYMERIX) | ABJ107: PNEUMO (NO BRAND NAME) | ABZ107: MENINGOCOCCAL CONJUGATE (MENVEO) | ACP107: INFLUENZA (SEASONAL) (FLULAVAL QUADRIVALENT) | ADF107: INFLUENZA (SEASONAL) (FLUBLOK QUADRIVALENT) | ADV107: YELLOW FEVER (STAMARIL) | AEL107: INFLUENZA (SEASONAL) (FLUCELVAX QUADRIVALENT) | AFB107: INFLUENZA (SEASONAL) (AFLURIA QUADRIVALENT) | AFR107: VACCINE NOT SPECIFIED (OTHER) | AGH107: MENINGOCOCCAL B (BEXSERO) | AGI107: 1 | AGK107: 1 | AGN107: 1 | AGP107: 1 | AGX107: INFLUENZA (H1N1) (H1N1 (MONOVALENT) (UNKNOWN)) | AHN107: JAPANESE ENCEPHALITIS (IXIARO) | AID107: ROTAVIRUS (ROTARIX) | AIT107: HEP B (NO BRAND NAME) | AIU107: 1 | AJE107: 1 | AJJ107: MUMPS (NO BRAND NAME) | AJK107: 1 | AJU107: 1 | AJZ107: DTAP+IPV+HEPB+HIB (NO BRAND NAME) | AKP107: INFLUENZA (SEASONAL) (FLUMIST) | AKQ107: 1 | AKR107: 1 | ALA107: 1 | ALB107: 1 | ALF107: INFLUENZA (SEASONAL) (FLUAD QUADRIVALENT) | ALV107: HIB (PEDVAXHIB) | AML107: ANTHRAX (BIOTHRAX) | ANB107: RABIES (NO BRAND NAME) | ANR107: POLIO VIRUS, INACT. (IPOL) | AOH107: INFLUENZA (H1N1) (H1N1 (MONOVALENT) (MEDIMMUNE)) | AOX107: DTAP+IPV+HEPB+HIB (INFANRIX HEXA) | APN107: TD ADSORBED (NO BRAND NAME) | AQD107: TYPHOID LIVE ORAL TY21A (VIVOTIF) | AQT107: MEASLES + MUMPS + RUBELLA (MMR I) | ARJ107: INFLUENZA (SEASONAL) (FLUZONE INTRADERMAL) | ARZ107: TDAP (NO BRAND NAME) | ASP107: MENINGOCOCCAL (MENOMUNE) | ATF107: DTAP + IPV + HIB (PENTACEL) | ATV107: TD ADSORBED (TDVAX) | AUL107: INFLUENZA (SEASONAL) (FOREIGN) | AVB107: HEP A (NO BRAND NAME) | AVR107: RABIES (RABAVERT) | AWH107: SMALLPOX (ACAM2000)
A108: 17 | B108: COVID19 (COVID19 (PFIZER-BIONTECH)) | C108: 5 | D108: 2 | F108: 1 | M108: 5 | N108: 2 | P108: 1 | R108: COVID19 (COVID19 (MODERNA)) | AH108: COVID19 (COVID19 (JANSSEN)) | AX108: HPV (GARDASIL) | AY108: 3 | AZ108: 2 | BA108: 1 | BI108: 3 | BJ108: 2 | BK108: 1 | BN108: ZOSTER (SHINGRIX) | CD108: HPV (CERVARIX) | CE108: 1 | CO108: 1 | CT108: TDAP (ADACEL) | DJ108: VACCINE NOT SPECIFIED (NO BRAND NAME) | DZ108: INFLUENZA (SEASONAL) (NO BRAND NAME) | EP108: HEP A (HAVRIX) | FF108: HEP B (ENGERIX-B) | FG108: 1 | FL108: 1 | FV108: HPV (GARDASIL 9) | FW108: 1 | FZ108: 1 | GG108: 1 | GJ108: 1 | GL108: MENINGOCOCCAL CONJUGATE (MENACTRA) | GM108: 2 | GO108: 2 | GW108: 2 | GY108: 2 | HB108: PNEUMO (PREVNAR13) | HR108: PNEUMO (PNEUMOVAX) | IH108: INFLUENZA (SEASONAL) (FLUZONE) | IX108: HPV (NO BRAND NAME) | JN108: ZOSTER LIVE (ZOSTAVAX) | KD108: HEP A (VAQTA) | KT108: TDAP (BOOSTRIX) | LJ108: HEP A + HEP B (TWINRIX) | LZ108: MEASLES + MUMPS + RUBELLA (MMR II) | MA108: 1 | MC108: 1 | MK108: 1 | MM108: 1 | MP108: VARICELLA (VARIVAX) | NF108: INFLUENZA (SEASONAL) (FLUZONE HIGH-DOSE) | NV108: COVID19 (COVID19 (UNKNOWN)) | OL108: MENINGOCOCCAL B (TRUMENBA) | PB108: INFLUENZA (SEASONAL) (FLUARIX) | PR108: YELLOW FEVER (YF-VAX) | QH108: INFLUENZA (SEASONAL) (FLUAD) | QX108: INFLUENZA (SEASONAL) (FLUVIRIN) | RN108: INFLUENZA (SEASONAL) (FLUZONE QUADRIVALENT) | SD108: INFLUENZA (SEASONAL) (FLUARIX QUADRIVALENT) | ST108: RABIES (RABIPUR) | TJ108: INFLUENZA (SEASONAL) (FLULAVAL) | TZ108: TYPHOID VI POLYSACCHARIDE (TYPHIM VI) | UP108: RABIES (IMOVAX) | VF108: INFLUENZA (SEASONAL) (FLUZONE HIGH-DOSE QUADRIVALENT) | VV108: ROTAVIRUS (ROTATEQ) | WL108: TETANUS DIPHTHERIA (NO BRAND NAME) | XB108: TYPHOID LIVE ORAL TY21A (NO BRAND NAME) | XR108: INFLUENZA (H1N1) (H1N1 (MONOVALENT) (SANOFI)) | YH108: DTAP (DAPTACEL) | YX108: MEASLES + MUMPS + RUBELLA (NO BRAND NAME) | ZN108: INFLUENZA (SEASONAL) (FLUMIST QUADRIVALENT) | AAD108: HEP B (RECOMBIVAX HB) | AAT108: LYME (LYMERIX) | ABJ108: PNEUMO (NO BRAND NAME) | ABZ108: MENINGOCOCCAL CONJUGATE (MENVEO) | ACP108: INFLUENZA (SEASONAL) (FLULAVAL QUADRIVALENT) | ADF108: INFLUENZA (SEASONAL) (FLUBLOK QUADRIVALENT) | ADV108: YELLOW FEVER (STAMARIL) | AEL108: INFLUENZA (SEASONAL) (FLUCELVAX QUADRIVALENT) | AFB108: INFLUENZA (SEASONAL) (AFLURIA QUADRIVALENT) | AFR108: VACCINE NOT SPECIFIED (OTHER) | AGH108: MENINGOCOCCAL B (BEXSERO) | AGX108: INFLUENZA (H1N1) (H1N1 (MONOVALENT) (UNKNOWN)) | AHN108: JAPANESE ENCEPHALITIS (IXIARO) | AID108: ROTAVIRUS (ROTARIX) | AIT108: HEP B (NO BRAND NAME) | AJJ108: MUMPS (NO BRAND NAME) | AJZ108: DTAP+IPV+HEPB+HIB (NO BRAND NAME) | AKP108: INFLUENZA (SEASONAL) (FLUMIST) | ALF108: INFLUENZA (SEASONAL) (FLUAD QUADRIVALENT) | ALV108: HIB (PEDVAXHIB) | AML108: ANTHRAX (BIOTHRAX) | ANB108: RABIES (NO BRAND NAME) | ANR108: POLIO VIRUS, INACT. (IPOL) | AOH108: INFLUENZA (H1N1) (H1N1 (MONOVALENT) (MEDIMMUNE)) | AOX108: DTAP+IPV+HEPB+HIB (INFANRIX HEXA) | APN108: TD ADSORBED (NO BRAND NAME) | AQD108: TYPHOID LIVE ORAL TY21A (VIVOTIF) | AQT108: MEASLES + MUMPS + RUBELLA (MMR I) | ARJ108: INFLUENZA (SEASONAL) (FLUZONE INTRADERMAL) | ARZ108: TDAP (NO BRAND NAME) | ASP108: MENINGOCOCCAL (MENOMUNE) | ATF108: DTAP + IPV + HIB (PENTACEL) | ATV108: TD ADSORBED (TDVAX) | AUL108: INFLUENZA (SEASONAL) (FOREIGN) | AVB108: HEP A (NO BRAND NAME) | AVR108: RABIES (RABAVERT) | AWH108: SMALLPOX (ACAM2000)
A109: 18 | B109: COVID19 (COVID19 (PFIZER-BIONTECH)) | C109: 4 | D109: 2 | E109: 1 | H109: 1 | J109: 1 | M109: 3 | N109: 2 | R109: COVID19 (COVID19 (MODERNA)) | S109: 4 | T109: 3 | U109: 1 | X109: 3 | Y109: 2 | Z109: 1 | AC109: 1 | AD109: 1 | AH109: COVID19 (COVID19 (JANSSEN)) | AI109: 2 | AN109: 1 | AS109: 1 | AX109: HPV (GARDASIL) | AY109: 9 | AZ109: 4 | BA109: 2 | BB109: 1 | BI109: 9 | BJ109: 4 | BK109: 2 | BL109: 1 | BN109: ZOSTER (SHINGRIX) | CD109: HPV (CERVARIX) | CT109: TDAP (ADACEL) | DJ109: VACCINE NOT SPECIFIED (NO BRAND NAME) | DZ109: INFLUENZA (SEASONAL) (NO BRAND NAME) | EA109: 1 | EK109: 1 | EP109: HEP A (HAVRIX) | EQ109: 1 | FA109: 1 | FF109: HEP B (ENGERIX-B) | FV109: HPV (GARDASIL 9) | FW109: 1 | FX109: 1 | GG109: 1 | GH109: 1 | GL109: MENINGOCOCCAL CONJUGATE (MENACTRA) | HB109: PNEUMO (PREVNAR13) | HR109: PNEUMO (PNEUMOVAX) | IH109: INFLUENZA (SEASONAL) (FLUZONE) | II109: 1 | IN109: 1 | IX109: HPV (NO BRAND NAME) | JN109: ZOSTER LIVE (ZOSTAVAX) | KD109: HEP A (VAQTA) | KE109: 3 | KF109: 1 | KO109: 3 | KP109: 1 | KT109: TDAP (BOOSTRIX) | KU109: 2 | LE109: 2 | LJ109: HEP A + HEP B (TWINRIX) | LZ109: MEASLES + MUMPS + RUBELLA (MMR II) | MP109: VARICELLA (VARIVAX) | NF109: INFLUENZA (SEASONAL) (FLUZONE HIGH-DOSE) | NV109: COVID19 (COVID19 (UNKNOWN)) | OL109: MENINGOCOCCAL B (TRUMENBA) | OM109: 2 | ON109: 1 | OO109: 1 | OW109: 2 | OX109: 1 | OY109: 1 | PB109: INFLUENZA (SEASONAL) (FLUARIX) | PR109: YELLOW FEVER (YF-VAX) | QH109: INFLUENZA (SEASONAL) (FLUAD) | QX109: INFLUENZA (SEASONAL) (FLUVIRIN) | RN109: INFLUENZA (SEASONAL) (FLUZONE QUADRIVALENT) | SD109: INFLUENZA (SEASONAL) (FLUARIX QUADRIVALENT) | ST109: RABIES (RABIPUR) | TJ109: INFLUENZA (SEASONAL) (FLULAVAL) | TZ109: TYPHOID VI POLYSACCHARIDE (TYPHIM VI) | UP109: RABIES (IMOVAX) | VF109: INFLUENZA (SEASONAL) (FLUZONE HIGH-DOSE QUADRIVALENT) | VV109: ROTAVIRUS (ROTATEQ) | WL109: TETANUS DIPHTHERIA (NO BRAND NAME) | XB109: TYPHOID LIVE ORAL TY21A (NO BRAND NAME) | XR109: INFLUENZA (H1N1) (H1N1 (MONOVALENT) (SANOFI)) | YH109: DTAP (DAPTACEL) | YX109: MEASLES + MUMPS + RUBELLA (NO BRAND NAME) | ZN109: INFLUENZA (SEASONAL) (FLUMIST QUADRIVALENT) | AAD109: HEP B (RECOMBIVAX HB) | AAT109: LYME (LYMERIX) | ABJ109: PNEUMO (NO BRAND NAME) | ABZ109: MENINGOCOCCAL CONJUGATE (MENVEO) | ACA109: 1 | ACB109: 1 | ACK109: 1 | ACL109: 1 | ACP109: INFLUENZA (SEASONAL) (FLULAVAL QUADRIVALENT) | ADF109: INFLUENZA (SEASONAL) (FLUBLOK QUADRIVALENT) | ADV109: YELLOW FEVER (STAMARIL) | AEL109: INFLUENZA (SEASONAL) (FLUCELVAX QUADRIVALENT) | AFB109: INFLUENZA (SEASONAL) (AFLURIA QUADRIVALENT) | AFR109: VACCINE NOT SPECIFIED (OTHER) | AGH109: MENINGOCOCCAL B (BEXSERO) | AGX109: INFLUENZA (H1N1) (H1N1 (MONOVALENT) (UNKNOWN)) | AHN109: JAPANESE ENCEPHALITIS (IXIARO) | AHO109: 1 | AHP109: 1 | AHY109: 1 | AHZ109: 1 | AID109: ROTAVIRUS (ROTARIX) | AIT109: HEP B (NO BRAND NAME) | AJJ109: MUMPS (NO BRAND NAME) | AJZ109: DTAP+IPV+HEPB+HIB (NO BRAND NAME) | AKP109: INFLUENZA (SEASONAL) (FLUMIST) | ALF109: INFLUENZA (SEASONAL) (FLUAD QUADRIVALENT) | ALV109: HIB (PEDVAXHIB) | AML109: ANTHRAX (BIOTHRAX) | ANB109: RABIES (NO BRAND NAME) | ANC109: 1 | ANM109: 1 | ANR109: POLIO VIRUS, INACT. (IPOL) | AOH109: INFLUENZA (H1N1) (H1N1 (MONOVALENT) (MEDIMMUNE)) | AOX109: DTAP+IPV+HEPB+HIB (INFANRIX HEXA) | APN109: TD ADSORBED (NO BRAND NAME) | AQD109: TYPHOID LIVE ORAL TY21A (VIVOTIF) | AQE109: 1 | AQF109: 1 | AQO109: 1 | AQP109: 1 | AQT109: MEASLES + MUMPS + RUBELLA (MMR I) | ARJ109: INFLUENZA (SEASONAL) (FLUZONE INTRADERMAL) | ARZ109: TDAP (NO BRAND NAME) | ASP109: MENINGOCOCCAL (MENOMUNE) | ASQ109: 1 | ASR109: 1 | ATA109: 1 | ATB109: 1 | ATF109: DTAP + IPV + HIB (PENTACEL) | ATV109: TD ADSORBED (TDVAX) | AUL109: INFLUENZA (SEASONAL) (FOREIGN) | AVB109: HEP A (NO BRAND NAME) | AVC109: 1 | AVM109: 1 | AVR109: RABIES (RABAVERT) | AWH109: SMALLPOX (ACAM2000)
A110: 19 | B110: COVID19 (COVID19 (PFIZER-BIONTECH)) | C110: 3 | D110: 1 | E110: 2 | M110: 3 | N110: 1 | O110: 2 | R110: COVID19 (COVID19 (MODERNA)) | S110: 1 | U110: 1 | X110: 1 | Z110: 1 | AH110: COVID19 (COVID19 (JANSSEN)) | AI110: 1 | AJ110: 1 | AS110: 1 | AT110: 1 | AX110: HPV (GARDASIL) | AY110: 2 | AZ110: 1 | BA110: 1 | BI110: 2 | BJ110: 1 | BK110: 1 | BN110: ZOSTER (SHINGRIX) | CD110: HPV (CERVARIX) | CE110: 1 | CF110: 1 | CO110: 1 | CP110: 1 | CT110: TDAP (ADACEL) | DJ110: VACCINE NOT SPECIFIED (NO BRAND NAME) | DZ110: INFLUENZA (SEASONAL) (NO BRAND NAME) | EA110: 1 | EK110: 1 | EP110: HEP A (HAVRIX) | EQ110: 1 | ER110: 1 | FA110: 1 | FB110: 1 | FF110: HEP B (ENGERIX-B) | FG110: 1 | FJ110: 1 | FL110: 1 | FO110: 1 | FV110: HPV (GARDASIL 9) | GL110: MENINGOCOCCAL CONJUGATE (MENACTRA) | HB110: PNEUMO (PREVNAR13) | HR110: PNEUMO (PNEUMOVAX) | HS110: 1 | IC110: 1 | IH110: INFLUENZA (SEASONAL) (FLUZONE) | IX110: HPV (NO BRAND NAME) | JN110: ZOSTER LIVE (ZOSTAVAX) | KD110: HEP A (VAQTA) | KT110: TDAP (BOOSTRIX) | KU110: 1 | KZ110: 1 | LJ110: HEP A + HEP B (TWINRIX) | LZ110: MEASLES + MUMPS + RUBELLA (MMR II) | MP110: VARICELLA (VARIVAX) | NF110: INFLUENZA (SEASONAL) (FLUZONE HIGH-DOSE) | NV110: COVID19 (COVID19 (UNKNOWN)) | OL110: MENINGOCOCCAL B (TRUMENBA) | PB110: INFLUENZA (SEASONAL) (FLUARIX) | PC110: 1 | PH110: 1 | PR110: YELLOW FEVER (YF-VAX) | QH110: INFLUENZA (SEASONAL) (FLUAD) | QX110: INFLUENZA (SEASONAL) (FLUVIRIN) | RN110: INFLUENZA (SEASONAL) (FLUZONE QUADRIVALENT) | SD110: INFLUENZA (SEASONAL) (FLUARIX QUADRIVALENT) | SE110: 1 | SF110: 1 | SO110: 1 | SP110: 1 | ST110: RABIES (RABIPUR) | TJ110: INFLUENZA (SEASONAL) (FLULAVAL) | TZ110: TYPHOID VI POLYSACCHARIDE (TYPHIM VI) | UP110: RABIES (IMOVAX) | VF110: INFLUENZA (SEASONAL) (FLUZONE HIGH-DOSE QUADRIVALENT) | VV110: ROTAVIRUS (ROTATEQ) | WL110: TETANUS DIPHTHERIA (NO BRAND NAME) | XB110: TYPHOID LIVE ORAL TY21A (NO BRAND NAME) | XR110: INFLUENZA (H1N1) (H1N1 (MONOVALENT) (SANOFI)) | YH110: DTAP (DAPTACEL) | YX110: MEASLES + MUMPS + RUBELLA (NO BRAND NAME) | YY110: 1 | ZI110: 1 | ZN110: INFLUENZA (SEASONAL) (FLUMIST QUADRIVALENT) | AAD110: HEP B (RECOMBIVAX HB) | AAT110: LYME (LYMERIX) | ABJ110: PNEUMO (NO BRAND NAME) | ABZ110: MENINGOCOCCAL CONJUGATE (MENVEO) | ACP110: INFLUENZA (SEASONAL) (FLULAVAL QUADRIVALENT) | ADF110: INFLUENZA (SEASONAL) (FLUBLOK QUADRIVALENT) | ADV110: YELLOW FEVER (STAMARIL) | AEL110: INFLUENZA (SEASONAL) (FLUCELVAX QUADRIVALENT) | AFB110: INFLUENZA (SEASONAL) (AFLURIA QUADRIVALENT) | AFR110: VACCINE NOT SPECIFIED (OTHER) | AGH110: MENINGOCOCCAL B (BEXSERO) | AGX110: INFLUENZA (H1N1) (H1N1 (MONOVALENT) (UNKNOWN)) | AHN110: JAPANESE ENCEPHALITIS (IXIARO) | AID110: ROTAVIRUS (ROTARIX) | AIT110: HEP B (NO BRAND NAME) | AJJ110: MUMPS (NO BRAND NAME) | AJZ110: DTAP+IPV+HEPB+HIB (NO BRAND NAME) | AKP110: INFLUENZA (SEASONAL) (FLUMIST) | ALF110: INFLUENZA (SEASONAL) (FLUAD QUADRIVALENT) | ALV110: HIB (PEDVAXHIB) | AML110: ANTHRAX (BIOTHRAX) | ANB110: RABIES (NO BRAND NAME) | ANR110: POLIO VIRUS, INACT. (IPOL) | AOH110: INFLUENZA (H1N1) (H1N1 (MONOVALENT) (MEDIMMUNE)) | AOX110: DTAP+IPV+HEPB+HIB (INFANRIX HEXA) | APN110: TD ADSORBED (NO BRAND NAME) | APO110: 1 | APY110: 1 | AQD110: TYPHOID LIVE ORAL TY21A (VIVOTIF) | AQT110: MEASLES + MUMPS + RUBELLA (MMR I) | ARJ110: INFLUENZA (SEASONAL) (FLUZONE INTRADERMAL) | ARZ110: TDAP (NO BRAND NAME) | ASP110: MENINGOCOCCAL (MENOMUNE) | ATF110: DTAP + IPV + HIB (PENTACEL) | ATV110: TD ADSORBED (TDVAX) | AUL110: INFLUENZA (SEASONAL) (FOREIGN) | AVB110: HEP A (NO BRAND NAME) | AVR110: RABIES (RABAVERT) | AWH110: SMALLPOX (ACAM2000)
A111: 20 | B111: COVID19 (COVID19 (PFIZER-BIONTECH)) | C111: 7 | D111: 3 | E111: 2 | H111: 2 | M111: 5 | N111: 3 | O111: 2 | R111: COVID19 (COVID19 (MODERNA)) | S111: 4 | T111: 3 | U111: 1 | AC111: 4 | AD111: 3 | AE111: 1 | AH111: COVID19 (COVID19 (JANSSEN)) | AX111: HPV (GARDASIL) | AY111: 5 | AZ111: 2 | BA111: 1 | BB111: 2 | BI111: 5 | BJ111: 2 | BK111: 1 | BL111: 2 | BN111: ZOSTER (SHINGRIX) | CD111: HPV (CERVARIX) | CT111: TDAP (ADACEL) | DJ111: VACCINE NOT SPECIFIED (NO BRAND NAME) | DZ111: INFLUENZA (SEASONAL) (NO BRAND NAME) | EP111: HEP A (HAVRIX) | FF111: HEP B (ENGERIX-B) | FV111: HPV (GARDASIL 9) | GL111: MENINGOCOCCAL CONJUGATE (MENACTRA) | HB111: PNEUMO (PREVNAR13) | HR111: PNEUMO (PNEUMOVAX) | IH111: INFLUENZA (SEASONAL) (FLUZONE) | IX111: HPV (NO BRAND NAME) | JN111: ZOSTER LIVE (ZOSTAVAX) | KD111: HEP A (VAQTA) | KT111: TDAP (BOOSTRIX) | LJ111: HEP A + HEP B (TWINRIX) | LZ111: MEASLES + MUMPS + RUBELLA (MMR II) | MP111: VARICELLA (VARIVAX) | NF111: INFLUENZA (SEASONAL) (FLUZONE HIGH-DOSE) | NV111: COVID19 (COVID19 (UNKNOWN)) | OL111: MENINGOCOCCAL B (TRUMENBA) | PB111: INFLUENZA (SEASONAL) (FLUARIX) | PR111: YELLOW FEVER (YF-VAX) | QH111: INFLUENZA (SEASONAL) (FLUAD) | QX111: INFLUENZA (SEASONAL) (FLUVIRIN) | RN111: INFLUENZA (SEASONAL) (FLUZONE QUADRIVALENT) | SD111: INFLUENZA (SEASONAL) (FLUARIX QUADRIVALENT) | ST111: RABIES (RABIPUR) | TJ111: INFLUENZA (SEASONAL) (FLULAVAL) | TZ111: TYPHOID VI POLYSACCHARIDE (TYPHIM VI) | UP111: RABIES (IMOVAX) | VF111: INFLUENZA (SEASONAL) (FLUZONE HIGH-DOSE QUADRIVALENT) | VV111: ROTAVIRUS (ROTATEQ) | WL111: TETANUS DIPHTHERIA (NO BRAND NAME) | XB111: TYPHOID LIVE ORAL TY21A (NO BRAND NAME) | XR111: INFLUENZA (H1N1) (H1N1 (MONOVALENT) (SANOFI)) | YH111: DTAP (DAPTACEL) | YX111: MEASLES + MUMPS + RUBELLA (NO BRAND NAME) | ZN111: INFLUENZA (SEASONAL) (FLUMIST QUADRIVALENT) | AAD111: HEP B (RECOMBIVAX HB) | AAT111: LYME (LYMERIX) | ABJ111: PNEUMO (NO BRAND NAME) | ABZ111: MENINGOCOCCAL CONJUGATE (MENVEO) | ACP111: INFLUENZA (SEASONAL) (FLULAVAL QUADRIVALENT) | ADF111: INFLUENZA (SEASONAL) (FLUBLOK QUADRIVALENT) | ADV111: YELLOW FEVER (STAMARIL) | AEL111: INFLUENZA (SEASONAL) (FLUCELVAX QUADRIVALENT) | AFB111: INFLUENZA (SEASONAL) (AFLURIA QUADRIVALENT) | AFR111: VACCINE NOT SPECIFIED (OTHER) | AGH111: MENINGOCOCCAL B (BEXSERO) | AGX111: INFLUENZA (H1N1) (H1N1 (MONOVALENT) (UNKNOWN)) | AHN111: JAPANESE ENCEPHALITIS (IXIARO) | AID111: ROTAVIRUS (ROTARIX) | AIT111: HEP B (NO BRAND NAME) | AJJ111: MUMPS (NO BRAND NAME) | AJZ111: DTAP+IPV+HEPB+HIB (NO BRAND NAME) | AKP111: INFLUENZA (SEASONAL) (FLUMIST) | ALF111: INFLUENZA (SEASONAL) (FLUAD QUADRIVALENT) | ALV111: HIB (PEDVAXHIB) | AML111: ANTHRAX (BIOTHRAX) | ANB111: RABIES (NO BRAND NAME) | ANR111: POLIO VIRUS, INACT. (IPOL) | AOH111: INFLUENZA (H1N1) (H1N1 (MONOVALENT) (MEDIMMUNE)) | AOX111: DTAP+IPV+HEPB+HIB (INFANRIX HEXA) | APN111: TD ADSORBED (NO BRAND NAME) | AQD111: TYPHOID LIVE ORAL TY21A (VIVOTIF) | AQT111: MEASLES + MUMPS + RUBELLA (MMR I) | ARJ111: INFLUENZA (SEASONAL) (FLUZONE INTRADERMAL) | ARZ111: TDAP (NO BRAND NAME) | ASP111: MENINGOCOCCAL (MENOMUNE) | ATF111: DTAP + IPV + HIB (PENTACEL) | ATV111: TD ADSORBED (TDVAX) | AUL111: INFLUENZA (SEASONAL) (FOREIGN) | AVB111: HEP A (NO BRAND NAME) | AVR111: RABIES (RABAVERT) | AWH111: SMALLPOX (ACAM2000)
A112: 21 | B112: COVID19 (COVID19 (PFIZER-BIONTECH)) | C112: 6 | D112: 2 | E112: 2 | M112: 6 | N112: 2 | O112: 2 | R112: COVID19 (COVID19 (MODERNA)) | S112: 2 | T112: 2 | AC112: 2 | AD112: 2 | AH112: COVID19 (COVID19 (JANSSEN)) | AI112: 1 | AJ112: 1 | AN112: 1 | AO112: 1 | AX112: HPV (GARDASIL) | AY112: 4 | AZ112: 1 | BA112: 2 | BB112: 1 | BI112: 4 | BJ112: 1 | BK112: 2 | BL112: 1 | BN112: ZOSTER (SHINGRIX) | CD112: HPV (CERVARIX) | CT112: TDAP (ADACEL) | DJ112: VACCINE NOT SPECIFIED (NO BRAND NAME) | DZ112: INFLUENZA (SEASONAL) (NO BRAND NAME) | EP112: HEP A (HAVRIX) | EQ112: 1 | FA112: 1 | FF112: HEP B (ENGERIX-B) | FV112: HPV (GARDASIL 9) | FW112: 1 | FX112: 1 | GG112: 1 | GH112: 1 | GL112: MENINGOCOCCAL CONJUGATE (MENACTRA) | HB112: PNEUMO (PREVNAR13) | HR112: PNEUMO (PNEUMOVAX) | IH112: INFLUENZA (SEASONAL) (FLUZONE) | IX112: HPV (NO BRAND NAME) | JN112: ZOSTER LIVE (ZOSTAVAX) | KD112: HEP A (VAQTA) | KT112: TDAP (BOOSTRIX) | LJ112: HEP A + HEP B (TWINRIX) | LZ112: MEASLES + MUMPS + RUBELLA (MMR II) | MP112: VARICELLA (VARIVAX) | NF112: INFLUENZA (SEASONAL) (FLUZONE HIGH-DOSE) | NV112: COVID19 (COVID19 (UNKNOWN)) | OL112: MENINGOCOCCAL B (TRUMENBA) | PB112: INFLUENZA (SEASONAL) (FLUARIX) | PR112: YELLOW FEVER (YF-VAX) | PS112: 2 | PU112: 1 | PX112: 2 | PZ112: 1 | QH112: INFLUENZA (SEASONAL) (FLUAD) | QX112: INFLUENZA (SEASONAL) (FLUVIRIN) | RN112: INFLUENZA (SEASONAL) (FLUZONE QUADRIVALENT) | SD112: INFLUENZA (SEASONAL) (FLUARIX QUADRIVALENT) | ST112: RABIES (RABIPUR) | SU112: 2 | TE112: 2 | TJ112: INFLUENZA (SEASONAL) (FLULAVAL) | TZ112: TYPHOID VI POLYSACCHARIDE (TYPHIM VI) | UP112: RABIES (IMOVAX) | VF112: INFLUENZA (SEASONAL) (FLUZONE HIGH-DOSE QUADRIVALENT) | VV112: ROTAVIRUS (ROTATEQ) | WL112: TETANUS DIPHTHERIA (NO BRAND NAME) | XB112: TYPHOID LIVE ORAL TY21A (NO BRAND NAME) | XR112: INFLUENZA (H1N1) (H1N1 (MONOVALENT) (SANOFI)) | YH112: DTAP (DAPTACEL) | YX112: MEASLES + MUMPS + RUBELLA (NO BRAND NAME) | ZN112: INFLUENZA (SEASONAL) (FLUMIST QUADRIVALENT) | AAD112: HEP B (RECOMBIVAX HB) | AAT112: LYME (LYMERIX) | ABJ112: PNEUMO (NO BRAND NAME) | ABZ112: MENINGOCOCCAL CONJUGATE (MENVEO) | ACP112: INFLUENZA (SEASONAL) (FLULAVAL QUADRIVALENT) | ADF112: INFLUENZA (SEASONAL) (FLUBLOK QUADRIVALENT) | ADV112: YELLOW FEVER (STAMARIL) | AEL112: INFLUENZA (SEASONAL) (FLUCELVAX QUADRIVALENT) | AFB112: INFLUENZA (SEASONAL) (AFLURIA QUADRIVALENT) | AFR112: VACCINE NOT SPECIFIED (OTHER) | AGH112: MENINGOCOCCAL B (BEXSERO) | AGX112: INFLUENZA (H1N1) (H1N1 (MONOVALENT) (UNKNOWN)) | AHN112: JAPANESE ENCEPHALITIS (IXIARO) | AID112: ROTAVIRUS (ROTARIX) | AIT112: HEP B (NO BRAND NAME) | AJJ112: MUMPS (NO BRAND NAME) | AJZ112: DTAP+IPV+HEPB+HIB (NO BRAND NAME) | AKP112: INFLUENZA (SEASONAL) (FLUMIST) | ALF112: INFLUENZA (SEASONAL) (FLUAD QUADRIVALENT) | ALV112: HIB (PEDVAXHIB) | AML112: ANTHRAX (BIOTHRAX) | ANB112: RABIES (NO BRAND NAME) | ANR112: POLIO VIRUS, INACT. (IPOL) | AOH112: INFLUENZA (H1N1) (H1N1 (MONOVALENT) (MEDIMMUNE)) | AOX112: DTAP+IPV+HEPB+HIB (INFANRIX HEXA) | APN112: TD ADSORBED (NO BRAND NAME) | AQD112: TYPHOID LIVE ORAL TY21A (VIVOTIF) | AQT112: MEASLES + MUMPS + RUBELLA (MMR I) | ARJ112: INFLUENZA (SEASONAL) (FLUZONE INTRADERMAL) | ARZ112: TDAP (NO BRAND NAME) | ASP112: MENINGOCOCCAL (MENOMUNE) | ATF112: DTAP + IPV + HIB (PENTACEL) | ATV112: TD ADSORBED (TDVAX) | AUL112: INFLUENZA (SEASONAL) (FOREIGN) | AVB112: HEP A (NO BRAND NAME) | AVR112: RABIES (RABAVERT) | AWH112: SMALLPOX (ACAM2000)
